Workbook

Sheet Summary
A1: Sample | B1: Moisture | C1: Ash | D1: Salt equivalent | E1: Salt:Moisture*
A2: AC4
A3: AC6
A4: LC4
A5: LC6
A6: CC6
A7: AR4
A8: AR6
A9: LR4
A10: LR6
A11: CR6
A12: AD4
A13: AD6
A14: CD6
A15: LD4
A16: LD6
B19: *Using salt equivalent calculation

Sheet Moisture
A1: Sample | B1: ID | C1: Sample cup | D1: tin weight | E1: sample weight | F1: final weight | G1: % solids | H1: %Moisture | I1: Average | J1: Moisture (45-52%) | L1: CI
A2: 1 | B2: LC4 | C2: 1 | D2: 2.1301 | E2: 2.0006 | F2: 3.1147 | G2: =(F2-D2)/E2 -> 0.4921523543 | H2: =1-G2 -> 0.5078476457 | I2: =AVERAGE(G2:G3) -> 0.4918481901 | J2: =1-I2 -> 0.5081518099 | K2: =STDEV(G2:G3) -> 0.0004301531029 | L2: =K2/I2*100 -> 0.08745647775
A3: 1 | B3: LC4 | C3: 2 | D3: 2.1416 | E3: 2.0045 | F3: 3.1269 | G3: =(F3-D3)/E3 -> 0.4915440259 | H3: =1-G3 -> 0.5084559741
A4: 2 | B4: LR4 | C4: 3 | D4: 2.1031 | E4: 2.0106 | F4: 3.1113 | G4: 0.5014423555 | H4: 0.4985576445 | I4: =AVERAGE(G4:G5) -> 0.5017282897 | J4: =1-I4 -> 0.4982717103 | K4: =STDEV(G4:G5) -> 0.0004043720139 | L4: =K4/I4*100 -> 0.08059581695
A5: 2 | B5: LR4 | C5: 4 | D5: 2.2313 | E5: 2.0107 | F5: 3.2407 | G5: 0.5020142239 | H5: 0.4979857761
A6: 3 | B6: LD4 | C6: 5 | D6: 2.1304 | E6: 2.0035 | F6: 3.0162 | G6: 0.442126279 | H6: 0.557873721 | I6: =AVERAGE(G6:G7) -> 0.4416864619 | J6: =1-I6 -> 0.5583135381 | K6: =STDEV(G6:G7) -> 0.0006219953191 | L6: =K6/I6*100 -> 0.1408228173
A7: 3 | B7: LD4 | C7: 6 | D7: 2.1977 | E7: 2.0118 | F7: 3.0854 | G7: 0.4412466448 | H7: 0.5587533552
A8: 4 | B8: LX4 | C8: 7 | D8: 2.1548 | E8: 2.018 | F8: 3.0264 | G8: 0.4319127849 | H8: 0.5680872151 | I8: =AVERAGE(G8:G9) -> 0.4303168489 | J8: =1-I8 -> 0.5696831511 | K8: =STDEV(G8:G9) -> 0.002256994396 | L8: =K8/I8*100 -> 0.5244959387
A9: 4 | B9: LX4 | C9: 8 | D9: 2.1499 | E9: 2.0069 | F9: 3.0103 | G9: 0.4287209129 | H9: 0.5712790871
A10: 6 | B10: AC6 | C10: 11 | D10: 2.1633 | E10: 2.0127 | F10: 3.1351 | G10: 0.4828340041 | H10: 0.5171659959 | I10: =AVERAGE(G10:G11) -> 0.4829318821 | J10: =1-I10 -> 0.5170681179 | K10: =STDEV(G10:G11) -> 0.0001384204327 | L10: =K10/I10*100 -> 0.02866251698
A11: 6 | B11: AC6 | C11: 12 | D11: 2.1312 | E11: 2.0094 | F11: 3.1018 | G11: 0.4830297601 | H11: 0.5169702399
A12: 7 | B12: AR6 | C12: 13 | D12: 2.1714 | E12: 2.0089 | F12: 3.1706 | G12: 0.4973866295 | H12: 0.5026133705 | I12: =AVERAGE(G12:G13) -> 0.4969061821 | J12: =1-I12 -> 0.5030938179 | K12: =STDEV(G12:G13) -> 0.0006794552211 | L12: =K12/I12*100 -> 0.1367371237
A13: 7 | B13: AR6 | C13: 14 | D13: 2.1112 | E13: 2.0144 | F13: 3.1112 | G13: 0.4964257347 | H13: 0.5035742653
A14: 8 | B14: AD6 | C14: 15 | D14: 2.1257 | E14: 2.0074 | F14: 3.0623 | G14: 0.4665736774 | H14: 0.5334263226 | I14: =AVERAGE(G14:G15) -> 0.4657862194 | J14: =1-I14 -> 0.5342137806 | K14: =STDEV(G14:G15) -> 0.001113633739 | L14: =K14/I14*100 -> 0.2390868799
A15: 8 | B15: AD6 | C15: 16 | D15: 2.1435 | E15: 2.0185 | F15: 3.0821 | G15: 0.4649987615 | H15: 0.5350012385
A16: 9 | B16: AX6 | C16: 17 | D16: 2.0989 | E16: 2.0093 | F16: 3.0499 | G16: 0.4732991589 | H16: 0.5267008411 | I16: =AVERAGE(G16:G17) -> 0.473039121 | J16: =1-I16 -> 0.526960879 | K16: =STDEV(G16:G17) -> 0.0003677491062 | L16: =K16/I16*100 -> 0.07774179552
A17: 9 | B17: AX6 | C17: 18 | D17: 2.2037 | E17: 2.0003 | F17: 3.1494 | G17: 0.4727790831 | H17: 0.5272209169
A18: 11 | B18: CC6 | C18: 21 | D18: 2.181 | E18: 2.0141 | F18: 3.2047 | G18: 0.5082667196 | H18: 0.4917332804 | I18: =AVERAGE(G18:G19) -> 0.508263535 | J18: =1-I18 -> 0.491736465 | K18: =STDEV(G18:G19) -> 4.503780992e-06 | L18: =K18/I18*100 -> 0.0008861113738
A19: 11 | B19: CC6 | C19: 22 | D19: 2.1174 | E19: 2.0096 | F19: 3.1388 | G19: 0.5082603503 | H19: 0.4917396497
A20: 12 | B20: CR6 | C20: 23 | D20: 2.1447 | E20: 2.0031 | F20: 3.1735 | G20: 0.5136039139 | H20: 0.4863960861 | I20: =AVERAGE(G20:G21) -> 0.517257107 | J20: =1-I20 -> 0.482742893 | K20: =STDEV(G20:G21) -> 0.005166395123 | L20: =K20/I20*100 -> 0.99880602
A21: 12 | B21: CR6 | C21: 24 | D21: 2.168 | E21: 2.0301 | F21: 3.2255 | G21: 0.5209103 | H21: 0.4790897
A22: 13 | B22: CD6 | C22: 25 | D22: 2.1238 | E22: 2.0007 | F22: 3.0343 | G22: 0.4550907182 | H22: 0.5449092818 | I22: =AVERAGE(G22:G23) -> 0.4558757982 | J22: =1-I22 -> 0.5441242018 | K22: =STDEV(G22:G23) -> 0.001110270745 | L22: =K22/I22*100 -> 0.2435467619
A23: 13 | B23: CD6 | C23: 26 | D23: 2.1921 | E23: 2.0155 | F23: 3.1125 | G23: 0.4566608782 | H23: 0.5433391218
A24: 14 | B24: CX6 | C24: 27 | D24: 2.1883 | E24: 2.01 | F24: 3.105 | G24: 0.4560696517 | H24: 0.5439303483 | I24: =AVERAGE(G24:G25) -> 0.4567881204 | J24: =1-I24 -> 0.5432118796 | K24: =STDEV(G24:G25) -> 0.001016068143 | L24: =K24/I24*100 -> 0.2224375148
A25: 14 | B25: CX6 | C25: 28 | D25: 2.2034 | E25: 2.0109 | F25: 3.1234 | G25: 0.4575065891 | H25: 0.5424934109
A26: 16 | B26: AC4 | C26: 31 | D26: 2.1327 | E26: 2.0157 | F26: 3.0903 | G26: 0.475070695 | H26: 0.524929305 | I26: =AVERAGE(G26:G27) -> 0.475372917 | J26: =1-I26 -> 0.524627083 | K26: =STDEV(G26:G27) -> 0.0004274064196 | L26: =K26/I26*100 -> 0.08990971179
A27: 16 | B27: AC4 | C27: 32 | D27: 2.1387 | E27: 2.0144 | F27: 3.0969 | G27: 0.475675139 | H27: 0.524324861
A28: 17 | B28: AR4 | C28: 33 | D28: 2.1128 | E28: 2.018 | F28: 3.1077 | G28: 0.493012884 | H28: 0.506987116 | I28: =AVERAGE(G28:G29) -> 0.4927776959 | J28: =1-I28 -> 0.5072223041 | K28: =STDEV(G28:G29) -> 0.000332606298 | L28: =K28/I28*100 -> 0.06749621599
A29: 17 | B29: AR4 | C29: 34 | D29: 2.1595 | E29: 2.0114 | F29: 3.1502 | G29: 0.4925425077 | H29: 0.5074574923
A30: 18 | B30: AD4 | C30: 35 | D30: 2.1907 | E30: 2.0113 | F30: 3.097 | G30: 0.4506040869 | H30: 0.5493959131 | I30: =AVERAGE(G30:G31) -> 0.4506839413 | J30: =1-I30 -> 0.5493160587 | K30: =STDEV(G30:G31) -> 0.0001129310924 | L30: =K30/I30*100 -> 0.02505771385
A31: 18 | B31: AD4 | C31: 36 | D31: 2.1542 | E31: 2.0097 | F31: 3.0601 | G31: 0.4507637956 | H31: 0.5492362044
A32: 19 | B32: AX4 | C32: 37 | D32: 2.1408 | E32: 2.0079 | F32: 3.0517 | G32: 0.4536580507 | H32: 0.5463419493 | I32: =AVERAGE(G32:G33) -> 0.453021285 | J32: =1-I32 -> 0.546978715 | K32: =STDEV(G32:G33) -> 0.0009005226529 | L32: =K32/I32*100 -> 0.1987815325
A33: 19 | B33: AX4 | C33: 38 | D33: 2.1696 | E33: 2.0025 | F33: 3.0755 | G33: 0.4523845194 | H33: 0.5476154806
A34: 21 | B34: LC6 | C34: 41 | D34: 2.1264 | E34: 2.0026 | F34: 3.1 | G34: 0.4861679816 | H34: 0.5138320184 | I34: =AVERAGE(G34:G35) -> 0.4871431748 | J34: =1-I34 -> 0.5128568252 | K34: =STDEV(G34:G35) -> 0.001379131402 | L34: =K34/I34*100 -> 0.2831059683
A35: 21 | B35: LC6 | C35: 42 | D35: 2.1144 | E35: 2.0073 | F35: 3.0942 | G35: 0.488118368 | H35: 0.511881632
A36: 22 | B36: LR6 | C36: 43 | D36: 2.2126 | E36: 2.0015 | F36: 3.2094 | G36: 0.4980264801 | H36: 0.5019735199 | I36: =AVERAGE(G36:G37) -> 0.4980920171 | J36: =1-I36 -> 0.5019079829 | K36: =STDEV(G36:G37) -> 9.268323546e-05 | L36: =K36/I36*100 -> 0.01860765326
A37: 22 | B37: LR6 | C37: 44 | D37: 2.1402 | E37: 2.0082 | F37: 3.1406 | G37: 0.498157554 | H37: 0.501842446
A38: 23 | B38: LD6 | C38: 45 | D38: 2.14 | E38: 2.0087 | F38: 3.1062 | G38: 0.4810076169 | H38: 0.5189923831 | I38: =AVERAGE(G38:G39) -> 0.4816232114 | J38: =1-I38 -> 0.5183767886 | K38: =STDEV(G38:G39) -> 0.000870582164 | L38: =K38/I38*100 -> 0.1807600098
A39: 23 | B39: LD6 | C39: 46 | D39: 2.0895 | E39: 2.01 | F39: 3.0588 | G39: 0.482238806 | H39: 0.517761194
A40: 24 | B40: LX6 | C40: 47 | D40: 2.1801 | E40: 2.0046 | F40: 3.144 | G40: 0.4808440587 | H40: 0.5191559413 | I40: =AVERAGE(G40:G41) -> 0.4802267962 | J40: =1-I40 -> 0.5197732038 | K40: =STDEV(G40:G41) -> 0.0008729409603 | L40: =K40/I40*100 -> 0.181776812
A41: 24 | B41: LX6 | C41: 48 | D41: 2.238 | E41: 2.0181 | F41: 3.2059 | G41: 0.4796095337 | H41: 0.5203904663
A42: 26 | B42: CR6 | C42: 1 | D42: 2.2583 | E42: 2.012 | F42: 3.2281 | G42: =(F42-D42)/E42 -> 0.4820079523 | H42: 0.5179920477 | I42: =AVERAGE(G42:G43) -> 0.4818898449 | J42: =1-I42 -> 0.5181101551 | K42: =STDEV(G42:G43) -> 0.000167029068 | L42: =K42/I42*100 -> 0.03466125501
A43: 26 | B43: CR6 | C43: 2 | D43: 2.2998 | E43: 2.0161 | F43: 3.2711 | G43: =(F43-D43)/E43 -> 0.4817717375 | H43: 0.5182282625
A44: 27 | B44: CC6 | C44: 3 | D44: 2.2603 | E44: 2.013 | F44: 3.2494 | G44: 0.4913561848 | H44: 0.5086438152 | I44: =AVERAGE(G44:G45) -> 0.4912930017 | J44: =1-I44 -> 0.5087069983 | K44: =STDEV(G44:G45) -> 8.935438428e-05 | L44: =K44/I44*100 -> 0.01818759558
A45: 27 | B45: CC6 | C45: 4 | D45: 2.2012 | E45: 2.0068 | F45: 3.187 | G45: 0.4912298186 | H45: 0.5087701814
A46: 28 | B46: CD6 | C46: 5 | D46: 2.2095 | E46: 2.0126 | F46: 3.0534 | G46: 0.4193083573 | H46: 0.5806916427 | I46: =AVERAGE(G46:G47) -> 0.4192171964 | J46: =1-I46 -> 0.5807828036 | K46: =STDEV(G46:G47) -> 0.0001289210757 | L46: =K46/I46*100 -> 0.03075281187
A47: 28 | B47: CD6 | C47: 6 | D47: 2.2413 | E47: 2.0161 | F47: 3.0863 | G47: 0.4191260354 | H47: 0.5808739646
A48: 30 | B48: AR4 | C48: 7 | D48: 2.2092 | E48: 2.0135 | F48: 3.2265 | G48: 0.5052396325 | H48: 0.4947603675 | I48: =AVERAGE(G48:G49) -> 0.5055435031 | J48: =1-I48 -> 0.4944564969 | K48: =STDEV(G48:G49) -> 0.000429737893 | L48: =K48/I48*100 -> 0.08500512624
A49: 30 | B49: AR4 | C49: 8 | D49: 2.2159 | E49: 2.018 | F49: 3.2367 | G49: 0.5058473736 | H49: 0.4941526264
A50: 31 | B50: AC4 | C50: 9 | D50: 2.2191 | E50: 2.0175 | F50: 3.2654 | G50: 0.5186121437 | H50: 0.4813878563 | I50: =AVERAGE(G50:G51) -> 0.5188013242 | J50: =1-I50 -> 0.4811986758 | K50: =STDEV(G50:G51) -> 0.0002675416326 | L50: =K50/I50*100 -> 0.05156918846
A51: 31 | B51: AC4 | C51: 10 | D51: 2.1853 | E51: 2.001 | F51: 3.2238 | G51: 0.5189905047 | H51: 0.4810094953
A52: 32 | B52: AD4 | C52: 11 | D52: 2.1778 | E52: 2.0185 | F52: 3.1008 | G52: 0.4572702502 | H52: 0.5427297498 | I52: =AVERAGE(G52:G53) -> 0.457851336 | J52: =1-I52 -> 0.542148664 | K52: =STDEV(G52:G53) -> 0.0008217793729 | L52: =K52/I52*100 -> 0.1794860708
A53: 33 | B53: AD4 | C53: 12 | D53: 2.184 | E53: 2.0184 | F53: 3.1093 | G53: 0.4584324217 | H53: 0.5415675783
A54: 34 | B54: LR6 | C54: 13 | D54: 2.231 | E54: 2.0097 | F54: 3.1977 | G54: 0.4810170672 | H54: 0.5189829328 | I54: =AVERAGE(G54:G55) -> 0.4811450512 | J54: =1-I54 -> 0.5188549488 | K54: =STDEV(G54:G55) -> 0.0001809966654 | L54: =K54/I54*100 -> 0.03761790024
A55: 34 | B55: LR6 | C55: 14 | D55: 2.1903 | E55: 2.0078 | F55: 3.1566 | G55: 0.4812730352 | H55: 0.5187269648
A56: 35 | B56: LC6 | C56: 15 | D56: 2.1988 | E56: 2.008 | F56: 3.2067 | G56: 0.5019422311 | H56: =1-G56 -> 0.4980577689 | I56: =AVERAGE(G56:G57) -> 0.5028808464 | J56: =1-I56 -> 0.4971191536 | K56: =STDEV(G56:G57) -> 0.001327402561 | L56: =K56/I56*100 -> 0.2639596578
A57: 35 | B57: LC6 | C57: 16 | D57: 2.2302 | E57: 2.0029 | F57: 3.2393 | G57: 0.5038194618 | H57: 0.4961805382
A58: 36 | B58: LD6 | C58: 17 | D58: 2.214 | E58: 2.0179 | F58: 3.1506 | G58: 0.4641458942 | H58: 0.5358541058 | I58: =AVERAGE(G58:G59) -> 0.4648345678 | J58: =1-I58 -> 0.5351654322 | K58: =STDEV(G58:G59) -> 0.0009739314855 | L58: =K58/I58*100 -> 0.2095221726
A59: 36 | B59: LD6 | C59: 18 | D59: 2.2038 | E59: 2.0115 | F59: 3.1402 | G59: 0.4655232414 | H59: 0.5344767586
A60: 38 | B60: AR6 | C60: 19 | D60: 2.316 | E60: 2.0125 | F60: 3.2953 | G60: 0.4866086957 | H60: 0.5133913043 | I60: =AVERAGE(G60:G61) -> 0.4870105894 | J60: =1-I60 -> 0.5129894106 | K60: =STDEV(G60:G61) -> 0.000568363655 | L60: =K60/I60*100 -> 0.1167045784
A61: 38 | B61: AR6 | C61: 20 | D61: 2.2242 | E61: 2.0139 | F61: 3.2058 | G61: 0.4874124832 | H61: 0.5125875168
A62: 39 | B62: AC6 | C62: 21 | D62: 2.2147 | E62: 2.0129 | F62: 3.2175 | G62: 0.4981866958 | H62: 0.5018133042 | I62: =AVERAGE(G62:G63) -> 0.4979150972 | J62: =1-I62 -> 0.5020849028 | K62: =STDEV(G62:G63) -> 0.000384098477 | L62: =K62/I62*100 -> 0.07714135989
A63: 39 | B63: AC6 | C63: 22 | D63: 2.2098 | E63: 2.0157 | F63: 3.2129 | G63: 0.4976434985 | H63: 0.5023565015
A64: 40 | B64: AD6 | C64: 23 | D64: 2.1864 | E64: 2.0154 | F64: 3.1516 | G64: 0.4789123747 | H64: 0.5210876253 | I64: =AVERAGE(G64:G65) -> 0.4789580196 | J64: =1-I64 -> 0.5210419804 | K64: =STDEV(G64:G65) -> 6.455159427e-05 | L64: =K64/I64*100 -> 0.01347750568
A65: 40 | B65: AD6 | C65: 24 | D65: 2.2156 | E65: 2.0194 | F65: 3.1829 | G65: 0.4790036645 | H65: 0.5209963355
A66: 42 | B66: LR4 | C66: 25 | D66: 2.2589 | E66: 2.0187 | F66: 3.2324 | G66: 0.4822410462 | H66: 0.5177589538 | I66: =AVERAGE(G66:G67) -> 0.482314553 | J66: =1-I66 -> 0.517685447 | K66: =STDEV(G66:G67) -> 0.0001039542312 | L66: =K66/I66*100 -> 0.02155320227
A67: 42 | B67: LR4 | C67: 26 | D67: 2.2521 | E67: 2.01 | F67: 3.2217 | G67: 0.4823880597 | H67: 0.5176119403
A68: 43 | B68: LC4 | C68: 27 | D68: 2.203 | E68: 2.0062 | F68: 3.1903 | G68: 0.4921244143 | H68: 0.5078755857 | I68: =AVERAGE(G68:G69) -> 0.4913278306 | J68: =1-I68 -> 0.5086721694 | K68: =STDEV(G68:G69) -> 0.001126539494 | L68: =K68/I68*100 -> 0.2292846901
A69: 43 | B69: LC4 | C69: 28 | D69: 2.2016 | E69: 2.0066 | F69: 3.1859 | G69: 0.4905312469 | H69: 0.5094687531
A70: 44 | B70: LD4 | C70: 29 | D70: 2.2069 | E70: 2.0183 | F70: 3.1242 | G70: 0.4544914037 | H70: 0.5455085963 | I70: =AVERAGE(G70:G71) -> 0.4544073653 | J70: =1-I70 -> 0.5455926347 | K70: =STDEV(G70:G71) -> 0.0001188481315 | L70: =K70/I70*100 -> 0.02615453459
A71: 44 | B71: LD4 | C71: 30 | D71: 2.1922 | E71: 2.0054 | F71: 3.1033 | G71: 0.454323327 | H71: 0.545676673

Sheet Moisture no DLP control
A1: Sample | B1: ID | C1: Sample cup | D1: tin weight | E1: sample weight | F1: final weight | G1: % solids | H1: %Moisture | I1: Average | J1: Moisture (45-52%) | L1: CI
A2: 1 | B2: LC4 | C2: 1 | D2: 2.1301 | E2: 2.0006 | F2: 3.1147 | G2: =(F2-D2)/E2 -> 0.4921523543 | H2: =1-G2 -> 0.5078476457 | I2: =AVERAGE(G2:G3) -> 0.4918481901 | J2: =1-I2 -> 0.5081518099 | K2: =STDEV(G2:G3) -> 0.0004301531029 | L2: =K2/I2*100 -> 0.08745647775
A3: 1 | B3: LC4 | C3: 2 | D3: 2.1416 | E3: 2.0045 | F3: 3.1269 | G3: =(F3-D3)/E3 -> 0.4915440259 | H3: =1-G3 -> 0.5084559741
A4: 2 | B4: LR4 | C4: 3 | D4: 2.1031 | E4: 2.0106 | F4: 3.1113 | G4: 0.5014423555 | H4: 0.4985576445 | I4: =AVERAGE(G4:G5) -> 0.5017282897 | J4: =1-I4 -> 0.4982717103 | K4: =STDEV(G4:G5) -> 0.0004043720139 | L4: =K4/I4*100 -> 0.08059581695
A5: 2 | B5: LR4 | C5: 4 | D5: 2.2313 | E5: 2.0107 | F5: 3.2407 | G5: 0.5020142239 | H5: 0.4979857761
A6: 3 | B6: LD4 | C6: 5 | D6: 2.1304 | E6: 2.0035 | F6: 3.0162 | G6: 0.442126279 | H6: 0.557873721 | I6: =AVERAGE(G6:G7) -> 0.4416864619 | J6: =1-I6 -> 0.5583135381 | K6: =STDEV(G6:G7) -> 0.0006219953191 | L6: =K6/I6*100 -> 0.1408228173
A7: 3 | B7: LD4 | C7: 6 | D7: 2.1977 | E7: 2.0118 | F7: 3.0854 | G7: 0.4412466448 | H7: 0.5587533552
A8: 6 | B8: AC6 | C8: 11 | D8: 2.1633 | E8: 2.0127 | F8: 3.1351 | G8: 0.4828340041 | H8: 0.5171659959 | I8: =AVERAGE(G8:G9) -> 0.4829318821 | J8: =1-I8 -> 0.5170681179 | K8: =STDEV(G8:G9) -> 0.0001384204327 | L8: =K8/I8*100 -> 0.02866251698
A9: 6 | B9: AC6 | C9: 12 | D9: 2.1312 | E9: 2.0094 | F9: 3.1018 | G9: 0.4830297601 | H9: 0.5169702399
A10: 7 | B10: AR6 | C10: 13 | D10: 2.1714 | E10: 2.0089 | F10: 3.1706 | G10: 0.4973866295 | H10: 0.5026133705 | I10: =AVERAGE(G10:G11) -> 0.4969061821 | J10: =1-I10 -> 0.5030938179 | K10: =STDEV(G10:G11) -> 0.0006794552211 | L10: =K10/I10*100 -> 0.1367371237
A11: 7 | B11: AR6 | C11: 14 | D11: 2.1112 | E11: 2.0144 | F11: 3.1112 | G11: 0.4964257347 | H11: 0.5035742653
A12: 8 | B12: AD6 | C12: 15 | D12: 2.1257 | E12: 2.0074 | F12: 3.0623 | G12: 0.4665736774 | H12: 0.5334263226 | I12: =AVERAGE(G12:G13) -> 0.4657862194 | J12: =1-I12 -> 0.5342137806 | K12: =STDEV(G12:G13) -> 0.001113633739 | L12: =K12/I12*100 -> 0.2390868799
A13: 8 | B13: AD6 | C13: 16 | D13: 2.1435 | E13: 2.0185 | F13: 3.0821 | G13: 0.4649987615 | H13: 0.5350012385
A14: 11 | B14: CC6 | C14: 21 | D14: 2.181 | E14: 2.0141 | F14: 3.2047 | G14: 0.5082667196 | H14: 0.4917332804 | I14: =AVERAGE(G14:G15) -> 0.508263535 | J14: =1-I14 -> 0.491736465 | K14: =STDEV(G14:G15) -> 4.503780992e-06 | L14: =K14/I14*100 -> 0.0008861113738
A15: 11 | B15: CC6 | C15: 22 | D15: 2.1174 | E15: 2.0096 | F15: 3.1388 | G15: 0.5082603503 | H15: 0.4917396497
A16: 12 | B16: CR6 | C16: 23 | D16: 2.1447 | E16: 2.0031 | F16: 3.1735 | G16: 0.5136039139 | H16: 0.4863960861 | I16: =AVERAGE(G16:G17) -> 0.517257107 | J16: =1-I16 -> 0.482742893 | K16: =STDEV(G16:G17) -> 0.005166395123 | L16: =K16/I16*100 -> 0.99880602
A17: 12 | B17: CR6 | C17: 24 | D17: 2.168 | E17: 2.0301 | F17: 3.2255 | G17: 0.5209103 | H17: 0.4790897
A18: 13 | B18: CD6 | C18: 25 | D18: 2.1238 | E18: 2.0007 | F18: 3.0343 | G18: 0.4550907182 | H18: 0.5449092818 | I18: =AVERAGE(G18:G19) -> 0.4558757982 | J18: =1-I18 -> 0.5441242018 | K18: =STDEV(G18:G19) -> 0.001110270745 | L18: =K18/I18*100 -> 0.2435467619
A19: 13 | B19: CD6 | C19: 26 | D19: 2.1921 | E19: 2.0155 | F19: 3.1125 | G19: 0.4566608782 | H19: 0.5433391218
A20: 16 | B20: AC4 | C20: 31 | D20: 2.1327 | E20: 2.0157 | F20: 3.0903 | G20: 0.475070695 | H20: 0.524929305 | I20: =AVERAGE(G20:G21) -> 0.475372917 | J20: =1-I20 -> 0.524627083 | K20: =STDEV(G20:G21) -> 0.0004274064196 | L20: =K20/I20*100 -> 0.08990971179
A21: 16 | B21: AC4 | C21: 32 | D21: 2.1387 | E21: 2.0144 | F21: 3.0969 | G21: 0.475675139 | H21: 0.524324861
A22: 17 | B22: AR4 | C22: 33 | D22: 2.1128 | E22: 2.018 | F22: 3.1077 | G22: 0.493012884 | H22: 0.506987116 | I22: =AVERAGE(G22:G23) -> 0.4927776959 | J22: =1-I22 -> 0.5072223041 | K22: =STDEV(G22:G23) -> 0.000332606298 | L22: =K22/I22*100 -> 0.06749621599
A23: 17 | B23: AR4 | C23: 34 | D23: 2.1595 | E23: 2.0114 | F23: 3.1502 | G23: 0.4925425077 | H23: 0.5074574923
A24: 18 | B24: AD4 | C24: 35 | D24: 2.1907 | E24: 2.0113 | F24: 3.097 | G24: 0.4506040869 | H24: 0.5493959131 | I24: =AVERAGE(G24:G25) -> 0.4506839413 | J24: =1-I24 -> 0.5493160587 | K24: =STDEV(G24:G25) -> 0.0001129310924 | L24: =K24/I24*100 -> 0.02505771385
A25: 18 | B25: AD4 | C25: 36 | D25: 2.1542 | E25: 2.0097 | F25: 3.0601 | G25: 0.4507637956 | H25: 0.5492362044
A26: 21 | B26: LC6 | C26: 41 | D26: 2.1264 | E26: 2.0026 | F26: 3.1 | G26: 0.4861679816 | H26: 0.5138320184 | I26: =AVERAGE(G26:G27) -> 0.4871431748 | J26: =1-I26 -> 0.5128568252 | K26: =STDEV(G26:G27) -> 0.001379131402 | L26: =K26/I26*100 -> 0.2831059683
A27: 21 | B27: LC6 | C27: 42 | D27: 2.1144 | E27: 2.0073 | F27: 3.0942 | G27: 0.488118368 | H27: 0.511881632
A28: 22 | B28: LR6 | C28: 43 | D28: 2.2126 | E28: 2.0015 | F28: 3.2094 | G28: 0.4980264801 | H28: 0.5019735199 | I28: =AVERAGE(G28:G29) -> 0.4980920171 | J28: =1-I28 -> 0.5019079829 | K28: =STDEV(G28:G29) -> 9.268323546e-05 | L28: =K28/I28*100 -> 0.01860765326
A29: 22 | B29: LR6 | C29: 44 | D29: 2.1402 | E29: 2.0082 | F29: 3.1406 | G29: 0.498157554 | H29: 0.501842446
A30: 23 | B30: LD6 | C30: 45 | D30: 2.14 | E30: 2.0087 | F30: 3.1062 | G30: 0.4810076169 | H30: 0.5189923831 | I30: =AVERAGE(G30:G31) -> 0.4816232114 | J30: =1-I30 -> 0.5183767886 | K30: =STDEV(G30:G31) -> 0.000870582164 | L30: =K30/I30*100 -> 0.1807600098
A31: 23 | B31: LD6 | C31: 46 | D31: 2.0895 | E31: 2.01 | F31: 3.0588 | G31: 0.482238806 | H31: 0.517761194
A32: 26 | B32: CR6 | C32: 1 | D32: 2.2583 | E32: 2.012 | F32: 3.2281 | G32: =(F32-D32)/E32 -> 0.4820079523 | H32: 0.5179920477 | I32: =AVERAGE(G32:G33) -> 0.4818898449 | J32: =1-I32 -> 0.5181101551 | K32: =STDEV(G32:G33) -> 0.000167029068 | L32: =K32/I32*100 -> 0.03466125501
A33: 26 | B33: CR6 | C33: 2 | D33: 2.2998 | E33: 2.0161 | F33: 3.2711 | G33: =(F33-D33)/E33 -> 0.4817717375 | H33: 0.5182282625
A34: 27 | B34: CC6 | C34: 3 | D34: 2.2603 | E34: 2.013 | F34: 3.2494 | G34: 0.4913561848 | H34: 0.5086438152 | I34: =AVERAGE(G34:G35) -> 0.4912930017 | J34: =1-I34 -> 0.5087069983 | K34: =STDEV(G34:G35) -> 8.935438428e-05 | L34: =K34/I34*100 -> 0.01818759558
A35: 27 | B35: CC6 | C35: 4 | D35: 2.2012 | E35: 2.0068 | F35: 3.187 | G35: 0.4912298186 | H35: 0.5087701814
A36: 28 | B36: CD6 | C36: 5 | D36: 2.2095 | E36: 2.0126 | F36: 3.0534 | G36: 0.4193083573 | H36: 0.5806916427 | I36: =AVERAGE(G36:G37) -> 0.4192171964 | J36: =1-I36 -> 0.5807828036 | K36: =STDEV(G36:G37) -> 0.0001289210757 | L36: =K36/I36*100 -> 0.03075281187
A37: 28 | B37: CD6 | C37: 6 | D37: 2.2413 | E37: 2.0161 | F37: 3.0863 | G37: 0.4191260354 | H37: 0.5808739646
A38: 30 | B38: AR4 | C38: 7 | D38: 2.2092 | E38: 2.0135 | F38: 3.2265 | G38: 0.5052396325 | H38: 0.4947603675 | I38: =AVERAGE(G38:G39) -> 0.5055435031 | J38: =1-I38 -> 0.4944564969 | K38: =STDEV(G38:G39) -> 0.000429737893 | L38: =K38/I38*100 -> 0.08500512624
A39: 30 | B39: AR4 | C39: 8 | D39: 2.2159 | E39: 2.018 | F39: 3.2367 | G39: 0.5058473736 | H39: 0.4941526264
A40: 31 | B40: AC4 | C40: 9 | D40: 2.2191 | E40: 2.0175 | F40: 3.2654 | G40: 0.5186121437 | H40: 0.4813878563 | I40: =AVERAGE(G40:G41) -> 0.5188013242 | J40: =1-I40 -> 0.4811986758 | K40: =STDEV(G40:G41) -> 0.0002675416326 | L40: =K40/I40*100 -> 0.05156918846
A41: 31 | B41: AC4 | C41: 10 | D41: 2.1853 | E41: 2.001 | F41: 3.2238 | G41: 0.5189905047 | H41: 0.4810094953
A42: 32 | B42: AD4 | C42: 11 | D42: 2.1778 | E42: 2.0185 | F42: 3.1008 | G42: 0.4572702502 | H42: 0.5427297498 | I42: =AVERAGE(G42:G43) -> 0.457851336 | J42: =1-I42 -> 0.542148664 | K42: =STDEV(G42:G43) -> 0.0008217793729 | L42: =K42/I42*100 -> 0.1794860708
A43: 33 | B43: AD4 | C43: 12 | D43: 2.184 | E43: 2.0184 | F43: 3.1093 | G43: 0.4584324217 | H43: 0.5415675783
A44: 34 | B44: LR6 | C44: 13 | D44: 2.231 | E44: 2.0097 | F44: 3.1977 | G44: 0.4810170672 | H44: 0.5189829328 | I44: =AVERAGE(G44:G45) -> 0.4811450512 | J44: =1-I44 -> 0.5188549488 | K44: =STDEV(G44:G45) -> 0.0001809966654 | L44: =K44/I44*100 -> 0.03761790024
A45: 34 | B45: LR6 | C45: 14 | D45: 2.1903 | E45: 2.0078 | F45: 3.1566 | G45: 0.4812730352 | H45: 0.5187269648
A46: 35 | B46: LC6 | C46: 15 | D46: 2.1988 | E46: 2.008 | F46: 3.2067 | G46: 0.5019422311 | H46: 0.4980577689 | I46: =AVERAGE(G46:G47) -> 0.5028808464 | J46: =1-I46 -> 0.4971191536 | K46: =STDEV(G46:G47) -> 0.001327402561 | L46: =K46/I46*100 -> 0.2639596578
A47: 35 | B47: LC6 | C47: 16 | D47: 2.2302 | E47: 2.0029 | F47: 3.2393 | G47: 0.5038194618 | H47: 0.4961805382
A48: 36 | B48: LD6 | C48: 17 | D48: 2.214 | E48: 2.0179 | F48: 3.1506 | G48: 0.4641458942 | H48: 0.5358541058 | I48: =AVERAGE(G48:G49) -> 0.4648345678 | J48: =1-I48 -> 0.5351654322 | K48: =STDEV(G48:G49) -> 0.0009739314855 | L48: =K48/I48*100 -> 0.2095221726
A49: 36 | B49: LD6 | C49: 18 | D49: 2.2038 | E49: 2.0115 | F49: 3.1402 | G49: 0.4655232414 | H49: 0.5344767586
A50: 38 | B50: AR6 | C50: 19 | D50: 2.316 | E50: 2.0125 | F50: 3.2953 | G50: 0.4866086957 | H50: 0.5133913043 | I50: =AVERAGE(G50:G51) -> 0.4870105894 | J50: =1-I50 -> 0.5129894106 | K50: =STDEV(G50:G51) -> 0.000568363655 | L50: =K50/I50*100 -> 0.1167045784
A51: 38 | B51: AR6 | C51: 20 | D51: 2.2242 | E51: 2.0139 | F51: 3.2058 | G51: 0.4874124832 | H51: 0.5125875168
A52: 39 | B52: AC6 | C52: 21 | D52: 2.2147 | E52: 2.0129 | F52: 3.2175 | G52: 0.4981866958 | H52: 0.5018133042 | I52: =AVERAGE(G52:G53) -> 0.4979150972 | J52: =1-I52 -> 0.5020849028 | K52: =STDEV(G52:G53) -> 0.000384098477 | L52: =K52/I52*100 -> 0.07714135989
A53: 39 | B53: AC6 | C53: 22 | D53: 2.2098 | E53: 2.0157 | F53: 3.2129 | G53: 0.4976434985 | H53: 0.5023565015
A54: 40 | B54: AD6 | C54: 23 | D54: 2.1864 | E54: 2.0154 | F54: 3.1516 | G54: 0.4789123747 | H54: 0.5210876253 | I54: =AVERAGE(G54:G55) -> 0.4789580196 | J54: =1-I54 -> 0.5210419804 | K54: =STDEV(G54:G55) -> 6.455159427e-05 | L54: =K54/I54*100 -> 0.01347750568
A55: 40 | B55: AD6 | C55: 24 | D55: 2.2156 | E55: 2.0194 | F55: 3.1829 | G55: 0.4790036645 | H55: 0.5209963355
A56: 42 | B56: LR4 | C56: 25 | D56: 2.2589 | E56: 2.0187 | F56: 3.2324 | G56: 0.4822410462 | H56: 0.5177589538 | I56: =AVERAGE(G56:G57) -> 0.482314553 | J56: =1-I56 -> 0.517685447 | K56: =STDEV(G56:G57) -> 0.0001039542312 | L56: =K56/I56*100 -> 0.02155320227
A57: 42 | B57: LR4 | C57: 26 | D57: 2.2521 | E57: 2.01 | F57: 3.2217 | G57: 0.4823880597 | H57: =1-G57 -> 0.5176119403
A58: 43 | B58: LC4 | C58: 27 | D58: 2.203 | E58: 2.0062 | F58: 3.1903 | G58: 0.4921244143 | H58: =1-G58 -> 0.5078755857 | I58: =AVERAGE(G58:G59) -> 0.4913278306 | J58: =1-I58 -> 0.5086721694 | K58: =STDEV(G58:G59) -> 0.001126539494 | L58: =K58/I58*100 -> 0.2292846901
A59: 43 | B59: LC4 | C59: 28 | D59: 2.2016 | E59: 2.0066 | F59: 3.1859 | G59: 0.4905312469 | H59: =1-G59 -> 0.5094687531
A60: 44 | B60: LD4 | C60: 29 | D60: 2.2069 | E60: 2.0183 | F60: 3.1242 | G60: 0.4544914037 | H60: =1-G60 -> 0.5455085963 | I60: =AVERAGE(G60:G61) -> 0.4544073653 | J60: =1-I60 -> 0.5455926347 | K60: =STDEV(G60:G61) -> 0.0001188481315 | L60: =K60/I60*100 -> 0.02615453459
A61: 44 | B61: LD4 | C61: 30 | D61: 2.1922 | E61: 2.0054 | F61: 3.1033 | G61: 0.454323327 | H61: =1-G61 -> 0.545676673

Sheet Protein
G1: Avg
B2: LMPS 071118 #1 | C2: 0.1616 | D2: 3.7717 | E2: 6.38 | F2: 24.063 | G2: =AVERAGE(F2:F3) -> 23.99
A3: 1 | B3: LMPS 071118 #1 | C3: 0.1566 | D3: 3.7487 | E3: 6.38 | F3: 23.917
A4: 2 | B4: LMPS 071118 #2 | C4: 0.1575 | D4: 3.8918 | E4: 6.38 | F4: 24.83 | G4: =AVERAGE(F4:F5) -> 24.956
A5: 2 | B5: LMPS 071118 #2 | C5: 0.1581 | D5: 3.9313 | E5: 6.38 | F5: 25.082
A6: 3 | B6: LMPS 071118 #3 | C6: 0.163 | D6: 3.6065 | E6: 6.38 | F6: 23.01 | G6: =AVERAGE(F6:F7) -> 22.8195
A7: 3 | B7: LMPS 071118 #3 | C7: 0.1696 | D7: 3.5468 | E7: 6.38 | F7: 22.629
A8: 4 | B8: LMPS 071118 #4 | C8: 0.1657 | D8: 3.6169 | E8: 6.38 | F8: 23.076 | G8: =AVERAGE(F8:F9) -> 22.6735
A9: 4 | B9: LMPS 071118 #4 | C9: 0.159 | D9: 3.4907 | E9: 6.38 | F9: 22.271
A10: 6 | B10: LMPS 071118 #6 | C10: 0.1604 | D10: 3.4693 | E10: 6.38 | F10: 22.134 | G10: =AVERAGE(F10:F11) -> 22.741
A11: 6 | B11: LMPS 071118 #6 | C11: 0.1629 | D11: 3.6596 | E11: 6.38 | F11: 23.348
A12: 7 | B12: LMPS 071118 #7 | C12: 0.167 | D12: 3.5734 | E12: 6.38 | F12: 22.799 | G12: =AVERAGE(F12:F13) -> 23.0735
A13: 7 | B13: LMPS 071118 #7 | C13: 0.1565 | D13: 3.6596 | E13: 6.38 | F13: 23.348
A14: 8 | B14: LMPS 071118 #8 | C14: 0.1537 | D14: 3.3549 | E14: 6.38 | F14: 21.404 | G14: =AVERAGE(F14:F15) -> 21.7695
A15: 8 | B15: LMPS 071118 #8 | C15: 0.1579 | D15: 3.4695 | E15: 6.38 | F15: 22.135
A16: 9 | B16: LMPS 071118 #9 | C16: 0.1679 | D16: 3.4283 | E16: 6.38 | F16: 21.873 | G16: =AVERAGE(F16:F17) -> 21.949
A17: 9 | B17: LMPS 071118 #9 | C17: 0.1648 | D17: 3.4522 | E17: 6.38 | F17: 22.025
A18: 11 | B18: LMPS 071118 #11 | C18: 0.1558 | D18: 3.5384 | E18: 6.38 | F18: 22.575 | G18: =AVERAGE(F18:F19) -> 22.8645
A19: 11 | B19: LMPS 071118 #11 | C19: 0.1581 | D19: 3.6292 | E19: 6.38 | F19: 23.154
A20: 12 | B20: LMPS 071118 #12 | C20: 0.1505 | D20: 3.6468 | E20: 6.38 | F20: 23.266 | G20: =AVERAGE(F20:F21) -> 23.1015
A21: 12 | B21: LMPS 071118 #12 | C21: 0.1594 | D21: 3.5952 | E21: 6.38 | F21: 22.937
A22: 13 | B22: DG Mozz #13 | C22: 0.1738 | D22: -0.55717 | E22: 6.38 | F22: -3.5548 | G22: 24.24
A23: 13 | B23: DG Mozz #13 | C23: 0.1745 | D23: 3.7994 | E23: 6.38 | F23: 24.24
A24: 14 | B24: DG Mozz #14 | C24: 0.1705 | D24: -0.55863 | E24: 6.38 | F24: -3.5641 | G24: 24.391
A25: 14 | B25: DG Mozz #14 | C25: 0.175 | D25: 3.8231 | E25: 6.38 | F25: 24.391
A26: 16 | B26: DG Mozz #16 | C26: 0.1806 | D26: 3.5001 | E26: 6.38 | F26: 22.33 | G26: =AVERAGE(F26:F27) -> 22.533
A27: 16 | B27: DG Mozz #16 | C27: 0.1805 | D27: 3.5636 | E27: 6.38 | F27: 22.736
A28: 17 | B28: DG Mozz #17 | C28: 0.1794 | D28: 3.3564 | E28: 6.38 | F28: 21.414 | G28: =AVERAGE(F28:F29) -> 21.9445
A29: 17 | B29: DG Mozz #17 | C29: 0.1804 | D29: 3.5227 | E29: 6.38 | F29: 22.475
A30: 18 | B30: DG Mozz #18 | C30: 0.1738 | D30: 3.4248 | E30: 6.38 | F30: 21.85 | G30: =AVERAGE(F30:F31) -> 22.1715
A31: 18 | B31: DG Mozz #18 | C31: 0.1708 | D31: 3.5255 | E31: 6.38 | F31: 22.493
A32: 19 | B32: DG Mozz #19 | C32: 0.1776 | D32: 3.289 | E32: 6.38 | F32: 20.984 | G32: =AVERAGE(F32:F33) -> 21.07
A33: 19 | B33: DG Mozz #19 | C33: 0.1815 | D33: 3.316 | E33: 6.38 | F33: 21.156
A34: 21 | B34: DG Mozz #21 | C34: 0.1762 | D34: 3.5481 | E34: 6.38 | F34: 22.637 | G34: =AVERAGE(F34:F35) -> 23.1705
A35: 21 | B35: DG Mozz #21 | C35: 0.171 | D35: 3.7153 | E35: 6.38 | F35: 23.704
A36: 22 | B36: DG Mozz #22 | C36: 0.1787 | D36: 3.714 | E36: 6.38 | F36: 23.695 | G36: =AVERAGE(F36:F37) -> 23.4205
A37: 22 | B37: DG Mozz #22 | C37: 0.1799 | D37: 3.628 | E37: 6.38 | F37: 23.146
A38: 23 | B38: DG Mozz #23 | C38: 0.1738 | D38: 3.6548 | E38: 6.38 | F38: 23.318 | G38: =AVERAGE(F38:F39) -> 23.2635
A39: 23 | B39: DG Mozz #23 | C39: 0.1761 | D39: 3.6377 | E39: 6.38 | F39: 23.209
A40: 24 | B40: DG Mozz #24 | C40: 0.171 | D40: 3.6666 | E40: 6.38 | F40: 23.393 | G40: =AVERAGE(F40:F41) -> 23.339
A41: 24 | B41: DG Mozz #24 | C41: 0.1805 | D41: 3.6497 | E41: 6.38 | F41: 23.285
B42: LMPS 071118 #4 | C42: 0.1572 | D42: 3.5096 | E42: 6.38 | F42: 22.391 | G42: =AVERAGE(F42:F43) -> 22.3815
B43: LMPS 071118 #6 | C43: 0.1575 | D43: 3.5065 | E43: 6.38 | F43: 22.372
B44: LMPS 071118 #7 | C44: 0.1585 | D44: 3.701 | E44: 6.38 | F44: 23.612 | G44: =AVERAGE(F44:F45) -> 22.2855
A45: CR6 | B45: LMPS #26 | C45: 0.154 | D45: 3.285 | E45: 6.38 | F45: 20.959
A46: CR6 | B46: LMPS #26 | C46: 0.1539 | D46: 3.3091 | E46: 6.38 | F46: 21.112 | G46: =AVERAGE(F46:F47) -> 20.9995
A47: CC6 | B47: LMPS #27 | C47: 0.1543 | D47: 3.2738 | E47: 6.38 | F47: 20.887
A48: CC6 | B48: LMPS #27 | C48: 0.1444 | D48: 3.2444 | E48: 6.38 | F48: 20.7 | G48: =AVERAGE(F48:F49) -> 20.5675
A49: CD6 | B49: LMPS #28 | C49: 0.1703 | D49: 3.2029 | E49: 6.38 | F49: 20.435
A50: CD6 | B50: LMPS #28 | C50: 0.1694 | D50: 3.1212 | E50: 6.38 | F50: 19.913 | G50: =AVERAGE(F50:F51) -> 20.811
A51: AR4 | B51: LMPS #30 | C51: 0.1739 | D51: 3.4026 | E51: 6.38 | F51: 21.709
A52: AR4 | B52: LMPS #30 | C52: 0.1726 | D52: 3.4199 | E52: 6.38 | F52: 21.819 | G52: =AVERAGE(F52:F53) -> 21.757
A53: AC4 | B53: LMPS #31 | C53: 0.1771 | D53: 3.4004 | E53: 6.38 | F53: 21.695
A54: AC4 | B54: LMPS #31 | C54: 0.1747 | D54: 3.4072 | E54: 6.38 | F54: 21.738 | G54: =AVERAGE(F54:F55) -> 21.31
A55: AD4 | B55: LMPS #32 | C55: 0.1759 | D55: 3.2731 | E55: 6.38 | F55: 20.882
A56: AD4 | B56: LMPS #32 | C56: 0.175 | D56: 3.2246 | E56: 6.38 | F56: 20.573 | G56: =AVERAGE(F56:F57) -> 20.9795
A57: LR6 | B57: LMPS #34 | C57: 0.1702 | D57: 3.3521 | E57: 6.38 | F57: 21.386
A58: LR6 | B58: LMPS #34 | C58: 0.1798 | D58: 3.2671 | E58: 6.38 | F58: 20.844 | G58: =AVERAGE(F58:F59) -> 21.07
A59: LC6 | B59: LMPS #35 | C59: 0.1702 | D59: 3.338 | E59: 6.38 | F59: 21.296
A60: LC6 | B60: LMPS #35 | C60: 0.1784 | D60: 3.2806 | E60: 6.38 | F60: 20.93 | G60: =AVERAGE(F60:F61) -> 21.434
A61: LD6 | B61: LMPS #36 | C61: 0.1727 | D61: 3.4386 | E61: 6.38 | F61: 21.938
A62: LD6 | B62: LMPS #36 | C62: 0.1743 | D62: 3.3983 | E62: 6.38 | F62: 21.681 | G62: =AVERAGE(F62:F63) -> 22.1375
A63: AR6 | B63: LMPS #38 | C63: 0.1699 | D63: 3.5414 | E63: 6.38 | F63: 22.594
A64: AR6 | B64: LMPS #38 | C64: 0.1734 | D64: 3.4763 | E64: 6.38 | F64: 22.179 | G64: =AVERAGE(F64:F65) -> 22.0985
A65: AC6 | B65: LMPS #39 | C65: 0.1778 | D65: 3.4511 | E65: 6.38 | F65: 22.018
A66: AC6 | B66: LMPS #39 | C66: 0.1801 | D66: 3.5444 | E66: 6.38 | F66: 22.613 | G66: =AVERAGE(F66:F67) -> 22.421
A67: AD6 | B67: LMPS #40 | C67: 0.1718 | D67: 3.4841 | E67: 6.38 | F67: 22.229
A68: AD6 | B68: LMPS #40 | C68: 0.1758 | D68: 3.3438 | E68: 6.38 | F68: 21.334 | G68: =AVERAGE(F68:F69) -> 21.039
A69: LR4 | B69: LMPS #42 | C69: 0.1686 | D69: 3.2515 | E69: 6.38 | F69: 20.744
A70: LR4 | B70: LMPS #42 | C70: 0.1778 | D70: 3.3657 | E70: 6.38 | F70: 21.473 | G70: =AVERAGE(F70:F71) -> 21.022
A71: LC4 | B71: LMPS #43 | C71: 0.1683 | D71: 3.2243 | E71: 6.38 | F71: 20.571
A72: LC4 | B72: LMPS #43 | C72: 0.1721 | D72: 3.3382 | E72: 6.38 | F72: 21.298 | G72: =AVERAGE(F72:F73) -> 21.1045
A73: LD4 | B73: LMPS #44 | C73: 0.1701 | D73: 3.2776 | E73: 6.38 | F73: 20.911
A74: LD4 | B74: LMPS #44 | C74: 0.1692 | D74: 3.3703 | E74: 6.38 | F74: 21.503 | G74: =AVERAGE(F74:F75) -> 21.503

Sheet Protein no DLP control
G1: Avg | H1: sd
B2: LMPS 071118 #1 | C2: 0.1616 | D2: 3.7717 | E2: 6.38 | F2: 24.063 | G2: =AVERAGE(F2:F3) -> 23.99 | H2: =STDEV(F2:F3) -> 0.1032375901
A3: 1 | B3: LMPS 071118 #1 | C3: 0.1566 | D3: 3.7487 | E3: 6.38 | F3: 23.917
A4: 2 | B4: LMPS 071118 #2 | C4: 0.1575 | D4: 3.8918 | E4: 6.38 | F4: 24.83 | G4: =AVERAGE(F4:F5) -> 24.956 | H4: =STDEV(F4:F5) -> 0.1781909089
A5: 2 | B5: LMPS 071118 #2 | C5: 0.1581 | D5: 3.9313 | E5: 6.38 | F5: 25.082
A6: 3 | B6: LMPS 071118 #3 | C6: 0.163 | D6: 3.6065 | E6: 6.38 | F6: 23.01 | G6: =AVERAGE(F6:F7) -> 22.8195 | H6: =STDEV(F6:F7) -> 0.2694076836
A7: 3 | B7: LMPS 071118 #3 | C7: 0.1696 | D7: 3.5468 | E7: 6.38 | F7: 22.629
A8: 6 | B8: LMPS 071118 #6 | C8: 0.1604 | D8: 3.4693 | E8: 6.38 | F8: 22.134 | G8: =AVERAGE(F8:F9) -> 22.741 | H8: =STDEV(F8:F9) -> 0.8584276324
A9: 6 | B9: LMPS 071118 #6 | C9: 0.1629 | D9: 3.6596 | E9: 6.38 | F9: 23.348
A10: 7 | B10: LMPS 071118 #7 | C10: 0.167 | D10: 3.5734 | E10: 6.38 | F10: 22.799 | G10: =AVERAGE(F10:F11) -> 23.0735 | H10: =STDEV(F10:F11) -> 0.3882016229
A11: 7 | B11: LMPS 071118 #7 | C11: 0.1565 | D11: 3.6596 | E11: 6.38 | F11: 23.348
A12: 8 | B12: LMPS 071118 #8 | C12: 0.1537 | D12: 3.3549 | E12: 6.38 | F12: 21.404 | G12: =AVERAGE(F12:F13) -> 21.7695 | H12: =STDEV(F12:F13) -> 0.516895057
A13: 8 | B13: LMPS 071118 #8 | C13: 0.1579 | D13: 3.4695 | E13: 6.38 | F13: 22.135
A14: 11 | B14: LMPS 071118 #11 | C14: 0.1558 | D14: 3.5384 | E14: 6.38 | F14: 22.575 | G14: =AVERAGE(F14:F15) -> 22.8645 | H14: =STDEV(F14:F15) -> 0.4094148263
A15: 11 | B15: LMPS 071118 #11 | C15: 0.1581 | D15: 3.6292 | E15: 6.38 | F15: 23.154
A16: 12 | B16: LMPS 071118 #12 | C16: 0.1505 | D16: 3.6468 | E16: 6.38 | F16: 23.266 | G16: =AVERAGE(F16:F17) -> 23.1015 | H16: =STDEV(F16:F17) -> 0.232638131
A17: 12 | B17: LMPS 071118 #12 | C17: 0.1594 | D17: 3.5952 | E17: 6.38 | F17: 22.937
A18: 13 | B18: DG Mozz #13 | C18: 0.1738 | D18: -0.55717 | E18: 6.38 | F18: -3.5548 | G18: 24.24 | H18: =STDEV(F18:F19) -> 19.65389156
A19: 13 | B19: DG Mozz #13 | C19: 0.1745 | D19: 3.7994 | E19: 6.38 | F19: 24.24
A20: 16 | B20: DG Mozz #16 | C20: 0.1806 | D20: 3.5001 | E20: 6.38 | F20: 22.33 | G20: =AVERAGE(F20:F21) -> 22.533 | H20: =STDEV(F20:F21) -> 0.2870853532
A21: 16 | B21: DG Mozz #16 | C21: 0.1805 | D21: 3.5636 | E21: 6.38 | F21: 22.736
A22: 17 | B22: DG Mozz #17 | C22: 0.1794 | D22: 3.3564 | E22: 6.38 | F22: 21.414 | G22: =AVERAGE(F22:F23) -> 21.9445 | H22: =STDEV(F22:F23) -> 0.7502402948
A23: 17 | B23: DG Mozz #17 | C23: 0.1804 | D23: 3.5227 | E23: 6.38 | F23: 22.475
A24: 18 | B24: DG Mozz #18 | C24: 0.1738 | D24: 3.4248 | E24: 6.38 | F24: 21.85 | G24: =AVERAGE(F24:F25) -> 22.1715 | H24: =STDEV(F24:F25) -> 0.4546696603
A25: 18 | B25: DG Mozz #18 | C25: 0.1708 | D25: 3.5255 | E25: 6.38 | F25: 22.493
A26: 21 | B26: DG Mozz #21 | C26: 0.1762 | D26: 3.5481 | E26: 6.38 | F26: 22.637 | G26: =AVERAGE(F26:F27) -> 23.1705 | H26: =STDEV(F26:F27) -> 0.7544829355
A27: 21 | B27: DG Mozz #21 | C27: 0.171 | D27: 3.7153 | E27: 6.38 | F27: 23.704
A28: 22 | B28: DG Mozz #22 | C28: 0.1787 | D28: 3.714 | E28: 6.38 | F28: 23.695 | G28: =AVERAGE(F28:F29) -> 23.4205 | H28: =STDEV(F28:F29) -> 0.3882016229
A29: 22 | B29: DG Mozz #22 | C29: 0.1799 | D29: 3.628 | E29: 6.38 | F29: 23.146
A30: 23 | B30: DG Mozz #23 | C30: 0.1738 | D30: 3.6548 | E30: 6.38 | F30: 23.318 | G30: =AVERAGE(F30:F31) -> 23.2635 | H30: =STDEV(F30:F31) -> 0.07707463915
A31: 23 | B31: DG Mozz #23 | C31: 0.1761 | D31: 3.6377 | E31: 6.38 | F31: 23.209
A32: CR6 | B32: LMPS #26 | C32: 0.154 | D32: 3.285 | E32: 6.38 | F32: 20.959 | G32: =AVERAGE(F32:F33) -> 21.0355 | H32: =STDEV(F32:F33) -> 0.1081873375
A33: CR6 | B33: LMPS #26 | C33: 0.1539 | D33: 3.3091 | E33: 6.38 | F33: 21.112
A34: CC6 | B34: LMPS #27 | C34: 0.1543 | D34: 3.2738 | E34: 6.38 | F34: 20.887 | G34: =AVERAGE(F34:F35) -> 20.7935 | H34: =STDEV(F34:F35) -> 0.1322289681
A35: CC6 | B35: LMPS #27 | C35: 0.1444 | D35: 3.2444 | E35: 6.38 | F35: 20.7
A36: CD6 | B36: LMPS #28 | C36: 0.1703 | D36: 3.2029 | E36: 6.38 | F36: 20.435 | G36: =AVERAGE(F36:F37) -> 20.174 | H36: =STDEV(F36:F37) -> 0.3691097398
A37: CD6 | B37: LMPS #28 | C37: 0.1694 | D37: 3.1212 | E37: 6.38 | F37: 19.913
A38: AR4 | B38: LMPS #30 | C38: 0.1739 | D38: 3.4026 | E38: 6.38 | F38: 21.709 | G38: =AVERAGE(F38:F39) -> 21.764 | H38: =STDEV(F38:F39) -> 0.07778174593
A39: AR4 | B39: LMPS #30 | C39: 0.1726 | D39: 3.4199 | E39: 6.38 | F39: 21.819
A40: AC4 | B40: LMPS #31 | C40: 0.1771 | D40: 3.4004 | E40: 6.38 | F40: 21.695 | G40: =AVERAGE(F40:F41) -> 21.7165 | H40: =STDEV(F40:F41) -> 0.03040559159
A41: AC4 | B41: LMPS #31 | C41: 0.1747 | D41: 3.4072 | E41: 6.38 | F41: 21.738
A42: AD4 | B42: LMPS #32 | C42: 0.1759 | D42: 3.2731 | E42: 6.38 | F42: 20.882 | G42: =AVERAGE(F42:F43) -> 20.7275 | H42: =STDEV(F42:F43) -> 0.2184959954
A43: AD4 | B43: LMPS #32 | C43: 0.175 | D43: 3.2246 | E43: 6.38 | F43: 20.573
A44: LR6 | B44: LMPS #34 | C44: 0.1702 | D44: 3.3521 | E44: 6.38 | F44: 21.386 | G44: =AVERAGE(F44:F45) -> 21.115 | H44: =STDEV(F44:F45) -> 0.3832518754
A45: LR6 | B45: LMPS #34 | C45: 0.1798 | D45: 3.2671 | E45: 6.38 | F45: 20.844
A46: LC6 | B46: LMPS #35 | C46: 0.1702 | D46: 3.338 | E46: 6.38 | F46: 21.296 | G46: =AVERAGE(F46:F47) -> 21.113 | H46: =STDEV(F46:F47) -> 0.2588010819
A47: LC6 | B47: LMPS #35 | C47: 0.1784 | D47: 3.2806 | E47: 6.38 | F47: 20.93
A48: LD6 | B48: LMPS #36 | C48: 0.1727 | D48: 3.4386 | E48: 6.38 | F48: 21.938 | G48: =AVERAGE(F48:F49) -> 21.8095 | H48: =STDEV(F48:F49) -> 0.1817264428
A49: LD6 | B49: LMPS #36 | C49: 0.1743 | D49: 3.3983 | E49: 6.38 | F49: 21.681
A50: AR6 | B50: LMPS #38 | C50: 0.1699 | D50: 3.5414 | E50: 6.38 | F50: 22.594 | G50: =AVERAGE(F50:F51) -> 22.3865 | H50: =STDEV(F50:F51) -> 0.2934493142
A51: AR6 | B51: LMPS #38 | C51: 0.1734 | D51: 3.4763 | E51: 6.38 | F51: 22.179
A52: AC6 | B52: LMPS #39 | C52: 0.1778 | D52: 3.4511 | E52: 6.38 | F52: 22.018 | G52: =AVERAGE(F52:F53) -> 22.3155 | H52: =STDEV(F52:F53) -> 0.4207285348
A53: AC6 | B53: LMPS #39 | C53: 0.1801 | D53: 3.5444 | E53: 6.38 | F53: 22.613
A54: AD6 | B54: LMPS #40 | C54: 0.1718 | D54: 3.4841 | E54: 6.38 | F54: 22.229 | G54: =AVERAGE(F54:F55) -> 21.7815 | H54: =STDEV(F54:F55) -> 0.6328605692
A55: AD6 | B55: LMPS #40 | C55: 0.1758 | D55: 3.3438 | E55: 6.38 | F55: 21.334
A56: LR4 | B56: LMPS #42 | C56: 0.1686 | D56: 3.2515 | E56: 6.38 | F56: 20.744 | G56: =AVERAGE(F56:F57) -> 21.1085 | H56: =STDEV(F56:F57) -> 0.5154808435
A57: LR4 | B57: LMPS #42 | C57: 0.1778 | D57: 3.3657 | E57: 6.38 | F57: 21.473
A58: LC4 | B58: LMPS #43 | C58: 0.1683 | D58: 3.2243 | E58: 6.38 | F58: 20.571 | G58: =AVERAGE(F58:F59) -> 20.9345 | H58: =STDEV(F58:F59) -> 0.5140666299
A59: LC4 | B59: LMPS #43 | C59: 0.1721 | D59: 3.3382 | E59: 6.38 | F59: 21.298
A60: LD4 | B60: LMPS #44 | C60: 0.1701 | D60: 3.2776 | E60: 6.38 | F60: 20.911 | G60: =AVERAGE(F60:F61) -> 21.207 | H60: =STDEV(F60:F61) -> 0.4186072145
A61: LD4 | B61: LMPS #44 | C61: 0.1692 | D61: 3.3703 | E61: 6.38 | F61: 21.503
B63: LMPS 071118 #4 | C63: 0.1572 | D63: 3.5096 | E63: 6.38 | F63: 22.391
B64: LMPS 071118 #6 | C64: 0.1575 | D64: 3.5065 | E64: 6.38 | F64: 22.372
B65: LMPS 071118 #7 | C65: 0.1585 | D65: 3.701 | E65: 6.38 | F65: 23.612

Sheet Minerals
A1: Sample | B1: Sample cup | C1: crucible weight | D1: sample weight | E1: final weight | F1: % ash | H1: Std Dev | I1: CI | J1: Centrifuge tube number | K1: Na AA ppm | L1: Dilution | M1: Ca AA ppm | N1: Dilution | O1: K AA ppm | P1: Dilution | Q1: Na Blank | S1: Final Na mg/g | T1: mg/100g | U1: Na % | V1: Avg Na | W1: st dev Na | X1: ci | Y1: salt equiv | AA1: Dillution 1 | AB1: Dilution 2 | AC1: Total dilution
A2: 1 | B2: 45 | C2: 15.6715 | D2: 1.0103 | E2: 15.6994 | F2: =(E2-C2)/D2 -> 0.02761555973 | G2: =AVERAGE(F2:F3) -> 0.02763587378 | H2: =STDEV(F2:F3) -> 2.872839695e-05 | I2: =H2/G2*100 -> 0.1039532789 | J2: 76 | K2: 0.645 | L2: 25000 | M2: 5.276 | N2: 250 | O2: 3.401 | P2: 250 | S2: =(K2-Q2)*$AA$2*$AB$2/(D2*1000) -> 7.98030288 | T2: =S2*100 -> 798.030288 | U2: =T2*0.00001 -> 0.00798030288 | V2: =AVERAGE(U2) -> 0.00798030288 | W2: =STDEV(K2:K3) -> 0.007778174593 | X2: =W2/V2 -> 0.974671602 | Y2: =V2/0.4 -> 0.0199507572 | AA2: 250 | AB2: 50 | AC2: =AA2*AB2 -> 12500
A3: 1 | B3: 40 | C3: 15.3378 | D3: 1.0052 | E3: 15.3656 | F3: =(E3-C3)/D3 -> 0.02765618782 | J3: 77 | K3: 0.634 | L3: 25000 | M3: 5.365 | N3: 250 | O3: 3.626 | P3: 250 | S3: =(K3-Q3)*$AA$2*$AB$2/(D3*1000) -> 7.884003183 | T3: =S3*100 -> 788.4003183 | U3: =T3*0.00001 -> 0.007884003183
A4: 2 | B4: 20 | C4: 12.371 | D4: 1.0005 | E4: 12.3925 | F4: =(E4-C4)/D4 -> 0.02148925537 | G4: =AVERAGE(F4:F5) -> 0.02158847627 | H4: =STDEV(F4:F5) -> 0.0001403195344 | I4: =H4/G4*100 -> 0.6499742392 | J4: 78 | K4: 0.439 | L4: 25000 | M4: 5.485 | N4: 250 | O4: 3.393 | P4: 250 | S4: 5.484757621 | T4: =S4*100 -> 548.4757621 | U4: =T4*0.00001 -> 0.005484757621 | V4: =AVERAGE(U4:U5) -> 0.005508792454 | W4: =STDEV(K4:K5) -> 0.007071067812 | X4: =W4/V4 -> 1.283596699 | Y4: =V4/0.4 -> 0.01377198114
A5: 2 | B5: 44 | C5: 15.6606 | D5: 1.0144 | E5: 15.6826 | F5: 0.02168769716 | J5: 79 | K5: 0.449 | L5: 25000 | M5: 5.596 | N5: 250 | O5: 3.445 | P5: 250 | S5: 5.532827287 | T5: =S5*100 -> 553.2827287 | U5: =T5*0.00001 -> 0.005532827287
A6: 3 | B6: 33 | C6: 16.1771 | D6: 1.0102 | E6: 16.1989 | F6: 0.02157988517 | G6: =AVERAGE(F6:F7) -> 0.02176032256 | H6: =STDEV(F6:F7) -> 0.0002551770019 | I6: =H6/G6*100 -> 1.172671045 | J6: 80 | K6: 0.36 | L6: 25000 | M6: 5.175 | N6: 250 | O6: 0.161 | P6: 25000 | S6: 4.454563453 | T6: 445.4563453 | U6: 0.004454563453 | V6: =AVERAGE(U6:U7) -> 0.005811354729 | W6: =STDEV(K6:K7) -> 0.152027958 | X6: =W6/V6 -> 26.16050216 | Y6: =V6/0.4 -> 0.01452838682
A7: 3 | B7: 8 | C7: 11.1181 | D7: 1.0027 | E7: 11.1401 | F7: 0.02194075995 | J7: 81 | K7: 0.575 | L7: 25000 | M7: 7.025 | N7: 250 | O7: 0.163 | P7: 25000 | S7: 7.168146006 | T7: 716.8146006 | U7: 0.007168146006
A8: 4 | B8: 38 | C8: 13.4999 | D8: 1.0177 | E8: 13.5277 | F8: 0.02731649799 | G8: =AVERAGE(F8:F9) -> 0.02744483072 | H8: =STDEV(F8:F9) -> 0.000181489889 | I8: =H8/G8*100 -> 0.6612898833 | J8: 82 | K8: 0.544 | L8: 25000 | M8: 5.234 | N8: 250 | O8: 0.204 | P8: 25000 | S8: 6.68173332 | T8: 668.173332 | U8: 0.00668173332 | V8: =AVERAGE(U8:U9) -> 0.006719076893 | W8: =STDEV(K8:K9) -> 0.0007071067812 | X8: =W8/V8 -> 0.1052386797 | Y8: =V8/0.4 -> 0.01679769223
A9: 4 | B9: 42 | C9: 15.4008 | D9: 1.0046 | E9: 15.4285 | F9: 0.02757316345 | J9: 83 | K9: 0.543 | L9: 25000 | M9: 5.248 | N9: 250 | O9: 0.204 | P9: 25000 | S9: 6.756420466 | T9: 675.6420466 | U9: 0.006756420466
A10: 6 | B10: 23 | C10: 12.318 | D10: 1.0138 | E10: 12.3503 | F10: 0.03186032748 | G10: =AVERAGE(F10:F11) -> 0.03208788684 | H10: =STDEV(F10:F11) -> 0.0003218175258 | I10: =H10/G10*100 -> 1.00292527 | J10: 84 | K10: 0.571 | L10: 25000 | M10: 8.273 | N10: 250 | O10: 3.594 | P10: 250 | S10: 7.040343263 | T10: 704.0343263 | U10: 0.007040343263 | V10: =AVERAGE(U10:U11) -> 0.007151953428 | W10: =STDEV(K10:K11) -> 0.01202081528 | X10: =W10/V10 -> 1.680773708 | Y10: =V10/0.4 -> 0.01787988357
A11: 6 | B11: 26 | C11: 14.6926 | D11: 1.0119 | E11: 14.7253 | F11: 0.03231544619 | J11: 85 | K11: 0.588 | L11: 25000 | M11: 8.328 | N11: 250 | O11: 3.637 | P11: 250 | S11: 7.263563593 | T11: 726.3563593 | U11: 0.007263563593
A12: 7 | B12: 35 | C12: 14.9085 | D12: 1.008 | E12: 14.9345 | F12: 0.02579365079 | G12: =AVERAGE(F12:F13) -> 0.02574914775 | H12: =STDEV(F12:F13) -> 6.293681219e-05 | I12: =H12/G12*100 -> 0.2444228943 | J12: 86 | K12: 0.392 | L12: 25000 | M12: 8.486 | N12: 250 | O12: 3.458 | P12: 250 | S12: 4.861111111 | T12: 486.1111111 | U12: 0.004861111111 | V12: =AVERAGE(U12:U13) -> 0.004849670284 | W12: =STDEV(K12:K13) -> 0.001414213562 | X12: =W12/V12 -> 0.2916102497 | Y12: =V12/0.4 -> 0.01212417571
A13: 7 | B13: 10 | C13: 9.6225 | D13: 1.0076 | E13: 9.6484 | F13: 0.0257046447 | J13: 87 | K13: 0.39 | L13: 25000 | M13: 8.412 | N13: 250 | O13: 3.391 | P13: 250 | S13: 4.838229456 | T13: 483.8229456 | U13: 0.004838229456
A14: 8 | B14: 44 | C14: 15.6605 | D14: 0.9999 | E14: 15.6859 | F14: 0.02540254025 | G14: =AVERAGE(F14:F15) -> 0.025530778 | H14: =STDEV(F14:F15) -> 0.0001813555526 | I14: =H14/G14*100 -> 0.7103408783 | J14: 89 | K14: 0.332 | L14: 25000 | M14: 8.009 | N14: 250 | O14: 0.151 | P14: 25000 | S14: 4.150415042 | T14: 415.0415042 | U14: 0.004150415042 | V14: =AVERAGE(U14:U15) -> 0.004004645227 | W14: =STDEV(K14:K15) -> 0.01697056275 | X14: =W14/V14 -> 4.237719394 | Y14: =V14/0.4 -> 0.01001161307
A15: 8 | B15: 33 | C15: 16.1768 | D15: 0.9977 | E15: 16.2024 | F15: 0.02565901574 | J15: 90 | K15: 0.308 | L15: 25000 | M15: 7.929 | N15: 250 | O15: 0.18 | P15: 25000 | S15: 3.858875413 | T15: 385.8875413 | U15: 0.003858875413
A16: 9 | B16: 22 | C16: 16.7247 | D16: 0.9958 | E16: 16.7545 | F16: 0.02992568789 | G16: =AVERAGE(F16:F17) -> 0.02995885829 | H16: =STDEV(F16:F17) -> 4.691003489e-05 | I16: =H16/G16*100 -> 0.1565815173 | J16: 91 | K16: 0.461 | L16: 25000 | M16: 7.942 | N16: 250 | O16: 0.173 | P16: 25000 | S16: 5.786804579 | T16: 578.6804579 | U16: 0.005786804579 | V16: =AVERAGE(U16:U17) -> 0.005807910062 | W16: =STDEV(K16:K17) -> 0.004949747468 | X16: =W16/V16 -> 0.8522424445 | Y16: =V16/0.4 -> 0.01451977515
A17: 9 | B17: 17 | C17: 15.8799 | D17: 1.0036 | E17: 15.91 | F17: 0.0299920287 | J17: 92 | K17: 0.468 | L17: 25000 | M17: 7.957 | N17: 250 | O17: 0.156 | P17: 25000 | S17: 5.829015544 | T17: 582.9015544 | U17: 0.005829015544
A18: 11 | B18: 2 | C18: 11.1262 | D18: 1 | E18: 11.1558 | F18: =(E18-C18)/D18 -> 0.0296 | G18: =AVERAGE(F18:F19) -> 0.02975811727 | H18: =STDEV(F18:F19) -> 0.00022361159 | I18: =H18/G18*100 -> 0.7514305692 | J18: 93 | K18: 0.586 | L18: 25000 | M18: 6.251 | N18: 250 | O18: 4.362 | P18: 250 | S18: 7.325 | T18: =S18*100 -> 732.5 | U18: =T18*0.00001 -> 0.007325 | V18: =AVERAGE(U18:U19) -> 0.007439424611 | W18: =STDEV(K18:K19) -> 0.01414213562 | X18: =W18/V18 -> 1.900971696 | Y18: =V18/0.4 -> 0.01859856153
A19: 11 | B19: 5 | C19: 10.2126 | D19: 1.0028 | E19: 10.2426 | F19: 0.02991623454 | J19: 94 | K19: 0.606 | L19: 25000 | M19: 6.182 | N19: 250 | O19: 4.306 | P19: 250 | S19: 7.553849222 | T19: =S19*100 -> 755.3849222 | U19: =T19*0.00001 -> 0.007553849222
A20: 12 | B20: 8 | C20: 11.118 | D20: 1.0091 | E20: 11.1416 | F20: 0.02338717669 | G20: =AVERAGE(F20:F21) -> 0.02318554398 | H20: =STDEV(F20:F21) -> 0.0002851517202 | I20: =H20/G20*100 -> 1.229868579 | J20: 95 | K20: 0.403 | L20: 25000 | M20: 6.378 | N20: 250 | O20: 4.102 | P20: 250 | S20: 4.992072143 | T20: =S20*100 -> 499.2072143 | U20: =T20*0.00001 -> 0.004992072143 | V20: =AVERAGE(U20:U21) -> 0.004925585387 | W20: =STDEV(K20:K21) -> 0.009899494937 | X20: =W20/V20 -> 2.009810847 | Y20: =V20/0.4 -> 0.01231396347
A21: 12 | B21: 40 | C21: 15.3377 | D21: 1.0007 | E21: 15.3607 | F21: 0.02298391126 | J21: 96 | K21: 0.389 | L21: 25000 | M21: 6.3 | N21: 250 | O21: 3.948 | P21: 250 | S21: 4.859098631 | T21: 485.9098631 | U21: 0.004859098631
A22: 13 | B22: 23 | C22: 12.3178 | D22: 0.995 | E22: 12.3409 | F22: 0.0232160804 | G22: =AVERAGE(F22:F23) -> 0.02319163262 | H22: =STDEV(F22:F23) -> 3.457438628e-05 | I22: =H22/G22*100 -> 0.1490812952 | J22: 97 | K22: 0.347 | L22: 25000 | M22: 6.02 | N22: 250 | O22: 0.168 | P22: 25000 | S22: 4.359296482 | T22: 435.9296482 | U22: 0.004359296482 | V22: =AVERAGE(U22:U23) -> 0.004273219598 | W22: =STDEV(K22:K23) -> 0.009192388155 | X22: =W22/V22 -> 2.151162126 | Y22: =V22/0.4 -> 0.010683049
A23: 13 | B23: 39 | C23: 16.5272 | D23: 0.9971 | E23: 16.5503 | F23: 0.02316718484 | J23: 98 | K23: 0.334 | L23: 25000 | M23: 6.005 | N23: 250 | O23: 0.144 | P23: 25000 | S23: 4.187142714 | T23: 418.7142714 | U23: 0.004187142714
A24: 14 | B24: 45 | C24: 15.6715 | D24: 0.9967 | E24: 15.6985 | F24: 0.027089395 | G24: =AVERAGE(F24:F25) -> 0.02717789483 | H24: =STDEV(F24:F25) -> 0.0001251576617 | I24: =H24/G24*100 -> 0.4605127162 | J24: 99 | K24: 0.498 | L24: 25000 | M24: 6.019 | N24: 250 | O24: 0.147 | P24: 25000 | S24: 6.245610515 | T24: 624.5610515 | U24: 0.006245610515 | V24: =AVERAGE(U24:U25) -> 0.006245006471 | W24: =STDEV(K24:K25) -> 0.002828427125 | X24: =W24/V24 -> 0.4529101992 | Y24: =V24/0.4 -> 0.01561251618
A25: 14 | B25: 35 | C25: 14.9086 | D25: 1.0049 | E25: 14.936 | F25: 0.02726639467 | J25: 100 | K25: 0.502 | L25: 25000 | M25: 6.103 | N25: 250 | O25: 0.178 | P25: 25000 | S25: 6.244402428 | T25: 624.4402428 | U25: 0.006244402428
A26: 16 | B26: 11 | C26: 10.2256 | D26: 0.9972 | E26: 10.2539 | F26: 0.02837946249 | G26: =AVERAGE(F26:F27) -> 0.02845535311 | H26: =STDEV(F26:F27) -> 0.0001073255343 | I26: =H26/G26*100 -> 0.3771716831 | J26: 101 | K26: 0.621 | L26: 25000 | M26: 5.941 | N26: 250 | O26: 0.149 | P26: 250 | S26: 7.784296029 | T26: 778.4296029 | U26: 0.007784296029 | V26: =AVERAGE(U26:U27) -> 0.007816449803 | W26: =STDEV(K26:K27) -> 0.002828427125 | X26: =W26/V26 -> 0.3618557269 | Y26: =V26/0.4 -> 0.01954112451
A27: 16 | B27: 26 | C27: 14.6928 | D27: 0.9954 | E27: 14.7212 | F27: 0.02853124372 | J27: 102 | K27: 0.625 | L27: 25000 | M27: 5.964 | N27: 250 | O27: 3.418 | P27: 250 | S27: 7.848603576 | T27: 784.8603576 | U27: 0.007848603576
A28: 17 | B28: 41 | C28: 14.0098 | D28: 1.0017 | E28: 14.0323 | F28: 0.02246181491 | G28: =AVERAGE(F28:F29) -> 0.02238892917 | H28: =STDEV(F28:F29) -> 0.0001030760083 | I28: =H28/G28*100 -> 0.4603882904 | J28: 103 | K28: 0.41 | L28: 25000 | M28: 6.152 | N28: 250 | O28: 3.35 | P28: 250 | S28: 5.116302286 | T28: 511.6302286 | U28: 0.005116302286 | V28: =AVERAGE(U28:U29) -> 0.005090067106 | W28: =STDEV(K28:K29) -> 0.004949747468 | X28: =W28/V28 -> 0.9724326547 | Y28: =V28/0.4 -> 0.01272516777
A29: 17 | B29: 20 | C29: 12.3711 | D29: 0.9948 | E29: 12.3933 | F29: 0.02231604343 | J29: 104 | K29: 0.403 | L29: 25000 | M29: 6.086 | N29: 250 | O29: 3.304 | P29: 250 | S29: 5.063831926 | T29: 506.3831926 | U29: 0.005063831926
A30: 18 | B30: 38 | C30: 13.4998 | D30: 0.9967 | E30: 13.5222 | F30: 0.02247416474 | G30: =AVERAGE(F30:F31) -> 0.02239936088 | H30: =STDEV(F30:F31) -> 0.0001057886411 | I30: =H30/G30*100 -> 0.4722841944 | J30: 105 | K30: 0.355 | L30: 25000 | M30: 5.927 | N30: 250 | O30: 0.149 | P30: 25000 | S30: 4.452192234 | T30: 445.2192234 | U30: 0.004452192234 | V30: =AVERAGE(U30:U31) -> 0.003921711294 | W30: =STDEV(K30:K31) -> 0.05939696962 | X30: =W30/V30 -> 15.14567625 | Y30: =V30/0.4 -> 0.009804278235
A31: 18 | B31: 42 | C31: 15.401 | D31: 0.9989 | E31: 15.4233 | F31: 0.02232455701 | J31: 106 | K31: 0.271 | L31: 25000 | M31: 5.938 | N31: 250 | O31: 0.165 | P31: 25000 | S31: 3.391230353 | T31: 339.1230353 | U31: 0.003391230353
A32: 19 | B32: 18 | C32: 15.976 | D32: 0.9994 | E32: 16.0031 | F32: 0.02711626976 | G32: =AVERAGE(F32:F33) -> 0.02696483823 | H32: =STDEV(F32:F33) -> 0.0002141565224 | I32: =H32/G32*100 -> 0.7942065908 | J32: 107 | K32: 0.472 | L32: 25000 | M32: 5.979 | N32: 250 | O32: 0.137 | P32: 25000 | S32: 5.903542125 | T32: 590.3542125 | U32: 0.005903542125
A33: 19 | B33: 6 | C33: 10.9841 | D33: 0.9995 | E33: 11.0109 | F33: 0.0268134067 | J33: 108 | K33: 0.467 | L33: 25000 | M33: 6.017 | N33: 250 | O33: 0.138 | P33: 25000 | S33: 5.84042021 | T33: 584.042021 | U33: 0.00584042021
A34: 21 | B34: 41 | C34: 14.0094 | D34: 1.0175 | E34: 14.0425 | F34: 0.03253071253 | G34: =AVERAGE(F34:F35) -> 0.0324472286 | H34: =STDEV(F34:F35) -> 0.0001180641108 | I34: =H34/G34*100 -> 0.3638650077 | J34: 109 | K34: 0.593 | L34: 25000 | M34: 7.647 | N34: 250 | O34: 4.078 | P34: 250 | S34: 7.285012285 | T34: 728.5012285 | U34: 0.007285012285
A35: 21 | B35: 11 | C35: 10.2252 | D35: 1.0073 | E35: 10.2578 | F35: 0.03236374466 | J35: 110 | K35: 0.596 | L35: 25000 | M35: 7.535 | N35: 250 | O35: 3.941 | P35: 250 | S35: 7.396009133 | T35: 739.6009133 | U35: 0.007396009133
A36: 22 | B36: 33 | C36: 16.1765 | D36: 1.0132 | E36: 16.2029 | F36: 0.02605606001 | G36: =AVERAGE(F36:F37) -> 0.02569317354 | H36: =STDEV(F36:F37) -> 0.0005131989613 | I36: =H36/G36*100 -> 1.997413673 | J36: 111 | K36: 0.392 | L36: 25000 | M36: 7.546 | N36: 250 | O36: 3.661 | P36: 250 | S36: 4.836162653 | T36: 483.6162653 | U36: 0.004836162653
A37: 22 | B37: 22 | C37: 16.725 | D37: 1.0067 | E37: 16.7505 | F37: 0.02533028708 | J37: 112 | K37: 0.392 | L37: 25000 | M37: 7.623 | N37: 250 | O37: 3.628 | P37: 250 | S37: 4.867388497 | T37: 486.7388497 | U37: 0.004867388497
A38: 23 | B38: 42 | C38: 15.4007 | D38: 1.004 | E38: 15.4249 | F38: 0.02410358566 | G38: =AVERAGE(F38:F39) -> 0.02417032879 | H38: =STDEV(F38:F39) -> 9.438904589e-05 | I38: =H38/G38*100 -> 0.390516185 | J38: 113 | K38: 0.249 | L38: 25000 | M38: 7.588 | N38: 250 | O38: 0.131 | P38: 25000 | S38: 3.100099602 | T38: 310.0099602 | U38: 0.003100099602
A39: 23 | B39: 20 | C39: 12.3707 | D39: 1.0191 | E39: 12.3954 | F39: 0.02423707193 | J39: 114 | K39: 0.311 | L39: 25000 | M39: 7.651 | N39: 250 | O39: 0.147 | P39: 25000 | S39: 3.814640369 | T39: 381.4640369 | U39: 0.003814640369
A40: 24 | B40: 18 | C40: 15.9757 | D40: 1.0006 | E40: 16.0049 | F40: 0.02918249051 | G40: =AVERAGE(F40:F41) -> 0.02885290713 | H40: =STDEV(F40:F41) -> 0.0004661012761 | I40: =H40/G40*100 -> 1.61543956 | J40: 115 | K40: 0.452 | L40: 25000 | M40: 7.512 | N40: 250 | O40: 0.135 | P40: 25000 | S40: 5.646612033 | T40: 564.6612033 | U40: 0.005646612033
A41: 24 | B41: 40 | C41: 15.338 | D41: 1.0097 | E41: 15.3668 | F41: 0.02852332376 | J41: 116 | K41: 0.463 | L41: 25000 | M41: 7.549 | N41: 250 | O41: 0.132 | P41: 25000 | S41: 5.731900565 | T41: 573.1900565 | U41: 0.005731900565
A42: 26 | B42: 39 | C42: 16.5268 | D42: 1.0175 | E42: 16.5487 | F42: =(E42-C42)/D42 -> 0.02152334152 | G42: =AVERAGE(F42:F43) -> 0.02148659628 | H42: =STDEV(F42:F43) -> 5.196561721e-05 | I42: =H42/G42*100 -> 0.2418513222 | J42: 117 | K42: 0.397 | L42: 25000 | M42: 5.712 | N42: 250 | O42: 4.149 | P42: 250 | S42: =(K42-Q42)*$AA$2*$AB$2/(D42*1000) -> 4.877149877 | T42: =S42*100 -> 487.7149877 | U42: =T42*0.00001 -> 0.004877149877 | V42: =AVERAGE(U42) -> 0.004877149877 | W42: =STDEV(K42:K43) -> 0.001414213562 | X42: =W42/V42 -> 0.289967214 | Y42: =V42/0.4 -> 0.01219287469 | AA42: 250 | AB42: 50 | AC42: =AA42*AB42 -> 12500
B43: 18 | C43: 15.9755 | D43: 1.007 | E43: 15.9971 | F43: =(E43-C43)/D43 -> 0.02144985104 | J43: 118 | K43: 0.395 | L43: 25000 | M43: 5.768 | N43: 250 | O43: 4.222 | P43: 250 | S43: 4.903177756 | T43: =S43*100 -> 490.3177756 | U43: =T43*0.00001 -> 0.004903177756
A44: 27 | B44: 17 | C44: 15.8799 | D44: 1.0046 | E44: 15.9084 | F44: =(E44-C44)/D44 -> 0.0283695003 | G44: =AVERAGE(F44:F45) -> 0.02850444096 | H44: =STDEV(F44:F45) -> 0.0001908349175 | I44: =H44/G44*100 -> 0.6694918795 | J44: 119 | K44: 0.618 | L44: 25000 | M44: 5.76 | N44: 250 | O44: 4.522 | P44: 250 | S44: 7.689627713 | T44: =S44*100 -> 768.9627713 | U44: =T44*0.00001 -> 0.007689627713 | V44: =AVERAGE(U44:U45) -> 0.007554802955 | W44: =STDEV(K44:K45) -> 0.01343502884 | X44: =W44/V44 -> 1.778342721 | Y44: =V44/0.4 -> 0.01888700739
B45: 22 | C45: 16.7245 | D45: 1.0091 | E45: 16.7534 | F45: 0.02863938163 | J45: 120 | K45: 0.599 | L45: 25000 | M45: 5.804 | N45: 250 | O45: 4.424 | P45: 250 | S45: 7.419978198 | T45: =S45*100 -> 741.9978198 | U45: =T45*0.00001 -> 0.007419978198
A46: 28 | B46: 42 | C46: 15.4005 | D46: 1.0167 | E46: 15.4243 | F46: 0.02340906856 | G46: =AVERAGE(F46:F47) -> 0.02332899015 | H46: =STDEV(F46:F47) -> 0.0001132479608 | I46: =H46/G46*100 -> 0.4854387612 | J46: 121 | K46: 0.381 | L46: 25000 | M46: 5.545 | N46: 250 | O46: 0.17 | P46: 25000 | S46: 4.684272647 | T46: 468.4272647 | U46: 0.004684272647 | V46: =AVERAGE(U46:U47) -> 0.00462374495 | W46: =STDEV(K46:K47) -> 0.008485281374 | X46: =W46/V46 -> 1.835153423 | Y46: =V46/0.4 -> 0.01155936238
B47: 35 | C47: 14.9082 | D47: 1.0108 | E47: 14.9317 | F47: 0.02324891175 | J47: 122 | K47: 0.369 | L47: 25000 | M47: 5.605 | N47: 250 | O47: 0.152 | P47: 25000 | S47: 4.563217254 | T47: 456.3217254 | U47: 0.004563217254
A48: 30 | B48: 11 | C48: 10.2254 | D48: 1.0034 | E48: 10.247 | F48: 0.02152680885 | G48: =AVERAGE(F48:F49) -> 0.02150973194 | H48: =STDEV(F48:F49) -> 2.415039552e-05 | I48: =H48/G48*100 -> 0.1122765992 | J48: 123 | K48: 0.397 | L48: 25000 | M48: 6.097 | N48: 250 | O48: 3.179 | P48: 250 | S48: 4.945684672 | T48: 494.5684672 | U48: 0.004945684672 | V48: =AVERAGE(U48:U49) -> 0.004993053319 | W48: =STDEV(K48:K49) -> 0.008485281374 | X48: =W48/V48 -> 1.699417337 | Y48: =V48/0.4 -> 0.0124826333
B49: 41 | C49: 14.0099 | D49: 1.0143 | E49: 14.0317 | F49: 0.02149265503 | J49: 124 | K49: 0.409 | L49: 25000 | M49: 6.22 | N49: 250 | O49: 2.942 | P49: 250 | S49: 5.040421966 | T49: 504.0421966 | U49: 0.005040421966
A50: 31 | B50: 8 | C50: 11.1181 | D50: 1.0187 | E50: 11.148 | F50: 0.0293511338 | G50: =AVERAGE(F50:F51) -> 0.02930755035 | H50: =STDEV(F50:F51) -> 6.16363094e-05 | I50: =H50/G50*100 -> 0.2103086361 | J50: 125 | K50: 0.405 | L50: 25000 | M50: 6.194 | N50: 250 | O50: 3.353 | P50: 250 | S50: 4.969569059 | T50: 496.9569059 | U50: 0.004969569059 | V50: =AVERAGE(U50:U51) -> 0.006512274922 | W50: =STDEV(K50:K51) -> 0.1760695885 | X50: =W50/V50 -> 27.0365718 | Y50: =V50/0.4 -> 0.01628068731
B51: 40 | C51: 15.3377 | D51: 1.0149 | E51: 15.3674 | F51: 0.02926396689 | J51: 126 | K51: 0.654 | L51: 25000 | M51: 6.092 | N51: 250 | O51: 3.373 | P51: 250 | S51: 8.054980786 | T51: 805.4980786 | U51: 0.008054980786
A52: 32 | B52: 6 | C52: 10.9836 | D52: 1.003 | E52: 11.0058 | F52: 0.0221335992 | G52: =AVERAGE(F52:F53) -> 0.02220626373 | H52: =STDEV(F52:F53) -> 0.0001027631593 | I52: =H52/G52*100 -> 0.4627665443 | J52: 127 | K52: 0.359 | L52: 25000 | M52: 5.781 | N52: 250 | O52: 0.124 | P52: 25000 | S52: 4.474077767 | T52: 447.4077767 | U52: 0.004474077767 | V52: =AVERAGE(U52:U53) -> 0.004666129079 | W52: =STDEV(K52:K53) -> 0.0261629509 | X52: =W52/V52 -> 5.606992533 | Y52: =V52/0.4 -> 0.0116653227
B53: 33 | C53: 16.177 | D53: 1.0189 | E53: 16.1997 | F53: 0.02227892826 | J53: 128 | K53: 0.396 | L53: 25000 | M53: 5.936 | N53: 250 | O53: 0.139 | P53: 25000 | S53: 4.858180391 | T53: 485.8180391 | U53: 0.004858180391
A54: 34 | B54: 20 | C54: 12.3709 | D54: 1.0096 | E54: 12.3952 | F54: 0.02406893819 | G54: =AVERAGE(F54:F55) -> 0.02410960326 | H54: =STDEV(F54:F55) -> 5.750909561e-05 | I54: =H54/G54*100 -> 0.2385319036 | J54: 129 | K54: 0.415 | L54: 25000 | M54: 7.326 | N54: 250 | O54: 3.771 | P54: 250 | S54: 5.138173534 | T54: 513.8173534 | U54: 0.005138173534 | V54: =AVERAGE(U54:U55) -> 0.005109585674 | W54: =STDEV(K54:K55) -> 0.004242640687 | X54: =W54/V54 -> 0.8303296897 | Y54: =V54/0.4 -> 0.01277396418
B55: 88 | C55: 11.4307 | D55: 1.0062 | E55: 11.455 | F55: 0.02415026834 | J55: 130 | K55: 0.409 | L55: 25000 | M55: 7.169 | N55: 250 | O55: 3.772 | P55: 250 | S55: 5.080997814 | T55: 508.0997814 | U55: 0.005080997814
A56: 35 | B56: 5 | C56: 10.2124 | D56: 1.0159 | E56: 10.2449 | F56: 0.03199133773 | G56: =AVERAGE(F56:F57) -> 0.03184423802 | H56: =STDEV(F56:F57) -> 0.0002080304016 | I56: =H56/G56*100 -> 0.6532748607 | J56: 131 | K56: 0.649 | L56: 25000 | M56: 7.183 | N56: 250 | O56: 3.699 | P56: 250 | S56: 7.985530072 | T56: 798.5530072 | U56: 0.007985530072 | V56: =AVERAGE(U56:U57) -> 0.00796111758 | W56: =STDEV(K56:K57) -> 0.007071067812 | X56: =W56/V56 -> 0.8882003991 | Y56: =V56/0.4 -> 0.01990279395
B57: 99 | C57: 9.947 | D57: 1.0064 | E57: 9.9789 | F57: 0.03169713831 | J57: 132 | K57: 0.639 | L57: 25000 | M57: 7.443 | N57: 250 | O57: 3.788 | P57: 250 | S57: 7.936705087 | T57: 793.6705087 | U57: 0.007936705087
A58: 36 | B58: 35 | C58: 14.9077 | D58: 1.0115 | E58: 14.9323 | F58: 0.02432031636 | G58: =AVERAGE(F58:F59) -> 0.0242903357 | H58: =STDEV(F58:F59) -> 4.239906465e-05 | I58: =H58/G58*100 -> 0.1745511679 | J58: 133 | K58: 0.345 | L58: 25000 | M58: 7.539 | N58: 250 | O58: 0.137 | P58: 25000 | S58: 4.263470094 | T58: =S58*100 -> 426.3470094 | U58: =T58*0.00001 -> 0.004263470094 | V58: =AVERAGE(U58:U59) -> 0.004301360294 | W58: =STDEV(K58:K59) -> 0.004949747468 | X58: =W58/V58 -> 1.150740029 | Y58: =V58/0.4 -> 0.01075340073
B59: 11 | C59: 10.225 | D59: 1.014 | E59: 10.2496 | F59: 0.02426035503 | J59: 134 | K59: 0.352 | L59: 25000 | M59: 7.479 | N59: 250 | O59: 0.128 | P59: 25000 | S59: 4.339250493 | T59: =S59*100 -> 433.9250493 | U59: =T59*0.00001 -> 0.004339250493
A60: 38 | B60: 33 | C60: 16.1763 | D60: 1.0075 | E60: 16.2024 | F60: 0.0259057072 | G60: =AVERAGE(F60:F61) -> 0.02587184801 | H60: =STDEV(F60:F61) -> 4.788411808e-05 | I60: =H60/G60*100 -> 0.1850819395 | J60: 135 | K60: 0.402 | L60: 25000 | M60: 8.575 | N60: 250 | O60: 4.218 | P60: 250 | S60: 4.987593052 | T60: =S60*100 -> 498.7593052 | U60: =T60*0.00001 -> 0.004987593052 | V60: =AVERAGE(U60:U61) -> 0.005050161251 | W60: =STDEV(K60:K61) -> 0.005656854249 | X60: =W60/V60 -> 1.120133392 | Y60: =V60/0.4 -> 0.01262540313
B61: 17 | C61: 15.8792 | D61: 1.0024 | E61: 15.9051 | F61: 0.02583798883 | J61: 136 | K61: 0.41 | L61: 25000 | M61: 8.492 | N61: 250 | O61: 4.23 | P61: 250 | S61: 5.112729449 | T61: 511.2729449 | U61: 0.005112729449
A62: 39 | B62: 42 | C62: 15.4001 | D62: 1.0096 | E62: 15.4341 | F62: 0.03367670365 | G62: =AVERAGE(F62:F63) -> 0.03346175438 | H62: =STDEV(F62:F63) -> 0.000303984168 | I62: =H62/G62*100 -> 0.9084525713 | J62: 137 | K62: 0.649 | L62: 25000 | M62: 8.393 | N62: 250 | O62: 4.624 | P62: 250 | S62: 8.035360539 | T62: 803.5360539 | U62: 0.008035360539 | V62: =AVERAGE(U62:U63) -> 0.008054970605 | W62: =STDEV(K62:K63) -> 0.001414213562 | X62: =W62/V62 -> 0.1755702946 | Y62: =V62/0.4 -> 0.02013742651
B63: 22 | C63: 16.724 | D63: 1.0016 | E63: 16.7573 | F63: 0.03324680511 | J63: 138 | K63: 0.647 | L63: 25000 | M63: 8.318 | N63: 250 | O63: 4.584 | P63: 250 | S63: 8.074580671 | T63: 807.4580671 | U63: 0.008074580671
A64: 40 | B64: 45 | C64: 15.6706 | D64: 1.0061 | E64: 15.6955 | F64: 0.02474903091 | G64: =AVERAGE(F64:F65) -> 0.02455145383 | H64: =STDEV(F64:F65) -> 0.0002794161945 | I64: =H64/G64*100 -> 1.138084109 | J64: 139 | K64: 0.317 | L64: 25000 | M64: 8.132 | N64: 250 | O64: 0.123 | P64: 25000 | S64: 3.938475301 | T64: 393.8475301 | U64: 0.003938475301 | V64: =AVERAGE(U64:U65) -> 0.003982160116 | W64: =STDEV(K64:K65) -> 0.004949747468 | X64: =W64/V64 -> 1.242980524 | Y64: =V64/0.4 -> 0.009955400289
B65: 38 | C65: 13.4993 | D65: 1.006 | E65: 13.5238 | F65: 0.02435387674 | J65: 140 | K65: 0.324 | L65: 25000 | M65: 8.277 | N65: 250 | O65: 0.132 | P65: 25000 | S65: 4.02584493 | T65: 402.584493 | U65: 0.00402584493
A66: 42 | B66: 18 | C66: 15.9752 | D66: 1.007 | E66: 15.9988 | F66: 0.02343594836 | G66: =AVERAGE(F66:F67) -> 0.02330442694 | H66: =STDEV(F66:F67) -> 0.0001859993728 | I66: =H66/G66*100 -> 0.7981289274 | J66: 141 | K66: 0.427 | L66: 25000 | M66: 6.876 | N66: 250 | O66: 4.458 | P66: 250 | S66: 5.300397219 | T66: 530.0397219 | U66: 0.005300397219 | V66: =AVERAGE(U66:U67) -> 0.005138315068 | W66: =STDEV(K66:K67) -> 0.01767766953 | X66: =W66/V66 -> 3.440363095 | Y66: =V66/0.4 -> 0.01284578767
B67: 10 | C67: 9.6221 | D67: 1.0098 | E67: 9.6455 | F67: 0.02317290553 | J67: 142 | K67: 0.402 | L67: 25000 | M67: 6.846 | N67: 250 | O67: 4.515 | P67: 250 | S67: 4.976232917 | T67: 497.6232917 | U67: 0.004976232917
A68: 43 | B68: 6 | C68: 10.9833 | D68: 1.0069 | E68: 11.0145 | F68: 0.03098619525 | G68: =AVERAGE(F68:F69) -> 0.03062962315 | H68: =STDEV(F68:F69) -> 0.0005042691027 | I68: =H68/G68*100 -> 1.646344456 | J68: 143 | K68: 0.669 | L68: 25000 | M68: 6.89 | N68: 250 | O68: 5.018 | P68: 250 | S68: 8.30519416 | T68: 830.519416 | U68: 0.00830519416 | V68: =AVERAGE(U68:U69) -> 0.008307721734 | W68: =STDEV(K68:K69) -> 0.002121320344 | X68: =W68/V68 -> 0.255343211 | Y68: =V68/0.4 -> 0.02076930433
B69: 41 | C69: 14.0094 | D69: 1.0108 | E69: 14.04 | F69: 0.03027305105 | J69: 144 | K69: 0.672 | L69: 25000 | M69: 6.398 | N69: 250 | O69: 4.436 | P69: 250 | S69: 8.310249307 | T69: 831.0249307 | U69: 0.008310249307
A70: 44 | B70: 20 | C70: 12.3705 | D70: 1.0071 | E70: 12.3941 | F70: 0.02343362129 | G70: =AVERAGE(F70:F71) -> 0.02330985482 | H70: =STDEV(F70:F71) -> 0.0001750322218 | I70: =H70/G70*100 -> 0.750893659 | J70: 145 | K70: 0.39 | L70: 25000 | M70: 6.896 | N70: 250 | O70: 0.155 | P70: 25000 | S70: 4.840631516 | T70: 484.0631516 | U70: 0.004840631516 | V70: =AVERAGE(U70:U71) -> 0.004781399108 | W70: =STDEV(K70:K71) -> 0.008485281374 | X70: =W70/V70 -> 1.774644028 | Y70: =V70/0.4 -> 0.01195349777
B71: 44 | C71: 15.6603 | D71: 1.0006 | E71: 15.6835 | F71: 0.02318608835 | J71: 146 | K71: 0.378 | L71: 25000 | M71: 6.832 | N71: 250 | O71: 0.168 | P71: 25000 | S71: 4.7221667 | T71: 472.21667 | U71: 0.0047221667
A72: Blank | B72: 40 | C72: 15.3372 | E72: 15.3364 | G72: =AVERAGE(F72:F73) ->  | H72: =STDEV(F72:F73) ->  | I72: =H72/G72*100 ->  | J72: 147
A73: B | B73: 6 | C73: 10.9836 | J73: 88 | S73: =K30*250*50/(D73*1000) ->  | T73: =S73*100 ->  | U73: =T73*0.00001 ->  | V73: =AVERAGE(U42:U93) ->  | W73: =STDEV(K42:K93) -> 0.1236789385 | X73: =W73/V73 ->  | Y73: =V73/0.4 -> 
S82: =K70*250*50/(D82*1000) ->  | T82: =S82*100 ->  | U82: =T82*0.00001 ->  | V82: =AVERAGE(U82:U83) ->  | W82: =STDEV(K82:K83) ->  | X82: =W82/V82 ->  | Y82: =V82/0.4 -> 
S83: =K71*250*50/(D83*1000) ->  | T83: =S83*100 ->  | U83: =T83*0.00001 -> 
G85: =AVERAGE(F85:F86) ->  | H85: =STDEV(F85:F86) ->  | I85: =H85/G85*100 ->  | K85: 0.338 | Q85: -0.011 | S85: =(K85-Q85)*$AA$2*$AB$2/(D85*1000) ->  | T85: =S85*100 ->  | U85: =T85*0.00001 ->  | V85: =AVERAGE(U85:U86) ->  | W85: =STDEV(K85:K86) -> 0.002121320344 | X85: =W85/V85 ->  | Y85: =V85/0.4 -> 
K86: 0.341 | Q86: -0.011 | S86: =(K86-Q86)*$AA$2*$AB$2/(D86*1000) ->  | T86: =S86*100 ->  | U86: =T86*0.00001 -> 
A88: Sample | B88: Sample cup | C88: crucible weight | D88: sample weight | E88: final weight | F88: % ash | G88: Avg | H88: Std Dev | I88: CI
A89: FF Large pellet | B89: 45 | C89: 15.6715 | D89: 0.5033 | E89: 15.6983 | F89: =(E89-C89)/D89 -> 0.05324855951 | G89: =AVERAGE(F89:F90) -> 0.05262925282 | H89: =STDEV(F89:F90) -> 0.0008758319217 | I89: =H89/G89*100 -> 1.664154201
B90: 2 | C90: 11.127 | D90: 0.4826 | E90: 11.1521 | F90: =(E90-C90)/D90 -> 0.05200994613
A91: FF Small pellet | B91: 38 | C91: 13.5 | D91: 0.4928 | E91: 13.554 | F91: =(E91-C91)/D91 -> 0.1095779221 | G91: =AVERAGE(F91:F92) -> 0.1093597637 | H91: =STDEV(F91:F92) -> 0.0003085225822 | I91: =H91/G91*100 -> 0.2821170893
B92: 44 | C92: 15.661 | D92: 0.5021 | E92: 15.7158 | F92: =(E92-C92)/D92 -> 0.1091416053
A110: 0.084 | B110: Dilution 1 | C110: Dilution 2
B111: 250 | C111: 100
B113: Element | C113: % element in cheese | D113: Ash volume (grams) | E113: grams in starting cheese | F113: Dilution 1 volume | G113: mg/L in D1 | H113: Dilution 2
B114: Na | C114: 0.008 | D114: 1 | E114: =C114*D114 -> 0.008 | F114: 250 | G114: =(E114*1000)/(F114/1000) -> 32 | H114: 50 | I114: =H114*0.7/G114 -> 1.09375
B115: Ca | C115: 0.007 | D115: 1 | E115: =C115*D115 -> 0.007 | F115: 250 | G115: =(E115*1000)/(F115/1000) -> 28 | H115: 50 | I115: =H115*0.7/G115 -> 1.25
B116: Potassium | C116: 0.00084 | D116: 1 | E116: =C116*D116 -> 0.00084 | F116: 250 | G116: =(E116*1000)/(F116/1000) -> 3.36 | H116: 50 | I116: =H116*0.7/G116 -> 10.41666667

Sheet Minerals no DLP
A1: Sample | B1: Sample cup | C1: crucible weight | D1: sample weight | E1: final weight | F1: % ash | H1: Std Dev | I1: CI | J1: Centrifuge tube number | K1: Na AA ppm | L1: Dilution | M1: K AA ppm | N1: Dilution | O1: Ca AA ppm | P1: Dilution | Q1: Na Blank | R1: Potassium Blank | S1: Calcium Blank | T1: Final Na mg/g | U1: mg/100g | V1: Na % | W1: Avg Na | X1: st dev Na | Y1: ci | Z1: salt equiv | AA1: Sodium % | AC1: Sodium | AD1: Potassium | AE1: Calcium | AF1: Dillution 1 | AG1: Dilution 2 | AH1: Total dilution
A2: 1 | B2: 45 | C2: 15.6715 | D2: 1.0103 | E2: 15.6994 | F2: =(E2-C2)/D2 -> 0.02761555973 | G2: =AVERAGE(F2:F3) -> 0.02763587378 | H2: =STDEV(F2:F3) -> 2.872839695e-05 | I2: =H2/G2*100 -> 0.1039532789 | J2: 76 | K2: 0.645 | L2: 12500 | M2: 3.401 | N2: 250 | O2: 5.276 | P2: 250 | Q2: 0 | R2: 0 | S2: 0 | T2: =(K2-Q2)*$AF$2*$AG$2/(D2*1000) -> 7.98030288 | U2: =T2*100 -> 798.030288 | V2: =U2*0.00001 -> 0.00798030288 | W2: =AVERAGE(V2) -> 0.00798030288 | X2: =STDEV(K2:K3) -> 0.007778174593 | Y2: =X2/W2 -> 0.974671602 | Z2: =W2/0.4 -> 0.0199507572 | AA2: =(K2-Q2)*$AF$2*$AG$2/(D2*1000)*100*0.00001 -> 0.00798030288 | AB2: =(K2-Q2)*$AF$2*$AG$2/(D2*1000)*100*0.00001 -> 0.00798030288 | AC2: =(K2-Q2)*L2/(D2*1000)*100*0.00001 -> 0.00798030288 | AD2: =(M2-R2)*N2/(D2*1000)*100*0.00001 -> 0.0008415817084 | AE2: =(O2-S2)*P2/(D2*1000)*100*0.00001 -> 0.001305552806 | AF2: 250 | AG2: 50 | AH2: =AF2*AG2 -> 12500
A3: 1 | B3: 40 | C3: 15.3378 | D3: 1.0052 | E3: 15.3656 | F3: =(E3-C3)/D3 -> 0.02765618782 | J3: 77 | K3: 0.634 | L3: 12500 | M3: 3.626 | N3: 250 | O3: 5.365 | P3: 250 | Q3: 0 | R3: 0 | S3: 0 | T3: 7.884003183 | U3: =T3*100 -> 788.4003183 | V3: =U3*0.00001 -> 0.007884003183 | AA3: 0.007884003183 | AC3: 0.007884003183 | AD3: =(M3-R3)*N3/(D3*1000)*100*0.00001 -> 0.000901810585 | AE3: =(O3-S3)*P3/(D3*1000)*100*0.00001 -> 0.00133431158
A4: 2 | B4: 20 | C4: 12.371 | D4: 1.0005 | E4: 12.3925 | F4: =(E4-C4)/D4 -> 0.02148925537 | G4: =AVERAGE(F4:F5) -> 0.02158847627 | H4: =STDEV(F4:F5) -> 0.0001403195344 | I4: =H4/G4*100 -> 0.6499742392 | J4: 78 | K4: 0.439 | L4: 12500 | M4: 3.393 | N4: 250 | O4: 5.485 | P4: 250 | Q4: 0 | R4: 0 | S4: 0 | T4: 5.484757621 | U4: =T4*100 -> 548.4757621 | V4: =U4*0.00001 -> 0.005484757621 | W4: =AVERAGE(V4:V5) -> 0.005508792454 | X4: =STDEV(K4:K5) -> 0.007071067812 | Y4: =X4/W4 -> 1.283596699 | Z4: =W4/0.4 -> 0.01377198114 | AA4: 0.005484757621 | AC4: 0.005484757621 | AD4: 0.000847826087 | AE4: 0.001370564718
A5: 2 | B5: 44 | C5: 15.6606 | D5: 1.0144 | E5: 15.6826 | F5: 0.02168769716 | J5: 79 | K5: 0.449 | L5: 12500 | M5: 3.445 | N5: 250 | O5: 5.596 | P5: 250 | Q5: 0 | R5: 0 | S5: 0 | T5: 5.532827287 | U5: =T5*100 -> 553.2827287 | V5: =U5*0.00001 -> 0.005532827287 | AA5: 0.005532827287 | AC5: 0.005532827287 | AD5: 0.0008490240536 | AE5: 0.001379140379
A6: 3 | B6: 33 | C6: 16.1771 | D6: 1.0102 | E6: 16.1989 | F6: 0.02157988517 | G6: =AVERAGE(F6:F7) -> 0.02176032256 | H6: =STDEV(F6:F7) -> 0.0002551770019 | I6: =H6/G6*100 -> 1.172671045 | J6: 80 | K6: 0.36 | L6: 12500 | M6: 0.161 | N6: 12500 | O6: 5.175 | P6: 250 | Q6: 0 | R6: 0 | S6: 0 | T6: 4.454563453 | U6: 445.4563453 | V6: 0.004454563453 | W6: =AVERAGE(V6:V7) -> 0.005811354729 | X6: =STDEV(K6:K7) -> 0.152027958 | Y6: =X6/W6 -> 26.16050216 | Z6: =W6/0.4 -> 0.01452838682 | AA6: 0.004454563453 | AC6: 0.004454563453 | AD6: 0.001992179766 | AE6: 0.001280686993
A7: 3 | B7: 8 | C7: 11.1181 | D7: 1.0027 | E7: 11.1401 | F7: 0.02194075995 | J7: 81 | K7: 0.575 | L7: 12500 | M7: 0.163 | N7: 12500 | O7: 7.025 | P7: 250 | Q7: 0 | R7: 0 | S7: 0 | T7: 7.168146006 | U7: 716.8146006 | V7: 0.007168146006 | AA7: 0.007168146006 | AC7: 0.007168146006 | AD7: 0.002032013563 | AE7: 0.001751520894
A8: 6 | B8: 23 | C8: 12.318 | D8: 1.0138 | E8: 12.3503 | F8: 0.03186032748 | G8: =AVERAGE(F8:F9) -> 0.03208788684 | H8: =STDEV(F8:F9) -> 0.0003218175258 | I8: =H8/G8*100 -> 1.00292527 | J8: 84 | K8: 0.571 | L8: 12500 | M8: 3.594 | N8: 250 | O8: 8.273 | P8: 250 | Q8: 0 | R8: 0 | S8: 0 | T8: 7.040343263 | U8: 704.0343263 | V8: 0.007040343263 | W8: =AVERAGE(V8:V9) -> 0.007151953428 | X8: =STDEV(K8:K9) -> 0.01202081528 | Y8: =X8/W8 -> 1.680773708 | Z8: =W8/0.4 -> 0.01787988357 | AA8: 0.007040343263 | AC8: 0.007040343263 | AD8: 0.0008862694812 | AE8: 0.002040096666
A9: 6 | B9: 26 | C9: 14.6926 | D9: 1.0119 | E9: 14.7253 | F9: 0.03231544619 | J9: 85 | K9: 0.588 | L9: 12500 | M9: 3.637 | N9: 250 | O9: 8.328 | P9: 250 | Q9: 0 | R9: 0 | S9: 0 | T9: 7.263563593 | U9: 726.3563593 | V9: 0.007263563593 | AA9: 0.007263563593 | AC9: 0.007263563593 | AD9: 0.0008985571697 | AE9: 0.002057515565
A10: 7 | B10: 35 | C10: 14.9085 | D10: 1.008 | E10: 14.9345 | F10: 0.02579365079 | G10: =AVERAGE(F10:F11) -> 0.02574914775 | H10: =STDEV(F10:F11) -> 6.293681219e-05 | I10: =H10/G10*100 -> 0.2444228943 | J10: 86 | K10: 0.392 | L10: 12500 | M10: 3.458 | N10: 250 | O10: 8.486 | P10: 250 | Q10: 0 | R10: 0 | S10: 0 | T10: 4.861111111 | U10: 486.1111111 | V10: 0.004861111111 | W10: =AVERAGE(V10:V11) -> 0.004849670284 | X10: =STDEV(K10:K11) -> 0.001414213562 | Y10: =X10/W10 -> 0.2916102497 | Z10: =W10/0.4 -> 0.01212417571 | AA10: 0.004861111111 | AC10: 0.004861111111 | AD10: 0.0008576388889 | AE10: 0.002104662698
A11: 7 | B11: 10 | C11: 9.6225 | D11: 1.0076 | E11: 9.6484 | F11: 0.0257046447 | J11: 87 | K11: 0.39 | L11: 12500 | M11: 3.391 | N11: 250 | O11: 8.412 | P11: 250 | Q11: 0 | R11: 0 | S11: 0 | T11: 4.838229456 | U11: 483.8229456 | V11: 0.004838229456 | AA11: 0.004838229456 | AC11: 0.004838229456 | AD11: 0.0008413556967 | AE11: 0.002087137753
A12: 8 | B12: 44 | C12: 15.6605 | D12: 0.9999 | E12: 15.6859 | F12: 0.02540254025 | G12: =AVERAGE(F12:F13) -> 0.025530778 | H12: =STDEV(F12:F13) -> 0.0001813555526 | I12: =H12/G12*100 -> 0.7103408783 | J12: 89 | K12: 0.332 | L12: 12500 | M12: 0.151 | N12: 12500 | O12: 8.009 | P12: 250 | Q12: 0 | R12: 0 | S12: 0 | T12: 4.150415042 | U12: 415.0415042 | V12: 0.004150415042 | W12: =AVERAGE(V12:V13) -> 0.004004645227 | X12: =STDEV(K12:K13) -> 0.01697056275 | Y12: =X12/W12 -> 4.237719394 | Z12: =W12/0.4 -> 0.01001161307 | AA12: 0.004150415042 | AC12: 0.004150415042 | AD12: 0.001887688769 | AE12: 0.002002450245
A13: 8 | B13: 33 | C13: 16.1768 | D13: 0.9977 | E13: 16.2024 | F13: 0.02565901574 | J13: 90 | K13: 0.308 | L13: 12500 | M13: 0.18 | N13: 12500 | O13: 7.929 | P13: 250 | Q13: 0 | R13: 0 | S13: 0 | T13: 3.858875413 | U13: 385.8875413 | V13: 0.003858875413 | AA13: 0.003858875413 | AC13: 0.003858875413 | AD13: 0.00225518693 | AE13: 0.001986819685
A14: 11 | B14: 2 | C14: 11.1262 | D14: 1 | E14: 11.1558 | F14: 0.0296 | G14: =AVERAGE(F14:F15) -> 0.02975811727 | H14: =STDEV(F14:F15) -> 0.00022361159 | I14: =H14/G14*100 -> 0.7514305692 | J14: 93 | K14: 0.586 | L14: 12500 | M14: 4.362 | N14: 250 | O14: 6.251 | P14: 250 | Q14: 0 | R14: 0 | S14: 0 | T14: 7.325 | U14: =T14*100 -> 732.5 | V14: =U14*0.00001 -> 0.007325 | W14: =AVERAGE(V14:V15) -> 0.007439424611 | X14: =STDEV(K14:K15) -> 0.01414213562 | Y14: =X14/W14 -> 1.900971696 | Z14: =W14/0.4 -> 0.01859856153 | AA14: 0.007325 | AC14: 0.007325 | AD14: 0.0010905 | AE14: 0.00156275
A15: 11 | B15: 5 | C15: 10.2126 | D15: 1.0028 | E15: 10.2426 | F15: 0.02991623454 | J15: 94 | K15: 0.606 | L15: 12500 | M15: 4.306 | N15: 250 | O15: 6.182 | P15: 250 | Q15: 0 | R15: 0 | S15: 0 | T15: 7.553849222 | U15: =T15*100 -> 755.3849222 | V15: =U15*0.00001 -> 0.007553849222 | AA15: 0.007553849222 | AC15: 0.007553849222 | AD15: 0.001073494216 | AE15: 0.001541184683
A16: 12 | B16: 8 | C16: 11.118 | D16: 1.0091 | E16: 11.1416 | F16: 0.02338717669 | G16: =AVERAGE(F16:F17) -> 0.02318554398 | H16: =STDEV(F16:F17) -> 0.0002851517202 | I16: =H16/G16*100 -> 1.229868579 | J16: 95 | K16: 0.403 | L16: 12500 | M16: 4.102 | N16: 250 | O16: 6.378 | P16: 250 | Q16: 0 | R16: 0 | S16: 0 | T16: 4.992072143 | U16: =T16*100 -> 499.2072143 | V16: =U16*0.00001 -> 0.004992072143 | W16: =AVERAGE(V16:V17) -> 0.004925585387 | X16: =STDEV(K16:K17) -> 0.009899494937 | Y16: =X16/W16 -> 2.009810847 | Z16: =W16/0.4 -> 0.01231396347 | AA16: 0.004992072143 | AC16: 0.004992072143 | AD16: 0.001016252106 | AE16: 0.0015801209
A17: 12 | B17: 40 | C17: 15.3377 | D17: 1.0007 | E17: 15.3607 | F17: 0.02298391126 | J17: 96 | K17: 0.389 | L17: 12500 | M17: 3.948 | N17: 250 | O17: 6.3 | P17: 250 | Q17: 0 | R17: 0 | S17: 0 | T17: 4.859098631 | U17: 485.9098631 | V17: 0.004859098631 | AA17: 0.004859098631 | AC17: 0.004859098631 | AD17: 0.0009863095833 | AE17: 0.001573898271
A18: 13 | B18: 23 | C18: 12.3178 | D18: 0.995 | E18: 12.3409 | F18: 0.0232160804 | G18: =AVERAGE(F18:F19) -> 0.02319163262 | H18: =STDEV(F18:F19) -> 3.457438628e-05 | I18: =H18/G18*100 -> 0.1490812952 | J18: 97 | K18: 0.347 | L18: 12500 | M18: 0.168 | N18: 12500 | O18: 6.02 | P18: 250 | Q18: 0 | R18: 0 | S18: 0 | T18: 4.359296482 | U18: 435.9296482 | V18: 0.004359296482 | W18: =AVERAGE(V18:V19) -> 0.004273219598 | X18: =STDEV(K18:K19) -> 0.009192388155 | Y18: =X18/W18 -> 2.151162126 | Z18: =W18/0.4 -> 0.010683049 | AA18: 0.004359296482 | AC18: 0.004359296482 | AD18: 0.002110552764 | AE18: 0.001512562814
A19: 13 | B19: 39 | C19: 16.5272 | D19: 0.9971 | E19: 16.5503 | F19: 0.02316718484 | J19: 98 | K19: 0.334 | L19: 12500 | M19: 0.144 | N19: 12500 | O19: 6.005 | P19: 250 | Q19: 0 | R19: 0 | S19: 0 | T19: 4.187142714 | U19: 418.7142714 | V19: 0.004187142714 | AA19: 0.004187142714 | AC19: 0.004187142714 | AD19: 0.001805235182 | AE19: 0.001505616287
A20: 16 | B20: 11 | C20: 10.2256 | D20: 0.9972 | E20: 10.2539 | F20: 0.02837946249 | G20: =AVERAGE(F20:F21) -> 0.02845535311 | H20: =STDEV(F20:F21) -> 0.0001073255343 | I20: =H20/G20*100 -> 0.3771716831 | J20: 101 | K20: 0.621 | L20: 12500 | M20: 0.149 | N20: 250 | O20: 5.941 | P20: 250 | Q20: 0 | R20: 0 | S20: 0 | T20: 7.784296029 | U20: 778.4296029 | V20: 0.007784296029 | W20: =AVERAGE(V20:V21) -> 0.007816449803 | X20: =STDEV(K20:K21) -> 0.002828427125 | Y20: =X20/W20 -> 0.3618557269 | Z20: =W20/0.4 -> 0.01954112451 | AA20: 0.007784296029 | AC20: 0.007784296029 | AD20: 3.735459286e-05 | AE20: 0.001489420377
A21: 16 | B21: 26 | C21: 14.6928 | D21: 0.9954 | E21: 14.7212 | F21: 0.02853124372 | J21: 102 | K21: 0.625 | L21: 12500 | M21: 3.418 | N21: 250 | O21: 5.964 | P21: 250 | Q21: 0 | R21: 0 | S21: 0 | T21: 7.848603576 | U21: 784.8603576 | V21: 0.007848603576 | AA21: 0.007848603576 | AC21: 0.007848603576 | AD21: 0.0008584488648 | AE21: 0.001497890295
A22: 17 | B22: 41 | C22: 14.0098 | D22: 1.0017 | E22: 14.0323 | F22: 0.02246181491 | G22: =AVERAGE(F22:F23) -> 0.02238892917 | H22: =STDEV(F22:F23) -> 0.0001030760083 | I22: =H22/G22*100 -> 0.4603882904 | J22: 103 | K22: 0.41 | L22: 12500 | M22: 3.35 | N22: 250 | O22: 6.152 | P22: 250 | Q22: 0 | R22: 0 | S22: 0 | T22: 5.116302286 | U22: 511.6302286 | V22: 0.005116302286 | W22: =AVERAGE(V22:V23) -> 0.005090067106 | X22: =STDEV(K22:K23) -> 0.004949747468 | Y22: =X22/W22 -> 0.9724326547 | Z22: =W22/0.4 -> 0.01272516777 | AA22: 0.005116302286 | AC22: 0.005116302286 | AD22: 0.0008360786663 | AE22: 0.001535389837
A23: 17 | B23: 20 | C23: 12.3711 | D23: 0.9948 | E23: 12.3933 | F23: 0.02231604343 | J23: 104 | K23: 0.403 | L23: 12500 | M23: 3.304 | N23: 250 | O23: 6.086 | P23: 250 | Q23: 0 | R23: 0 | S23: 0 | T23: 5.063831926 | U23: 506.3831926 | V23: 0.005063831926 | AA23: 0.005063831926 | AC23: 0.005063831926 | AD23: 0.0008303176518 | AE23: 0.001529453156
A24: 18 | B24: 38 | C24: 13.4998 | D24: 0.9967 | E24: 13.5222 | F24: 0.02247416474 | G24: =AVERAGE(F24:F25) -> 0.02239936088 | H24: =STDEV(F24:F25) -> 0.0001057886411 | I24: =H24/G24*100 -> 0.4722841944 | J24: 105 | K24: 0.355 | L24: 12500 | M24: 0.149 | N24: 12500 | O24: 5.927 | P24: 250 | Q24: 0 | R24: 0 | S24: 0 | T24: 4.452192234 | U24: 445.2192234 | V24: 0.004452192234 | W24: =AVERAGE(V24:V25) -> 0.003921711294 | X24: =STDEV(K24:K25) -> 0.05939696962 | Y24: =X24/W24 -> 15.14567625 | Z24: =W24/0.4 -> 0.009804278235 | AA24: 0.004452192234 | AC24: 0.004452192234 | AD24: 0.0018686666 | AE24: 0.001486655965
A25: 18 | B25: 42 | C25: 15.401 | D25: 0.9989 | E25: 15.4233 | F25: 0.02232455701 | J25: 106 | K25: 0.271 | L25: 12500 | M25: 0.165 | N25: 12500 | O25: 5.938 | P25: 250 | Q25: 0 | R25: 0 | S25: 0 | T25: 3.391230353 | U25: 339.1230353 | V25: 0.003391230353 | AA25: 0.003391230353 | AC25: 0.003391230353 | AD25: 0.002064771248 | AE25: 0.001486134748
A26: 21 | B26: 41 | C26: 14.0094 | D26: 1.0175 | E26: 14.0425 | F26: 0.03253071253 | G26: =AVERAGE(F26:F27) -> 0.0324472286 | H26: =STDEV(F26:F27) -> 0.0001180641108 | I26: =H26/G26*100 -> 0.3638650077 | J26: 109 | K26: 0.593 | L26: 12500 | M26: 4.078 | N26: 250 | O26: 7.647 | P26: 250 | Q26: 0 | R26: 0 | S26: 0 | T26: 7.285012285 | U26: 728.5012285 | V26: 0.007285012285 | AA26: 0.007285012285 | AC26: 0.007285012285 | AD26: 0.001001965602 | AE26: 0.001878869779
A27: 21 | B27: 11 | C27: 10.2252 | D27: 1.0073 | E27: 10.2578 | F27: 0.03236374466 | J27: 110 | K27: 0.596 | L27: 12500 | M27: 3.941 | N27: 250 | O27: 7.535 | P27: 250 | Q27: 0 | R27: 0 | S27: 0 | T27: 7.396009133 | U27: 739.6009133 | V27: 0.007396009133 | AA27: 0.007396009133 | AC27: 0.007396009133 | AD27: 0.0009781097985 | AE27: 0.001870098283
A28: 22 | B28: 33 | C28: 16.1765 | D28: 1.0132 | E28: 16.2029 | F28: 0.02605606001 | G28: =AVERAGE(F28:F29) -> 0.02569317354 | H28: =STDEV(F28:F29) -> 0.0005131989613 | I28: =H28/G28*100 -> 1.997413673 | J28: 111 | K28: 0.392 | L28: 12500 | M28: 3.661 | N28: 250 | O28: 7.546 | P28: 250 | Q28: 0 | R28: 0 | S28: 0 | T28: 4.836162653 | U28: 483.6162653 | V28: 0.004836162653 | AA28: 0.004836162653 | AC28: 0.004836162653 | AD28: 0.0009033260955 | AE28: 0.001861922621
A29: 22 | B29: 22 | C29: 16.725 | D29: 1.0067 | E29: 16.7505 | F29: 0.02533028708 | J29: 112 | K29: 0.392 | L29: 12500 | M29: 3.628 | N29: 250 | O29: 7.623 | P29: 250 | Q29: 0 | R29: 0 | S29: 0 | T29: 4.867388497 | U29: 486.7388497 | V29: 0.004867388497 | AA29: 0.004867388497 | AC29: 0.004867388497 | AD29: 0.0009009635443 | AE29: 0.001893066455
A30: 23 | B30: 42 | C30: 15.4007 | D30: 1.004 | E30: 15.4249 | F30: 0.02410358566 | G30: =AVERAGE(F30:F31) -> 0.02417032879 | H30: =STDEV(F30:F31) -> 9.438904589e-05 | I30: =H30/G30*100 -> 0.390516185 | J30: 113 | K30: 0.249 | L30: 12500 | M30: 0.131 | N30: 12500 | O30: 7.588 | P30: 250 | Q30: 0 | R30: 0 | S30: 0 | T30: 3.100099602 | U30: 310.0099602 | V30: 0.003100099602 | AA30: 0.003100099602 | AC30: 0.003100099602 | AD30: 0.001630976096 | AE30: 0.001889442231
A31: 23 | B31: 20 | C31: 12.3707 | D31: 1.0191 | E31: 12.3954 | F31: 0.02423707193 | J31: 114 | K31: 0.311 | L31: 12500 | M31: 0.147 | N31: 12500 | O31: 7.651 | P31: 250 | Q31: 0 | R31: 0 | S31: 0 | T31: 3.814640369 | U31: 381.4640369 | V31: 0.003814640369 | AA31: 0.003814640369 | AC31: 0.003814640369 | AD31: 0.001803061525 | AE31: 0.001876901187
A32: 26 | B32: 39 | C32: 16.5268 | D32: 1.0175 | E32: 16.5487 | F32: =(E32-C32)/D32 -> 0.02152334152 | G32: =AVERAGE(F32:F33) -> 0.02148659628 | H32: =STDEV(F32:F33) -> 5.196561721e-05 | I32: =H32/G32*100 -> 0.2418513222 | J32: 117 | K32: 0.397 | L32: 12500 | M32: 4.149 | N32: 250 | O32: 5.712 | P32: 250 | Q32: 0 | R32: 0 | S32: 0 | T32: 4.877149877 | U32: =T32*100 -> 487.7149877 | V32: =U32*0.00001 -> 0.004877149877 | W32: =AVERAGE(V32) -> 0.004877149877 | X32: =STDEV(K32:K33) -> 0.001414213562 | Y32: =X32/W32 -> 0.289967214 | Z32: =W32/0.4 -> 0.01219287469 | AA32: 0.004877149877 | AC32: 0.004877149877 | AD32: 0.001019410319 | AE32: 0.001403439803 | AF32: 250 | AG32: 50 | AH32: =AF32*AG32 -> 12500
A33: 26 | B33: 18 | C33: 15.9755 | D33: 1.007 | E33: 15.9971 | F33: =(E33-C33)/D33 -> 0.02144985104 | J33: 118 | K33: 0.395 | L33: 12500 | M33: 4.222 | N33: 250 | O33: 5.768 | P33: 250 | Q33: 0 | R33: 0 | S33: 0 | T33: 4.903177756 | U33: =T33*100 -> 490.3177756 | V33: =U33*0.00001 -> 0.004903177756 | AA33: 0.004903177756 | AC33: 0.004903177756 | AD33: 0.00104816286 | AE33: 0.001431976167
A34: 27 | B34: 17 | C34: 15.8799 | D34: 1.0046 | E34: 15.9084 | F34: =(E34-C34)/D34 -> 0.0283695003 | G34: =AVERAGE(F34:F35) -> 0.02850444096 | H34: =STDEV(F34:F35) -> 0.0001908349175 | I34: =H34/G34*100 -> 0.6694918795 | J34: 119 | K34: 0.618 | L34: 12500 | M34: 4.522 | N34: 250 | O34: 5.76 | P34: 250 | Q34: 0 | R34: 0 | S34: 0 | T34: =(K34-Q34)*$AF$2*$AG$2/(D34*1000) -> 7.689627713 | U34: =T34*100 -> 768.9627713 | V34: =U34*0.00001 -> 0.007689627713 | W34: =AVERAGE(V34:V35) -> 0.007554802955 | X34: =STDEV(K34:K35) -> 0.01343502884 | Y34: =X34/W34 -> 1.778342721 | Z34: =W34/0.4 -> 0.01888700739 | AA34: =(K34-Q34)*$AF$2*$AG$2/(D34*1000)*100*0.00001 -> 0.007689627713 | AC34: =(K34-Q34)*L34/(D34*1000)*100*0.00001 -> 0.007689627713 | AD34: 0.001125323512 | AE34: 0.001433406331
A35: 27 | B35: 22 | C35: 16.7245 | D35: 1.0091 | E35: 16.7534 | F35: 0.02863938163 | J35: 120 | K35: 0.599 | L35: 12500 | M35: 4.424 | N35: 250 | O35: 5.804 | P35: 250 | Q35: 0 | R35: 0 | S35: 0 | T35: 7.419978198 | U35: =T35*100 -> 741.9978198 | V35: =U35*0.00001 -> 0.007419978198 | AA35: 0.007419978198 | AC35: 0.007419978198 | AD35: 0.001096026162 | AE35: 0.001437914974
A36: 28 | B36: 42 | C36: 15.4005 | D36: 1.0167 | E36: 15.4243 | F36: 0.02340906856 | G36: =AVERAGE(F36:F37) -> 0.02332899015 | H36: =STDEV(F36:F37) -> 0.0001132479608 | I36: =H36/G36*100 -> 0.4854387612 | J36: 121 | K36: 0.381 | L36: 12500 | M36: 0.17 | N36: 12500 | O36: 5.545 | P36: 250 | Q36: 0 | R36: 0 | S36: 0 | T36: 4.684272647 | U36: 468.4272647 | V36: 0.004684272647 | W36: =AVERAGE(V36:V37) -> 0.00462374495 | X36: =STDEV(K36:K37) -> 0.008485281374 | Y36: =X36/W36 -> 1.835153423 | Z36: =W36/0.4 -> 0.01155936238 | AA36: 0.004684272647 | AC36: 0.004684272647 | AD36: 0.002090095407 | AE36: 0.001363479886
A37: 28 | B37: 35 | C37: 14.9082 | D37: 1.0108 | E37: 14.9317 | F37: 0.02324891175 | J37: 122 | K37: 0.369 | L37: 12500 | M37: 0.152 | N37: 12500 | O37: 5.605 | P37: 250 | Q37: 0 | R37: 0 | S37: 0 | T37: 4.563217254 | U37: 456.3217254 | V37: 0.004563217254 | AA37: 0.004563217254 | AC37: 0.004563217254 | AD37: 0.001879699248 | AE37: 0.001386278195
A38: 30 | B38: 11 | C38: 10.2254 | D38: 1.0034 | E38: 10.247 | F38: 0.02152680885 | G38: =AVERAGE(F38:F39) -> 0.02150973194 | H38: =STDEV(F38:F39) -> 2.415039552e-05 | I38: =H38/G38*100 -> 0.1122765992 | J38: 123 | K38: 0.397 | L38: 12500 | M38: 3.179 | N38: 250 | O38: 6.097 | P38: 250 | Q38: 0 | R38: 0 | S38: 0 | T38: 4.945684672 | U38: 494.5684672 | V38: 0.004945684672 | W38: =AVERAGE(V38:V39) -> 0.004993053319 | X38: =STDEV(K38:K39) -> 0.008485281374 | Y38: =X38/W38 -> 1.699417337 | Z38: =W38/0.4 -> 0.0124826333 | AA38: 0.004945684672 | AC38: 0.004945684672 | AD38: 0.0007920570062 | AE38: 0.001519085111
A39: 30 | B39: 41 | C39: 14.0099 | D39: 1.0143 | E39: 14.0317 | F39: 0.02149265503 | J39: 124 | K39: 0.409 | L39: 12500 | M39: 2.942 | N39: 250 | O39: 6.22 | P39: 250 | Q39: 0 | R39: 0 | S39: 0 | T39: 5.040421966 | U39: 504.0421966 | V39: 0.005040421966 | AA39: 0.005040421966 | AC39: 0.005040421966 | AD39: 0.000725130632 | AE39: 0.001533076999
A40: 31 | B40: 8 | C40: 11.1181 | D40: 1.0187 | E40: 11.148 | F40: 0.0293511338 | G40: =AVERAGE(F40:F41) -> 0.02930755035 | H40: =STDEV(F40:F41) -> 6.16363094e-05 | I40: =H40/G40*100 -> 0.2103086361 | J40: 125 | K40: 0.405 | L40: 12500 | M40: 3.353 | N40: 250 | O40: 6.194 | P40: 250 | Q40: 0 | R40: 0 | S40: 0 | T40: 4.969569059 | U40: 496.9569059 | V40: 0.004969569059 | W40: =AVERAGE(V40:V41) -> 0.006512274922 | X40: =STDEV(K40:K41) -> 0.1760695885 | Y40: =X40/W40 -> 27.0365718 | Z40: =W40/0.4 -> 0.01628068731 | AA40: 0.004969569059 | AC40: 0.004969569059 | AD40: 0.0008228624718 | AE40: 0.001520074605
A41: 31 | B41: 40 | C41: 15.3377 | D41: 1.0149 | E41: 15.3674 | F41: 0.02926396689 | J41: 126 | K41: 0.654 | L41: 12500 | M41: 3.373 | N41: 250 | O41: 6.092 | P41: 250 | Q41: 0 | R41: 0 | S41: 0 | T41: 8.054980786 | U41: 805.4980786 | V41: 0.008054980786 | AA41: 0.008054980786 | AC41: 0.008054980786 | AD41: 0.0008308700365 | AE41: 0.001500640457
A42: 32 | B42: 6 | C42: 10.9836 | D42: 1.003 | E42: 11.0058 | F42: 0.0221335992 | G42: =AVERAGE(F42:F43) -> 0.02220626373 | H42: =STDEV(F42:F43) -> 0.0001027631593 | I42: =H42/G42*100 -> 0.4627665443 | J42: 127 | K42: 0.359 | L42: 12500 | M42: 0.124 | N42: 12500 | O42: 5.781 | P42: 250 | Q42: 0 | R42: 0 | S42: 0 | T42: 4.474077767 | U42: 447.4077767 | V42: 0.004474077767 | W42: =AVERAGE(V42:V43) -> 0.004666129079 | X42: =STDEV(K42:K43) -> 0.0261629509 | Y42: =X42/W42 -> 5.606992533 | Z42: =W42/0.4 -> 0.0116653227 | AA42: 0.004474077767 | AC42: 0.004474077767 | AD42: 0.001545363908 | AE42: 0.001440927218
A43: 32 | B43: 33 | C43: 16.177 | D43: 1.0189 | E43: 16.1997 | F43: 0.02227892826 | J43: 128 | K43: 0.396 | L43: 12500 | M43: 0.139 | N43: 12500 | O43: 5.936 | P43: 250 | Q43: 0 | R43: 0 | S43: 0 | T43: 4.858180391 | U43: 485.8180391 | V43: 0.004858180391 | AA43: 0.004858180391 | AC43: 0.004858180391 | AD43: 0.00170527039 | AE43: 0.001456472667
A44: 34 | B44: 20 | C44: 12.3709 | D44: 1.0096 | E44: 12.3952 | F44: 0.02406893819 | G44: =AVERAGE(F44:F45) -> 0.02410960326 | H44: =STDEV(F44:F45) -> 5.750909561e-05 | I44: =H44/G44*100 -> 0.2385319036 | J44: 129 | K44: 0.415 | L44: 12500 | M44: 3.771 | N44: 250 | O44: 7.326 | P44: 250 | Q44: 0 | R44: 0 | S44: 0 | T44: 5.138173534 | U44: 513.8173534 | V44: 0.005138173534 | W44: =AVERAGE(V44:V45) -> 0.005109585674 | X44: =STDEV(K44:K45) -> 0.004242640687 | Y44: =X44/W44 -> 0.8303296897 | Z44: =W44/0.4 -> 0.01277396418 | AA44: 0.005138173534 | AC44: 0.005138173534 | AD44: 0.0009337856577 | AE44: 0.001814084786
A45: 34 | B45: 88 | C45: 11.4307 | D45: 1.0062 | E45: 11.455 | F45: 0.02415026834 | J45: 130 | K45: 0.409 | L45: 12500 | M45: 3.772 | N45: 250 | O45: 7.169 | P45: 250 | Q45: 0 | R45: 0 | S45: 0 | T45: 5.080997814 | U45: 508.0997814 | V45: 0.005080997814 | AA45: 0.005080997814 | AC45: 0.005080997814 | AD45: 0.0009371894256 | AE45: 0.00178120652
A46: 35 | B46: 5 | C46: 10.2124 | D46: 1.0159 | E46: 10.2449 | F46: 0.03199133773 | G46: =AVERAGE(F46:F47) -> 0.03184423802 | H46: =STDEV(F46:F47) -> 0.0002080304016 | I46: =H46/G46*100 -> 0.6532748607 | J46: 131 | K46: 0.649 | L46: 12500 | M46: 3.699 | N46: 250 | O46: 7.183 | P46: 250 | Q46: 0 | R46: 0 | S46: 0 | T46: 7.985530072 | U46: 798.5530072 | V46: 0.007985530072 | W46: =AVERAGE(V46:V47) -> 0.00796111758 | X46: =STDEV(K46:K47) -> 0.007071067812 | Y46: =X46/W46 -> 0.8882003991 | Z46: =W46/0.4 -> 0.01990279395 | AA46: 0.007985530072 | AC46: 0.007985530072 | AD46: 0.000910276602 | AE46: 0.001767644453
A47: 35 | B47: 99 | C47: 9.947 | D47: 1.0064 | E47: 9.9789 | F47: 0.03169713831 | J47: 132 | K47: 0.639 | L47: 12500 | M47: 3.788 | N47: 250 | O47: 7.443 | P47: 250 | Q47: 0 | R47: 0 | S47: 0 | T47: 7.936705087 | U47: 793.6705087 | V47: 0.007936705087 | AA47: 0.007936705087 | AC47: 0.007936705087 | AD47: 0.0009409777424 | AE47: 0.001848916932
A48: 36 | B48: 35 | C48: 14.9077 | D48: 1.0115 | E48: 14.9323 | F48: 0.02432031636 | G48: =AVERAGE(F48:F49) -> 0.0242903357 | H48: =STDEV(F48:F49) -> 4.239906465e-05 | I48: =H48/G48*100 -> 0.1745511679 | J48: 133 | K48: 0.345 | L48: 12500 | M48: 0.137 | N48: 12500 | O48: 7.539 | P48: 250 | Q48: 0 | R48: 0 | S48: 0 | T48: 4.263470094 | U48: =T48*100 -> 426.3470094 | V48: =U48*0.00001 -> 0.004263470094 | W48: =AVERAGE(V48:V49) -> 0.004301360294 | X48: =STDEV(K48:K49) -> 0.004949747468 | Y48: =X48/W48 -> 1.150740029 | Z48: =W48/0.4 -> 0.01075340073 | AA48: 0.004263470094 | AC48: 0.004263470094 | AD48: 0.001693030153 | AE48: 0.001863321799
A49: 36 | B49: 11 | C49: 10.225 | D49: 1.014 | E49: 10.2496 | F49: 0.02426035503 | J49: 134 | K49: 0.352 | L49: 12500 | M49: 0.128 | N49: 25000 | O49: 7.479 | P49: 250 | Q49: 0 | R49: 0 | S49: 0 | T49: 4.339250493 | U49: =T49*100 -> 433.9250493 | V49: =U49*0.00001 -> 0.004339250493 | AA49: 0.004339250493 | AC49: 0.004339250493 | AD49: 0.00315581854 | AE49: 0.001843934911
A50: 38 | B50: 33 | C50: 16.1763 | D50: 1.0075 | E50: 16.2024 | F50: 0.0259057072 | G50: =AVERAGE(F50:F51) -> 0.02587184801 | H50: =STDEV(F50:F51) -> 4.788411808e-05 | I50: =H50/G50*100 -> 0.1850819395 | J50: 135 | K50: 0.402 | L50: 12500 | M50: 4.218 | N50: 250 | O50: 8.575 | P50: 250 | Q50: 0 | R50: 0 | S50: 0 | T50: 4.987593052 | U50: =T50*100 -> 498.7593052 | V50: =U50*0.00001 -> 0.004987593052 | W50: =AVERAGE(V50:V51) -> 0.005050161251 | X50: =STDEV(K50:K51) -> 0.005656854249 | Y50: =X50/W50 -> 1.120133392 | Z50: =W50/0.4 -> 0.01262540313 | AA50: 0.004987593052 | AC50: 0.004987593052 | AD50: 0.001046650124 | AE50: 0.002127791563
A51: 38 | B51: 17 | C51: 15.8792 | D51: 1.0024 | E51: 15.9051 | F51: 0.02583798883 | J51: 136 | K51: 0.41 | L51: 12500 | M51: 4.23 | N51: 250 | O51: 8.492 | P51: 250 | Q51: 0 | R51: 0 | S51: 0 | T51: 5.112729449 | U51: 511.2729449 | V51: 0.005112729449 | AA51: 0.005112729449 | AC51: 0.005112729449 | AD51: 0.001054968077 | AE51: 0.002117916999
A52: 39 | B52: 42 | C52: 15.4001 | D52: 1.0096 | E52: 15.4341 | F52: 0.03367670365 | G52: =AVERAGE(F52:F53) -> 0.03346175438 | H52: =STDEV(F52:F53) -> 0.000303984168 | I52: =H52/G52*100 -> 0.9084525713 | J52: 137 | K52: 0.649 | L52: 12500 | M52: 4.624 | N52: 250 | O52: 8.393 | P52: 250 | Q52: 0 | R52: 0 | S52: 0 | T52: 8.035360539 | U52: 803.5360539 | V52: 0.008035360539 | W52: =AVERAGE(V52:V53) -> 0.008054970605 | X52: =STDEV(K52:K53) -> 0.001414213562 | Y52: =X52/W52 -> 0.1755702946 | Z52: =W52/0.4 -> 0.02013742651 | AA52: 0.008035360539 | AC52: 0.008035360539 | AD52: 0.001145007924 | AE52: 0.002078298336
A53: 39 | B53: 22 | C53: 16.724 | D53: 1.0016 | E53: 16.7573 | F53: 0.03324680511 | J53: 138 | K53: 0.647 | L53: 12500 | M53: 4.584 | N53: 250 | O53: 8.318 | P53: 250 | Q53: 0 | R53: 0 | S53: 0 | T53: 8.074580671 | U53: 807.4580671 | V53: 0.008074580671 | AA53: 0.008074580671 | AC53: 0.008074580671 | AD53: 0.001144169329 | AE53: 0.002076178115
A54: 40 | B54: 45 | C54: 15.6706 | D54: 1.0061 | E54: 15.6955 | F54: 0.02474903091 | G54: =AVERAGE(F54:F55) -> 0.02455145383 | H54: =STDEV(F54:F55) -> 0.0002794161945 | I54: =H54/G54*100 -> 1.138084109 | J54: 139 | K54: 0.317 | L54: 12500 | M54: 0.123 | N54: 12500 | O54: 8.132 | P54: 250 | Q54: 0 | R54: 0 | S54: 0 | T54: 3.938475301 | U54: 393.8475301 | V54: 0.003938475301 | W54: =AVERAGE(V54:V55) -> 0.003982160116 | X54: =STDEV(K54:K55) -> 0.004949747468 | Y54: =X54/W54 -> 1.242980524 | Z54: =W54/0.4 -> 0.009955400289 | AA54: 0.003938475301 | AC54: 0.003938475301 | AD54: 0.001528178114 | AE54: 0.002020673889
A55: 40 | B55: 38 | C55: 13.4993 | D55: 1.006 | E55: 13.5238 | F55: 0.02435387674 | J55: 140 | K55: 0.324 | L55: 12500 | M55: 0.132 | N55: 12500 | O55: 8.277 | P55: 250 | Q55: 0 | R55: 0 | S55: 0 | T55: 4.02584493 | U55: 402.584493 | V55: 0.00402584493 | AA55: 0.00402584493 | AC55: 0.00402584493 | AD55: 0.001640159046 | AE55: 0.002056908549
A56: 42 | B56: 18 | C56: 15.9752 | D56: 1.007 | E56: 15.9988 | F56: 0.02343594836 | G56: =AVERAGE(F56:F57) -> 0.02330442694 | H56: =STDEV(F56:F57) -> 0.0001859993728 | I56: =H56/G56*100 -> 0.7981289274 | J56: 141 | K56: 0.427 | L56: 12500 | M56: 4.458 | N56: 250 | O56: 6.876 | P56: 250 | Q56: 0 | R56: 0 | S56: 0 | T56: 5.300397219 | U56: 530.0397219 | V56: 0.005300397219 | W56: =AVERAGE(V56:V57) -> 0.005138315068 | X56: =STDEV(K56:K57) -> 0.01767766953 | Y56: =X56/W56 -> 3.440363095 | Z56: =W56/0.4 -> 0.01284578767 | AA56: 0.005300397219 | AC56: 0.005300397219 | AD56: 0.001106752731 | AE56: 0.001707050645
A57: 42 | B57: 10 | C57: 9.6221 | D57: 1.0098 | E57: 9.6455 | F57: 0.02317290553 | J57: 142 | K57: 0.402 | L57: 12500 | M57: 4.515 | N57: 250 | O57: 6.846 | P57: 250 | Q57: 0 | R57: 0 | S57: 0 | T57: 4.976232917 | U57: 497.6232917 | V57: 0.004976232917 | AA57: 0.004976232917 | AC57: 0.004976232917 | AD57: 0.001117795603 | AE57: 0.001694890077
A58: 43 | B58: 6 | C58: 10.9833 | D58: 1.0069 | E58: 11.0145 | F58: 0.03098619525 | G58: =AVERAGE(F58:F59) -> 0.03062962315 | H58: =STDEV(F58:F59) -> 0.0005042691027 | I58: =H58/G58*100 -> 1.646344456 | J58: 143 | K58: 0.669 | L58: 12500 | M58: 5.018 | N58: 250 | O58: 6.89 | P58: 250 | Q58: 0 | R58: 0 | S58: 0 | T58: 8.30519416 | U58: 830.519416 | V58: 0.00830519416 | W58: =AVERAGE(V58:V59) -> 0.008307721734 | X58: =STDEV(K58:K59) -> 0.002121320344 | Y58: =X58/W58 -> 0.255343211 | Z58: =W58/0.4 -> 0.02076930433 | AA58: 0.00830519416 | AC58: 0.00830519416 | AD58: 0.001245903267 | AE58: 0.001710696196
A59: 43 | B59: 41 | C59: 14.0094 | D59: 1.0108 | E59: 14.04 | F59: 0.03027305105 | J59: 144 | K59: 0.672 | L59: 12500 | M59: 4.436 | N59: 250 | O59: 6.398 | P59: 250 | Q59: 0 | R59: 0 | S59: 0 | T59: 8.310249307 | U59: 831.0249307 | V59: 0.008310249307 | AA59: 0.008310249307 | AC59: 0.008310249307 | AD59: 0.001097150772 | AE59: 0.001582409972
A60: 44 | B60: 20 | C60: 12.3705 | D60: 1.0071 | E60: 12.3941 | F60: 0.02343362129 | G60: =AVERAGE(F60:F61) -> 0.02330985482 | H60: =STDEV(F60:F61) -> 0.0001750322218 | I60: =H60/G60*100 -> 0.750893659 | J60: 145 | K60: 0.39 | L60: 12500 | M60: 0.155 | N60: 12500 | O60: 6.896 | P60: 250 | Q60: 0 | R60: 0 | S60: 0 | T60: 4.840631516 | U60: 484.0631516 | V60: 0.004840631516 | W60: =AVERAGE(V60:V61) -> 0.004781399108 | X60: =STDEV(K60:K61) -> 0.008485281374 | Y60: =X60/W60 -> 1.774644028 | Z60: =W60/0.4 -> 0.01195349777 | AA60: 0.004840631516 | AC60: 0.004840631516 | AD60: 0.001923840731 | AE60: 0.001711845894
A61: 44 | B61: 44 | C61: 15.6603 | D61: 1.0006 | E61: 15.6835 | F61: 0.02318608835 | J61: 146 | K61: 0.378 | L61: 12500 | M61: 0.168 | N61: 12500 | O61: 6.832 | P61: 250 | T61: 4.7221667 | U61: 472.21667 | V61: 0.0047221667 | AA61: 0.0047221667 | AC61: 0.0047221667 | AD61: 0.002098740756 | AE61: 0.001706975815
A62: Blank | B62: 40 | C62: 15.3372 | E62: 15.3364 | G62: =AVERAGE(F62:F63) ->  | H62: =STDEV(F62:F63) ->  | I62: =H62/G62*100 ->  | J62: 147
A63: B | B63: 6 | C63: 10.9836 | J63: 88 | T63: =K24*250*50/(D63*1000) ->  | U63: =T63*100 ->  | V63: =U63*0.00001 ->  | W63: =AVERAGE(V32:V76) ->  | X63: =STDEV(K32:K76) -> 0.1236789385 | Y63: =X63/W63 ->  | Z63: =W63/0.4 -> 
T64: =(K64-Q64)*$AF$2*$AG$2/(D64*1000) -> 
T72: =K60*250*50/(D72*1000) ->  | U72: =T72*100 ->  | V72: =U72*0.00001 ->  | W72: =AVERAGE(V72:V73) ->  | X72: =STDEV(K72:K73) ->  | Y72: =X72/W72 ->  | Z72: =W72/0.4 -> 
T73: =K61*250*50/(D73*1000) ->  | U73: =T73*100 ->  | V73: =U73*0.00001 -> 
G75: =AVERAGE(F75:F76) ->  | H75: =STDEV(F75:F76) ->  | I75: =H75/G75*100 ->  | K75: 0.338 | Q75: -0.011 | T75: =(K75-Q75)*$AF$2*$AG$2/(D75*1000) ->  | U75: =T75*100 ->  | V75: =U75*0.00001 ->  | W75: =AVERAGE(V75:V76) ->  | X75: =STDEV(K75:K76) -> 0.002121320344 | Y75: =X75/W75 ->  | Z75: =W75/0.4 -> 
K76: 0.341 | Q76: -0.011 | T76: =(K76-Q76)*$AF$2*$AG$2/(D76*1000) ->  | U76: =T76*100 ->  | V76: =U76*0.00001 -> 
A93: 0.084 | B93: Dilution 1 | C93: Dilution 2
B94: 250 | C94: 100
B96: Element | C96: % element in cheese | D96: Ash volume (grams) | E96: grams in starting cheese | F96: Dilution 1 volume | G96: mg/L in D1 | H96: Dilution 2
B97: Na | C97: 0.008 | D97: 1 | E97: =C97*D97 -> 0.008 | F97: 250 | G97: =(E97*1000)/(F97/1000) -> 32 | H97: 50 | I97: =H97*0.7/G97 -> 1.09375
B98: Ca | C98: 0.007 | D98: 1 | E98: =C98*D98 -> 0.007 | F98: 250 | G98: =(E98*1000)/(F98/1000) -> 28 | H98: 50 | I98: =H98*0.7/G98 -> 1.25
B99: Potassium | C99: 0.00084 | D99: 1 | E99: =C99*D99 -> 0.00084 | F99: 250 | G99: =(E99*1000)/(F99/1000) -> 3.36 | H99: 50 | I99: =H99*0.7/G99 -> 10.41666667

Sheet Intact casein
M1: Day 28
A2: Sample ID | B2: Sample tube | C2: Tube wt | D2: cheese wt | E2: cheese& buffer wt | F2: Pellet & tube | G2: buffer added | H2: pellet wt | I2: wt difference | J2: Avg wt | K2: St dev | M2: Sample ID | N2: Sample tube | O2: Tube wt | P2: cheese wt | Q2: cheese& buffer wt | R2: Pellet & tube | S2: buffer added | T2: pellet wt | U2: wt difference | V2: Avg wt | W2: St dev | X2: Protein | Y2: day 7 | Z2: day 7 | AA2: day 28 | AB2: day 28 | AF2: Day 7 IC | AG2: Day 28 IC | AH2: Difference
A3: 1 | B3: 1 | C3: 11.3945 | D3: 5.0234 | E3: 21.6385 | F3: 16.5502 | G3: =E3-D3 -> 16.6151 | H3: =F3-C3 -> 5.1557 | I3: =H3-D3 -> 0.1323 | J3: =AVERAGE(H3:H4) -> 5.2042 | K3: =STDEV(H3:H4) -> 0.06858935778 | L3: =K3/J3*100 -> 1.317961604 | M3: 1 | N3: 1 | O3: 11.5149 | P3: 5.0396 | Q3: 21.4913 | R3: 17.5341 | T3: =R3-O3 -> 6.0192 | U3: =P3-T3 -> -0.9796 | X3: 23.99 | Y3: 22.15 | Z3: 22.94 | AA3: 19.418 | AB3: 20.286 | AC3: =Y3/100*H3 -> 1.14198755 | AD3: =X3/100*D3 -> 1.20511366 | AE3: =AC3/AD3 -> 0.9476181276 | AF3: =(AVERAGE(Y3:Z3)/100*H3)/($X3/100*D3) -> 0.964516961 | AG3: =(AVERAGE(AA3:AB3)/100*T3)/($X3/100*P3) -> 0.9883635604 | AH3: =AF3-AG3 -> -0.02384659935
A4: 1 | B4: 2 | C4: 11.5133 | D4: 5.026 | E4: 21.2383 | F4: 16.766 | G4: =E4-D4 -> 16.2123 | H4: =F4-C4 -> 5.2527 | I4: =H4-D4 -> 0.2267 | M4: 1 | N4: 2 | O4: 11.5815 | P4: 5.0215 | Q4: 21.1797 | R4: 17.8402 | T4: =R4-O4 -> 6.2587 | U4: =P4-T4 -> -1.2372 | Y4: 23.25 | Z4: 24.02 | AA4: 18.666 | AB4: 19.165 | AC4: =Y4/100*H4 -> 1.22125275 | AD4: =X3/100*D4 -> 1.2057374 | AE4: =AC4/AD4 -> 1.012867935 | AF4: =(AVERAGE(Y4:Z4)/100*H4)/($X3/100*D4) -> 1.029640156 | AG4: =(AVERAGE(AA4:AB4)/100*T4)/($X3/100*P4) -> 0.9827391226 | AH4: =AF4-AG4 -> 0.04690103374
A5: 2 | B5: 3 | C5: 11.4904 | D5: 5.0247 | E5: 21.2384 | F5: 17.0854 | G5: 16.2137 | H5: 5.595 | I5: 0.5703 | J5: =AVERAGE(H5:H6) -> 5.828 | K5: =STDEV(H5:H6) -> 0.32951176 | L5: =K5/J5*100 -> 5.653942348 | M5: 2 | N5: 3 | O5: 11.4153 | P5: 5.0135 | Q5: 22.1469 | R5: 17.511 | T5: 6.0957 | U5: -1.0822 | X5: 24.956 | Y5: 21.53 | Z5: 20.72 | AA5: 20.024 | AB5: 19.765 | AC5: =Y5/100*H5 -> 1.2046035 | AD5: =X5/100*D5 -> 1.253964132 | AE5: =AC5/AD5 -> 0.9606363286 | AF5: =(AVERAGE(Y5:Z5)/100*H5)/($X5/100*D5) -> 0.9425658357 | AG5: =(AVERAGE(AA5:AB5)/100*T5)/($X5/100*P5) -> 0.96926073 | AH5: -0.02669489435
A6: 2 | B6: 4 | C6: 11.4977 | D6: 5.0287 | E6: 21.1576 | F6: 17.5587 | G6: 16.1289 | H6: 6.061 | I6: 1.0323 | M6: 2 | N6: 4 | O6: 11.4973 | P6: 5.0313 | Q6: 21.2205 | R6: 17.8263 | T6: 6.329 | U6: -1.2977 | Y6: 20.19 | Z6: 21.46 | AA6: 19.231 | AB6: 19.731 | AC6: 1.2237159 | AD6: =X5/100*D6 -> 1.254962372 | AE6: 0.9751016662 | AF6: =(AVERAGE(Y6:Z6)/100*H6)/($X5/100*D6) -> 1.005769797 | AG6: =(AVERAGE(AA6:AB6)/100*T6)/($X5/100*P6) -> 0.9819540177 | AH6: 0.0238157792
A7: 3 | B7: 5 | C7: 11.496 | D7: 5.0166 | E7: 21.1273 | F7: 16.5685 | G7: 16.1107 | H7: 5.0725 | I7: 0.0559 | J7: =AVERAGE(H7:H8) -> 5.6253 | K7: =STDEV(H7:H8) -> 0.7817772573 | L7: =K7/J7*100 -> 13.89752115 | M7: 3 | N7: 5 | O7: 11.4006 | P7: 5.0183 | Q7: 20.8559 | R7: 17.3717 | T7: 5.9711 | U7: -0.9528 | X7: 22.8195 | Y7: 22.62 | Z7: 23.03 | AA7: 18.268 | AB7: 18.329 | AC7: 1.1473995 | AD7: =X7/100*D7 -> 1.144763037 | AE7: 1.002303064 | AF7: =(AVERAGE(Y7:Z7)/100*H7)/($X7/100*D7) -> 1.011386713 | AG7: =(AVERAGE(AA7:AB7)/100*T7)/($X7/100*P7) -> 0.954128987 | AH7: 0.0572577259
A8: 3 | B8: 6 | C8: 11.573 | D8: 5.0639 | E8: 21.5425 | F8: 17.7511 | G8: 16.4786 | H8: 6.1781 | I8: 1.1142 | M8: 3 | N8: 6 | O8: 11.4999 | P8: 5.0318 | Q8: 21.215 | R8: 17.2901 | T8: 5.7902 | U8: -0.7584 | Y8: 18.16 | Z8: 19.47 | AA8: 19.102 | AB8: 19.379 | AC8: 1.12194296 | AD8: =X7/100*D8 -> 1.155556661 | AE8: 0.9709112485 | AF8: =(AVERAGE(Y8:Z8)/100*H8)/($X7/100*D8) -> 1.005930349 | AG8: =(AVERAGE(AA8:AB8)/100*T8)/($X7/100*P8) -> 0.970242789 | AH8: 0.03568756016
A9: 4 | B9: 7 | C9: 11.4039 | D9: 5.0186 | E9: 21.893 | F9: 16.7449 | G9: 16.8744 | H9: 5.341 | I9: 0.3224 | J9: =AVERAGE(H9:H10) -> 5.38655 | K9: =STDEV(H9:H10) -> 0.06441742777 | L9: =K9/J9*100 -> 1.195893991 | M9: 4 | N9: 7 | O9: 11.5013 | P9: 5.0368 | Q9: 21.6264 | R9: 17.0554 | T9: 5.5541 | U9: -0.5173 | X9: 22.6735 | Y9: 21.19 | Z9: 21.79 | AA9: 19.459 | AB9: 20.403 | AC9: 1.1317579 | AD9: =X9/100*D9 -> 1.137892271 | AE9: 0.9946090055 | AF9: =(AVERAGE(Y9:Z9)/100*H9)/($X9/100*D9) -> 1.008690303 | AG9: =(AVERAGE(AA9:AB9)/100*T9)/($X9/100*P9) -> 0.9693252199 | AH9: 0.03936508341
A10: 5 | B10: 8 | C10: 11.4217 | D10: 5.0332 | E10: 21.1896 | F10: 16.8538 | G10: 16.1564 | H10: 5.4321 | I10: 0.3989 | M10: 5 | N10: 8 | O10: 11.4918 | P10: 5.0286 | Q10: 21.2276 | R10: 17.0033 | T10: 5.5115 | U10: -0.4829 | Y10: 20.33 | Z10: 20.83 | AA10: 19.691 | AB10: 19.388 | AC10: 1.10434593 | AD10: =X9/100*D10 -> 1.141202602 | AE10: 0.9677036558 | AF10: =(AVERAGE(Y10:Z10)/100*H10)/($X9/100*D10) -> 0.9796036024 | AG10: =(AVERAGE(AA10:AB10)/100*T10)/($X9/100*P10) -> 0.9445340132 | AH10: 0.03506958922
A11: 6 | B11: 11 | C11: 11.488 | D11: 5.0104 | E11: 21.1642 | F11: 17.0629 | G11: 16.1538 | H11: 5.5749 | I11: 0.5645 | J11: =AVERAGE(H11:H12) -> 5.534 | K11: =STDEV(H11:H12) -> 0.0578413347 | L11: =K11/J11*100 -> 1.045199398 | M11: 6 | N11: 9 | O11: 11.4895 | P11: 5.0187 | Q11: 21.6109 | R11: 16.6721 | T11: 5.1826 | U11: -0.1639 | X11: 22.741 | Y11: 19.38 | Z11: 21.51 | AA11: 21.363 | AB11: 22.414 | AC11: 1.08041562 | AD11: =X11/100*D11 -> 1.139415064 | AE11: 0.9482195331 | AF11: =(AVERAGE(Y11:Z11)/100*H11)/($X11/100*D11) -> 1.000327572 | AG11: =(AVERAGE(AA11:AB11)/100*T11)/($X11/100*P11) -> 0.9939462451 | AH11: 0.006381327358
A12: 6 | B12: 12 | C12: 11.4631 | D12: 5.0052 | E12: 21.6443 | F12: 16.9562 | G12: 16.6391 | H12: 5.4931 | I12: 0.4879 | M12: 6 | N12: 10 | O12: 11.408 | P12: 5.0101 | Q12: 21.1462 | R12: 16.60747 | T12: 5.19947 | U12: -0.18937 | Y12: 20.66 | Z12: 21.41 | AA12: 22.506 | AB12: 21.885 | AC12: 1.13487446 | AD12: =X11/100*D12 -> 1.138232532 | AE12: 0.9970497487 | AF12: =(AVERAGE(Y12:Z12)/100*H12)/($X11/100*D12) -> 1.015147215 | AG12: =(AVERAGE(AA12:AB12)/100*T12)/($X11/100*P12) -> 1.012903466 | AH12: 0.002243749433
A13: 7 | B13: 13 | C13: 11.4681 | D13: 5.0032 | E13: 21.1652 | F13: 16.8521 | G13: 16.162 | H13: 5.384 | I13: 0.3808 | J13: =AVERAGE(H13:H14) -> 5.47535 | K13: =STDEV(H13:H14) -> 0.1291884089 | L13: =K13/J13*100 -> 2.35945481 | M13: 7 | N13: 11 | O13: 11.4054 | P13: 5.053 | Q13: 21.274 | R13: 16.8255 | T13: 5.4201 | U13: -0.3671 | X13: 23.0735 | Y13: 21.12 | Z13: 22.6 | AA13: 23.116 | AB13: 20.722 | AC13: 1.1371008 | AD13: =X13/100*D13 -> 1.154413352 | AE13: 0.9850031603 | AF13: =(AVERAGE(Y13:Z13)/100*H13)/($X13/100*D13) -> 1.019515582 | AG13: =(AVERAGE(AA13:AB13)/100*T13)/($X13/100*P13) -> 1.018979062 | AH13: 0.0005365191516
A14: 7 | B14: 14 | C14: 11.5803 | D14: 5.0365 | E14: 21.386 | F14: 17.147 | G14: 16.3495 | H14: 5.5667 | I14: 0.5302 | M14: 7 | N14: 12 | O14: 11.5758 | P14: 5.0513 | Q14: 21.6957 | R14: 16.8342 | T14: 5.2584 | U14: -0.2071 | Y14: 21.84 | Z14: 21.17 | AA14: 21.898 | AB14: 21.703 | AC14: 1.21576728 | AD14: =X13/100*D14 -> 1.162096828 | AE14: 1.046184149 | AF14: =(AVERAGE(Y14:Z14)/100*H14)/($X13/100*D14) -> 1.03013691 | AG14: =(AVERAGE(AA14:AB14)/100*T14)/($X13/100*P14) -> 0.9835658334 | AH14: 0.04657107656
A15: 8 | B15: 15 | C15: 11.5061 | D15: 5.009 | E15: 21.2003 | F15: 16.4836 | G15: 16.1913 | H15: 4.9775 | I15: -0.0315 | J15: =AVERAGE(H15:H16) -> 5.06625 | K15: =STDEV(H15:H16) -> 0.1255114537 | L15: =K15/J15*100 -> 2.477403477 | M15: 8 | N15: 13 | O15: 11.4083 | P15: 5.0245 | Q15: 21.144 | R15: 16.6329 | T15: 5.2246 | U15: -0.2001 | X15: 21.7695 | Y15: 21.69 | Z15: 23.04 | AA15: 19.91 | AB15: 20.222 | AC15: 1.07961975 | AD15: =X15/100*D15 -> 1.090434255 | AE15: 0.9900823869 | AF15: =(AVERAGE(Y15:Z15)/100*H15)/($X15/100*D15) -> 1.020894079 | AG15: =(AVERAGE(AA15:AB15)/100*T15)/($X15/100*P15) -> 0.9584568136 | AH15: 0.06243726585
A16: 8 | B16: 16 | C16: 11.5007 | D16: 5.0305 | E16: 21.6326 | F16: 16.6557 | G16: 16.6021 | H16: 5.155 | I16: 0.1245 | M16: 8 | N16: 14 | O16: 11.4938 | P16: 5.0371 | Q16: 21.585 | R16: 16.4371 | T16: 4.9433 | U16: 0.0938 | Y16: 21.37 | Z16: 21.97 | AA16: 20.93 | AB16: 21.826 | AC16: 1.1016235 | AD16: =X15/100*D16 -> 1.095114697 | AE16: 1.005943489 | AF16: =(AVERAGE(Y16:Z16)/100*H16)/($X15/100*D16) -> 1.020065298 | AG16: =(AVERAGE(AA16:AB16)/100*T16)/($X15/100*P16) -> 0.96372919 | AH16: 0.05633610773
A17: 9 | B17: 17 | C17: 11.4947 | D17: 5.0074 | E17: 21.2002 | F17: 16.527 | G17: 16.1928 | H17: 5.0323 | I17: 0.0249 | J17: =AVERAGE(H17:H18) -> 4.9796 | K17: =STDEV(H17:H18) -> 0.07452905474 | L17: =K17/J17*100 -> 1.49668758 | M17: 9 | N17: 15 | O17: 11.4932 | P17: 5.0587 | Q17: 21.2266 | R17: 16.4842 | T17: 4.991 | U17: 0.0677 | X17: 21.949 | Y17: 22.25 | Z17: 22.34 | AA17: 20.961 | AB17: 21.546 | AC17: 1.11968675 | AD17: =X17/100*D17 -> 1.099074226 | AE17: 1.018754442 | AF17: =(AVERAGE(Y17:Z17)/100*H17)/($X17/100*D17) -> 1.020814844 | AG17: =(AVERAGE(AA17:AB17)/100*T17)/($X17/100*P17) -> 0.955354087 | AH17: 0.06546075742
A18: 9 | B18: 18 | C18: 11.5023 | D18: 5.0035 | E18: 21.7288 | F18: 16.4292 | G18: 16.7253 | H18: 4.9269 | I18: -0.0766 | M18: 9 | N18: 16 | O18: 11.4937 | P18: 5.0212 | Q18: 21.8971 | R18: 16.3375 | T18: 4.8438 | U18: 0.1774 | Y18: 23.05 | Z18: 23.06 | AA18: 23.003 | AB18: 22.32 | AC18: 1.13565045 | AD18: =X17/100*D18 -> 1.098218215 | AE18: 1.034084515 | AF18: =(AVERAGE(Y18:Z18)/100*H18)/($X17/100*D18) -> 1.034308828 | AG18: =(AVERAGE(AA18:AB18)/100*T18)/($X17/100*P18) -> 0.9959845402 | AH18: 0.0383242879
A19: 11 | B19: 21 | C19: 11.5766 | D19: 5.0045 | E19: 21.2136 | F19: 16.9402 | G19: 16.2091 | H19: 5.3636 | I19: 0.3591 | J19: =AVERAGE(H19:H20) -> 5.32365 | K19: =STDEV(H19:H20) -> 0.05649783182 | L19: =K19/J19*100 -> 1.061261199 | M19: 11 | N19: 17 | O19: 11.4172 | P19: 5.0574 | Q19: 21.435 | R19: 17.0545 | T19: 5.6373 | U19: -0.5799 | X19: 22.8645 | Y19: 21.77 | Z19: 22.7 | AA19: 19.18 | AB19: 22.16 | AC19: 1.16765572 | AD19: =X19/100*D19 -> 1.144253903 | AE19: 1.020451595 | AF19: =(AVERAGE(Y19:Z19)/100*H19)/($X19/100*D19) -> 1.042248104 | AG19: =(AVERAGE(AA19:AB19)/100*T19)/($X19/100*P19) -> 1.007679935 | AH19: 0.03456816856
A20: 11 | B20: 22 | C20: 11.4768 | D20: 5.0188 | E20: 21.7283 | F20: 16.7605 | G20: 16.7095 | H20: 5.2837 | I20: 0.2649 | M20: 11 | N20: 18 | O20: 11.4786 | P20: 5.0667 | Q20: 21.2022 | R20: 17.1712 | T20: 5.6926 | U20: -0.6259 | Y20: 22.15 | Z20: 22.81 | AA20: 20.46 | AB20: 20.23 | AC20: 1.17033955 | AD20: =X19/100*D20 -> 1.147523526 | AE20: 1.019882838 | AF20: =(AVERAGE(Y20:Z20)/100*H20)/($X19/100*D20) -> 1.03507748 | AG20: =(AVERAGE(AA20:AB20)/100*T20)/($X19/100*P20) -> 0.999727097 | AH20: 0.03535038343
A21: 12 | B21: 23 | C21: 11.5095 | D21: 5.0404 | E21: 21.4568 | F21: 17.0684 | G21: 16.4164 | H21: 5.5589 | I21: 0.5185 | J21: =AVERAGE(H21:H22) -> 5.40955 | K21: =STDEV(H21:H22) -> 0.2112127955 | L21: =K21/J21*100 -> 3.904442986 | M21: 12 | N21: 19 | O21: 11.5812 | P21: 5.0113 | Q21: 21.5935 | R21: 17.4345 | T21: 5.8533 | U21: -0.842 | X21: 23.1015 | Y21: 19.78 | Z21: 20.55 | AA21: 18.81 | AB21: 19.43 | AC21: 1.09955042 | AD21: =X21/100*D21 -> 1.164408006 | AE21: 0.9442999484 | AF21: =(AVERAGE(Y21:Z21)/100*H21)/($X21/100*D21) -> 0.9626799019 | AG21: =(AVERAGE(AA21:AB21)/100*T21)/($X21/100*P21) -> 0.9667141806 | AH21: -0.004034278655
A22: 12 | B22: 24 | C22: 11.577 | D22: 5.0481 | E22: 21.1498 | F22: 16.8372 | G22: 16.1017 | H22: 5.2602 | I22: 0.2121 | M22: 12 | N22: 20 | O22: 11.4081 | P22: 5.0218 | Q22: 21.1085 | R22: 17.371 | T22: 5.9629 | U22: -0.9411 | Y22: 20.67 | Z22: 21.8 | AA22: 19.52 | AB22: 19.1 | AC22: 1.08728334 | AD22: =X21/100*D22 -> 1.166186822 | AE22: 0.9323406164 | AF22: =(AVERAGE(Y22:Z22)/100*H22)/($X21/100*D22) -> 0.9578254954 | AG22: =(AVERAGE(AA22:AB22)/100*T22)/($X21/100*P22) -> 0.99252215 | AH22: -0.03469665462
A23: 13 | B23: 25 | C23: 11.4954 | D23: 5.0155 | E23: 21.6683 | F23: 16.8687 | G23: 16.6528 | H23: 5.3733 | I23: 0.3578 | J23: =AVERAGE(H23:H24) -> 5.43045 | K23: =STDEV(H23:H24) -> 0.08082230509 | L23: =K23/J23*100 -> 1.4883169 | M23: 13 | N23: 21 | O23: 11.4947 | P23: 5.0658 | Q23: 21.5797 | R23: 17.1302 | T23: 5.6355 | U23: -0.5697 | X23: 24.24 | Y23: 21.62 | Z23: 22.84 | AA23: 18.98 | AB23: 18.7 | AC23: 1.16170746 | AD23: =X23/100*D23 -> 1.2157572 | AE23: 0.9555423237 | AF23: =(AVERAGE(Y23:Z23)/100*H23)/($X23/100*D23) -> 0.9825025836 | AG23: =(AVERAGE(AA23:AB23)/100*T23)/($X23/100*P23) -> 0.8646347727 | AH23: 0.1178678108
A24: 13 | B24: 26 | C24: 11.3966 | D24: 5.0072 | E24: 21.1636 | F24: 16.8842 | G24: 16.1564 | H24: 5.4876 | I24: 0.4804 | M24: 13 | N24: 22 | O24: 11.5734 | P24: 5.031 | Q24: 21.5587 | R24: 17.2599 | T24: 5.6865 | U24: -0.6555 | Y24: 23.22 | Z24: 22.74 | AA24: 19.3 | AB24: 18.45 | AC24: 1.27422072 | AD24: =X23/100*D24 -> 1.21374528 | AE24: 1.049825479 | AF24: =(AVERAGE(Y24:Z24)/100*H24)/($X23/100*D24) -> 1.03897457 | AG24: =(AVERAGE(AA24:AB24)/100*T24)/($X23/100*P24) -> 0.8801264462 | AH24: 0.1588481235
A25: 14 | B25: 27 | C25: 11.5673 | D25: 5.0495 | E25: 21.6498 | F25: 16.8381 | G25: 16.6003 | H25: 5.2708 | I25: 0.2213 | J25: =AVERAGE(H25:H26) -> 5.2193 | K25: =STDEV(H25:H26) -> 0.07283199846 | L25: =K25/J25*100 -> 1.39543614 | M25: 14 | N25: 23 | O25: 11.4041 | P25: 5.066 | Q25: 21.236 | R25: 16.9471 | T25: 5.543 | U25: -0.477 | X25: 24.391 | Y25: 21.62 | Z25: 22.91 | AA25: 19.92 | AB25: 19.49 | AC25: 1.13954696 | AD25: =X25/100*D25 -> 1.231623545 | AE25: 0.9252396681 | AF25: =(AVERAGE(Y25:Z25)/100*H25)/($X25/100*D25) -> 0.9528427942 | AG25: =(AVERAGE(AA25:AB25)/100*T25)/($X25/100*P25) -> 0.8839476105 | AH25: 0.06889518373
A26: 14 | B26: 28 | C26: 11.5109 | D26: 5.0429 | E26: 21.1742 | F26: 16.6787 | G26: 16.1313 | H26: 5.1678 | I26: 0.1249 | M26: 14 | N26: 24 | O26: 11.4235 | P26: 5.0405 | Q26: 21.6652 | R26: 17.0227 | T26: 5.5992 | U26: -0.5587 | Y26: 21.8 | Z26: 22.14 | AA26: 20.1 | AB26: 20.44 | AC26: 1.1265804 | AD26: =X25/100*D26 -> 1.230013739 | AE26: 0.9159087938 | AF26: =(AVERAGE(Y26:Z26)/100*H26)/($X25/100*D26) -> 0.9230512018 | AG26: =(AVERAGE(AA26:AB26)/100*T26)/($X25/100*P26) -> 0.9231589912 | AH26: -0.0001077894488
A27: 16 | B27: 31 | C27: 11.4144 | D27: 5.0191 | E27: 21.1884 | F27: 16.5778 | G27: 16.1693 | H27: 5.1634 | I27: 0.1443 | J27: =AVERAGE(H27:H28) -> 5.12675 | K27: =STDEV(H27:H28) -> 0.05183092706 | L27: =K27/J27*100 -> 1.010989946 | M27: 16 | N27: 25 | O27: 11.4998 | P27: 5.0633 | Q27: 21.1679 | R27: 16.4718 | T27: 4.972 | U27: 0.0913 | X27: 22.533 | Y27: 19.45 | Z27: 19.5 | AA27: 19.45 | AB27: 20.18 | AC27: 1.0042813 | AD27: =X27/100*D27 -> 1.130953803 | AE27: 0.8879949803 | AF27: =(AVERAGE(Y27:Z27)/100*H27)/($X27/100*D27) -> 0.889136362 | AG27: =(AVERAGE(AA27:AB27)/100*T27)/($X27/100*P27) -> 0.8635202369 | AH27: 0.02561612507
A28: 16 | B28: 32 | C28: 11.4925 | D28: 5.014 | E28: 21.619 | F28: 16.5826 | G28: 16.605 | H28: 5.0901 | I28: 0.0761 | M28: 16 | N28: 26 | O28: 11.5834 | P28: 5.0353 | Q28: 21.6954 | R28: 16.5985 | T28: 5.0151 | U28: 0.0202 | Y28: 20.57 | Z28: 20.47 | AA28: 19.89 | AB28: 20.21 | AC28: 1.04703357 | AD28: =X27/100*D28 -> 1.12980462 | AE28: 0.9267386161 | AF28: =(AVERAGE(Y28:Z28)/100*H28)/($X27/100*D28) -> 0.92448597 | AG28: =(AVERAGE(AA28:AB28)/100*T28)/($X27/100*P28) -> 0.8862364472 | AH28: 0.03824952276
A29: 17 | B29: 33 | C29: 11.4825 | D29: 5.0496 | E29: 21.1961 | F29: 16.704 | G29: 16.1465 | H29: 5.2215 | I29: 0.1719 | J29: =AVERAGE(H29:H30) -> 5.1962 | K29: =STDEV(H29:H30) -> 0.03577960313 | L29: =K29/J29*100 -> 0.6885724785 | M29: 17 | N29: 27 | O29: 11.4109 | P29: 5.0258 | Q29: 21.6796 | R29: 16.7204 | T29: 5.3095 | U29: -0.2837 | X29: 21.9445 | Y29: 20.43 | Z29: 19.74 | AA29: 19.42 | AB29: 20.22 | AC29: 1.06675245 | AD29: =X29/100*D29 -> 1.108109472 | AE29: 0.9626778554 | AF29: =(AVERAGE(Y29:Z29)/100*H29)/($X29/100*D29) -> 0.9464211808 | AG29: =(AVERAGE(AA29:AB29)/100*T29)/($X29/100*P29) -> 0.9541713742 | AH29: -0.007750193354
A30: 17 | B30: 34 | C30: 11.5128 | D30: 5.0126 | E30: 21.5805 | F30: 16.6837 | G30: 16.5679 | H30: 5.1709 | I30: 0.1583 | M30: 17 | N30: 28 | O30: 11.4974 | P30: 5.0386 | Q30: 21.1012 | R30: 16.6916 | T30: 5.1942 | U30: -0.1556 | Y30: 20.1 | Z30: 20.31 | AA30: 19.3 | AB30: 19.65 | AC30: 1.0393509 | AD30: =X29/100*D30 -> 1.099990007 | AE30: 0.9448730383 | AF30: =(AVERAGE(Y30:Z30)/100*H30)/($X29/100*D30) -> 0.9498089422 | AG30: =(AVERAGE(AA30:AB30)/100*T30)/($X29/100*P30) -> 0.9148724758 | AH30: 0.03493646643
A31: 18 | B31: 35 | C31: 11.4973 | D31: 5.0327 | E31: 21.1318 | F31: 16.4567 | G31: 16.0991 | H31: 4.9594 | I31: -0.0733 | J31: =AVERAGE(H31:H32) -> 4.96025 | K31: =STDEV(H31:H32) -> 0.001202081528 | L31: =K31/J31*100 -> 0.02423429319 | M31: 18 | N31: 29 | O31: 11.5137 | P31: 5.0133 | Q31: 21.65 | R31: 16.4402 | T31: 4.9265 | U31: 0.0868 | X31: 22.1715 | Y31: 20.9 | Z31: 21.6 | AA31: 20.11 | AB31: 21.35 | AC31: 1.0365146 | AD31: =X31/100*D31 -> 1.115825081 | AE31: 0.9289221206 | AF31: =(AVERAGE(Y31:Z31)/100*H31)/($X31/100*D31) -> 0.9444782327 | AG31: =(AVERAGE(AA31:AB31)/100*T31)/($X31/100*P31) -> 0.918795838 | AH31: 0.02568239468
A32: 18 | B32: 36 | C32: 11.4114 | D32: 5.0215 | E32: 21.5634 | F32: 16.3725 | G32: 16.5419 | H32: 4.9611 | I32: -0.0604 | M32: 18 | N32: 30 | O32: 11.5779 | P32: 5.0175 | Q32: 21.7573 | R32: 16.5099 | T32: 4.932 | U32: 0.0855 | Y32: 21.02 | Z32: 20.86 | AA32: 20.01 | AB32: 20.8 | AC32: 1.04282322 | AD32: =X31/100*D32 -> 1.113341872 | AE32: 0.9366603788 | AF32: =(AVERAGE(Y32:Z32)/100*H32)/($X31/100*D32) -> 0.9330955438 | AG32: =(AVERAGE(AA32:AB32)/100*T32)/($X31/100*P32) -> 0.9046429642 | AH32: 0.02845257968
A33: 19 | B33: 37 | C33: 11.4041 | D33: 5.0184 | E33: 21.6352 | F33: 16.1403 | G33: 16.6168 | H33: 4.7362 | I33: -0.2822 | J33: =AVERAGE(H33:H34) -> 4.659 | K33: =STDEV(H33:H34) -> 0.109177287 | L33: =K33/J33*100 -> 2.343363104 | M33: 19 | N33: 31 | O33: 11.4003 | P33: 5.0257 | Q33: 21.1443 | R33: 16.4624 | T33: 5.0621 | U33: -0.0364 | X33: 21.07 | Y33: 21.97 | Z33: 22.32 | AA33: 20.21 | AB33: 20.69 | AC33: 1.04054314 | AD33: =X33/100*D33 -> 1.05737688 | AE33: 0.9840797162 | AF33: =(AVERAGE(Y33:Z33)/100*H33)/($X33/100*D33) -> 0.991918312 | AG33: =(AVERAGE(AA33:AB33)/100*T33)/($X33/100*P33) -> 0.9776039246 | AH33: 0.01431438748
A34: 19 | B34: 38 | C34: 11.5805 | D34: 5.0122 | E34: 21.054 | F34: 16.1623 | G34: 16.0418 | H34: 4.5818 | I34: -0.4304 | M34: 19 | N34: 32 | O34: 11.5076 | P34: 5.0246 | Q34: 21.6979 | R34: 16.3548 | T34: 4.8472 | U34: 0.1774 | Y34: 22.91 | Z34: 22.93 | AA34: 21.23 | AB34: 27.41 | AC34: 1.04969038 | AD34: =X33/100*D34 -> 1.05607054 | AE34: 0.9939585854 | AF34: =(AVERAGE(Y34:Z34)/100*H34)/($X33/100*D34) -> 0.994392439 | AG34: =(AVERAGE(AA34:AB34)/100*T34)/($X33/100*P34) -> 1.113495536 | AH34: -0.1191030975
A35: 21 | B35: 41 | C35: 11.507 | D35: 5.0115 | E35: 21.5509 | F35: 16.5438 | G35: 16.5394 | H35: 5.0368 | I35: 0.0253 | J35: =AVERAGE(H35:H36) -> 4.9502 | K35: =STDEV(H35:H36) -> 0.1224708945 | L35: =K35/J35*100 -> 2.474059523 | M35: 21 | N35: 33 | O35: 11.5821 | P35: 5.038 | Q35: 21.155 | R35: 16.8139 | T35: 5.2318 | U35: -0.1938 | X35: 23.1705 | Y35: 22.02 | Z35: 21.86 | AA35: 18.87 | AB35: 19.68 | AC35: 1.10910336 | AD35: =X35/100*D35 -> 1.161189607 | AE35: 0.9551440633 | AF35: =(AVERAGE(Y35:Z35)/100*H35)/($X35/100*D35) -> 0.9516739668 | AG35: =(AVERAGE(AA35:AB35)/100*T35)/($X35/100*P35) -> 0.8638770797 | AH35: 0.08779688715
A36: 21 | B36: 42 | C36: 11.4986 | D36: 5.0465 | E36: 21.683 | F36: 16.3622 | G36: 16.6365 | H36: 4.8636 | I36: -0.1829 | M36: 21 | N36: 34 | O36: 11.4137 | P36: 5.0317 | Q36: 21.784 | R36: 16.5723 | T36: 5.1586 | U36: -0.1269 | Y36: 21.64 | Z36: 21.77 | AA36: 25.34 | AB36: 20.12 | AC36: 1.05248304 | AD36: =X35/100*D36 -> 1.169299282 | AE36: 0.9000972255 | AF36: =(AVERAGE(Y36:Z36)/100*H36)/($X35/100*D36) -> 0.9028008447 | AG36: =(AVERAGE(AA36:AB36)/100*T36)/($X35/100*P36) -> 1.005729396 | AH36: -0.1029285515
A37: 22 | B37: 43 | C37: 11.4972 | D37: 5.0163 | E37: 21.1211 | F37: 16.5472 | G37: 16.1048 | H37: 5.05 | I37: 0.0337 | J37: =AVERAGE(H37:H38) -> 5.0547 | K37: =STDEV(H37:H38) -> 0.006646803743 | L37: =K37/J37*100 -> 0.1314974923 | M37: 22 | N37: 35 | O37: 11.5105 | P37: 5.0436 | Q37: 21.1504 | R37: 16.836 | T37: 5.3255 | U37: -0.2819 | X37: 23.4205 | Y37: 21.81 | Z37: 21.9 | AA37: 20.26 | AB37: 20.28 | AC37: 1.101405 | AD37: =X37/100*D37 -> 1.174842542 | AE37: 0.9374915881 | AF37: =(AVERAGE(Y37:Z37)/100*H37)/($X37/100*D37) -> 0.9394258899 | AG37: =(AVERAGE(AA37:AB37)/100*T37)/($X37/100*P37) -> 0.9138550985 | AH37: 0.02557079138
A38: 22 | B38: 44 | C38: 11.494 | D38: 5.0131 | E38: 20.6457 | F38: 16.5534 | G38: 15.6326 | H38: 5.0594 | I38: 0.0463 | M38: 22 | N38: 36 | O38: 11.5041 | P38: 5.0158 | Q38: 21.6817 | R38: 16.7852 | T38: 5.2811 | U38: -0.2653 | Y38: 21.01 | Z38: 21.89 | AA38: 19.12 | AB38: 20.03 | AC38: 1.06297994 | AD38: =X37/100*D38 -> 1.174093085 | AE38: 0.9053625757 | AF38: =(AVERAGE(Y38:Z38)/100*H38)/($X37/100*D38) -> 0.9243230485 | AG38: =(AVERAGE(AA38:AB38)/100*T38)/($X37/100*P38) -> 0.8800144193 | AH38: 0.04430862922
A39: 23 | B39: 45 | C39: 11.4906 | D39: 5.0094 | E39: 21.1768 | F39: 16.6723 | G39: 16.1674 | H39: 5.1817 | I39: 0.1723 | J39: =AVERAGE(H39:H40) -> 5.26855 | K39: =STDEV(H39:H40) -> 0.1228244479 | L39: =K39/J39*100 -> 2.331276118 | M39: 23 | N39: 37 | O39: 11.4914 | P39: 5.0297 | Q39: 21.1817 | R39: 16.8241 | T39: 5.3327 | U39: -0.303 | X39: 23.2635 | Y39: 21.31 | Z39: 19.93 | AA39: 20.42 | AB39: 20.73 | AC39: 1.10422027 | AD39: =X39/100*D39 -> 1.165361769 | AE39: 0.9475343188 | AF39: =(AVERAGE(Y39:Z39)/100*H39)/($X39/100*D39) -> 0.9168539491 | AG39: =(AVERAGE(AA39:AB39)/100*T39)/($X39/100*P39) -> 0.9377128323 | AH39: -0.02085888323
A40: 23 | B40: 46 | C40: 11.4947 | D40: 5.0371 | E40: 21.5863 | F40: 16.8501 | G40: 16.5492 | H40: 5.3554 | I40: 0.3183 | M40: 23 | N40: 38 | O40: 11.4955 | P40: 5.0224 | Q40: 21.753 | R40: 16.7114 | T40: 5.2159 | U40: -0.1935 | Y40: 22.18 | Z40: 21.15 | AA40: 20.52 | AB40: 21.12 | AC40: 1.18782772 | AD40: =X39/100*D40 -> 1.171805758 | AE40: 1.013672882 | AF40: =(AVERAGE(Y40:Z40)/100*H40)/($X39/100*D40) -> 0.9901362931 | AG40: =(AVERAGE(AA40:AB40)/100*T40)/($X39/100*P40) -> 0.9294448561 | AH40: 0.06069143699
A41: 24 | B41: 47 | C41: 11.5057 | D41: 5.0205 | E41: 21.4641 | F41: 16.6122 | G41: 16.4436 | H41: 5.1065 | I41: 0.086 | J41: =AVERAGE(H41:H42) -> 5.09735 | K41: =STDEV(H41:H42) -> 0.0129400541 | L41: =K41/J41*100 -> 0.2538584577 | M41: 24 | N41: 39 | O41: 11.4935 | P41: 5.0391 | Q41: 21.1363 | R41: 16.7049 | T41: 5.2114 | U41: -0.1723 | X41: 23.339 | Y41: 21.64 | Z41: 21.96 | AA41: 20.72 | AB41: 20.67 | AC41: 1.1050466 | AD41: =X41/100*D41 -> 1.171734495 | AE41: 0.9430861724 | AF41: =(AVERAGE(Y41:Z41)/100*H41)/($X41/100*D41) -> 0.9500590831 | AG41: =(AVERAGE(AA41:AB41)/100*T41)/($X41/100*P41) -> 0.9170322697 | AH41: 0.03302681347
A42: 24 | B42: 48 | C42: 11.4782 | D42: 5.0235 | E42: 21.4654 | F42: 16.5664 | G42: 16.4419 | H42: 5.0882 | I42: 0.0647 | M42: 24 | N42: 40 | O42: 11.5789 | P42: 5.0116 | Q42: 21.1235 | R42: 16.16125 | T42: 4.58235 | U42: 0.42925 | Y42: 20.6 | Z42: 20.75 | AA42: 20.38 | AB42: 21.68 | AC42: 1.0481692 | AD42: =X41/100*D42 -> 1.172434665 | AE42: 0.894010755 | AF42: =(AVERAGE(Y42:Z42)/100*H42)/($X41/100*D42) -> 0.8972656485 | AG42: =(AVERAGE(AA42:AB42)/100*T42)/($X41/100*P42) -> 0.8238893437 | AH42: 0.07337630481
A43: 26 | B43: 1 | C43: 11.5508 | D43: 5.0133 | E43: 21.4035 | F43: 16.33 | G43: =E43-D43 -> 16.3902 | H43: =F43-C43 -> 4.7792 | I43: =D43-H43 -> 0.2341 | J43: =AVERAGE(H43:H44) -> 4.7641 | K43: =STDEV(H43:H44) -> 0.02135462479 | L43: =K43/J43*100 -> 0.4482404818 | M43: 26 | N43: 1 | O43: 11.4785 | P43: 5.1797 | Q43: 21.7875 | R43: 16.5334 | T43: =R43-O43 -> 5.0549 | U43: =P43-T43 -> 0.1248 | V43: =AVERAGE(T43:T44) -> 5.1199 | W43: =STDEV(T43:T44) -> 0.09192388155 | X43: 22.3815 | Y43: 19.75 | Z43: 19.24 | AA43: 20.45 | AB43: 20.18 | AC43: 0.943892 | AD43: =X43/100*D43 -> 1.12205174 | AE43: 0.8412196753 | AF43: =(AVERAGE(Y43:Z43)/100*H43)/($X43/100*D43) -> 0.830358358 | AG43: =(AVERAGE(AA43:AB43)/100*T43)/($X43/100*P43) -> 0.8857998428 | AH43: -0.05544148478
A44: 26 | B44: 2 | C44: 11.4134 | D44: 5.017 | E44: 21.1859 | F44: 16.1624 | G44: =E44-D44 -> 16.1689 | H44: =F44-C44 -> 4.749 | I44: =D44-H44 -> 0.268 | N44: 2 | O44: 11.4218 | P44: 5.1868 | Q44: 21.2862 | R44: 16.6067 | T44: =R44-O44 -> 5.1849 | U44: =P44-T44 -> 0.0019 | Y44: 20.35 | Z44: 19.13 | AA44: 19.7 | AB44: 20.39 | AC44: 0.9664215 | AD44: =X43/100*D44 -> 1.122879855 | AE44: 0.8606633165 | AF44: =(AVERAGE(Y44:Z44)/100*H44)/($X43/100*D44) -> 0.8348645635 | AG44: =(AVERAGE(AA44:AB44)/100*T44)/($X43/100*P44) -> 0.8952776725 | AH44: -0.06041310896
A45: 27 | B45: 3 | C45: 11.4639 | D45: 5.0223 | E45: 21.7666 | F45: 16.4873 | G45: 16.7443 | H45: 5.0234 | I45: -0.0011 | J45: =AVERAGE(H45:H46) -> 4.9114 | K45: =STDEV(H45:H46) -> 0.158391919 | L45: =K45/J45*100 -> 3.224985116 | M45: 27 | N45: 3 | O45: 11.5117 | P45: 5.0448 | Q45: 21.1232 | R45: 16.5946 | T45: 5.0829 | U45: -0.0381 | V45: =AVERAGE(T45:T46) -> 5.03715 | W45: =STDEV(T45:T46) -> 0.06470027048 | X45: 22.2855 | Y45: 19.48 | Z45: 18.86 | AA45: 19.15 | AB45: 19.6 | AC45: 0.97855832 | AD45: =X45/100*D45 -> 1.119244666 | AE45: 0.8743024196 | AF45: =(AVERAGE(Y45:Z45)/100*H45)/($X45/100*D45) -> 0.8603889827 | AG45: =(AVERAGE(AA45:AB45)/100*T45)/($X45/100*P45) -> 0.8759653773 | AH45: -0.01557639458
A46: 27 | B46: 4 | C46: 11.4528 | D46: 5.0467 | E46: 21.1732 | F46: 16.2522 | G46: 16.1265 | H46: 4.7994 | I46: 0.2473 | N46: 4 | O46: 11.4456 | P46: 5.0518 | Q46: 21.0531 | R46: 16.437 | T46: 4.9914 | U46: 0.0604 | Y46: 18.07 | Z46: 19.69 | AA46: 20.07 | AB46: 20.5 | AC46: 0.86725158 | AD46: =X45/100*D46 -> 1.124682329 | AE46: 0.7711080347 | AF46: =(AVERAGE(Y46:Z46)/100*H46)/($X45/100*D46) -> 0.8056734751 | AG46: =(AVERAGE(AA46:AB46)/100*T46)/($X45/100*P46) -> 0.8993502418 | AH46: -0.09367676665
A47: 28 | B47: 5 | C47: 11.4082 | D47: 5.0313 | E47: 21.6673 | F47: 16.3211 | G47: 16.636 | H47: 4.9129 | I47: 0.1184 | J47: =AVERAGE(H47:H48) -> 4.9174 | K47: =STDEV(H47:H48) -> 0.006363961031 | L47: =K47/J47*100 -> 0.1294171926 | M47: 28 | N47: 5 | O47: 11.5363 | P47: 5.1069 | Q47: 20.8503 | R47: 16.726 | T47: 5.1897 | U47: -0.0828 | V47: =AVERAGE(T47:T48) -> 5.28245 | W47: =STDEV(T47:T48) -> 0.1311683079 | X47: 20.9995 | Y47: 18.05 | Z47: 18.67 | AA47: 18.12 | AB47: 17.04 | AC47: 0.88677845 | AD47: =X47/100*D47 -> 1.056547843 | AE47: 0.8393168899 | AF47: =(AVERAGE(Y47:Z47)/100*H47)/($X47/100*D47) -> 0.8537317506 | AG47: =(AVERAGE(AA47:AB47)/100*T47)/($X47/100*P47) -> 0.8507360099 | AH47: 0.002995740642
A48: 28 | B48: 6 | C48: 11.442 | D48: 5 | E48: 21.4716 | F48: 16.3639 | G48: 16.4716 | H48: 4.9219 | I48: 0.0781 | N48: 6 | O48: 11.5432 | P48: 5.0115 | Q48: 21.693 | R48: 16.9184 | T48: 5.3752 | U48: -0.3637 | Y48: 19.6 | Z48: 18.85 | AA48: 15.27 | AB48: 15.6 | AC48: 0.9646924 | AD48: =X47/100*D48 -> 1.049975 | AE48: 0.9187765423 | AF48: =(AVERAGE(Y48:Z48)/100*H48)/($X47/100*D48) -> 0.9011979095 | AG48: =(AVERAGE(AA48:AB48)/100*T48)/($X47/100*P48) -> 0.7883599857 | AH48: 0.1128379238
A49: 30 | B49: 7 | C49: 11.546 | D49: 5.0402 | E49: 21.3683 | F49: 16.3306 | G49: 16.3281 | H49: 4.7846 | I49: 0.2556 | J49: =AVERAGE(H49:H50) -> 4.8631 | K49: =STDEV(H49:H50) -> 0.1110157646 | L49: =K49/J49*100 -> 2.282818874 | M49: 30 | N49: 7 | O49: 11.5337 | P49: 5.0496 | Q49: 21.2191 | R49: 16.3839 | T49: 4.8502 | U49: 0.1994 | V49: =AVERAGE(T49:T50) -> 4.9761 | W49: =STDEV(T49:T50) -> 0.1780494875 | X49: 20.5675 | Y49: 19.74 | Z49: 20.14 | AA49: 20.09 | AB49: 20.48 | AC49: 0.94448004 | AD49: =X49/100*D49 -> 1.036643135 | AE49: 0.9110946748 | AF49: =(AVERAGE(Y49:Z49)/100*H49)/($X49/100*D49) -> 0.9203256239 | AG49: =(AVERAGE(AA49:AB49)/100*T49)/($X49/100*P49) -> 0.9473188436 | AH49: -0.02699321966
A50: 30 | B50: 8 | C50: 11.3954 | D50: 5.0256 | E50: 20.7788 | F50: 16.337 | G50: 15.7532 | H50: 4.9416 | I50: 0.084 | N50: 8 | O50: 11.5524 | P50: 5.1789 | Q50: 21.3514 | R50: 16.6544 | T50: 5.102 | U50: 0.0769 | Y50: 18.42 | Z50: 19 | AA50: 20 | AB50: 20.67 | AC50: 0.91024272 | AD50: =X49/100*D50 -> 1.03364028 | AE50: 0.8806184682 | AF50: =(AVERAGE(Y50:Z50)/100*H50)/($X49/100*D50) -> 0.8944827111 | AG50: =(AVERAGE(AA50:AB50)/100*T50)/($X49/100*P50) -> 0.9740148983 | AH50: -0.07953218713
A51: 31 | B51: 9 | C51: 11.495 | D51: 5.0207 | E51: 21.5623 | F51: 16.6307 | G51: 16.5416 | H51: 5.1357 | I51: -0.115 | J51: =AVERAGE(H51:H52) -> 5.0114 | K51: =STDEV(H51:H52) -> 0.1757867458 | L51: =K51/J51*100 -> 3.507737275 | M51: 31 | N51: 9 | O51: 11.4046 | P51: 5.0186 | Q51: 21.6518 | R51: 16.3735 | T51: 4.9689 | U51: 0.0497 | V51: =AVERAGE(T51:T52) -> 4.9076 | W51: =STDEV(T51:T52) -> 0.08669129137 | X51: 20.811 | Y51: 19.54 | Z51: 20.73 | AA51: 19.92 | AB51: 20.5 | AC51: 1.00351578 | AD51: =X51/100*D51 -> 1.044857877 | AE51: 0.9604328034 | AF51: =(AVERAGE(Y51:Z51)/100*H51)/($X51/100*D51) -> 0.9896783264 | AG51: =(AVERAGE(AA51:AB51)/100*T51)/($X51/100*P51) -> 0.9615038745 | AH51: 0.0281744519
A52: 31 | B52: 10 | C52: 11.5327 | D52: 5.026 | E52: 21.7048 | F52: 16.4198 | G52: 16.6788 | H52: 4.8871 | I52: 0.1389 | N52: 10 | O52: 11.5356 | P52: 5.098 | Q52: 21.2433 | R52: 16.3819 | T52: 4.8463 | U52: 0.2517 | Y52: 20.85 | Z52: 21.17 | AA52: 19.62 | AB52: 20.22 | AC52: 1.01896035 | AD52: =X51/100*D52 -> 1.04596086 | AE52: 0.974185927 | AF52: =(AVERAGE(Y52:Z52)/100*H52)/($X51/100*D52) -> 0.9816616943 | AG52: =(AVERAGE(AA52:AB52)/100*T52)/($X51/100*P52) -> 0.9099276213 | AH52: 0.071734073
A53: 32 | B53: 11 | C53: 11.5381 | D53: 5.009 | E53: 21.1492 | F53: 15.9813 | G53: 16.1402 | H53: 4.4432 | I53: 0.5658 | J53: =AVERAGE(H53:H54) -> 4.6041 | K53: =STDEV(H53:H54) -> 0.2275469622 | L53: =K53/J53*100 -> 4.942268026 | M53: 32 | N53: 11 | O53: 11.5236 | P53: 5.0417 | Q53: 21.8347 | R53: 16.8292 | T53: 5.3056 | U53: -0.2639 | V53: =AVERAGE(T53:T54) -> 5.67125 | W53: =STDEV(T53:T54) -> 0.5171071891 | X53: 21.757 | Y53: 20.77 | Z53: 21.14 | AA53: 16.76 | AB53: 17.77 | AC53: 0.92285264 | AD53: =X53/100*D53 -> 1.08980813 | AE53: 0.8468028588 | AF53: =(AVERAGE(Y53:Z53)/100*H53)/($X53/100*D53) -> 0.8543453975 | AG53: =(AVERAGE(AA53:AB53)/100*T53)/($X53/100*P53) -> 0.835074218 | AH53: 0.0192711795
A54: 32 | B54: 12 | C54: 11.4159 | D54: 5.0124 | E54: 21.312 | F54: 16.1809 | G54: 16.2996 | H54: 4.765 | I54: 0.2474 | N54: 12 | O54: 11.4134 | P54: 5.0793 | Q54: 21.2364 | R54: 17.4503 | T54: 6.0369 | U54: -0.9576 | Y54: 19.48 | Z54: 21.05 | AA54: 16.27 | AB54: 16.61 | AC54: 0.928222 | AD54: =X53/100*D54 -> 1.090547868 | AE54: 0.851152001 | AF54: =(AVERAGE(Y54:Z54)/100*H54)/($X53/100*D54) -> 0.8854515041 | AG54: =(AVERAGE(AA54:AB54)/100*T54)/($X53/100*P54) -> 0.8980756451 | AH54: -0.01262414106
A55: 34 | B55: 13 | C55: 11.4693 | D55: 5.0291 | E55: 21.6017 | F55: 16.6005 | G55: 16.5726 | H55: 5.1312 | I55: -0.1021 | J55: =AVERAGE(H55:H56) -> 5.12555 | K55: =STDEV(H55:H56) -> 0.007990306627 | L55: =K55/J55*100 -> 0.1558916922 | M55: 34 | N55: 13 | O55: 11.5072 | P55: 5.0158 | Q55: 21.5326 | R55: 16.5101 | T55: 5.0029 | U55: 0.0129 | V55: =AVERAGE(T55:T56) -> 5.1807 | W55: =STDEV(T55:T56) -> 0.2514471714 | X55: 21.31 | Y55: 19.02 | Z55: 18.71 | AA55: 17.23 | AB55: 17.48 | AC55: 0.97595424 | AD55: =X55/100*D55 -> 1.07170121 | AE55: 0.9106588953 | AF55: =(AVERAGE(Y55:Z55)/100*H55)/($X55/100*D55) -> 0.9032376477 | AG55: =(AVERAGE(AA55:AB55)/100*T55)/($X55/100*P55) -> 0.8123118323 | AH55: 0.09092581545
A56: 34 | B56: 14 | C56: 11.4438 | D56: 5.0317 | E56: 21.162 | F56: 16.5637 | G56: 16.1303 | H56: 5.1199 | I56: -0.0882 | N56: 14 | O56: 11.4389 | P56: 5.012 | Q56: 21.1845 | R56: 16.7974 | T56: 5.3585 | U56: -0.3465 | Y56: 18.63 | Z56: 18.98 | AA56: 17.47 | AB56: 18.81 | AC56: 0.95383737 | AD56: =X55/100*D56 -> 1.07225527 | AE56: 0.8895618391 | AF56: =(AVERAGE(Y56:Z56)/100*H56)/($X55/100*D56) -> 0.8979178951 | AG56: =(AVERAGE(AA56:AB56)/100*T56)/($X55/100*P56) -> 0.9100934856 | AH56: -0.01217559057
A57: 35 | B57: 15 | C57: 11.5174 | D57: 5.0339 | E57: 21.8226 | F57: 16.5523 | G57: 16.7887 | H57: 5.0349 | I57: -0.001 | J57: =AVERAGE(H57:H58) -> 5.09125 | K57: =STDEV(H57:H58) -> 0.07969093424 | L57: =K57/J57*100 -> 1.565252821 | M57: 35 | N57: 15 | O57: 11.5568 | P57: 5.0215 | Q57: 21.5893 | R57: 16.0083 | T57: 4.4515 | U57: 0.57 | V57: =AVERAGE(T57:T58) -> 4.62295 | W57: =STDEV(T57:T58) -> 0.2424669153 | X57: 20.9795 | Y57: 18.92 | Z57: 19.43 | AA57: 20.24 | AB57: 20.59 | AC57: 0.95260308 | AD57: =X57/100*D57 -> 1.05608705 | AE57: 0.9020118934 | AF57: =(AVERAGE(Y57:Z57)/100*H57)/($X57/100*D57) -> 0.9141690304 | AG57: =(AVERAGE(AA57:AB57)/100*T57)/($X57/100*P57) -> 0.8626351717 | AH57: 0.0515338587
A58: 35 | B58: 16 | C58: 11.5324 | D58: 5.0158 | E58: 21.1637 | F58: 16.68 | G58: 16.1479 | H58: 5.1476 | I58: -0.1318 | N58: 16 | O58: 11.5353 | P58: 5.0275 | Q58: 21.2039 | R58: 16.3297 | T58: 4.7944 | U58: 0.2331 | Y58: 18.37 | Z58: 19.24 | AA58: 19.37 | AB58: 20.25 | AC58: 0.94561412 | AD58: =X57/100*D58 -> 1.052289761 | AE58: 0.8986252219 | AF58: =(AVERAGE(Y58:Z58)/100*H58)/($X57/100*D58) -> 0.9199045889 | AG58: =(AVERAGE(AA58:AB58)/100*T58)/($X57/100*P58) -> 0.9004747252 | AH58: 0.01942986368
A59: 36 | B59: 17 | C59: 11.5379 | D59: 5.0172 | E59: 21.7657 | F59: 16.6279 | G59: 16.7485 | H59: 5.09 | I59: -0.0728 | J59: =AVERAGE(H59:H60) -> 5.1329 | K59: =STDEV(H59:H60) -> 0.06066976183 | L59: =K59/J59*100 -> 1.181978255 | M59: 36 | N59: 17 | O59: 11.4807 | P59: 5.0223 | Q59: 21.2092 | R59: 16.4119 | T59: 4.9312 | U59: 0.0911 | V59: =AVERAGE(T59:T60) -> 5.0032 | W59: =STDEV(T59:T60) -> 0.1018233765 | X59: 21.07 | Y59: 19.16 | Z59: 20.63 | AA59: 20.22 | AB59: 20.81 | AC59: 0.975244 | AD59: =X59/100*D59 -> 1.05712404 | AE59: 0.9225445294 | AF59: =(AVERAGE(Y59:Z59)/100*H59)/($X59/100*D59) -> 0.9579344161 | AG59: =(AVERAGE(AA59:AB59)/100*T59)/($X59/100*P59) -> 0.9559979293 | AH59: 0.001936486748
A60: 36 | B60: 18 | C60: 11.555 | D60: 5.0164 | E60: 21.1525 | F60: 16.7308 | G60: 16.1361 | H60: 5.1758 | I60: -0.1594 | N60: 18 | O60: 11.5185 | P60: 5.0188 | Q60: 21.1557 | R60: 16.5937 | T60: 5.0752 | U60: -0.0564 | Y60: 19.76 | Z60: 20.01 | AA60: 20.51 | AB60: 19.98 | AC60: 1.02273808 | AD60: =X59/100*D60 -> 1.05695548 | AE60: 0.967626451 | AF60: =(AVERAGE(Y60:Z60)/100*H60)/($X59/100*D60) -> 0.9737475698 | AG60: =(AVERAGE(AA60:AB60)/100*T60)/($X59/100*P60) -> 0.971642533 | AH60: 0.002105036814
A61: 38 | B61: 19 | C61: 11.5587 | D61: 5.0129 | E61: 21.8139 | F61: 16.5459 | G61: 16.801 | H61: 4.9872 | I61: 0.0257 | J61: =AVERAGE(H61:H62) -> 5.058 | K61: =STDEV(H61:H62) -> 0.1001263202 | L61: =K61/J61*100 -> 1.979563468 | M61: 38 | N61: 19 | O61: 11.5119 | P61: 5.038 | Q61: 21.2066 | R61: 16.7536 | T61: 5.2417 | U61: -0.2037 | V61: =AVERAGE(T61:T62) -> 5.18735 | W61: =STDEV(T61:T62) -> 0.07686250711 | X61: 21.434 | Y61: 20.68 | Z61: 20.79 | AA61: 20.06 | AB61: 19.58 | AC61: 1.03135296 | AD61: =X61/100*D61 -> 1.074464986 | AE61: 0.9598758205 | AF61: =(AVERAGE(Y61:Z61)/100*H61)/($X61/100*D61) -> 0.9624286817 | AG61: =(AVERAGE(AA61:AB61)/100*T61)/($X61/100*P61) -> 0.9620871671 | AH61: 0.0003415145827
A62: 38 | B62: 20 | C62: 11.5399 | D62: 5.0114 | E62: 21.1316 | F62: 16.6687 | G62: 16.1202 | H62: 5.1288 | I62: -0.1174 | N62: 20 | O62: 11.5345 | P62: 5.0275 | Q62: 21.5647 | R62: 16.6675 | T62: 5.133 | U62: -0.1055 | Y62: 20.22 | Z62: 20.87 | AA62: 20.73 | AB62: 19.93 | AC62: 1.03704336 | AD62: =X61/100*D62 -> 1.074143476 | AE62: 0.9654607445 | AF62: =(AVERAGE(Y62:Z62)/100*H62)/($X61/100*D62) -> 0.9809787831 | AG62: =(AVERAGE(AA62:AB62)/100*T62)/($X61/100*P62) -> 0.9683967812 | AH62: 0.01258200192
A63: 39 | B63: 21 | C63: 11.5072 | D63: 5.0065 | E63: 21.7674 | F63: 16.3725 | G63: 16.7609 | H63: 4.8653 | I63: 0.1412 | J63: =AVERAGE(H63:H64) -> 4.9208 | K63: =STDEV(H63:H64) -> 0.07848885271 | L63: =K63/J63*100 -> 1.595042528 | M63: 39 | N63: 21 | O63: 11.5262 | P63: 5.0399 | Q63: 21.1954 | R63: 16.5962 | T63: 5.07 | U63: -0.0301 | V63: =AVERAGE(T63:T64) -> 5.0384 | W63: =STDEV(T63:T64) -> 0.04468914857 | X63: 22.1375 | Y63: 20.72 | Z63: 20.24 | AA63: 20.44 | AB63: 20.92 | AC63: 1.00809016 | AD63: =X63/100*D63 -> 1.108313938 | AE63: 0.9095709491 | AF63: =(AVERAGE(Y63:Z63)/100*H63)/($X63/100*D63) -> 0.8990353782 | AG63: =(AVERAGE(AA63:AB63)/100*T63)/($X63/100*P63) -> 0.9397406214 | AH63: -0.04070524316
A64: 39 | B64: 22 | C64: 11.4311 | D64: 5.0185 | E64: 21.1974 | F64: 16.4074 | G64: 16.1789 | H64: 4.9763 | I64: 0.0422 | N64: 22 | O64: 11.4632 | P64: 5.0568 | Q64: 21.5749 | R64: 16.47 | T64: 5.0068 | U64: 0.05 | Y64: 20.2 | Z64: 19.81 | AA64: 20.5 | AB64: 19.77 | AC64: 1.0052126 | AD64: =X63/100*D64 -> 1.110970438 | AE64: 0.9048058941 | AF64: =(AVERAGE(Y64:Z64)/100*H64)/($X63/100*D64) -> 0.8960713817 | AG64: =(AVERAGE(AA64:AB64)/100*T64)/($X63/100*P64) -> 0.9005493684 | AH64: -0.004477986698
A65: 40 | B65: 23 | C65: 11.5138 | D65: 5.0328 | E65: 21.8151 | F65: 16.3465 | G65: 16.7823 | H65: 4.8327 | I65: 0.2001 | J65: =AVERAGE(H65:H66) -> 4.84755 | K65: =STDEV(H65:H66) -> 0.0210010714 | L65: =K65/J65*100 -> 0.4332306299 | M65: 40 | N65: 23 | O65: 11.439 | P65: 5.0285 | Q65: 21.1492 | R65: 16.4533 | T65: 5.0143 | U65: 0.0142 | V65: =AVERAGE(T65:T66) -> 5.0741 | W65: =STDEV(T65:T66) -> 0.08456997103 | X65: 22.0985 | Y65: 20.28 | Z65: 20.69 | AA65: 20.63 | AB65: 21.09 | AC65: 0.98007156 | AD65: =X65/100*D65 -> 1.112173308 | AE65: 0.8812219759 | AF65: =(AVERAGE(Y65:Z65)/100*H65)/($X65/100*D65) -> 0.8901297917 | AG65: =(AVERAGE(AA65:AB65)/100*T65)/($X65/100*P65) -> 0.9412898327 | AH65: -0.05116004098
A66: 40 | B66: 24 | C66: 11.4411 | D66: 5.0247 | E66: 21.5249 | F66: 16.3035 | G66: 16.5002 | H66: 4.8624 | I66: 0.1623 | N66: 24 | O66: 11.5567 | P66: 5.0125 | Q66: 21.6219 | R66: 16.6906 | T66: 5.1339 | U66: -0.1214 | Y66: 19.96 | Z66: 20.41 | AA66: 19.82 | AB66: 20.21 | AC66: 0.97053504 | AD66: =X65/100*D66 -> 1.11038333 | AE66: 0.8740540444 | AF66: =(AVERAGE(Y66:Z66)/100*H66)/($X65/100*D66) -> 0.883906858 | AG66: =(AVERAGE(AA66:AB66)/100*T66)/($X65/100*P66) -> 0.9276535656 | AH66: -0.04374670755
A67: 42 | B67: 25 | C67: 11.5088 | D67: 5.0495 | E67: 21.7761 | F67: 16.4241 | G67: 16.7266 | H67: 4.9153 | I67: 0.1342 | J67: =AVERAGE(H67:H68) -> 4.93055 | K67: =STDEV(H67:H68) -> 0.02156675683 | L67: =K67/J67*100 -> 0.4374107721 | M67: 42 | N67: 25 | O67: 11.5558 | P67: 5.011 | Q67: 21.4003 | R67: 16.772 | T67: 5.2162 | U67: -0.2052 | V67: =AVERAGE(T67:T68) -> 5.16505 | W67: =STDEV(T67:T68) -> 0.07233702372 | X67: 22.421 | Y67: 19.47 | Z67: 21.02 | AA67: 17.67 | AB67: 18.98 | AC67: 0.95700891 | AD67: =X67/100*D67 -> 1.132148395 | AE67: 0.8453034198 | AF67: =(AVERAGE(Y67:Z67)/100*H67)/($X67/100*D67) -> 0.878950577 | AG67: =(AVERAGE(AA67:AB67)/100*T67)/($X67/100*P67) -> 0.8507830652 | AH67: 0.02816751179
A68: 42 | B68: 26 | C68: 11.4143 | D68: 5.0045 | E68: 21.1514 | F68: 16.3601 | G68: 16.1469 | H68: 4.9458 | I68: 0.0587 | N68: 26 | O68: 11.5458 | P68: 5.0225 | Q68: 21.1886 | R68: 16.6597 | T68: 5.1139 | U68: -0.0914 | Y68: 19.45 | Z68: 19.67 | AA68: 19.16 | AB68: 19.31 | AC68: 0.9619581 | AD68: =X67/100*D68 -> 1.122058945 | AE68: 0.8573151208 | AF68: =(AVERAGE(Y68:Z68)/100*H68)/($X67/100*D68) -> 0.8621636896 | AG68: =(AVERAGE(AA68:AB68)/100*T68)/($X67/100*P68) -> 0.8735132517 | AH68: =AF68-AG68 -> -0.01134956211
A69: 43 | B69: 27 | C69: 11.533 | D69: 5.0195 | E69: 21.7663 | F69: 16.2891 | G69: 16.7468 | H69: 4.7561 | I69: 0.2634 | J69: =AVERAGE(H69:H70) -> 4.77365 | K69: =STDEV(H69:H70) -> 0.02481944802 | L69: =K69/J69*100 -> 0.5199260109 | M69: 43 | N69: 27 | O69: 11.4038 | P69: 5.0188 | Q69: 21.4756 | R69: 16.3262 | T69: 4.9224 | U69: 0.0964 | V69: =AVERAGE(T69:T70) -> 4.93145 | W69: =STDEV(T69:T70) -> 0.01279863274 | X69: 21.039 | Y69: 19.55 | Z69: 19.75 | AA69: 19.71 | AB69: 18.97 | AC69: =Y69/100*H69 -> 0.92981755 | AD69: =X69/100*D69 -> 1.056052605 | AE69: =AC69/AD69 -> 0.8804651829 | AF69: =(AVERAGE(Y69:Z69)/100*H69)/($X69/100*D69) -> 0.8849688411 | AG69: =(AVERAGE(AA69:AB69)/100*T69)/($X69/100*P69) -> 0.9015885526 | AH69: =AF69-AG69 -> -0.01661971153
A70: 43 | B70: 28 | C70: 11.5344 | D70: 5.0148 | E70: 21.1371 | F70: 16.3256 | G70: 16.1223 | H70: 4.7912 | I70: 0.2236 | N70: 28 | O70: 11.5492 | P70: 5.0172 | Q70: 21.1698 | R70: 16.4897 | T70: 4.9405 | U70: 0.0767 | Y70: 19.98 | Z70: 20.41 | AA70: 19.03 | AB70: 19.35 | AC70: =Y70/100*H70 -> 0.95728176 | AD70: =X69/100*D70 -> 1.055063772 | AE70: =AC70/AD70 -> 0.9073212306 | AF70: =(AVERAGE(Y70:Z70)/100*H70)/($X69/100*D70) -> 0.9170846973 | AG70: =(AVERAGE(AA70:AB70)/100*T70)/($X69/100*P70) -> 0.8981717086 | AH70: =AF70-AG70 -> 0.01891298873
A71: 44 | B71: 29 | C71: 11.4715 | D71: 5.0188 | E71: 21.7982 | F71: 16.2099 | G71: 16.7794 | H71: 4.7384 | I71: 0.2804 | J71: =AVERAGE(H71:H72) -> 4.8148 | K71: =STDEV(H71:H72) -> 0.1080459162 | L71: =K71/J71*100 -> 2.244037471 | M71: 44 | N71: 29 | O71: 11.4679 | P71: 5.0187 | Q71: 21.5191 | R71: 16.3406 | T71: 4.8727 | U71: 0.146 | V71: =AVERAGE(T71:T72) -> 4.882 | W71: =STDEV(T71:T72) -> 0.01315218613 | X71: 21.022 | Y71: 20.48 | Z71: 20 | AA71: 19.54 | AB71: 20.8 | AC71: =Y71/100*H71 -> 0.97042432 | AD71: =X71/100*D71 -> 1.055052136 | AE71: =AC71/AD71 -> 0.9197880246 | AF71: =(AVERAGE(Y71:Z71)/100*H71)/($X71/100*D71) -> 0.9090092587 | AG71: =(AVERAGE(AA71:AB71)/100*T71)/($X71/100*P71) -> 0.9315588678 | AH71: =AF71-AG71 -> -0.02254960908
A72: 44 | B72: 30 | C72: 11.544 | D72: 5.0055 | E72: 21.1296 | F72: 16.4352 | G72: 16.1241 | H72: 4.8912 | I72: 0.1143 | N72: 30 | O72: 11.5263 | P72: 5.0349 | Q72: 21.2116 | R72: 16.4176 | T72: 4.8913 | U72: 0.1436 | Y72: 20.22 | Z72: 20.38 | AA72: 19.78 | AB72: 19.97
M73: 28 rerun | N73: 31 | O73: 11.4721 | P73: 5.0236 | Q73: 21.5169 | R73: 16.0642 | T73: 4.5921 | U73: 0.4315 | V73: =AVERAGE(T73:T74) -> 4.56625 | W73: =STDEV(T73:T74) -> 0.03655742059 | X73: 21.1045 | AA73: 19.91 | AB73: 19.99
N74: 32 | O74: 11.5524 | P74: 5.025 | Q74: 21.2161 | R74: 16.0928 | T74: 4.5404 | U74: 0.4846 | AA74: 19.28 | AB74: 20.42
M75: 32 rerun | N75: 33 | O75: 11.4095 | P75: 5.0344 | Q75: 21.1902 | R75: 15.7286 | T75: 4.3191 | U75: 0.7153 | V75: =AVERAGE(T75:T76) -> 4.31725 | W75: =STDEV(T75:T76) -> 0.00261629509 | X75: 21.503 | AA75: 21.94 | AB75: 22.46
N76: 34 | O76: 11.4636 | P76: 5.0062 | Q76: 21.2796 | R76: 15.779 | T76: 4.3154 | U76: 0.6908 | AA76: 21.96 | AB76: 22.33

Sheet Intact casein no DLP
N1: Day 28
B2: Sample ID | C2: Sample tube | D2: Tube wt | E2: cheese wt | F2: cheese& buffer wt | G2: Pellet & tube | H2: buffer added | I2: pellet wt | J2: wt difference | K2: Avg wt | L2: St dev | N2: Sample ID | O2: Sample tube | P2: Tube wt | Q2: cheese wt | R2: cheese& buffer wt | S2: Pellet & tube | T2: buffer added | U2: pellet wt | V2: wt difference | W2: Avg wt | X2: St dev | Y2: Protein | Z2: day 7 | AA2: day 7 | AB2: day 28 | AC2: day 28 | AD2: Pellet protein | AE2: cheese protein | AG2: Day 7 IC | AH2: Day 28 IC | AI2: Difference | AK2: Sample ID | AM2: cheese wt | AN2: cheese& buffer wt | AO2: Pellet & tube | AP2: buffer added | AQ2: pellet wt | AR2: wt difference | AS2: Avg wt | AT2: St dev | AV2: Tube wt | AW2: cheese wt | AX2: cheese& buffer wt | AY2: Pellet & tube | AZ2: buffer added | BA2: pellet wt | BB2: wt difference | BC2: Avg wt | BD2: St dev | BE2: Protein | BF2: day 7 | BG2: day 7 | BH2: day 28 | BI2: day 28 | BM2: Day 7 IC | BN2: Day 7 mean IC | BO2: SEM | BP2: Day 28 IC | BQ2: Day 28 mean IC | BR2: SEM 28 day | BU2: Day 7 mean IC | BV2: SEM 7 day | BW2: Day 28 mean IC | BX2: SEM 28 day | BY2: IC difference
A3: LC4 | B3: 1 | C3: 1 | D3: 11.3945 | E3: 5.0234 | F3: 21.6385 | G3: 16.5502 | H3: =F3-E3 -> 16.6151 | I3: =G3-D3 -> 5.1557 | J3: =I3-E3 -> 0.1323 | K3: =AVERAGE(I3:I4) -> 5.2042 | L3: =STDEV(I3:I4) -> 0.06858935778 | M3: =L3/K3*100 -> 1.317961604 | N3: 1 | O3: 1 | P3: 11.5149 | Q3: 5.0396 | R3: 21.4913 | S3: 17.5341 | U3: =S3-P3 -> 6.0192 | V3: =Q3-U3 -> -0.9796 | Y3: 23.99 | Z3: 22.15 | AA3: 22.94 | AB3: 19.418 | AC3: 20.286 | AD3: =Z3/100*I3 -> 1.14198755 | AE3: =Y3/100*E3 -> 1.20511366 | AF3: =AD3/AE3 -> 0.9476181276 | AG3: =(AVERAGE(Z3:AA3)/100*I3)/($Y3/100*E3) -> 0.964516961 | AH3: =(AVERAGE(AB3:AC3)/100*U3)/($Y3/100*Q3) -> 0.9883635604 | AI3: =AG3-AH3 -> -0.02384659935 | AK3: 16 | AL3: AC4 | AM3: 5.0191 | AN3: 21.1884 | AO3: 16.5778 | AP3: 16.1693 | AQ3: 5.1634 | AR3: 0.1443 | AS3: 5.12675 | AT3: 0.05183092706 | AU3: 1.010989946 | AV3: 11.4998 | AW3: 5.0633 | AX3: 21.1679 | AY3: 16.4718 | BA3: 4.972 | BB3: 0.0913 | BE3: 22.533 | BF3: 19.45 | BG3: 19.5 | BH3: 19.45 | BI3: 20.18 | BJ3: 1.0042813 | BK3: 1.130953803 | BL3: 0.8879949803 | BM3: 0.889136362 | BN3: =AVERAGE(BM3:BM6) -> 0.9462405882 | BO3: =STDEV(BM3:BM6)/SQRT(BM3:BM6) -> 0.05077056561 | BP3: 0.8635202369 | BQ3: =AVERAGE(BP3:BP6) -> 0.905297045 | BR3: =STDEV(BP3:BP6)/SQRT(BP3:BP6) -> 0.04518564524 | BT3: AC4 | BU3: 0.9462405882 | BV3: 0.05077056561 | BW3: 0.905297045 | BX3: 0.04518564524 | BY3: =BU3-BW3 -> 0.04094354318
A4: LC4 | B4: 1 | C4: 2 | D4: 11.5133 | E4: 5.026 | F4: 21.2383 | G4: 16.766 | H4: =F4-E4 -> 16.2123 | I4: =G4-D4 -> 5.2527 | J4: =I4-E4 -> 0.2267 | N4: 1 | O4: 2 | P4: 11.5815 | Q4: 5.0215 | R4: 21.1797 | S4: 17.8402 | U4: =S4-P4 -> 6.2587 | V4: =Q4-U4 -> -1.2372 | Z4: 23.25 | AA4: 24.02 | AB4: 18.666 | AC4: 19.165 | AD4: =Z4/100*I4 -> 1.22125275 | AE4: =Y3/100*E4 -> 1.2057374 | AF4: =AD4/AE4 -> 1.012867935 | AG4: =(AVERAGE(Z4:AA4)/100*I4)/($Y3/100*E4) -> 1.029640156 | AH4: =(AVERAGE(AB4:AC4)/100*U4)/($Y3/100*Q4) -> 0.9827391226 | AI4: =AG4-AH4 -> 0.04690103374 | AK4: 16 | AL4: AC4 | AM4: 5.014 | AN4: 21.619 | AO4: 16.5826 | AP4: 16.605 | AQ4: 5.0901 | AR4: 0.0761 | AV4: 11.5834 | AW4: 5.0353 | AX4: 21.6954 | AY4: 16.5985 | BA4: 5.0151 | BB4: 0.0202 | BF4: 20.57 | BG4: 20.47 | BH4: 19.89 | BI4: 20.21 | BJ4: 1.04703357 | BK4: 1.12980462 | BL4: 0.9267386161 | BM4: 0.92448597 | BP4: 0.8862364472 | BT4: AC6 | BU4: 0.9526453869 | BV4: 0.06390281017 | BW4: 0.9617849252 | BX4: 0.05141729296 | BY4: =BU4-BW4 -> -0.009139538267
A5: LR4 | B5: 2 | C5: 3 | D5: 11.4904 | E5: 5.0247 | F5: 21.2384 | G5: 17.0854 | H5: 16.2137 | I5: 5.595 | J5: 0.5703 | K5: =AVERAGE(I5:I6) -> 5.828 | L5: =STDEV(I5:I6) -> 0.32951176 | M5: =L5/K5*100 -> 5.653942348 | N5: 2 | O5: 3 | P5: 11.4153 | Q5: 5.0135 | R5: 22.1469 | S5: 17.511 | U5: 6.0957 | V5: -1.0822 | Y5: 24.956 | Z5: 21.53 | AA5: 20.72 | AB5: 20.024 | AC5: 19.765 | AD5: =Z5/100*I5 -> 1.2046035 | AE5: =Y5/100*E5 -> 1.253964132 | AF5: =AD5/AE5 -> 0.9606363286 | AG5: =(AVERAGE(Z5:AA5)/100*I5)/($Y5/100*E5) -> 0.9425658357 | AH5: =(AVERAGE(AB5:AC5)/100*U5)/($Y5/100*Q5) -> 0.96926073 | AI5: -0.02669489435 | AK5: 31 | AL5: AC4 | AM5: 5.0207 | AN5: 21.5623 | AO5: 16.6307 | AP5: 16.5416 | AQ5: 5.1357 | AR5: -0.115 | AS5: 5.0114 | AT5: 0.1757867458 | AU5: 3.507737275 | AV5: 11.4046 | AW5: 5.0186 | AX5: 21.6518 | AY5: 16.3735 | BA5: 4.9689 | BB5: 0.0497 | BC5: 4.9076 | BD5: 0.08669129137 | BE5: 20.811 | BF5: 19.54 | BG5: 20.73 | BH5: 19.92 | BI5: 20.5 | BJ5: 1.00351578 | BK5: 1.044857877 | BL5: 0.9604328034 | BM5: 0.9896783264 | BP5: 0.9615038745 | BT5: AD4 | BU5: 0.9043426695 | BV5: 0.04322583034 | BW5: 0.8891471663 | BX5: 0.03867445044 | BY5: 0.0151955032
A6: LR4 | B6: 2 | C6: 4 | D6: 11.4977 | E6: 5.0287 | F6: 21.1576 | G6: 17.5587 | H6: 16.1289 | I6: 6.061 | J6: 1.0323 | N6: 2 | O6: 4 | P6: 11.4973 | Q6: 5.0313 | R6: 21.2205 | S6: 17.8263 | U6: 6.329 | V6: -1.2977 | Z6: 20.19 | AA6: 21.46 | AB6: 19.231 | AC6: 19.731 | AD6: 1.2237159 | AE6: =Y5/100*E6 -> 1.254962372 | AF6: 0.9751016662 | AG6: =(AVERAGE(Z6:AA6)/100*I6)/($Y5/100*E6) -> 1.005769797 | AH6: =(AVERAGE(AB6:AC6)/100*U6)/($Y5/100*Q6) -> 0.9819540177 | AI6: 0.0238157792 | AK6: 31 | AL6: AC4 | AM6: 5.026 | AN6: 21.7048 | AO6: 16.4198 | AP6: 16.6788 | AQ6: 4.8871 | AR6: 0.1389 | AV6: 11.5356 | AW6: 5.098 | AX6: 21.2433 | AY6: 16.3819 | BA6: 4.8463 | BB6: 0.2517 | BF6: 20.85 | BG6: 21.17 | BH6: 19.62 | BI6: 20.22 | BJ6: 1.01896035 | BK6: 1.04596086 | BL6: 0.974185927 | BM6: 0.9816616943 | BP6: 0.9099276213 | BT6: AD6 | BU6: 0.9537490068 | BV6: 0.07630354093 | BW6: 0.9477823505 | BX6: 0.01684157953 | BY6: 0.005966656261
A7: LD4 | B7: 3 | C7: 5 | D7: 11.496 | E7: 5.0166 | F7: 21.1273 | G7: 16.5685 | H7: 16.1107 | I7: 5.0725 | J7: 0.0559 | K7: =AVERAGE(I7:I8) -> 5.6253 | L7: =STDEV(I7:I8) -> 0.7817772573 | M7: =L7/K7*100 -> 13.89752115 | N7: 3 | O7: 5 | P7: 11.4006 | Q7: 5.0183 | R7: 20.8559 | S7: 17.3717 | U7: 5.9711 | V7: -0.9528 | Y7: 22.8195 | Z7: 22.62 | AA7: 23.03 | AB7: 18.268 | AC7: 18.329 | AD7: 1.1473995 | AE7: =Y7/100*E7 -> 1.144763037 | AF7: 1.002303064 | AG7: =(AVERAGE(Z7:AA7)/100*I7)/($Y7/100*E7) -> 1.011386713 | AH7: =(AVERAGE(AB7:AC7)/100*U7)/($Y7/100*Q7) -> 0.954128987 | AI7: 0.0572577259 | AK7: 6 | AL7: AC6 | AM7: 5.0104 | AN7: 21.1642 | AO7: 17.0629 | AP7: 16.1538 | AQ7: 5.5749 | AR7: 0.5645 | AS7: 5.534 | AT7: 0.0578413347 | AU7: 1.045199398 | AV7: 11.4895 | AW7: 5.0187 | AX7: 21.6109 | AY7: 16.6721 | BA7: 5.1826 | BB7: -0.1639 | BE7: 22.741 | BF7: 19.38 | BG7: 21.51 | BH7: 21.363 | BI7: 22.414 | BJ7: 1.08041562 | BK7: 1.139415064 | BL7: 0.9482195331 | BM7: 1.000327572 | BN7: =AVERAGE(BM7:BM10) -> 0.9526453869 | BO7: =STDEV(BM7:BM10)/SQRT(BM7:BM10) -> 0.06390281017 | BP7: 0.9939462451 | BQ7: =AVERAGE(BP7:BP10) -> 0.9617849252 | BR7: =STDEV(BP7:BP10)/SQRT(BP7:BP10) -> 0.05141729296 | BT7: AR4 | BU7: 0.9277596145 | BV7: 0.02652106142 | BW7: 0.947594398 | BX7: 0.02516038082 | BY7: -0.01983478343
A8: LD4 | B8: 3 | C8: 6 | D8: 11.573 | E8: 5.0639 | F8: 21.5425 | G8: 17.7511 | H8: 16.4786 | I8: 6.1781 | J8: 1.1142 | N8: 3 | O8: 6 | P8: 11.4999 | Q8: 5.0318 | R8: 21.215 | S8: 17.2901 | U8: 5.7902 | V8: -0.7584 | Z8: 18.16 | AA8: 19.47 | AB8: 19.102 | AC8: 19.379 | AD8: 1.12194296 | AE8: =Y7/100*E8 -> 1.155556661 | AF8: 0.9709112485 | AG8: =(AVERAGE(Z8:AA8)/100*I8)/($Y7/100*E8) -> 1.005930349 | AH8: =(AVERAGE(AB8:AC8)/100*U8)/($Y7/100*Q8) -> 0.970242789 | AI8: 0.03568756016 | AK8: 6 | AL8: AC6 | AM8: 5.0052 | AN8: 21.6443 | AO8: 16.9562 | AP8: 16.6391 | AQ8: 5.4931 | AR8: 0.4879 | AV8: 11.408 | AW8: 5.0101 | AX8: 21.1462 | AY8: 16.60747 | BA8: 5.19947 | BB8: -0.18937 | BF8: 20.66 | BG8: 21.41 | BH8: 22.506 | BI8: 21.885 | BJ8: 1.13487446 | BK8: 1.138232532 | BL8: 0.9970497487 | BM8: 1.015147215 | BP8: 1.012903466 | BT8: AR6 | BU8: 0.9982649891 | BV8: 0.0315809484 | BW8: 0.9832572111 | BX8: 0.02522511677 | BY8: 0.01500777805
A9: AC6 | B9: 6 | C9: 11 | D9: 11.488 | E9: 5.0104 | F9: 21.1642 | G9: 17.0629 | H9: 16.1538 | I9: 5.5749 | J9: 0.5645 | K9: =AVERAGE(I9:I10) -> 5.534 | L9: =STDEV(I9:I10) -> 0.0578413347 | M9: =L9/K9*100 -> 1.045199398 | N9: 6 | O9: 9 | P9: 11.4895 | Q9: 5.0187 | R9: 21.6109 | S9: 16.6721 | U9: 5.1826 | V9: -0.1639 | Y9: 22.741 | Z9: 19.38 | AA9: 21.51 | AB9: 21.363 | AC9: 22.414 | AD9: 1.08041562 | AE9: =Y9/100*E9 -> 1.139415064 | AF9: 0.9482195331 | AG9: =(AVERAGE(Z9:AA9)/100*I9)/($Y9/100*E9) -> 1.000327572 | AH9: =(AVERAGE(AB9:AC9)/100*U9)/($Y9/100*Q9) -> 0.9939462451 | AI9: 0.006381327358 | AK9: 39 | AL9: AC6 | AM9: 5.0065 | AN9: 21.7674 | AO9: 16.3725 | AP9: 16.7609 | AQ9: 4.8653 | AR9: 0.1412 | AS9: 4.9208 | AT9: 0.07848885271 | AU9: 1.595042528 | AV9: 11.5262 | AW9: 5.0399 | AX9: 21.1954 | AY9: 16.5962 | BA9: 5.07 | BB9: -0.0301 | BC9: 5.0384 | BD9: 0.04468914857 | BE9: 22.1375 | BF9: 20.72 | BG9: 20.24 | BH9: 20.44 | BI9: 20.92 | BJ9: 1.00809016 | BK9: 1.108313938 | BL9: 0.9095709491 | BM9: 0.8990353782 | BP9: 0.9397406214 | BT9: CC6 | BU9: 0.9358470105 | BV9: 0.1183655403 | BW9: 0.9456806628 | BX9: 0.06749492925 | BY9: -0.009833652309
A10: AC6 | B10: 6 | C10: 12 | D10: 11.4631 | E10: 5.0052 | F10: 21.6443 | G10: 16.9562 | H10: 16.6391 | I10: 5.4931 | J10: 0.4879 | N10: 6 | O10: 10 | P10: 11.408 | Q10: 5.0101 | R10: 21.1462 | S10: 16.60747 | U10: 5.19947 | V10: -0.18937 | Z10: 20.66 | AA10: 21.41 | AB10: 22.506 | AC10: 21.885 | AD10: 1.13487446 | AE10: =Y9/100*E10 -> 1.138232532 | AF10: 0.9970497487 | AG10: =(AVERAGE(Z10:AA10)/100*I10)/($Y9/100*E10) -> 1.015147215 | AH10: =(AVERAGE(AB10:AC10)/100*U10)/($Y9/100*Q10) -> 1.012903466 | AI10: 0.002243749433 | AK10: 39 | AL10: AC6 | AM10: 5.0185 | AN10: 21.1974 | AO10: 16.4074 | AP10: 16.1789 | AQ10: 4.9763 | AR10: 0.0422 | AV10: 11.4632 | AW10: 5.0568 | AX10: 21.5749 | AY10: 16.47 | BA10: 5.0068 | BB10: 0.05 | BF10: 20.2 | BG10: 19.81 | BH10: 20.5 | BI10: 19.77 | BJ10: 1.0052126 | BK10: 1.110970438 | BL10: 0.9048058941 | BM10: 0.8960713817 | BP10: 0.9005493684 | BT10: CD6 | BU10: 0.9441017033 | BV10: 0.08336212917 | BW10: 0.8459643036 | BX10: 0.0432705185 | BY10: 0.09813739969
A11: AR6 | B11: 7 | C11: 13 | D11: 11.4681 | E11: 5.0032 | F11: 21.1652 | G11: 16.8521 | H11: 16.162 | I11: 5.384 | J11: 0.3808 | K11: =AVERAGE(I11:I12) -> 5.47535 | L11: =STDEV(I11:I12) -> 0.1291884089 | M11: =L11/K11*100 -> 2.35945481 | N11: 7 | O11: 11 | P11: 11.4054 | Q11: 5.053 | R11: 21.274 | S11: 16.8255 | U11: 5.4201 | V11: -0.3671 | Y11: 23.0735 | Z11: 21.12 | AA11: 22.6 | AB11: 23.116 | AC11: 20.722 | AD11: 1.1371008 | AE11: =Y11/100*E11 -> 1.154413352 | AF11: 0.9850031603 | AG11: =(AVERAGE(Z11:AA11)/100*I11)/($Y11/100*E11) -> 1.019515582 | AH11: =(AVERAGE(AB11:AC11)/100*U11)/($Y11/100*Q11) -> 1.018979062 | AI11: 0.0005365191516 | AK11: 18 | AL11: AD4 | AM11: 5.0327 | AN11: 21.1318 | AO11: 16.4567 | AP11: 16.0991 | AQ11: 4.9594 | AR11: -0.0733 | AS11: 4.96025 | AT11: 0.001202081528 | AU11: 0.02423429319 | AV11: 11.5137 | AW11: 5.0133 | AX11: 21.65 | AY11: 16.4402 | BA11: 4.9265 | BB11: 0.0868 | BE11: 22.1715 | BF11: 20.9 | BG11: 21.6 | BH11: 20.11 | BI11: 21.35 | BJ11: 1.0365146 | BK11: 1.115825081 | BL11: 0.9289221206 | BM11: 0.9444782327 | BN11: =AVERAGE(BM11:BM14) -> 0.9043426695 | BO11: =STDEV(BM11:BM14)/SQRT(BM11:BM14) -> 0.04322583034 | BP11: 0.918795838 | BQ11: =AVERAGE(BP11:BP14) -> 0.8891471663 | BR11: =STDEV(BP11:BP14)/SQRT(BP11:BP14) -> 0.03867445044 | BT11: CR6 | BU11: 0.8964320797 | BV11: 0.07515910385 | BW11: 0.9350784614 | BX11: 0.05353913346 | BY11: -0.03864638175
A12: AR6 | B12: 7 | C12: 14 | D12: 11.5803 | E12: 5.0365 | F12: 21.386 | G12: 17.147 | H12: 16.3495 | I12: 5.5667 | J12: 0.5302 | N12: 7 | O12: 12 | P12: 11.5758 | Q12: 5.0513 | R12: 21.6957 | S12: 16.8342 | U12: 5.2584 | V12: -0.2071 | Z12: 21.84 | AA12: 21.17 | AB12: 21.898 | AC12: 21.703 | AD12: 1.21576728 | AE12: =Y11/100*E12 -> 1.162096828 | AF12: 1.046184149 | AG12: =(AVERAGE(Z12:AA12)/100*I12)/($Y11/100*E12) -> 1.03013691 | AH12: =(AVERAGE(AB12:AC12)/100*U12)/($Y11/100*Q12) -> 0.9835658334 | AI12: 0.04657107656 | AK12: 18 | AL12: AD4 | AM12: 5.0215 | AN12: 21.5634 | AO12: 16.3725 | AP12: 16.5419 | AQ12: 4.9611 | AR12: -0.0604 | AV12: 11.5779 | AW12: 5.0175 | AX12: 21.7573 | AY12: 16.5099 | BA12: 4.932 | BB12: 0.0855 | BF12: 21.02 | BG12: 20.86 | BH12: 20.01 | BI12: 20.8 | BJ12: 1.04282322 | BK12: 1.113341872 | BL12: 0.9366603788 | BM12: 0.9330955438 | BP12: 0.9046429642 | BT12: LC4 | BU12: 0.9490526639 | BV12: 0.0640275101 | BW12: 0.942715736 | BX12: 0.04982595612 | BY12: 0.006336927898
A13: AD6 | B13: 8 | C13: 15 | D13: 11.5061 | E13: 5.009 | F13: 21.2003 | G13: 16.4836 | H13: 16.1913 | I13: 4.9775 | J13: -0.0315 | K13: =AVERAGE(I13:I14) -> 5.06625 | L13: =STDEV(I13:I14) -> 0.1255114537 | M13: =L13/K13*100 -> 2.477403477 | N13: 8 | O13: 13 | P13: 11.4083 | Q13: 5.0245 | R13: 21.144 | S13: 16.6329 | U13: 5.2246 | V13: -0.2001 | Y13: 21.7695 | Z13: 21.69 | AA13: 23.04 | AB13: 19.91 | AC13: 20.222 | AD13: 1.07961975 | AE13: =Y13/100*E13 -> 1.090434255 | AF13: 0.9900823869 | AG13: =(AVERAGE(Z13:AA13)/100*I13)/($Y13/100*E13) -> 1.020894079 | AH13: =(AVERAGE(AB13:AC13)/100*U13)/($Y13/100*Q13) -> 0.9584568136 | AI13: 0.06243726585 | AK13: 32 | AL13: AD4 | AM13: 5.009 | AN13: 21.1492 | AO13: 15.9813 | AP13: 16.1402 | AQ13: 4.4432 | AR13: 0.5658 | AS13: 4.6041 | AT13: 0.2275469622 | AU13: 4.942268026 | AV13: 11.5236 | AW13: 5.0417 | AX13: 21.8347 | AY13: 16.8292 | BA13: 5.3056 | BB13: -0.2639 | BC13: 5.67125 | BD13: 0.5171071891 | BE13: 21.757 | BF13: 20.77 | BG13: 21.14 | BH13: 16.76 | BI13: 17.77 | BJ13: 0.92285264 | BK13: 1.08980813 | BL13: 0.8468028588 | BM13: 0.8543453975 | BP13: 0.835074218 | BT13: LC6 | BU13: 0.9221371077 | BV13: 0.02145970379 | BW13: 0.9081790932 | BX13: 0.07247358232 | BY13: 0.0139580145
A14: AD6 | B14: 8 | C14: 16 | D14: 11.5007 | E14: 5.0305 | F14: 21.6326 | G14: 16.6557 | H14: 16.6021 | I14: 5.155 | J14: 0.1245 | N14: 8 | O14: 14 | P14: 11.4938 | Q14: 5.0371 | R14: 21.585 | S14: 16.4371 | U14: 4.9433 | V14: 0.0938 | Z14: 21.37 | AA14: 21.97 | AB14: 20.93 | AC14: 21.826 | AD14: 1.1016235 | AE14: =Y13/100*E14 -> 1.095114697 | AF14: 1.005943489 | AG14: =(AVERAGE(Z14:AA14)/100*I14)/($Y13/100*E14) -> 1.020065298 | AH14: =(AVERAGE(AB14:AC14)/100*U14)/($Y13/100*Q14) -> 0.96372919 | AI14: 0.05633610773 | AK14: 32 | AL14: AD4 | AM14: 5.0124 | AN14: 21.312 | AO14: 16.1809 | AP14: 16.2996 | AQ14: 4.765 | AR14: 0.2474 | AV14: 11.4134 | AW14: 5.0793 | AX14: 21.2364 | AY14: 17.4503 | BA14: 6.0369 | BB14: -0.9576 | BF14: 19.48 | BG14: 21.05 | BH14: 16.27 | BI14: 16.61 | BJ14: 0.928222 | BK14: 1.090547868 | BL14: 0.851152001 | BM14: 0.8854515041 | BP14: 0.8980756451 | BT14: LD4 | BU14: 0.9674826826 | BV14: 0.04936882386 | BW14: 0.9436009969 | BX14: 0.02362071882 | BY14: 0.02388168571
A15: CC6 | B15: 11 | C15: 21 | D15: 11.5766 | E15: 5.0045 | F15: 21.2136 | G15: 16.9402 | H15: 16.2091 | I15: 5.3636 | J15: 0.3591 | K15: =AVERAGE(I15:I16) -> 5.32365 | L15: =STDEV(I15:I16) -> 0.05649783182 | M15: =L15/K15*100 -> 1.061261199 | N15: 11 | O15: 17 | P15: 11.4172 | Q15: 5.0574 | R15: 21.435 | S15: 17.0545 | U15: 5.6373 | V15: -0.5799 | Y15: 22.8645 | Z15: 21.77 | AA15: 22.7 | AB15: 19.18 | AC15: 22.16 | AD15: 1.16765572 | AE15: =Y15/100*E15 -> 1.144253903 | AF15: 1.020451595 | AG15: =(AVERAGE(Z15:AA15)/100*I15)/($Y15/100*E15) -> 1.042248104 | AH15: =(AVERAGE(AB15:AC15)/100*U15)/($Y15/100*Q15) -> 1.007679935 | AI15: 0.03456816856 | AK15: 8 | AL15: AD6 | AM15: 5.009 | AN15: 21.2003 | AO15: 16.4836 | AP15: 16.1913 | AQ15: 4.9775 | AR15: -0.0315 | AS15: 5.06625 | AT15: 0.1255114537 | AU15: 2.477403477 | AV15: 11.4083 | AW15: 5.0245 | AX15: 21.144 | AY15: 16.6329 | BA15: 5.2246 | BB15: -0.2001 | BE15: 21.7695 | BF15: 21.69 | BG15: 23.04 | BH15: 19.91 | BI15: 20.222 | BJ15: 1.07961975 | BK15: 1.090434255 | BL15: 0.9900823869 | BM15: 1.020894079 | BN15: =AVERAGE(BM15:BM18) -> 0.9537490068 | BO15: =STDEV(BM15:BM18)/SQRT(BM15:BM18) -> 0.07630354093 | BP15: 0.9584568136 | BQ15: =AVERAGE(BP15:BP18) -> 0.9477823505 | BR15: =STDEV(BP15:BP18)/SQRT(BP15:BP18) -> 0.01684157953 | BT15: LD6 | BU15: 0.959668057 | BV15: 0.03281903152 | BW15: 0.9486995377 | BX15: 0.01951277555 | BY15: 0.01096851933
A16: CC6 | B16: 11 | C16: 22 | D16: 11.4768 | E16: 5.0188 | F16: 21.7283 | G16: 16.7605 | H16: 16.7095 | I16: 5.2837 | J16: 0.2649 | N16: 11 | O16: 18 | P16: 11.4786 | Q16: 5.0667 | R16: 21.2022 | S16: 17.1712 | U16: 5.6926 | V16: -0.6259 | Z16: 22.15 | AA16: 22.81 | AB16: 20.46 | AC16: 20.23 | AD16: 1.17033955 | AE16: =Y15/100*E16 -> 1.147523526 | AF16: 1.019882838 | AG16: =(AVERAGE(Z16:AA16)/100*I16)/($Y15/100*E16) -> 1.03507748 | AH16: =(AVERAGE(AB16:AC16)/100*U16)/($Y15/100*Q16) -> 0.999727097 | AI16: 0.03535038343 | AK16: 8 | AL16: AD6 | AM16: 5.0305 | AN16: 21.6326 | AO16: 16.6557 | AP16: 16.6021 | AQ16: 5.155 | AR16: 0.1245 | AV16: 11.4938 | AW16: 5.0371 | AX16: 21.585 | AY16: 16.4371 | BA16: 4.9433 | BB16: 0.0938 | BF16: 21.37 | BG16: 21.97 | BH16: 20.93 | BI16: 21.826 | BJ16: 1.1016235 | BK16: 1.095114697 | BL16: 1.005943489 | BM16: 1.020065298 | BP16: 0.96372919 | BT16: LR4 | BU16: 0.9223624748 | BV16: 0.06747313604 | BW16: 0.9188777662 | BX16: 0.06740644766 | BY16: 0.003484708631
A17: CR6 | B17: 12 | C17: 23 | D17: 11.5095 | E17: 5.0404 | F17: 21.4568 | G17: 17.0684 | H17: 16.4164 | I17: 5.5589 | J17: 0.5185 | K17: =AVERAGE(I17:I18) -> 5.40955 | L17: =STDEV(I17:I18) -> 0.2112127955 | M17: =L17/K17*100 -> 3.904442986 | N17: 12 | O17: 19 | P17: 11.5812 | Q17: 5.0113 | R17: 21.5935 | S17: 17.4345 | U17: 5.8533 | V17: -0.842 | Y17: 23.1015 | Z17: 19.78 | AA17: 20.55 | AB17: 18.81 | AC17: 19.43 | AD17: 1.09955042 | AE17: =Y17/100*E17 -> 1.164408006 | AF17: 0.9442999484 | AG17: =(AVERAGE(Z17:AA17)/100*I17)/($Y17/100*E17) -> 0.9626799019 | AH17: =(AVERAGE(AB17:AC17)/100*U17)/($Y17/100*Q17) -> 0.9667141806 | AI17: -0.004034278655 | AK17: 40 | AL17: AD6 | AM17: 5.0328 | AN17: 21.8151 | AO17: 16.3465 | AP17: 16.7823 | AQ17: 4.8327 | AR17: 0.2001 | AS17: 4.84755 | AT17: 0.0210010714 | AU17: 0.4332306299 | AV17: 11.439 | AW17: 5.0285 | AX17: 21.1492 | AY17: 16.4533 | BA17: 5.0143 | BB17: 0.0142 | BC17: 5.0741 | BD17: 0.08456997103 | BE17: 22.0985 | BF17: 20.28 | BG17: 20.69 | BH17: 20.63 | BI17: 21.09 | BJ17: 0.98007156 | BK17: 1.112173308 | BL17: 0.8812219759 | BM17: 0.8901297917 | BP17: 0.9412898327 | BT17: LR6 | BU17: 0.9162261203 | BV17: 0.01982510427 | BW17: 0.8790687089 | BX17: 0.04917650029 | BY17: 0.03715741137
A18: CR6 | B18: 12 | C18: 24 | D18: 11.577 | E18: 5.0481 | F18: 21.1498 | G18: 16.8372 | H18: 16.1017 | I18: 5.2602 | J18: 0.2121 | N18: 12 | O18: 20 | P18: 11.4081 | Q18: 5.0218 | R18: 21.1085 | S18: 17.371 | U18: 5.9629 | V18: -0.9411 | Z18: 20.67 | AA18: 21.8 | AB18: 19.52 | AC18: 19.1 | AD18: 1.08728334 | AE18: =Y17/100*E18 -> 1.166186822 | AF18: 0.9323406164 | AG18: =(AVERAGE(Z18:AA18)/100*I18)/($Y17/100*E18) -> 0.9578254954 | AH18: =(AVERAGE(AB18:AC18)/100*U18)/($Y17/100*Q18) -> 0.99252215 | AI18: -0.03469665462 | AK18: 40 | AL18: AD6 | AM18: 5.0247 | AN18: 21.5249 | AO18: 16.3035 | AP18: 16.5002 | AQ18: 4.8624 | AR18: 0.1623 | AV18: 11.5567 | AW18: 5.0125 | AX18: 21.6219 | AY18: 16.6906 | BA18: 5.1339 | BB18: -0.1214 | BF18: 19.96 | BG18: 20.41 | BH18: 19.82 | BI18: 20.21 | BJ18: 0.97053504 | BK18: 1.11038333 | BL18: 0.8740540444 | BM18: 0.883906858 | BP18: 0.9276535656
A19: CD6 | B19: 13 | C19: 25 | D19: 11.4954 | E19: 5.0155 | F19: 21.6683 | G19: 16.8687 | H19: 16.6528 | I19: 5.3733 | J19: 0.3578 | K19: =AVERAGE(I19:I20) -> 5.43045 | L19: =STDEV(I19:I20) -> 0.08082230509 | M19: =L19/K19*100 -> 1.4883169 | N19: 13 | O19: 21 | P19: 11.4947 | Q19: 5.0658 | R19: 21.5797 | S19: 17.1302 | U19: 5.6355 | V19: -0.5697 | Y19: 24.24 | Z19: 21.62 | AA19: 22.84 | AB19: 18.98 | AC19: 18.7 | AD19: 1.16170746 | AE19: =Y19/100*E19 -> 1.2157572 | AF19: 0.9555423237 | AG19: =(AVERAGE(Z19:AA19)/100*I19)/($Y19/100*E19) -> 0.9825025836 | AH19: =(AVERAGE(AB19:AC19)/100*U19)/($Y19/100*Q19) -> 0.8646347727 | AI19: 0.1178678108 | AK19: 17 | AL19: AR4 | AM19: 5.0496 | AN19: 21.1961 | AO19: 16.704 | AP19: 16.1465 | AQ19: 5.2215 | AR19: 0.1719 | AS19: 5.1962 | AT19: 0.03577960313 | AU19: 0.6885724785 | AV19: 11.4109 | AW19: 5.0258 | AX19: 21.6796 | AY19: 16.7204 | BA19: 5.3095 | BB19: -0.2837 | BE19: 21.9445 | BF19: 20.43 | BG19: 19.74 | BH19: 19.42 | BI19: 20.22 | BJ19: 1.06675245 | BK19: 1.108109472 | BL19: 0.9626778554 | BM19: 0.9464211808 | BN19: =AVERAGE(BM19:BM22) -> 0.9277596145 | BO19: =STDEV(BM19:BM22)/SQRT(BM19:BM22) -> 0.02652106142 | BP19: 0.9541713742 | BQ19: =AVERAGE(BP19:BP22) -> 0.947594398 | BR19: =STDEV(BP19:BP22)/SQRT(BP19:BP22) -> 0.02516038082
A20: CD6 | B20: 13 | C20: 26 | D20: 11.3966 | E20: 5.0072 | F20: 21.1636 | G20: 16.8842 | H20: 16.1564 | I20: 5.4876 | J20: 0.4804 | N20: 13 | O20: 22 | P20: 11.5734 | Q20: 5.031 | R20: 21.5587 | S20: 17.2599 | U20: 5.6865 | V20: -0.6555 | Z20: 23.22 | AA20: 22.74 | AB20: 19.3 | AC20: 18.45 | AD20: 1.27422072 | AE20: =Y19/100*E20 -> 1.21374528 | AF20: 1.049825479 | AG20: =(AVERAGE(Z20:AA20)/100*I20)/($Y19/100*E20) -> 1.03897457 | AH20: =(AVERAGE(AB20:AC20)/100*U20)/($Y19/100*Q20) -> 0.8801264462 | AI20: 0.1588481235 | AK20: 17 | AL20: AR4 | AM20: 5.0126 | AN20: 21.5805 | AO20: 16.6837 | AP20: 16.5679 | AQ20: 5.1709 | AR20: 0.1583 | AV20: 11.4974 | AW20: 5.0386 | AX20: 21.1012 | AY20: 16.6916 | BA20: 5.1942 | BB20: -0.1556 | BF20: 20.1 | BG20: 20.31 | BH20: 19.3 | BI20: 19.65 | BJ20: 1.0393509 | BK20: 1.099990007 | BL20: 0.9448730383 | BM20: 0.9498089422 | BP20: 0.9148724758
A21: AC4 | B21: 16 | C21: 31 | D21: 11.4144 | E21: 5.0191 | F21: 21.1884 | G21: 16.5778 | H21: 16.1693 | I21: 5.1634 | J21: 0.1443 | K21: =AVERAGE(I21:I22) -> 5.12675 | L21: =STDEV(I21:I22) -> 0.05183092706 | M21: =L21/K21*100 -> 1.010989946 | N21: 16 | O21: 25 | P21: 11.4998 | Q21: 5.0633 | R21: 21.1679 | S21: 16.4718 | U21: 4.972 | V21: 0.0913 | Y21: 22.533 | Z21: 19.45 | AA21: 19.5 | AB21: 19.45 | AC21: 20.18 | AD21: 1.0042813 | AE21: =Y21/100*E21 -> 1.130953803 | AF21: 0.8879949803 | AG21: =(AVERAGE(Z21:AA21)/100*I21)/($Y21/100*E21) -> 0.889136362 | AH21: =(AVERAGE(AB21:AC21)/100*U21)/($Y21/100*Q21) -> 0.8635202369 | AI21: 0.02561612507 | AK21: 30 | AL21: AR4 | AM21: 5.0402 | AN21: 21.3683 | AO21: 16.3306 | AP21: 16.3281 | AQ21: 4.7846 | AR21: 0.2556 | AS21: 4.8631 | AT21: 0.1110157646 | AU21: 2.282818874 | AV21: 11.5337 | AW21: 5.0496 | AX21: 21.2191 | AY21: 16.3839 | BA21: 4.8502 | BB21: 0.1994 | BC21: 4.9761 | BD21: 0.1780494875 | BE21: 20.5675 | BF21: 19.74 | BG21: 20.14 | BH21: 20.09 | BI21: 20.48 | BJ21: 0.94448004 | BK21: 1.036643135 | BL21: 0.9110946748 | BM21: 0.9203256239 | BP21: 0.9473188436
A22: AC4 | B22: 16 | C22: 32 | D22: 11.4925 | E22: 5.014 | F22: 21.619 | G22: 16.5826 | H22: 16.605 | I22: 5.0901 | J22: 0.0761 | N22: 16 | O22: 26 | P22: 11.5834 | Q22: 5.0353 | R22: 21.6954 | S22: 16.5985 | U22: 5.0151 | V22: 0.0202 | Z22: 20.57 | AA22: 20.47 | AB22: 19.89 | AC22: 20.21 | AD22: 1.04703357 | AE22: =Y21/100*E22 -> 1.12980462 | AF22: 0.9267386161 | AG22: =(AVERAGE(Z22:AA22)/100*I22)/($Y21/100*E22) -> 0.92448597 | AH22: =(AVERAGE(AB22:AC22)/100*U22)/($Y21/100*Q22) -> 0.8862364472 | AI22: 0.03824952276 | AK22: 30 | AL22: AR4 | AM22: 5.0256 | AN22: 20.7788 | AO22: 16.337 | AP22: 15.7532 | AQ22: 4.9416 | AR22: 0.084 | AV22: 11.5524 | AW22: 5.1789 | AX22: 21.3514 | AY22: 16.6544 | BA22: 5.102 | BB22: 0.0769 | BF22: 18.42 | BG22: 19 | BH22: 20 | BI22: 20.67 | BJ22: 0.91024272 | BK22: 1.03364028 | BL22: 0.8806184682 | BM22: 0.8944827111 | BP22: 0.9740148983
A23: AR4 | B23: 17 | C23: 33 | D23: 11.4825 | E23: 5.0496 | F23: 21.1961 | G23: 16.704 | H23: 16.1465 | I23: 5.2215 | J23: 0.1719 | K23: =AVERAGE(I23:I24) -> 5.1962 | L23: =STDEV(I23:I24) -> 0.03577960313 | M23: =L23/K23*100 -> 0.6885724785 | N23: 17 | O23: 27 | P23: 11.4109 | Q23: 5.0258 | R23: 21.6796 | S23: 16.7204 | U23: 5.3095 | V23: -0.2837 | Y23: 21.9445 | Z23: 20.43 | AA23: 19.74 | AB23: 19.42 | AC23: 20.22 | AD23: 1.06675245 | AE23: =Y23/100*E23 -> 1.108109472 | AF23: 0.9626778554 | AG23: =(AVERAGE(Z23:AA23)/100*I23)/($Y23/100*E23) -> 0.9464211808 | AH23: =(AVERAGE(AB23:AC23)/100*U23)/($Y23/100*Q23) -> 0.9541713742 | AI23: -0.007750193354 | AK23: 7 | AL23: AR6 | AM23: 5.0032 | AN23: 21.1652 | AO23: 16.8521 | AP23: 16.162 | AQ23: 5.384 | AR23: 0.3808 | AS23: 5.47535 | AT23: 0.1291884089 | AU23: 2.35945481 | AV23: 11.4054 | AW23: 5.053 | AX23: 21.274 | AY23: 16.8255 | BA23: 5.4201 | BB23: -0.3671 | BE23: 23.0735 | BF23: 21.12 | BG23: 22.6 | BH23: 23.116 | BI23: 20.722 | BJ23: 1.1371008 | BK23: 1.154413352 | BL23: 0.9850031603 | BM23: 1.019515582 | BN23: =AVERAGE(BM23:BM26) -> 0.9982649891 | BO23: =STDEV(BM23:BM26)/SQRT(BM23:BM26) -> 0.0315809484 | BP23: 1.018979062 | BQ23: =AVERAGE(BP23:BP26) -> 0.9832572111 | BR23: =STDEV(BP23:BP26)/SQRT(BP23:BP26) -> 0.02522511677
A24: AR4 | B24: 17 | C24: 34 | D24: 11.5128 | E24: 5.0126 | F24: 21.5805 | G24: 16.6837 | H24: 16.5679 | I24: 5.1709 | J24: 0.1583 | N24: 17 | O24: 28 | P24: 11.4974 | Q24: 5.0386 | R24: 21.1012 | S24: 16.6916 | U24: 5.1942 | V24: -0.1556 | Z24: 20.1 | AA24: 20.31 | AB24: 19.3 | AC24: 19.65 | AD24: 1.0393509 | AE24: =Y23/100*E24 -> 1.099990007 | AF24: 0.9448730383 | AG24: =(AVERAGE(Z24:AA24)/100*I24)/($Y23/100*E24) -> 0.9498089422 | AH24: =(AVERAGE(AB24:AC24)/100*U24)/($Y23/100*Q24) -> 0.9148724758 | AI24: 0.03493646643 | AK24: 7 | AL24: AR6 | AM24: 5.0365 | AN24: 21.386 | AO24: 17.147 | AP24: 16.3495 | AQ24: 5.5667 | AR24: 0.5302 | AV24: 11.5758 | AW24: 5.0513 | AX24: 21.6957 | AY24: 16.8342 | BA24: 5.2584 | BB24: -0.2071 | BF24: 21.84 | BG24: 21.17 | BH24: 21.898 | BI24: 21.703 | BJ24: 1.21576728 | BK24: 1.162096828 | BL24: 1.046184149 | BM24: 1.03013691 | BP24: 0.9835658334
A25: AD4 | B25: 18 | C25: 35 | D25: 11.4973 | E25: 5.0327 | F25: 21.1318 | G25: 16.4567 | H25: 16.0991 | I25: 4.9594 | J25: -0.0733 | K25: =AVERAGE(I25:I26) -> 4.96025 | L25: =STDEV(I25:I26) -> 0.001202081528 | M25: =L25/K25*100 -> 0.02423429319 | N25: 18 | O25: 29 | P25: 11.5137 | Q25: 5.0133 | R25: 21.65 | S25: 16.4402 | U25: 4.9265 | V25: 0.0868 | Y25: 22.1715 | Z25: 20.9 | AA25: 21.6 | AB25: 20.11 | AC25: 21.35 | AD25: 1.0365146 | AE25: =Y25/100*E25 -> 1.115825081 | AF25: 0.9289221206 | AG25: =(AVERAGE(Z25:AA25)/100*I25)/($Y25/100*E25) -> 0.9444782327 | AH25: =(AVERAGE(AB25:AC25)/100*U25)/($Y25/100*Q25) -> 0.918795838 | AI25: 0.02568239468 | AK25: 38 | AL25: AR6 | AM25: 5.0129 | AN25: 21.8139 | AO25: 16.5459 | AP25: 16.801 | AQ25: 4.9872 | AR25: 0.0257 | AS25: 5.058 | AT25: 0.1001263202 | AU25: 1.979563468 | AV25: 11.5119 | AW25: 5.038 | AX25: 21.2066 | AY25: 16.7536 | BA25: 5.2417 | BB25: -0.2037 | BC25: 5.18735 | BD25: 0.07686250711 | BE25: 21.434 | BF25: 20.68 | BG25: 20.79 | BH25: 20.06 | BI25: 19.58 | BJ25: 1.03135296 | BK25: 1.074464986 | BL25: 0.9598758205 | BM25: 0.9624286817 | BP25: 0.9620871671
A26: AD4 | B26: 18 | C26: 36 | D26: 11.4114 | E26: 5.0215 | F26: 21.5634 | G26: 16.3725 | H26: 16.5419 | I26: 4.9611 | J26: -0.0604 | N26: 18 | O26: 30 | P26: 11.5779 | Q26: 5.0175 | R26: 21.7573 | S26: 16.5099 | U26: 4.932 | V26: 0.0855 | Z26: 21.02 | AA26: 20.86 | AB26: 20.01 | AC26: 20.8 | AD26: 1.04282322 | AE26: =Y25/100*E26 -> 1.113341872 | AF26: 0.9366603788 | AG26: =(AVERAGE(Z26:AA26)/100*I26)/($Y25/100*E26) -> 0.9330955438 | AH26: =(AVERAGE(AB26:AC26)/100*U26)/($Y25/100*Q26) -> 0.9046429642 | AI26: 0.02845257968 | AK26: 38 | AL26: AR6 | AM26: 5.0114 | AN26: 21.1316 | AO26: 16.6687 | AP26: 16.1202 | AQ26: 5.1288 | AR26: -0.1174 | AV26: 11.5345 | AW26: 5.0275 | AX26: 21.5647 | AY26: 16.6675 | BA26: 5.133 | BB26: -0.1055 | BF26: 20.22 | BG26: 20.87 | BH26: 20.73 | BI26: 19.93 | BJ26: 1.03704336 | BK26: 1.074143476 | BL26: 0.9654607445 | BM26: 0.9809787831 | BP26: 0.9683967812
A27: LC6 | B27: 21 | C27: 41 | D27: 11.507 | E27: 5.0115 | F27: 21.5509 | G27: 16.5438 | H27: 16.5394 | I27: 5.0368 | J27: 0.0253 | K27: =AVERAGE(I27:I28) -> 4.9502 | L27: =STDEV(I27:I28) -> 0.1224708945 | M27: =L27/K27*100 -> 2.474059523 | N27: 21 | O27: 33 | P27: 11.5821 | Q27: 5.038 | R27: 21.155 | S27: 16.8139 | U27: 5.2318 | V27: -0.1938 | Y27: 23.1705 | Z27: 22.02 | AA27: 21.86 | AB27: 18.87 | AC27: 19.68 | AD27: 1.10910336 | AE27: =Y27/100*E27 -> 1.161189607 | AF27: 0.9551440633 | AG27: =(AVERAGE(Z27:AA27)/100*I27)/($Y27/100*E27) -> 0.9516739668 | AH27: =(AVERAGE(AB27:AC27)/100*U27)/($Y27/100*Q27) -> 0.8638770797 | AI27: 0.08779688715 | AK27: 11 | AL27: CC6 | AM27: 5.0045 | AN27: 21.2136 | AO27: 16.9402 | AP27: 16.2091 | AQ27: 5.3636 | AR27: 0.3591 | AS27: 5.32365 | AT27: 0.05649783182 | AU27: 1.061261199 | AV27: 11.4172 | AW27: 5.0574 | AX27: 21.435 | AY27: 17.0545 | BA27: 5.6373 | BB27: -0.5799 | BE27: 22.8645 | BF27: 21.77 | BG27: 22.7 | BH27: 19.18 | BI27: 22.16 | BJ27: 1.16765572 | BK27: 1.144253903 | BL27: 1.020451595 | BM27: 1.042248104 | BN27: =AVERAGE(BM27:BM30) -> 0.9358470105 | BO27: =STDEV(BM27:BM30)/SQRT(BM27:BM30) -> 0.1183655403 | BP27: 1.007679935 | BQ27: =AVERAGE(BP27:BP30) -> 0.9456806628 | BR27: =STDEV(BP27:BP30)/SQRT(BP27:BP30) -> 0.06749492925
A28: LC6 | B28: 21 | C28: 42 | D28: 11.4986 | E28: 5.0465 | F28: 21.683 | G28: 16.3622 | H28: 16.6365 | I28: 4.8636 | J28: -0.1829 | N28: 21 | O28: 34 | P28: 11.4137 | Q28: 5.0317 | R28: 21.784 | S28: 16.5723 | U28: 5.1586 | V28: -0.1269 | Z28: 21.64 | AA28: 21.77 | AB28: 25.34 | AC28: 20.12 | AD28: 1.05248304 | AE28: =Y27/100*E28 -> 1.169299282 | AF28: 0.9000972255 | AG28: =(AVERAGE(Z28:AA28)/100*I28)/($Y27/100*E28) -> 0.9028008447 | AH28: =(AVERAGE(AB28:AC28)/100*U28)/($Y27/100*Q28) -> 1.005729396 | AI28: -0.1029285515 | AK28: 11 | AL28: CC6 | AM28: 5.0188 | AN28: 21.7283 | AO28: 16.7605 | AP28: 16.7095 | AQ28: 5.2837 | AR28: 0.2649 | AV28: 11.4786 | AW28: 5.0667 | AX28: 21.2022 | AY28: 17.1712 | BA28: 5.6926 | BB28: -0.6259 | BF28: 22.15 | BG28: 22.81 | BH28: 20.46 | BI28: 20.23 | BJ28: 1.17033955 | BK28: 1.147523526 | BL28: 1.019882838 | BM28: 1.03507748 | BP28: 0.999727097
A29: LR6 | B29: 22 | C29: 43 | D29: 11.4972 | E29: 5.0163 | F29: 21.1211 | G29: 16.5472 | H29: 16.1048 | I29: 5.05 | J29: 0.0337 | K29: =AVERAGE(I29:I30) -> 5.0547 | L29: =STDEV(I29:I30) -> 0.006646803743 | M29: =L29/K29*100 -> 0.1314974923 | N29: 22 | O29: 35 | P29: 11.5105 | Q29: 5.0436 | R29: 21.1504 | S29: 16.836 | U29: 5.3255 | V29: -0.2819 | Y29: 23.4205 | Z29: 21.81 | AA29: 21.9 | AB29: 20.26 | AC29: 20.28 | AD29: 1.101405 | AE29: =Y29/100*E29 -> 1.174842542 | AF29: 0.9374915881 | AG29: =(AVERAGE(Z29:AA29)/100*I29)/($Y29/100*E29) -> 0.9394258899 | AH29: =(AVERAGE(AB29:AC29)/100*U29)/($Y29/100*Q29) -> 0.9138550985 | AI29: 0.02557079138 | AK29: 27 | AL29: CC6 | AM29: 5.0223 | AN29: 21.7666 | AO29: 16.4873 | AP29: 16.7443 | AQ29: 5.0234 | AR29: -0.0011 | AS29: 4.9114 | AT29: 0.158391919 | AU29: 3.224985116 | AV29: 11.5117 | AW29: 5.0448 | AX29: 21.1232 | AY29: 16.5946 | BA29: 5.0829 | BB29: -0.0381 | BC29: 5.03715 | BD29: 0.06470027048 | BE29: 22.2855 | BF29: 19.48 | BG29: 18.86 | BH29: 19.15 | BI29: 19.6 | BJ29: 0.97855832 | BK29: 1.119244666 | BL29: 0.8743024196 | BM29: 0.8603889827 | BP29: 0.8759653773
A30: LR6 | B30: 22 | C30: 44 | D30: 11.494 | E30: 5.0131 | F30: 20.6457 | G30: 16.5534 | H30: 15.6326 | I30: 5.0594 | J30: 0.0463 | N30: 22 | O30: 36 | P30: 11.5041 | Q30: 5.0158 | R30: 21.6817 | S30: 16.7852 | U30: 5.2811 | V30: -0.2653 | Z30: 21.01 | AA30: 21.89 | AB30: 19.12 | AC30: 20.03 | AD30: 1.06297994 | AE30: =Y29/100*E30 -> 1.174093085 | AF30: 0.9053625757 | AG30: =(AVERAGE(Z30:AA30)/100*I30)/($Y29/100*E30) -> 0.9243230485 | AH30: =(AVERAGE(AB30:AC30)/100*U30)/($Y29/100*Q30) -> 0.8800144193 | AI30: 0.04430862922 | AK30: 27 | AL30: CC6 | AM30: 5.0467 | AN30: 21.1732 | AO30: 16.2522 | AP30: 16.1265 | AQ30: 4.7994 | AR30: 0.2473 | AV30: 11.4456 | AW30: 5.0518 | AX30: 21.0531 | AY30: 16.437 | BA30: 4.9914 | BB30: 0.0604 | BF30: 18.07 | BG30: 19.69 | BH30: 20.07 | BI30: 20.5 | BJ30: 0.86725158 | BK30: 1.124682329 | BL30: 0.7711080347 | BM30: 0.8056734751 | BP30: 0.8993502418
A31: LD6 | B31: 23 | C31: 45 | D31: 11.4906 | E31: 5.0094 | F31: 21.1768 | G31: 16.6723 | H31: 16.1674 | I31: 5.1817 | J31: 0.1723 | K31: =AVERAGE(I31:I32) -> 5.26855 | L31: =STDEV(I31:I32) -> 0.1228244479 | M31: =L31/K31*100 -> 2.331276118 | N31: 23 | O31: 37 | P31: 11.4914 | Q31: 5.0297 | R31: 21.1817 | S31: 16.8241 | U31: 5.3327 | V31: -0.303 | Y31: 23.2635 | Z31: 21.31 | AA31: 19.93 | AB31: 20.42 | AC31: 20.73 | AD31: 1.10422027 | AE31: =Y31/100*E31 -> 1.165361769 | AF31: 0.9475343188 | AG31: =(AVERAGE(Z31:AA31)/100*I31)/($Y31/100*E31) -> 0.9168539491 | AH31: =(AVERAGE(AB31:AC31)/100*U31)/($Y31/100*Q31) -> 0.9377128323 | AI31: -0.02085888323 | AK31: 13 | AL31: CD6 | AM31: 5.0155 | AN31: 21.6683 | AO31: 16.8687 | AP31: 16.6528 | AQ31: 5.3733 | AR31: 0.3578 | AS31: 5.43045 | AT31: 0.08082230509 | AU31: 1.4883169 | AV31: 11.4947 | AW31: 5.0658 | AX31: 21.5797 | AY31: 17.1302 | BA31: 5.6355 | BB31: -0.5697 | BE31: 24.24 | BF31: 21.62 | BG31: 22.84 | BH31: 18.98 | BI31: 18.7 | BJ31: 1.16170746 | BK31: 1.2157572 | BL31: 0.9555423237 | BM31: 0.9825025836 | BN31: =AVERAGE(BM31:BM34) -> 0.9441017033 | BO31: =STDEV(BM31:BM34)/SQRT(BM31:BM34) -> 0.08336212917 | BP31: 0.8646347727 | BQ31: =AVERAGE(BP31:BP34) -> 0.8459643036 | BR31: =STDEV(BP31:BP34)/SQRT(BP31:BP34) -> 0.0432705185
A32: LD6 | B32: 23 | C32: 46 | D32: 11.4947 | E32: 5.0371 | F32: 21.5863 | G32: 16.8501 | H32: 16.5492 | I32: 5.3554 | J32: 0.3183 | N32: 23 | O32: 38 | P32: 11.4955 | Q32: 5.0224 | R32: 21.753 | S32: 16.7114 | U32: 5.2159 | V32: -0.1935 | Z32: 22.18 | AA32: 21.15 | AB32: 20.52 | AC32: 21.12 | AD32: 1.18782772 | AE32: =Y31/100*E32 -> 1.171805758 | AF32: 1.013672882 | AG32: =(AVERAGE(Z32:AA32)/100*I32)/($Y31/100*E32) -> 0.9901362931 | AH32: =(AVERAGE(AB32:AC32)/100*U32)/($Y31/100*Q32) -> 0.9294448561 | AI32: 0.06069143699 | AK32: 13 | AL32: CD6 | AM32: 5.0072 | AN32: 21.1636 | AO32: 16.8842 | AP32: 16.1564 | AQ32: 5.4876 | AR32: 0.4804 | AV32: 11.5734 | AW32: 5.031 | AX32: 21.5587 | AY32: 17.2599 | BA32: 5.6865 | BB32: -0.6555 | BF32: 23.22 | BG32: 22.74 | BH32: 19.3 | BI32: 18.45 | BJ32: 1.27422072 | BK32: 1.21374528 | BL32: 1.049825479 | BM32: 1.03897457 | BP32: 0.8801264462
A33: CR6 | B33: 26 | C33: 1 | D33: 11.5508 | E33: 5.0133 | F33: 21.4035 | G33: 16.33 | H33: =F33-E33 -> 16.3902 | I33: =G33-D33 -> 4.7792 | J33: =E33-I33 -> 0.2341 | K33: =AVERAGE(I33:I34) -> 4.7641 | L33: =STDEV(I33:I34) -> 0.02135462479 | M33: =L33/K33*100 -> 0.4482404818 | N33: 26 | O33: 1 | P33: 11.4785 | Q33: 5.1797 | R33: 21.7875 | S33: 16.5334 | U33: =S33-P33 -> 5.0549 | V33: =Q33-U33 -> 0.1248 | W33: =AVERAGE(U33:U34) -> 5.1199 | X33: =STDEV(U33:U34) -> 0.09192388155 | Y33: 22.3815 | Z33: 19.75 | AA33: 19.24 | AB33: 20.45 | AC33: 20.18 | AD33: 0.943892 | AE33: =Y33/100*E33 -> 1.12205174 | AF33: 0.8412196753 | AG33: =(AVERAGE(Z33:AA33)/100*I33)/($Y33/100*E33) -> 0.830358358 | AH33: =(AVERAGE(AB33:AC33)/100*U33)/($Y33/100*Q33) -> 0.8857998428 | AI33: -0.05544148478 | AK33: 28 | AL33: CD6 | AM33: 5.0313 | AN33: 21.6673 | AO33: 16.3211 | AP33: 16.636 | AQ33: 4.9129 | AR33: 0.1184 | AS33: 4.9174 | AT33: 0.006363961031 | AU33: 0.1294171926 | AV33: 11.5363 | AW33: 5.1069 | AX33: 20.8503 | AY33: 16.726 | BA33: 5.1897 | BB33: -0.0828 | BC33: 5.28245 | BD33: 0.1311683079 | BE33: 20.9995 | BF33: 18.05 | BG33: 18.67 | BH33: 18.12 | BI33: 17.04 | BJ33: 0.88677845 | BK33: 1.056547843 | BL33: 0.8393168899 | BM33: 0.8537317506 | BP33: 0.8507360099
A34: CR6 | B34: 26 | C34: 2 | D34: 11.4134 | E34: 5.017 | F34: 21.1859 | G34: 16.1624 | H34: =F34-E34 -> 16.1689 | I34: =G34-D34 -> 4.749 | J34: =E34-I34 -> 0.268 | O34: 2 | P34: 11.4218 | Q34: 5.1868 | R34: 21.2862 | S34: 16.6067 | U34: =S34-P34 -> 5.1849 | V34: =Q34-U34 -> 0.0019 | Z34: 20.35 | AA34: 19.13 | AB34: 19.7 | AC34: 20.39 | AD34: 0.9664215 | AE34: =Y33/100*E34 -> 1.122879855 | AF34: 0.8606633165 | AG34: =(AVERAGE(Z34:AA34)/100*I34)/($Y33/100*E34) -> 0.8348645635 | AH34: =(AVERAGE(AB34:AC34)/100*U34)/($Y33/100*Q34) -> 0.8952776725 | AI34: -0.06041310896 | AK34: 28 | AL34: CD6 | AM34: 5 | AN34: 21.4716 | AO34: 16.3639 | AP34: 16.4716 | AQ34: 4.9219 | AR34: 0.0781 | AV34: 11.5432 | AW34: 5.0115 | AX34: 21.693 | AY34: 16.9184 | BA34: 5.3752 | BB34: -0.3637 | BF34: 19.6 | BG34: 18.85 | BH34: 15.27 | BI34: 15.6 | BJ34: 0.9646924 | BK34: 1.049975 | BL34: 0.9187765423 | BM34: 0.9011979095 | BP34: 0.7883599857
A35: CC6 | B35: 27 | C35: 3 | D35: 11.4639 | E35: 5.0223 | F35: 21.7666 | G35: 16.4873 | H35: 16.7443 | I35: 5.0234 | J35: -0.0011 | K35: =AVERAGE(I35:I36) -> 4.9114 | L35: =STDEV(I35:I36) -> 0.158391919 | M35: =L35/K35*100 -> 3.224985116 | N35: 27 | O35: 3 | P35: 11.5117 | Q35: 5.0448 | R35: 21.1232 | S35: 16.5946 | U35: 5.0829 | V35: -0.0381 | W35: =AVERAGE(U35:U36) -> 5.03715 | X35: =STDEV(U35:U36) -> 0.06470027048 | Y35: 22.2855 | Z35: 19.48 | AA35: 18.86 | AB35: 19.15 | AC35: 19.6 | AD35: 0.97855832 | AE35: =Y35/100*E35 -> 1.119244666 | AF35: 0.8743024196 | AG35: =(AVERAGE(Z35:AA35)/100*I35)/($Y35/100*E35) -> 0.8603889827 | AH35: =(AVERAGE(AB35:AC35)/100*U35)/($Y35/100*Q35) -> 0.8759653773 | AI35: -0.01557639458 | AK35: 12 | AL35: CR6 | AM35: 5.0404 | AN35: 21.4568 | AO35: 17.0684 | AP35: 16.4164 | AQ35: 5.5589 | AR35: 0.5185 | AS35: 5.40955 | AT35: 0.2112127955 | AU35: 3.904442986 | AV35: 11.5812 | AW35: 5.0113 | AX35: 21.5935 | AY35: 17.4345 | BA35: 5.8533 | BB35: -0.842 | BE35: 23.1015 | BF35: 19.78 | BG35: 20.55 | BH35: 18.81 | BI35: 19.43 | BJ35: 1.09955042 | BK35: 1.164408006 | BL35: 0.9442999484 | BM35: 0.9626799019 | BN35: =AVERAGE(BM35:BM38) -> 0.8964320797 | BO35: =STDEV(BM35:BM38)/SQRT(BM35:BM38) -> 0.07515910385 | BP35: 0.9667141806 | BQ35: =AVERAGE(BP35:BP38) -> 0.9350784614 | BR35: =STDEV(BP35:BP38)/SQRT(BP35:BP38) -> 0.05353913346
A36: CC6 | B36: 27 | C36: 4 | D36: 11.4528 | E36: 5.0467 | F36: 21.1732 | G36: 16.2522 | H36: 16.1265 | I36: 4.7994 | J36: 0.2473 | O36: 4 | P36: 11.4456 | Q36: 5.0518 | R36: 21.0531 | S36: 16.437 | U36: 4.9914 | V36: 0.0604 | Z36: 18.07 | AA36: 19.69 | AB36: 20.07 | AC36: 20.5 | AD36: 0.86725158 | AE36: =Y35/100*E36 -> 1.124682329 | AF36: 0.7711080347 | AG36: =(AVERAGE(Z36:AA36)/100*I36)/($Y35/100*E36) -> 0.8056734751 | AH36: =(AVERAGE(AB36:AC36)/100*U36)/($Y35/100*Q36) -> 0.8993502418 | AI36: -0.09367676665 | AK36: 12 | AL36: CR6 | AM36: 5.0481 | AN36: 21.1498 | AO36: 16.8372 | AP36: 16.1017 | AQ36: 5.2602 | AR36: 0.2121 | AV36: 11.4081 | AW36: 5.0218 | AX36: 21.1085 | AY36: 17.371 | BA36: 5.9629 | BB36: -0.9411 | BF36: 20.67 | BG36: 21.8 | BH36: 19.52 | BI36: 19.1 | BJ36: 1.08728334 | BK36: 1.166186822 | BL36: 0.9323406164 | BM36: 0.9578254954 | BP36: 0.99252215
A37: CD6 | B37: 28 | C37: 5 | D37: 11.4082 | E37: 5.0313 | F37: 21.6673 | G37: 16.3211 | H37: 16.636 | I37: 4.9129 | J37: 0.1184 | K37: =AVERAGE(I37:I38) -> 4.9174 | L37: =STDEV(I37:I38) -> 0.006363961031 | M37: =L37/K37*100 -> 0.1294171926 | N37: 28 | O37: 5 | P37: 11.5363 | Q37: 5.1069 | R37: 20.8503 | S37: 16.726 | U37: 5.1897 | V37: -0.0828 | W37: =AVERAGE(U37:U38) -> 5.28245 | X37: =STDEV(U37:U38) -> 0.1311683079 | Y37: 20.9995 | Z37: 18.05 | AA37: 18.67 | AB37: 18.12 | AC37: 17.04 | AD37: 0.88677845 | AE37: =Y37/100*E37 -> 1.056547843 | AF37: 0.8393168899 | AG37: =(AVERAGE(Z37:AA37)/100*I37)/($Y37/100*E37) -> 0.8537317506 | AH37: =(AVERAGE(AB37:AC37)/100*U37)/($Y37/100*Q37) -> 0.8507360099 | AI37: 0.002995740642 | AK37: 26 | AL37: CR6 | AM37: 5.0133 | AN37: 21.4035 | AO37: 16.33 | AP37: 16.3902 | AQ37: 4.7792 | AR37: 0.2341 | AS37: 4.7641 | AT37: 0.02135462479 | AU37: 0.4482404818 | AV37: 11.4785 | AW37: 5.1797 | AX37: 21.7875 | AY37: 16.5334 | BA37: 5.0549 | BB37: 0.1248 | BC37: 5.1199 | BD37: 0.09192388155 | BE37: 22.3815 | BF37: 19.75 | BG37: 19.24 | BH37: 20.45 | BI37: 20.18 | BJ37: 0.943892 | BK37: 1.12205174 | BL37: 0.8412196753 | BM37: 0.830358358 | BP37: 0.8857998428
A38: CD6 | B38: 28 | C38: 6 | D38: 11.442 | E38: 5 | F38: 21.4716 | G38: 16.3639 | H38: 16.4716 | I38: 4.9219 | J38: 0.0781 | O38: 6 | P38: 11.5432 | Q38: 5.0115 | R38: 21.693 | S38: 16.9184 | U38: 5.3752 | V38: -0.3637 | Z38: 19.6 | AA38: 18.85 | AB38: 15.27 | AC38: 15.6 | AD38: 0.9646924 | AE38: =Y37/100*E38 -> 1.049975 | AF38: 0.9187765423 | AG38: =(AVERAGE(Z38:AA38)/100*I38)/($Y37/100*E38) -> 0.9011979095 | AH38: =(AVERAGE(AB38:AC38)/100*U38)/($Y37/100*Q38) -> 0.7883599857 | AI38: 0.1128379238 | AK38: 26 | AL38: CR6 | AM38: 5.017 | AN38: 21.1859 | AO38: 16.1624 | AP38: 16.1689 | AQ38: 4.749 | AR38: 0.268 | AV38: 11.4218 | AW38: 5.1868 | AX38: 21.2862 | AY38: 16.6067 | BA38: 5.1849 | BB38: 0.0019 | BF38: 20.35 | BG38: 19.13 | BH38: 19.7 | BI38: 20.39 | BJ38: 0.9664215 | BK38: 1.122879855 | BL38: 0.8606633165 | BM38: 0.8348645635 | BP38: 0.8952776725
A39: AR4 | B39: 30 | C39: 7 | D39: 11.546 | E39: 5.0402 | F39: 21.3683 | G39: 16.3306 | H39: 16.3281 | I39: 4.7846 | J39: 0.2556 | K39: =AVERAGE(I39:I40) -> 4.8631 | L39: =STDEV(I39:I40) -> 0.1110157646 | M39: =L39/K39*100 -> 2.282818874 | N39: 30 | O39: 7 | P39: 11.5337 | Q39: 5.0496 | R39: 21.2191 | S39: 16.3839 | U39: 4.8502 | V39: 0.1994 | W39: =AVERAGE(U39:U40) -> 4.9761 | X39: =STDEV(U39:U40) -> 0.1780494875 | Y39: 20.5675 | Z39: 19.74 | AA39: 20.14 | AB39: 20.09 | AC39: 20.48 | AD39: 0.94448004 | AE39: =Y39/100*E39 -> 1.036643135 | AF39: 0.9110946748 | AG39: =(AVERAGE(Z39:AA39)/100*I39)/($Y39/100*E39) -> 0.9203256239 | AH39: =(AVERAGE(AB39:AC39)/100*U39)/($Y39/100*Q39) -> 0.9473188436 | AI39: -0.02699321966 | AK39: 1 | AL39: LC4 | AM39: 5.0234 | AN39: 21.6385 | AO39: 16.5502 | AP39: 16.6151 | AQ39: 5.1557 | AR39: 0.1323 | AS39: 5.2042 | AT39: 0.06858935778 | AU39: 1.317961604 | AV39: 11.5149 | AW39: 5.0396 | AX39: 21.4913 | AY39: 17.5341 | BA39: 6.0192 | BB39: -0.9796 | BE39: 23.99 | BF39: 22.15 | BG39: 22.94 | BH39: 19.418 | BI39: 20.286 | BJ39: 1.14198755 | BK39: 1.20511366 | BL39: 0.9476181276 | BM39: 0.964516961 | BN39: =AVERAGE(BM39:BM42) -> 0.9490526639 | BO39: =STDEV(BM39:BM42)/SQRT(BM39:BM42) -> 0.0640275101 | BP39: 0.9883635604 | BQ39: =AVERAGE(BP39:BP42) -> 0.942715736 | BR39: =STDEV(BP39:BP42)/SQRT(BP39:BP42) -> 0.04982595612
A40: AR4 | B40: 30 | C40: 8 | D40: 11.3954 | E40: 5.0256 | F40: 20.7788 | G40: 16.337 | H40: 15.7532 | I40: 4.9416 | J40: 0.084 | O40: 8 | P40: 11.5524 | Q40: 5.1789 | R40: 21.3514 | S40: 16.6544 | U40: 5.102 | V40: 0.0769 | Z40: 18.42 | AA40: 19 | AB40: 20 | AC40: 20.67 | AD40: 0.91024272 | AE40: =Y39/100*E40 -> 1.03364028 | AF40: 0.8806184682 | AG40: =(AVERAGE(Z40:AA40)/100*I40)/($Y39/100*E40) -> 0.8944827111 | AH40: =(AVERAGE(AB40:AC40)/100*U40)/($Y39/100*Q40) -> 0.9740148983 | AI40: -0.07953218713 | AK40: 1 | AL40: LC4 | AM40: 5.026 | AN40: 21.2383 | AO40: 16.766 | AP40: 16.2123 | AQ40: 5.2527 | AR40: 0.2267 | AV40: 11.5815 | AW40: 5.0215 | AX40: 21.1797 | AY40: 17.8402 | BA40: 6.2587 | BB40: -1.2372 | BF40: 23.25 | BG40: 24.02 | BH40: 18.666 | BI40: 19.165 | BJ40: 1.22125275 | BK40: 1.2057374 | BL40: 1.012867935 | BM40: 1.029640156 | BP40: 0.9827391226
A41: AC4 | B41: 31 | C41: 9 | D41: 11.495 | E41: 5.0207 | F41: 21.5623 | G41: 16.6307 | H41: 16.5416 | I41: 5.1357 | J41: -0.115 | K41: =AVERAGE(I41:I42) -> 5.0114 | L41: =STDEV(I41:I42) -> 0.1757867458 | M41: =L41/K41*100 -> 3.507737275 | N41: 31 | O41: 9 | P41: 11.4046 | Q41: 5.0186 | R41: 21.6518 | S41: 16.3735 | U41: 4.9689 | V41: 0.0497 | W41: =AVERAGE(U41:U42) -> 4.9076 | X41: =STDEV(U41:U42) -> 0.08669129137 | Y41: 20.811 | Z41: 19.54 | AA41: 20.73 | AB41: 19.92 | AC41: 20.5 | AD41: 1.00351578 | AE41: =Y41/100*E41 -> 1.044857877 | AF41: 0.9604328034 | AG41: =(AVERAGE(Z41:AA41)/100*I41)/($Y41/100*E41) -> 0.9896783264 | AH41: =(AVERAGE(AB41:AC41)/100*U41)/($Y41/100*Q41) -> 0.9615038745 | AI41: 0.0281744519 | AK41: 43 | AL41: LC4 | AM41: 5.0195 | AN41: 21.7663 | AO41: 16.2891 | AP41: 16.7468 | AQ41: 4.7561 | AR41: 0.2634 | AS41: 4.77365 | AT41: 0.02481944802 | AU41: 0.5199260109 | AV41: 11.4038 | AW41: 5.0188 | AX41: 21.4756 | AY41: 16.3262 | BA41: 4.9224 | BB41: 0.0964 | BC41: 4.93145 | BD41: 0.01279863274 | BE41: 21.039 | BF41: 19.55 | BG41: 19.75 | BH41: 19.71 | BI41: 18.97 | BJ41: 0.92981755 | BK41: 1.056052605 | BL41: 0.8804651829 | BM41: 0.8849688411 | BP41: 0.9015885526
A42: AC4 | B42: 31 | C42: 10 | D42: 11.5327 | E42: 5.026 | F42: 21.7048 | G42: 16.4198 | H42: 16.6788 | I42: 4.8871 | J42: 0.1389 | O42: 10 | P42: 11.5356 | Q42: 5.098 | R42: 21.2433 | S42: 16.3819 | U42: 4.8463 | V42: 0.2517 | Z42: 20.85 | AA42: 21.17 | AB42: 19.62 | AC42: 20.22 | AD42: 1.01896035 | AE42: =Y41/100*E42 -> 1.04596086 | AF42: 0.974185927 | AG42: =(AVERAGE(Z42:AA42)/100*I42)/($Y41/100*E42) -> 0.9816616943 | AH42: =(AVERAGE(AB42:AC42)/100*U42)/($Y41/100*Q42) -> 0.9099276213 | AI42: 0.071734073 | AK42: 43 | AL42: LC4 | AM42: 5.0148 | AN42: 21.1371 | AO42: 16.3256 | AP42: 16.1223 | AQ42: 4.7912 | AR42: 0.2236 | AV42: 11.5492 | AW42: 5.0172 | AX42: 21.1698 | AY42: 16.4897 | BA42: 4.9405 | BB42: 0.0767 | BF42: 19.98 | BG42: 20.41 | BH42: 19.03 | BI42: 19.35 | BJ42: 0.95728176 | BK42: 1.055063772 | BL42: 0.9073212306 | BM42: 0.9170846973 | BP42: 0.8981717086
A43: AD4 | B43: 32 | C43: 11 | D43: 11.5381 | E43: 5.009 | F43: 21.1492 | G43: 15.9813 | H43: 16.1402 | I43: 4.4432 | J43: 0.5658 | K43: =AVERAGE(I43:I44) -> 4.6041 | L43: =STDEV(I43:I44) -> 0.2275469622 | M43: =L43/K43*100 -> 4.942268026 | N43: 32 | O43: 11 | P43: 11.5236 | Q43: 5.0417 | R43: 21.8347 | S43: 16.8292 | U43: 5.3056 | V43: -0.2639 | W43: =AVERAGE(U43:U44) -> 5.67125 | X43: =STDEV(U43:U44) -> 0.5171071891 | Y43: 21.757 | Z43: 20.77 | AA43: 21.14 | AB43: 16.76 | AC43: 17.77 | AD43: 0.92285264 | AE43: =Y43/100*E43 -> 1.08980813 | AF43: 0.8468028588 | AG43: =(AVERAGE(Z43:AA43)/100*I43)/($Y43/100*E43) -> 0.8543453975 | AH43: =(AVERAGE(AB43:AC43)/100*U43)/($Y43/100*Q43) -> 0.835074218 | AI43: 0.0192711795 | AK43: 21 | AL43: LC6 | AM43: 5.0115 | AN43: 21.5509 | AO43: 16.5438 | AP43: 16.5394 | AQ43: 5.0368 | AR43: 0.0253 | AS43: 4.9502 | AT43: 0.1224708945 | AU43: 2.474059523 | AV43: 11.5821 | AW43: 5.038 | AX43: 21.155 | AY43: 16.8139 | BA43: 5.2318 | BB43: -0.1938 | BE43: 23.1705 | BF43: 22.02 | BG43: 21.86 | BH43: 18.87 | BI43: 19.68 | BJ43: 1.10910336 | BK43: 1.161189607 | BL43: 0.9551440633 | BM43: 0.9516739668 | BN43: =AVERAGE(BM43:BM46) -> 0.9221371077 | BO43: =STDEV(BM43:BM46)/SQRT(BM43:BM46) -> 0.02145970379 | BP43: 0.8638770797 | BQ43: =AVERAGE(BP43:BP46) -> 0.9081790932 | BR43: =STDEV(BP43:BP46)/SQRT(BP43:BP46) -> 0.07247358232
A44: AD4 | B44: 32 | C44: 12 | D44: 11.4159 | E44: 5.0124 | F44: 21.312 | G44: 16.1809 | H44: 16.2996 | I44: 4.765 | J44: 0.2474 | O44: 12 | P44: 11.4134 | Q44: 5.0793 | R44: 21.2364 | S44: 17.4503 | U44: 6.0369 | V44: -0.9576 | Z44: 19.48 | AA44: 21.05 | AB44: 16.27 | AC44: 16.61 | AD44: 0.928222 | AE44: =Y43/100*E44 -> 1.090547868 | AF44: 0.851152001 | AG44: =(AVERAGE(Z44:AA44)/100*I44)/($Y43/100*E44) -> 0.8854515041 | AH44: =(AVERAGE(AB44:AC44)/100*U44)/($Y43/100*Q44) -> 0.8980756451 | AI44: -0.01262414106 | AK44: 21 | AL44: LC6 | AM44: 5.0465 | AN44: 21.683 | AO44: 16.3622 | AP44: 16.6365 | AQ44: 4.8636 | AR44: -0.1829 | AV44: 11.4137 | AW44: 5.0317 | AX44: 21.784 | AY44: 16.5723 | BA44: 5.1586 | BB44: -0.1269 | BF44: 21.64 | BG44: 21.77 | BH44: 25.34 | BI44: 20.12 | BJ44: 1.05248304 | BK44: 1.169299282 | BL44: 0.9000972255 | BM44: 0.9028008447 | BP44: 1.005729396
A45: LR6 | B45: 34 | C45: 13 | D45: 11.4693 | E45: 5.0291 | F45: 21.6017 | G45: 16.6005 | H45: 16.5726 | I45: 5.1312 | J45: -0.1021 | K45: =AVERAGE(I45:I46) -> 5.12555 | L45: =STDEV(I45:I46) -> 0.007990306627 | M45: =L45/K45*100 -> 0.1558916922 | N45: 34 | O45: 13 | P45: 11.5072 | Q45: 5.0158 | R45: 21.5326 | S45: 16.5101 | U45: 5.0029 | V45: 0.0129 | W45: =AVERAGE(U45:U46) -> 5.1807 | X45: =STDEV(U45:U46) -> 0.2514471714 | Y45: 21.31 | Z45: 19.02 | AA45: 18.71 | AB45: 17.23 | AC45: 17.48 | AD45: 0.97595424 | AE45: =Y45/100*E45 -> 1.07170121 | AF45: 0.9106588953 | AG45: =(AVERAGE(Z45:AA45)/100*I45)/($Y45/100*E45) -> 0.9032376477 | AH45: =(AVERAGE(AB45:AC45)/100*U45)/($Y45/100*Q45) -> 0.8123118323 | AI45: 0.09092581545 | AK45: 35 | AL45: LC6 | AM45: 5.0339 | AN45: 21.8226 | AO45: 16.5523 | AP45: 16.7887 | AQ45: 5.0349 | AR45: -0.001 | AS45: 5.09125 | AT45: 0.07969093424 | AU45: 1.565252821 | AV45: 11.5568 | AW45: 5.0215 | AX45: 21.5893 | AY45: 16.0083 | BA45: 4.4515 | BB45: 0.57 | BC45: 4.62295 | BD45: 0.2424669153 | BE45: 20.9795 | BF45: 18.92 | BG45: 19.43 | BH45: 20.24 | BI45: 20.59 | BJ45: 0.95260308 | BK45: 1.05608705 | BL45: 0.9020118934 | BM45: 0.9141690304 | BP45: 0.8626351717
A46: LR6 | B46: 34 | C46: 14 | D46: 11.4438 | E46: 5.0317 | F46: 21.162 | G46: 16.5637 | H46: 16.1303 | I46: 5.1199 | J46: -0.0882 | O46: 14 | P46: 11.4389 | Q46: 5.012 | R46: 21.1845 | S46: 16.7974 | U46: 5.3585 | V46: -0.3465 | Z46: 18.63 | AA46: 18.98 | AB46: 17.47 | AC46: 18.81 | AD46: 0.95383737 | AE46: =Y45/100*E46 -> 1.07225527 | AF46: 0.8895618391 | AG46: =(AVERAGE(Z46:AA46)/100*I46)/($Y45/100*E46) -> 0.8979178951 | AH46: =(AVERAGE(AB46:AC46)/100*U46)/($Y45/100*Q46) -> 0.9100934856 | AI46: -0.01217559057 | AK46: 35 | AL46: LC6 | AM46: 5.0158 | AN46: 21.1637 | AO46: 16.68 | AP46: 16.1479 | AQ46: 5.1476 | AR46: -0.1318 | AV46: 11.5353 | AW46: 5.0275 | AX46: 21.2039 | AY46: 16.3297 | BA46: 4.7944 | BB46: 0.2331 | BF46: 18.37 | BG46: 19.24 | BH46: 19.37 | BI46: 20.25 | BJ46: 0.94561412 | BK46: 1.052289761 | BL46: 0.8986252219 | BM46: 0.9199045889 | BP46: 0.9004747252
A47: LC6 | B47: 35 | C47: 15 | D47: 11.5174 | E47: 5.0339 | F47: 21.8226 | G47: 16.5523 | H47: 16.7887 | I47: 5.0349 | J47: -0.001 | K47: =AVERAGE(I47:I48) -> 5.09125 | L47: =STDEV(I47:I48) -> 0.07969093424 | M47: =L47/K47*100 -> 1.565252821 | N47: 35 | O47: 15 | P47: 11.5568 | Q47: 5.0215 | R47: 21.5893 | S47: 16.0083 | U47: 4.4515 | V47: 0.57 | W47: =AVERAGE(U47:U48) -> 4.62295 | X47: =STDEV(U47:U48) -> 0.2424669153 | Y47: 20.9795 | Z47: 18.92 | AA47: 19.43 | AB47: 20.24 | AC47: 20.59 | AD47: 0.95260308 | AE47: =Y47/100*E47 -> 1.05608705 | AF47: 0.9020118934 | AG47: =(AVERAGE(Z47:AA47)/100*I47)/($Y47/100*E47) -> 0.9141690304 | AH47: =(AVERAGE(AB47:AC47)/100*U47)/($Y47/100*Q47) -> 0.8626351717 | AI47: 0.0515338587 | AK47: 3 | AL47: LD4 | AM47: 5.0166 | AN47: 21.1273 | AO47: 16.5685 | AP47: 16.1107 | AQ47: 5.0725 | AR47: 0.0559 | AS47: 5.6253 | AT47: 0.7817772573 | AU47: 13.89752115 | AV47: 11.4006 | AW47: 5.0183 | AX47: 20.8559 | AY47: 17.3717 | BA47: 5.9711 | BB47: -0.9528 | BE47: 22.8195 | BF47: 22.62 | BG47: 23.03 | BH47: 18.268 | BI47: 18.329 | BJ47: 1.1473995 | BK47: 1.144763037 | BL47: 1.002303064 | BM47: 1.011386713 | BN47: =AVERAGE(BM47:BM50) -> 0.9674826826 | BO47: =STDEV(BM47:BM50)/SQRT(BM47:BM50) -> 0.04936882386 | BP47: 0.954128987 | BQ47: =AVERAGE(BP47:BP50) -> 0.9436009969 | BR47: =STDEV(BP47:BP50)/SQRT(BP47:BP50) -> 0.02362071882
A48: LC6 | B48: 35 | C48: 16 | D48: 11.5324 | E48: 5.0158 | F48: 21.1637 | G48: 16.68 | H48: 16.1479 | I48: 5.1476 | J48: -0.1318 | O48: 16 | P48: 11.5353 | Q48: 5.0275 | R48: 21.2039 | S48: 16.3297 | U48: 4.7944 | V48: 0.2331 | Z48: 18.37 | AA48: 19.24 | AB48: 19.37 | AC48: 20.25 | AD48: 0.94561412 | AE48: =Y47/100*E48 -> 1.052289761 | AF48: 0.8986252219 | AG48: =(AVERAGE(Z48:AA48)/100*I48)/($Y47/100*E48) -> 0.9199045889 | AH48: =(AVERAGE(AB48:AC48)/100*U48)/($Y47/100*Q48) -> 0.9004747252 | AI48: 0.01942986368 | AK48: 3 | AL48: LD4 | AM48: 5.0639 | AN48: 21.5425 | AO48: 17.7511 | AP48: 16.4786 | AQ48: 6.1781 | AR48: 1.1142 | AV48: 11.4999 | AW48: 5.0318 | AX48: 21.215 | AY48: 17.2901 | BA48: 5.7902 | BB48: -0.7584 | BF48: 18.16 | BG48: 19.47 | BH48: 19.102 | BI48: 19.379 | BJ48: 1.12194296 | BK48: 1.155556661 | BL48: 0.9709112485 | BM48: 1.005930349 | BP48: 0.970242789
A49: LD6 | B49: 36 | C49: 17 | D49: 11.5379 | E49: 5.0172 | F49: 21.7657 | G49: 16.6279 | H49: 16.7485 | I49: 5.09 | J49: -0.0728 | K49: =AVERAGE(I49:I50) -> 5.1329 | L49: =STDEV(I49:I50) -> 0.06066976183 | M49: =L49/K49*100 -> 1.181978255 | N49: 36 | O49: 17 | P49: 11.4807 | Q49: 5.0223 | R49: 21.2092 | S49: 16.4119 | U49: 4.9312 | V49: 0.0911 | W49: =AVERAGE(U49:U50) -> 5.0032 | X49: =STDEV(U49:U50) -> 0.1018233765 | Y49: 21.07 | Z49: 19.16 | AA49: 20.63 | AB49: 20.22 | AC49: 20.81 | AD49: 0.975244 | AE49: =Y49/100*E49 -> 1.05712404 | AF49: 0.9225445294 | AG49: =(AVERAGE(Z49:AA49)/100*I49)/($Y49/100*E49) -> 0.9579344161 | AH49: =(AVERAGE(AB49:AC49)/100*U49)/($Y49/100*Q49) -> 0.9559979293 | AI49: 0.001936486748 | AK49: 44 | AL49: LD4 | AM49: 5.0188 | AN49: 21.7982 | AO49: 16.2099 | AP49: 16.7794 | AQ49: 4.7384 | AR49: 0.2804 | AS49: 4.8148 | AT49: 0.1080459162 | AU49: 2.244037471 | AV49: 11.4679 | AW49: 5.0187 | AX49: 21.5191 | AY49: 16.3406 | BA49: 4.8727 | BB49: 0.146 | BC49: 4.882 | BD49: 0.01315218613 | BE49: 21.022 | BF49: 20.48 | BG49: 20 | BH49: 19.54 | BI49: 20.8 | BJ49: 0.97042432 | BK49: 1.055052136 | BL49: 0.9197880246 | BM49: 0.9090092587 | BP49: 0.9315588678
A50: LD6 | B50: 36 | C50: 18 | D50: 11.555 | E50: 5.0164 | F50: 21.1525 | G50: 16.7308 | H50: 16.1361 | I50: 5.1758 | J50: -0.1594 | O50: 18 | P50: 11.5185 | Q50: 5.0188 | R50: 21.1557 | S50: 16.5937 | U50: 5.0752 | V50: -0.0564 | Z50: 19.76 | AA50: 20.01 | AB50: 20.51 | AC50: 19.98 | AD50: 1.02273808 | AE50: =Y49/100*E50 -> 1.05695548 | AF50: 0.967626451 | AG50: =(AVERAGE(Z50:AA50)/100*I50)/($Y49/100*E50) -> 0.9737475698 | AH50: =(AVERAGE(AB50:AC50)/100*U50)/($Y49/100*Q50) -> 0.971642533 | AI50: 0.002105036814 | AK50: 44 | AL50: LD4 | AM50: 5.0055 | AN50: 21.1296 | AO50: 16.4352 | AP50: 16.1241 | AQ50: 4.8912 | AR50: 0.1143 | AV50: 11.5263 | AW50: 5.0349 | AX50: 21.2116 | AY50: 16.4176 | BA50: 4.8913 | BB50: 0.1436 | BF50: 20.22 | BG50: 20.38 | BH50: 19.78 | BI50: 19.97 | BJ50: 0.98900064 | BK50: 1.05225621 | BL50: 0.9398857717 | BM50: 0.9436044098 | BP50: 0.9184733439
A51: AR6 | B51: 38 | C51: 19 | D51: 11.5587 | E51: 5.0129 | F51: 21.8139 | G51: 16.5459 | H51: 16.801 | I51: 4.9872 | J51: 0.0257 | K51: =AVERAGE(I51:I52) -> 5.058 | L51: =STDEV(I51:I52) -> 0.1001263202 | M51: =L51/K51*100 -> 1.979563468 | N51: 38 | O51: 19 | P51: 11.5119 | Q51: 5.038 | R51: 21.2066 | S51: 16.7536 | U51: 5.2417 | V51: -0.2037 | W51: =AVERAGE(U51:U52) -> 5.18735 | X51: =STDEV(U51:U52) -> 0.07686250711 | Y51: 21.434 | Z51: 20.68 | AA51: 20.79 | AB51: 20.06 | AC51: 19.58 | AD51: 1.03135296 | AE51: =Y51/100*E51 -> 1.074464986 | AF51: 0.9598758205 | AG51: =(AVERAGE(Z51:AA51)/100*I51)/($Y51/100*E51) -> 0.9624286817 | AH51: =(AVERAGE(AB51:AC51)/100*U51)/($Y51/100*Q51) -> 0.9620871671 | AI51: 0.0003415145827 | AK51: 23 | AL51: LD6 | AM51: 5.0094 | AN51: 21.1768 | AO51: 16.6723 | AP51: 16.1674 | AQ51: 5.1817 | AR51: 0.1723 | AS51: 5.26855 | AT51: 0.1228244479 | AU51: 2.331276118 | AV51: 11.4914 | AW51: 5.0297 | AX51: 21.1817 | AY51: 16.8241 | BA51: 5.3327 | BB51: -0.303 | BE51: 23.2635 | BF51: 21.31 | BG51: 19.93 | BH51: 20.42 | BI51: 20.73 | BJ51: 1.10422027 | BK51: 1.165361769 | BL51: 0.9475343188 | BM51: 0.9168539491 | BN51: =AVERAGE(BM51:BM54) -> 0.959668057 | BO51: =STDEV(BM51:BM54)/SQRT(BM51:BM54) -> 0.03281903152 | BP51: 0.9377128323 | BQ51: =AVERAGE(BP51:BP54) -> 0.9486995377 | BR51: =STDEV(BP51:BP54)/SQRT(BP51:BP54) -> 0.01951277555
A52: AR6 | B52: 38 | C52: 20 | D52: 11.5399 | E52: 5.0114 | F52: 21.1316 | G52: 16.6687 | H52: 16.1202 | I52: 5.1288 | J52: -0.1174 | O52: 20 | P52: 11.5345 | Q52: 5.0275 | R52: 21.5647 | S52: 16.6675 | U52: 5.133 | V52: -0.1055 | Z52: 20.22 | AA52: 20.87 | AB52: 20.73 | AC52: 19.93 | AD52: 1.03704336 | AE52: =Y51/100*E52 -> 1.074143476 | AF52: 0.9654607445 | AG52: =(AVERAGE(Z52:AA52)/100*I52)/($Y51/100*E52) -> 0.9809787831 | AH52: =(AVERAGE(AB52:AC52)/100*U52)/($Y51/100*Q52) -> 0.9683967812 | AI52: 0.01258200192 | AK52: 23 | AL52: LD6 | AM52: 5.0371 | AN52: 21.5863 | AO52: 16.8501 | AP52: 16.5492 | AQ52: 5.3554 | AR52: 0.3183 | AV52: 11.4955 | AW52: 5.0224 | AX52: 21.753 | AY52: 16.7114 | BA52: 5.2159 | BB52: -0.1935 | BF52: 22.18 | BG52: 21.15 | BH52: 20.52 | BI52: 21.12 | BJ52: 1.18782772 | BK52: 1.171805758 | BL52: 1.013672882 | BM52: 0.9901362931 | BP52: 0.9294448561
A53: AC6 | B53: 39 | C53: 21 | D53: 11.5072 | E53: 5.0065 | F53: 21.7674 | G53: 16.3725 | H53: 16.7609 | I53: 4.8653 | J53: 0.1412 | K53: =AVERAGE(I53:I54) -> 4.9208 | L53: =STDEV(I53:I54) -> 0.07848885271 | M53: =L53/K53*100 -> 1.595042528 | N53: 39 | O53: 21 | P53: 11.5262 | Q53: 5.0399 | R53: 21.1954 | S53: 16.5962 | U53: 5.07 | V53: -0.0301 | W53: =AVERAGE(U53:U54) -> 5.0384 | X53: =STDEV(U53:U54) -> 0.04468914857 | Y53: 22.1375 | Z53: 20.72 | AA53: 20.24 | AB53: 20.44 | AC53: 20.92 | AD53: 1.00809016 | AE53: =Y53/100*E53 -> 1.108313938 | AF53: 0.9095709491 | AG53: =(AVERAGE(Z53:AA53)/100*I53)/($Y53/100*E53) -> 0.8990353782 | AH53: =(AVERAGE(AB53:AC53)/100*U53)/($Y53/100*Q53) -> 0.9397406214 | AI53: -0.04070524316 | AK53: 36 | AL53: LD6 | AM53: 5.0172 | AN53: 21.7657 | AO53: 16.6279 | AP53: 16.7485 | AQ53: 5.09 | AR53: -0.0728 | AS53: 5.1329 | AT53: 0.06066976183 | AU53: 1.181978255 | AV53: 11.4807 | AW53: 5.0223 | AX53: 21.2092 | AY53: 16.4119 | BA53: 4.9312 | BB53: 0.0911 | BC53: 5.0032 | BD53: 0.1018233765 | BE53: 21.07 | BF53: 19.16 | BG53: 20.63 | BH53: 20.22 | BI53: 20.81 | BJ53: 0.975244 | BK53: 1.05712404 | BL53: 0.9225445294 | BM53: 0.9579344161 | BP53: 0.9559979293
A54: AC6 | B54: 39 | C54: 22 | D54: 11.4311 | E54: 5.0185 | F54: 21.1974 | G54: 16.4074 | H54: 16.1789 | I54: 4.9763 | J54: 0.0422 | O54: 22 | P54: 11.4632 | Q54: 5.0568 | R54: 21.5749 | S54: 16.47 | U54: 5.0068 | V54: 0.05 | Z54: 20.2 | AA54: 19.81 | AB54: 20.5 | AC54: 19.77 | AD54: 1.0052126 | AE54: =Y53/100*E54 -> 1.110970438 | AF54: 0.9048058941 | AG54: =(AVERAGE(Z54:AA54)/100*I54)/($Y53/100*E54) -> 0.8960713817 | AH54: =(AVERAGE(AB54:AC54)/100*U54)/($Y53/100*Q54) -> 0.9005493684 | AI54: -0.004477986698 | AK54: 36 | AL54: LD6 | AM54: 5.0164 | AN54: 21.1525 | AO54: 16.7308 | AP54: 16.1361 | AQ54: 5.1758 | AR54: -0.1594 | AV54: 11.5185 | AW54: 5.0188 | AX54: 21.1557 | AY54: 16.5937 | BA54: 5.0752 | BB54: -0.0564 | BF54: 19.76 | BG54: 20.01 | BH54: 20.51 | BI54: 19.98 | BJ54: 1.02273808 | BK54: 1.05695548 | BL54: 0.967626451 | BM54: 0.9737475698 | BP54: 0.971642533
A55: AD6 | B55: 40 | C55: 23 | D55: 11.5138 | E55: 5.0328 | F55: 21.8151 | G55: 16.3465 | H55: 16.7823 | I55: 4.8327 | J55: 0.2001 | K55: =AVERAGE(I55:I56) -> 4.84755 | L55: =STDEV(I55:I56) -> 0.0210010714 | M55: =L55/K55*100 -> 0.4332306299 | N55: 40 | O55: 23 | P55: 11.439 | Q55: 5.0285 | R55: 21.1492 | S55: 16.4533 | U55: 5.0143 | V55: 0.0142 | W55: =AVERAGE(U55:U56) -> 5.0741 | X55: =STDEV(U55:U56) -> 0.08456997103 | Y55: 22.0985 | Z55: 20.28 | AA55: 20.69 | AB55: 20.63 | AC55: 21.09 | AD55: 0.98007156 | AE55: =Y55/100*E55 -> 1.112173308 | AF55: 0.8812219759 | AG55: =(AVERAGE(Z55:AA55)/100*I55)/($Y55/100*E55) -> 0.8901297917 | AH55: =(AVERAGE(AB55:AC55)/100*U55)/($Y55/100*Q55) -> 0.9412898327 | AI55: -0.05116004098 | AK55: 2 | AL55: LR4 | AM55: 5.0247 | AN55: 21.2384 | AO55: 17.0854 | AP55: 16.2137 | AQ55: 5.595 | AR55: 0.5703 | AS55: 5.828 | AT55: 0.32951176 | AU55: 5.653942348 | AV55: 11.4153 | AW55: 5.0135 | AX55: 22.1469 | AY55: 17.511 | BA55: 6.0957 | BB55: -1.0822 | BE55: 24.956 | BF55: 21.53 | BG55: 20.72 | BH55: 20.024 | BI55: 19.765 | BJ55: 1.2046035 | BK55: 1.253964132 | BL55: 0.9606363286 | BM55: 0.9425658357 | BN55: =AVERAGE(BM55:BM58) -> 0.9223624748 | BO55: =STDEV(BM55:BM58)/SQRT(BM55:BM58) -> 0.06747313604 | BP55: 0.96926073 | BQ55: =AVERAGE(BP55:BP58) -> 0.9188777662 | BR55: =STDEV(BP55:BP58)/SQRT(BP55:BP58) -> 0.06740644766
A56: AD6 | B56: 40 | C56: 24 | D56: 11.4411 | E56: 5.0247 | F56: 21.5249 | G56: 16.3035 | H56: 16.5002 | I56: 4.8624 | J56: 0.1623 | O56: 24 | P56: 11.5567 | Q56: 5.0125 | R56: 21.6219 | S56: 16.6906 | U56: 5.1339 | V56: -0.1214 | Z56: 19.96 | AA56: 20.41 | AB56: 19.82 | AC56: 20.21 | AD56: 0.97053504 | AE56: =Y55/100*E56 -> 1.11038333 | AF56: 0.8740540444 | AG56: =(AVERAGE(Z56:AA56)/100*I56)/($Y55/100*E56) -> 0.883906858 | AH56: =(AVERAGE(AB56:AC56)/100*U56)/($Y55/100*Q56) -> 0.9276535656 | AI56: -0.04374670755 | AK56: 2 | AL56: LR4 | AM56: 5.0287 | AN56: 21.1576 | AO56: 17.5587 | AP56: 16.1289 | AQ56: 6.061 | AR56: 1.0323 | AV56: 11.4973 | AW56: 5.0313 | AX56: 21.2205 | AY56: 17.8263 | BA56: 6.329 | BB56: -1.2977 | BF56: 20.19 | BG56: 21.46 | BH56: 19.231 | BI56: 19.731 | BJ56: 1.2237159 | BK56: 1.254962372 | BL56: 0.9751016662 | BM56: 1.005769797 | BP56: 0.9819540177
A57: LR4 | B57: 42 | C57: 25 | D57: 11.5088 | E57: 5.0495 | F57: 21.7761 | G57: 16.4241 | H57: 16.7266 | I57: 4.9153 | J57: 0.1342 | K57: =AVERAGE(I57:I58) -> 4.93055 | L57: =STDEV(I57:I58) -> 0.02156675683 | M57: =L57/K57*100 -> 0.4374107721 | N57: 42 | O57: 25 | P57: 11.5558 | Q57: 5.011 | R57: 21.4003 | S57: 16.772 | U57: 5.2162 | V57: -0.2052 | W57: =AVERAGE(U57:U58) -> 5.16505 | X57: =STDEV(U57:U58) -> 0.07233702372 | Y57: 22.421 | Z57: 19.47 | AA57: 21.02 | AB57: 17.67 | AC57: 18.98 | AD57: 0.95700891 | AE57: =Y57/100*E57 -> 1.132148395 | AF57: 0.8453034198 | AG57: =(AVERAGE(Z57:AA57)/100*I57)/($Y57/100*E57) -> 0.878950577 | AH57: =(AVERAGE(AB57:AC57)/100*U57)/($Y57/100*Q57) -> 0.8507830652 | AI57: 0.02816751179 | AK57: 42 | AL57: LR4 | AM57: 5.0495 | AN57: 21.7761 | AO57: 16.4241 | AP57: 16.7266 | AQ57: 4.9153 | AR57: 0.1342 | AS57: 4.93055 | AT57: 0.02156675683 | AU57: 0.4374107721 | AV57: 11.5558 | AW57: 5.011 | AX57: 21.4003 | AY57: 16.772 | BA57: 5.2162 | BB57: -0.2052 | BC57: 5.16505 | BD57: 0.07233702372 | BE57: 22.421 | BF57: 19.47 | BG57: 21.02 | BH57: 17.67 | BI57: 18.98 | BJ57: 0.95700891 | BK57: 1.132148395 | BL57: 0.8453034198 | BM57: 0.878950577 | BP57: 0.8507830652
A58: LR4 | B58: 42 | C58: 26 | D58: 11.4143 | E58: 5.0045 | F58: 21.1514 | G58: 16.3601 | H58: 16.1469 | I58: 4.9458 | J58: 0.0587 | O58: 26 | P58: 11.5458 | Q58: 5.0225 | R58: 21.1886 | S58: 16.6597 | U58: 5.1139 | V58: -0.0914 | Z58: 19.45 | AA58: 19.67 | AB58: 19.16 | AC58: 19.31 | AD58: 0.9619581 | AE58: =Y57/100*E58 -> 1.122058945 | AF58: 0.8573151208 | AG58: =(AVERAGE(Z58:AA58)/100*I58)/($Y57/100*E58) -> 0.8621636896 | AH58: =(AVERAGE(AB58:AC58)/100*U58)/($Y57/100*Q58) -> 0.8735132517 | AI58: =AG58-AH58 -> -0.01134956211 | AK58: 42 | AL58: LR4 | AM58: 5.0045 | AN58: 21.1514 | AO58: 16.3601 | AP58: 16.1469 | AQ58: 4.9458 | AR58: 0.0587 | AV58: 11.5458 | AW58: 5.0225 | AX58: 21.1886 | AY58: 16.6597 | BA58: 5.1139 | BB58: -0.0914 | BF58: 19.45 | BG58: 19.67 | BH58: 19.16 | BI58: 19.31 | BJ58: 0.9619581 | BK58: 1.122058945 | BL58: 0.8573151208 | BM58: 0.8621636896 | BP58: 0.8735132517
A59: LC4 | B59: 43 | C59: 27 | D59: 11.533 | E59: 5.0195 | F59: 21.7663 | G59: 16.2891 | H59: 16.7468 | I59: 4.7561 | J59: 0.2634 | K59: =AVERAGE(I59:I60) -> 4.77365 | L59: =STDEV(I59:I60) -> 0.02481944802 | M59: =L59/K59*100 -> 0.5199260109 | N59: 43 | O59: 27 | P59: 11.4038 | Q59: 5.0188 | R59: 21.4756 | S59: 16.3262 | U59: 4.9224 | V59: 0.0964 | W59: =AVERAGE(U59:U60) -> 4.93145 | X59: =STDEV(U59:U60) -> 0.01279863274 | Y59: 21.039 | Z59: 19.55 | AA59: 19.75 | AB59: 19.71 | AC59: 18.97 | AD59: =Z59/100*I59 -> 0.92981755 | AE59: =Y59/100*E59 -> 1.056052605 | AF59: =AD59/AE59 -> 0.8804651829 | AG59: =(AVERAGE(Z59:AA59)/100*I59)/($Y59/100*E59) -> 0.8849688411 | AH59: =(AVERAGE(AB59:AC59)/100*U59)/($Y59/100*Q59) -> 0.9015885526 | AI59: =AG59-AH59 -> -0.01661971153 | AK59: 22 | AL59: LR6 | AM59: 5.0163 | AN59: 21.1211 | AO59: 16.5472 | AP59: 16.1048 | AQ59: 5.05 | AR59: 0.0337 | AS59: 5.0547 | AT59: 0.006646803743 | AU59: 0.1314974923 | AV59: 11.5105 | AW59: 5.0436 | AX59: 21.1504 | AY59: 16.836 | BA59: 5.3255 | BB59: -0.2819 | BE59: 23.4205 | BF59: 21.81 | BG59: 21.9 | BH59: 20.26 | BI59: 20.28 | BJ59: 1.101405 | BK59: 1.174842542 | BL59: 0.9374915881 | BM59: 0.9394258899 | BN59: =AVERAGE(BM59:BM62) -> 0.9162261203 | BO59: =STDEV(BM59:BM62)/SQRT(BM59:BM62) -> 0.01982510427 | BP59: 0.9138550985 | BQ59: =AVERAGE(BP59:BP62) -> 0.8790687089 | BR59: =STDEV(BP59:BP62)/SQRT(BP59:BP62) -> 0.04917650029
A60: LC4 | B60: 43 | C60: 28 | D60: 11.5344 | E60: 5.0148 | F60: 21.1371 | G60: 16.3256 | H60: 16.1223 | I60: 4.7912 | J60: 0.2236 | O60: 28 | P60: 11.5492 | Q60: 5.0172 | R60: 21.1698 | S60: 16.4897 | U60: 4.9405 | V60: 0.0767 | Z60: 19.98 | AA60: 20.41 | AB60: 19.03 | AC60: 19.35 | AD60: =Z60/100*I60 -> 0.95728176 | AE60: =Y59/100*E60 -> 1.055063772 | AF60: =AD60/AE60 -> 0.9073212306 | AG60: =(AVERAGE(Z60:AA60)/100*I60)/($Y59/100*E60) -> 0.9170846973 | AH60: =(AVERAGE(AB60:AC60)/100*U60)/($Y59/100*Q60) -> 0.8981717086 | AI60: =AG60-AH60 -> 0.01891298873 | AK60: 22 | AL60: LR6 | AM60: 5.0131 | AN60: 20.6457 | AO60: 16.5534 | AP60: 15.6326 | AQ60: 5.0594 | AR60: 0.0463 | AV60: 11.5041 | AW60: 5.0158 | AX60: 21.6817 | AY60: 16.7852 | BA60: 5.2811 | BB60: -0.2653 | BF60: 21.01 | BG60: 21.89 | BH60: 19.12 | BI60: 20.03 | BJ60: 1.06297994 | BK60: 1.174093085 | BL60: 0.9053625757 | BM60: 0.9243230485 | BP60: 0.8800144193
A61: LD4 | B61: 44 | C61: 29 | D61: 11.4715 | E61: 5.0188 | F61: 21.7982 | G61: 16.2099 | H61: 16.7794 | I61: 4.7384 | J61: 0.2804 | K61: =AVERAGE(I61:I62) -> 4.8148 | L61: =STDEV(I61:I62) -> 0.1080459162 | M61: =L61/K61*100 -> 2.244037471 | N61: 44 | O61: 29 | P61: 11.4679 | Q61: 5.0187 | R61: 21.5191 | S61: 16.3406 | U61: 4.8727 | V61: 0.146 | W61: =AVERAGE(U61:U62) -> 4.882 | X61: =STDEV(U61:U62) -> 0.01315218613 | Y61: 21.022 | Z61: 20.48 | AA61: 20 | AB61: 19.54 | AC61: 20.8 | AD61: =Z61/100*I61 -> 0.97042432 | AE61: =Y61/100*E61 -> 1.055052136 | AF61: =AD61/AE61 -> 0.9197880246 | AG61: =(AVERAGE(Z61:AA61)/100*I61)/($Y61/100*E61) -> 0.9090092587 | AH61: =(AVERAGE(AB61:AC61)/100*U61)/($Y61/100*Q61) -> 0.9315588678 | AI61: =AG61-AH61 -> -0.02254960908 | AK61: 34 | AL61: LR6 | AM61: 5.0291 | AN61: 21.6017 | AO61: 16.6005 | AP61: 16.5726 | AQ61: 5.1312 | AR61: -0.1021 | AS61: 5.12555 | AT61: 0.007990306627 | AU61: 0.1558916922 | AV61: 11.5072 | AW61: 5.0158 | AX61: 21.5326 | AY61: 16.5101 | BA61: 5.0029 | BB61: 0.0129 | BC61: 5.1807 | BD61: 0.2514471714 | BE61: 21.31 | BF61: 19.02 | BG61: 18.71 | BH61: 17.23 | BI61: 17.48 | BJ61: 0.97595424 | BK61: 1.07170121 | BL61: 0.9106588953 | BM61: 0.9032376477 | BP61: 0.8123118323
A62: LD4 | B62: 44 | C62: 30 | D62: 11.544 | E62: 5.0055 | F62: 21.1296 | G62: 16.4352 | H62: 16.1241 | I62: 4.8912 | J62: 0.1143 | O62: 30 | P62: 11.5263 | Q62: 5.0349 | R62: 21.2116 | S62: 16.4176 | U62: 4.8913 | V62: 0.1436 | Z62: 20.22 | AA62: 20.38 | AB62: 19.78 | AC62: 19.97 | AD62: =Z62/100*I62 -> 0.98900064 | AE62: =Y61/100*E62 -> 1.05225621 | AF62: =AD62/AE62 -> 0.9398857717 | AG62: =(AVERAGE(Z62:AA62)/100*I62)/($Y61/100*E62) -> 0.9436044098 | AH62: =(AVERAGE(AB62:AC62)/100*U62)/($Y61/100*Q62) -> 0.9184733439 | AI62: =AG62-AH62 -> 0.02513106586 | AK62: 34 | AL62: LR6 | AM62: 5.0317 | AN62: 21.162 | AO62: 16.5637 | AP62: 16.1303 | AQ62: 5.1199 | AR62: -0.0882 | AV62: 11.4389 | AW62: 5.012 | AX62: 21.1845 | AY62: 16.7974 | BA62: 5.3585 | BB62: -0.3465 | BF62: 18.63 | BG62: 18.98 | BH62: 17.47 | BI62: 18.81 | BJ62: 0.95383737 | BK62: 1.07225527 | BL62: 0.8895618391 | BM62: 0.8979178951 | BP62: 0.9100934856
N63: 28 rerun | O63: 31 | P63: 11.4721 | Q63: 5.0236 | R63: 21.5169 | S63: 16.0642 | U63: 4.5921 | V63: 0.4315 | W63: =AVERAGE(U63:U64) -> 4.56625 | X63: =STDEV(U63:U64) -> 0.03655742059 | Y63: 21.1045 | AB63: 19.91 | AC63: 19.99
O64: 32 | P64: 11.5524 | Q64: 5.025 | R64: 21.2161 | S64: 16.0928 | U64: 4.5404 | V64: 0.4846 | AB64: 19.28 | AC64: 20.42
N65: 32 rerun | O65: 33 | P65: 11.4095 | Q65: 5.0344 | R65: 21.1902 | S65: 15.7286 | U65: 4.3191 | V65: 0.7153 | W65: =AVERAGE(U65:U66) -> 4.31725 | X65: =STDEV(U65:U66) -> 0.00261629509 | Y65: 21.503 | AB65: 21.94 | AC65: 22.46
O66: 34 | P66: 11.4636 | Q66: 5.0062 | R66: 21.2796 | S66: 15.779 | U66: 4.3154 | V66: 0.6908 | AB66: 21.96 | AC66: 22.33

Sheet fat
A1: Sample | B1: ID | C1: tube # | D1: weight | E1: Final fat | F1: Converted percent | G1: Average | H1: SD | I1: CI | J1: Moisture (45-52%) | K1: Fat (solids basis 30-45%)
A2: 1 | B2: LC4 | D2: 9.023 | E2: 15.75 | F2: =E2/100 -> 0.1575 | G2: =AVERAGE(E2:E3) -> 15.875 | H2: =STDEV(E2:E3) -> 0.1767766953 | I2: =H2/G2*100 -> 1.113553986 | J2: 0.5081518099 | K2: =G2/(1-J2)/100 -> 0.3227621921
A3: 1 | B3: LC4 | D3: 9.029 | E3: 16 | F3: =E3/100 -> 0.16
A4: 2 | B4: LR4 | D4: 9.021 | E4: 16.75 | F4: 0.1675 | G4: =AVERAGE(E4:E5) -> 16.75 | H4: =STDEV(E4:E5) -> 0 | I4: =H4/G4*100 -> 0 | J4: 0.4982717103 | K4: =G4/(1-J4)/100 -> 0.3338460347
A5: 2 | B5: LR4 | D5: 9.033 | E5: 16.75 | F5: 0.1675
A6: 3 | B6: LD4 | D6: 9.041 | E6: 13 | F6: 0.13 | G6: =AVERAGE(E6:E7) -> 13.125 | H6: =STDEV(E6:E7) -> 0.1767766953 | I6: =H6/G6*100 -> 1.346870059 | J6: 0.5583135381 | K6: =G6/(1-J6)/100 -> 0.2971564929
A7: 3 | B7: LD4 | D7: 9.033 | E7: 13.25 | F7: 0.1325
A8: 6 | B8: AC6 | D8: 9.046 | E8: 15.5 | F8: 0.155 | G8: =AVERAGE(E8:E9) -> 15.5 | H8: =STDEV(E8:E9) -> 0 | I8: =H8/G8*100 -> 0 | J8: 0.5170681179 | K8: =G8/(1-J8)/100 -> 0.3209562378
A9: 6 | B9: AC6 | D9: 9.036 | E9: 15.5 | F9: 0.155
A10: 7 | B10: AR6 | D10: 8.997 | E10: 17.5 | F10: 0.175 | G10: =AVERAGE(E10:E11) -> 17.5 | H10: =STDEV(E10:E11) -> 0 | I10: =H10/G10*100 -> 0 | J10: 0.5030938179 | K10: =G10/(1-J10)/100 -> 0.3521791564
A11: 7 | B11: AR6 | D11: 9.032 | E11: 17.5 | F11: 0.175
A12: 8 | B12: AD6 | D12: 9.023 | E12: 16.5 | F12: 0.165 | G12: =AVERAGE(E12:E13) -> 16.375 | H12: =STDEV(E12:E13) -> 0.1767766953 | I12: =H12/G12*100 -> 1.079552338 | J12: 0.5342137806 | K12: =G12/(1-J12)/100 -> 0.3515561285
A13: 8 | B13: AD6 | D13: 9 | E13: 16.25 | F13: 0.1625
A14: 11 | B14: CC6 | D14: 8.999 | E14: 19.75 | F14: 0.1975 | G14: =AVERAGE(E14:E15) -> 19.75 | H14: =STDEV(E14:E15) -> 0 | I14: =H14/G14*100 -> 0 | J14: 0.491736465 | K14: =G14/(1-J14)/100 -> 0.3885779451
A15: 11 | B15: CC6 | D15: 9.0175 | E15: 19.75 | F15: 0.1975
A16: 12 | B16: CR6 | D16: 9.038 | E16: 20 | F16: 0.2 | G16: =AVERAGE(E16:E17) -> 20.125 | H16: =STDEV(E16:E17) -> 0.1767766953 | I16: =H16/G16*100 -> 0.878393517 | J16: 0.482742893 | K16: =G16/(1-J16)/100 -> 0.3890715029
A17: 12 | B17: CR6 | D17: 9.026 | E17: 20.25 | F17: 0.2025
A18: 13 | B18: CD6 | D18: 9.017 | E18: 15 | F18: 0.15 | G18: =AVERAGE(E18:E19) -> 15.125 | H18: =STDEV(E18:E19) -> 0.1767766953 | I18: =H18/G18*100 -> 1.168771539 | J18: 0.5441242018 | K18: =G18/(1-J18)/100 -> 0.3317789639
A19: 13 | B19: CD6 | D19: 8.998 | E19: 15.25 | F19: 0.1525
A20: 16 | B20: AC4 | D20: 9.033 | E20: 19 | F20: 0.19 | G20: =AVERAGE(E20:E21) -> 19 | H20: =STDEV(E20:E21) -> 0 | I20: =H20/G20*100 -> 0 | J20: 0.524627083 | K20: =G20/(1-J20)/100 -> 0.399686211
A21: 16 | B21: AC4 | D21: 9.037 | E21: 19 | F21: 0.19
A22: 17 | B22: AR4 | D22: 9.002 | E22: 20.25 | F22: 0.2025 | G22: =AVERAGE(E22:E23) -> 20.25 | H22: =STDEV(E22:E23) -> 0 | I22: =H22/G22*100 -> 0 | J22: 0.5072223041 | K22: =G22/(1-J22)/100 -> 0.4109358067
A23: 17 | B23: AR4 | D23: 9.001 | E23: 20.25 | F23: 0.2025
A24: 18 | B24: AD4 | D24: 9.01 | E24: 16.5 | F24: 0.165 | G24: =AVERAGE(E24:E25) -> 16.5 | H24: =STDEV(E24:E25) -> 0 | I24: =H24/G24*100 -> 0 | J24: 0.5493160587 | K24: =G24/(1-J24)/100 -> 0.3661102269
A25: 18 | B25: AD4 | D25: 9.036 | E25: 16.5 | F25: 0.165
A26: 21 | B26: LC6 | D26: 9.022 | E26: 19 | F26: 0.19 | G26: =AVERAGE(E26:E27) -> 19 | H26: =STDEV(E26:E27) -> 0 | I26: =H26/G26*100 -> 0 | J26: 0.5128568252 | K26: =G26/(1-J26)/100 -> 0.3900290712
A27: 21 | B27: LC6 | D27: 9.009 | E27: 19 | F27: 0.19
A28: 22 | B28: LR6 | D28: 9.009 | E28: 20 | F28: 0.2 | G28: =AVERAGE(E28:E29) -> 19.875 | H28: =STDEV(E28:E29) -> 0.1767766953 | I28: =H28/G28*100 -> 0.8894424921 | J28: 0.5019079829 | K28: =G28/(1-J28)/100 -> 0.3990226568
A29: 22 | B29: LR6 | D29: 8.991 | E29: 19.75 | F29: 0.1975
A30: 23 | B30: LD6 | D30: 9.024 | E30: 18 | F30: 0.18 | G30: =AVERAGE(E30:E31) -> 17.875 | H30: =STDEV(E30:E31) -> 0.1767766953 | I30: =H30/G30*100 -> 0.9889605331 | J30: 0.5183767886 | K30: =G30/(1-J30)/100 -> 0.3711407502
A31: 23 | B31: LD6 | D31: 9.02 | E31: 17.75 | F31: 0.1775
A32: 26 | B32: CR6 | C32: 1 | D32: 8.9728 | E32: 20.25 | F32: 0.2025 | G32: =AVERAGE(E32:E33) -> 20.375 | H32: =STDEV(E32:E33) -> 0.1767766953 | J32: 0.5181101551 | K32: =G32/(1-J32)/100 -> 0.4228144713
A33: 26 | B33: CR6 | C33: 2 | D33: 9.0275 | E33: 20.5 | F33: 0.205
A34: 27 | B34: CC6 | D34: 9.0067 | E34: 20.5 | F34: 0.205 | G34: =AVERAGE(E34:E35) -> 20.75 | H34: =STDEV(E34:E35) -> 0.3535533906 | J34: 0.5087069983 | K34: =G34/(1-J34)/100 -> 0.4223548866
A35: 27 | B35: CC6 | D35: 9.0097 | E35: 21 | F35: 0.21
A36: 28 | B36: CD6 | D36: 8.99953 | E36: 14.5 | F36: 0.145 | G36: =AVERAGE(E36:E37) -> 14.625 | H36: =STDEV(E36:E37) -> 0.1767766953 | J36: 0.5807828036 | K36: =G36/(1-J36)/100 -> 0.3488645057
A37: 28 | B37: CD6 | D37: 8.9886 | E37: 14.75 | F37: 0.1475
A38: 30 | B38: AR4 | D38: 8.9943 | E38: 22 | F38: 0.22 | G38: =AVERAGE(E38:E39) -> 22 | H38: =STDEV(E38:E39) -> 0 | J38: 0.4944564969 | K38: =G38/(1-J38)/100 -> 0.4351752098
A39: 30 | B39: AR4 | D39: 8.9863 | E39: 22 | F39: 0.22
A40: 31 | B40: AC4 | D40: 9.0113 | E40: 22.75 | F40: 0.2275 | G40: =AVERAGE(E40:E41) -> 22.875 | H40: =STDEV(E40:E41) -> 0.1767766953 | J40: 0.4811986758 | K40: =G40/(1-J40)/100 -> 0.4409202315
A41: 31 | B41: AC4 | D41: 9.0469 | E41: 23 | F41: 0.23
A42: 32 | B42: AD4 | D42: 9.0055 | E42: 18 | F42: 0.18 | G42: =AVERAGE(E42:E43) -> 18 | H42: =STDEV(E42:E43) -> 0 | J42: 0.542148664 | K42: =G42/(1-J42)/100 -> 0.3931407115
A43: 33 | B43: AD4 | D43: 9.0383 | E43: 18 | F43: 0.18
A44: 34 | B44: LR6 | D44: 8.98 | E44: 20 | F44: 0.2 | G44: =AVERAGE(E44:E45) -> 20 | H44: =STDEV(E44:E45) -> 0 | J44: 0.5188549488 | K44: =G44/(1-J44)/100 -> 0.4156750641
A45: 34 | B45: LR6 | D45: 9.019 | E45: 20 | F45: 0.2
A46: 35 | B46: LC6 | D46: 9.0286 | E46: 21.75 | F46: 0.2175 | G46: =AVERAGE(E46:E47) -> 21.75 | H46: =STDEV(E46:E47) -> 0 | J46: 0.4971191536 | K46: =G46/(1-J46)/100 -> 0.4325080216
A47: 35 | B47: LC6 | D47: 8.987 | E47: 21.75 | F47: 0.2175
A48: 36 | B48: LD6 | D48: 8.9985 | E48: 18 | F48: 0.18 | G48: =AVERAGE(E48:E49) -> 18 | H48: =STDEV(E48:E49) -> 0 | J48: 0.5351654322 | K48: =G48/(1-J48)/100 -> 0.3872345399
A49: 36 | B49: LD6 | D49: 9.002 | E49: 18 | F49: 0.18
A50: 38 | B50: AR6 | D50: 9.02 | E50: 20.25 | F50: 0.2025 | G50: =AVERAGE(E50:E51) -> 20.25 | H50: =STDEV(E50:E51) -> 0 | J50: 0.5129894106 | K50: =G50/(1-J50)/100 -> 0.415802047
A51: 38 | B51: AR6 | D51: 8.96 | E51: 20.25 | F51: 0.2025
A52: 39 | B52: AC6 | D52: 9.014 | E52: 20.5 | F52: 0.205 | G52: =AVERAGE(E52:E53) -> 20.5 | H52: =STDEV(E52:E53) -> 0 | J52: 0.5020849028 | K52: =G52/(1-J52)/100 -> 0.411716779
A53: 39 | B53: AC6 | D53: 9.021 | E53: 20.5 | F53: 0.205
A54: 40 | B54: AD6 | D54: 9.017 | E54: 20 | F54: 0.2 | G54: =AVERAGE(E54:E55) -> 20 | H54: =STDEV(E54:E55) -> 0 | J54: 0.5210419804 | K54: =G54/(1-J54)/100 -> 0.4175731313
A55: 40 | B55: AD6 | D55: 9.028 | E55: 20 | F55: 0.2
A56: 42 | B56: LR4 | D56: 8.962 | E56: 20.25 | F56: 0.2025 | G56: =AVERAGE(E56:E57) -> 20.375 | H56: =STDEV(E56:E57) -> 0.1767766953 | J56: 0.517685447 | K56: =G56/(1-J56)/100 -> 0.4224421568
A57: 42 | B57: LR4 | D57: 8.9732 | E57: 20.5 | F57: 0.205
A58: 43 | B58: LC4 | D58: 9.003 | E58: 20.75 | F58: 0.2075 | G58: =AVERAGE(E58:E59) -> 20.75 | H58: =STDEV(E58:E59) -> 0 | J58: 0.5086721694 | K58: =G58/(1-J58)/100 -> 0.422324947
A59: 43 | B59: LC4 | D59: 8.968 | E59: 20.75 | F59: 0.2075
A60: 44 | B60: LD4 | D60: 9.021 | E60: 16.5 | F60: 0.165 | G60: =AVERAGE(E60:E61) -> 16.5 | H60: =STDEV(E60:E61) -> 0 | J60: 0.5455926347 | K60: =G60/(1-J60)/100 -> 0.3631103116
A61: 44 | B61: LD4 | D61: 9.0355 | E61: 16.5 | F61: 0.165

Sheet Schreiber Melt
C1: Schreiber melt Day 15 | D1: schreiber melt 3rd observation Day 15 | E1: Mean melt area (in2) | G1: Scheriber Melt Day 30 | H1: Scheriber Melt 3rd observation Day 30 | I1: Mean melt area (in2) | L1: treatment | M1: Schreiber melt Day 15 | N1: schreiber melt 3rd observation Day 15 | O1: Mean melt area (in2) | P1: 15 day rep combined mean melt area | Q1: St Deviation (n-1) | R1: Scheriber Melt Day 30 | S1: Scheriber Melt 3rd observation Day 30 | T1: Mean melt area (in2) | U1: 30 day rep combined mean melt area | V1: St dev | Z1: Treatment | AA1: 15 day mean melt area (in2) | AB1: St Deviation (n-1) | AC1: 30 day mean melt area (in2) | AD1: St Deviation (n-1)
A2: 1 | B2: LC4 | C2: 3.126 | E2: =AVERAGE(C2:D3) -> 3.1075 | G2: 3.831 | H2: 3.264 | I2: =AVERAGE(G2:H3) -> 3.437666667 | K2: 16 | L2: AC4 | M2: 3.75 | N2: 4.248 | O2: 4.045 | P2: =AVERAGE(M2:M5,N2) -> 4.1054 | Q2: =_xlfn.STDEV.S(M2:M5,N2) -> 0.2179743104 | R2: 3.991 | T2: 3.869 | U2: =AVERAGE(R2:R5,S2) -> 3.95875 | V2: =_xlfn.STDEV.S(R2:R5,S2) -> 0.1454885448 | Z2: AC4 | AA2: 4.1054 | AB2: 0.2179743104 | AC2: 3.95875 | AD2: 0.1454885448
A3: 1 | B3: LC4 | C3: 3.089 | G3: 3.218 | K3: 16 | L3: AC4 | M3: 4.137 | R3: 3.747 | Z3: AC6 | AA3: 2.8564 | AB3: 0.168399228 | AC3: 3.0222 | AD3: 0.2442144549
A4: 2 | B4: LR4 | C4: 3.302 | E4: =AVERAGE(C4:D5) -> 3.283 | G4: 3.394 | I4: =AVERAGE(G4:H5) -> 3.4235 | K4: 31 | L4: AC4 | M4: 4.082 | O4: 4.196 | R4: 4.076 | T4: 4.0485 | Z4: AD4 | AA4: 3.69975 | AB4: 0.2571593216 | AC4: 4.014 | AD4: 0.2192502376
A5: 2 | B5: LR4 | C5: 3.264 | G5: 3.453 | K5: 31 | L5: AC4 | M5: 4.31 | R5: 4.021 | Z5: AD6 | AA5: 2.95825 | AB5: 0.1136936674 | AC5: 3.7028 | AD5: 0.3510928652
A6: 3 | B6: LD4 | C6: 3.232 | E6: =AVERAGE(C6:D7) -> 3.2015 | G6: 3.183 | I6: =AVERAGE(G6:H7) -> 3.289 | K6: 6 | L6: AC6 | M6: 2.869 | N6: 2.796 | O6: 2.762 | P6: =AVERAGE(M6:M9,N6) -> 2.8564 | Q6: =_xlfn.STDEV.S(M6:M9,N6) -> 0.168399228 | R6: 2.662 | S6: 2.962 | T6: 2.985666667 | U6: =AVERAGE(R6:R9,S6) -> 3.0222 | V6: =_xlfn.STDEV.S(R6:R9,S6) -> 0.2442144549 | Z6: AR4 | AA6: 4.284 | AB6: 0.466388965 | AC6: 4.26825 | AD6: 0.2671221631
A7: 3 | B7: LD4 | C7: 3.171 | G7: 3.395 | K7: 6 | L7: AC6 | M7: 2.621 | R7: 3.333 | Z7: AR6 | AA7: 2.991 | AB7: 0.1397163794 | AC7: 3.33375 | AD7: 0.1807454472
A8: 6 | B8: AC6 | C8: 2.869 | D8: 2.796 | E8: =AVERAGE(C8:D9) -> 2.762 | G8: 2.662 | H8: 2.962 | I8: =AVERAGE(G8:H9) -> 2.985666667 | K8: 39 | L8: AC6 | M8: 3.082 | O8: 2.998 | R8: 3.041 | T8: 3.077 | Z8: CC6 | AA8: 3.842 | AB8: 0.6156470851 | AC8: 3.8532 | AD8: 0.2415071428
A9: 6 | B9: AC6 | C9: 2.621 | G9: 3.333 | K9: 39 | L9: AC6 | M9: 2.914 | R9: 3.113 | Z9: CD6 | AA9: 3.8546 | AB9: 0.2177046164 | AC9: 3.98425 | AD9: 0.1209748596
A10: 7 | B10: AR6 | C10: 2.887 | E10: =AVERAGE(C10:D11) -> 2.9915 | G10: 3.395 | I10: =AVERAGE(G10:H11) -> 3.474 | K10: 18 | L10: AD4 | M10: 3.459 | O10: 3.4775 | P10: =AVERAGE(M10:M13,N10) -> 3.69975 | Q10: =_xlfn.STDEV.S(M10:M13,N10) -> 0.2571593216 | R10: 3.783 | T10: 3.836 | U10: =AVERAGE(R10:R13,S10) -> 4.014 | V10: =_xlfn.STDEV.S(R10:R13,S10) -> 0.2192502376 | Z10: CR6 | AA10: 3.93875 | AB10: 0.643595305 | AC10: 3.93275 | AD10: 0.2203200324
A11: 7 | B11: AR6 | C11: 3.096 | G11: 3.553 | K11: 18 | L11: AD4 | M11: 3.496 | R11: 3.889 | Z11: LC4 | AA11: 3.55075 | AB11: 0.5456765678 | AC11: 3.779 | AD11: 0.527543837
A12: 8 | B12: AD6 | C12: 2.871 | E12: =AVERAGE(C12:D13) -> 2.8605 | G12: 3.561 | H12: 3.842 | I12: =AVERAGE(G12:H13) -> 3.88 | K12: 32 | L12: AD4 | M12: 3.914 | O12: 3.922 | R12: 4.115 | T12: 4.192 | Z12: LC6 | AA12: 3.5804 | AB12: 0.4694201743 | AC12: 3.69425 | AD12: 0.2378688364
A13: 8 | B13: AD6 | C13: 2.85 | G13: 4.237 | K13: 33 | L13: AD4 | M13: 3.93 | R13: 4.269 | Z13: LD4 | AA13: 3.55475 | AB13: 0.4117809895 | AC13: 3.55425 | AD13: 0.3356400602
A14: 11 | B14: CC6 | C14: 3.342 | E14: =AVERAGE(C14:D15) -> 3.329 | G14: 3.645 | H14: 3.622 | I14: =AVERAGE(G14:H15) -> 3.827333333 | K14: 8 | L14: AD6 | M14: 2.871 | O14: 2.8605 | P14: =AVERAGE(M14:M17,N14) -> 2.95825 | Q14: =_xlfn.STDEV.S(M14:M17,N14) -> 0.1136936674 | R14: 3.561 | S14: 3.842 | T14: 3.88 | U14: =AVERAGE(R14:R17,S14) -> 3.7028 | V14: =_xlfn.STDEV.S(R14:R17,S14) -> 0.3510928652 | Z14: LD6 | AA14: 3.30225 | AB14: 0.2130921162 | AC14: 3.66075 | AD14: 0.3311659956
A15: 11 | B15: CC6 | C15: 3.316 | G15: 4.215 | K15: 8 | L15: AD6 | M15: 2.85 | R15: 4.237 | Z15: LR4 | AA15: 3.75575 | AB15: 0.5757883726 | AC15: 3.65625 | AD15: 0.3026982821
A16: 12 | B16: CR6 | C16: 3.375 | E16: =AVERAGE(C16:D17) -> 3.382 | G16: 3.875 | I16: =AVERAGE(G16:H17) -> 3.7605 | K16: 40 | L16: AD6 | M16: 3.043 | O16: 3.056 | R16: 3.321 | T16: 3.437 | Z16: LR6 | AA16: 3.5298 | AB16: 0.2570879227 | AC16: 3.5005 | AD16: 0.163675492
A17: 12 | B17: CR6 | C17: 3.389 | G17: 3.646 | K17: 40 | L17: AD6 | M17: 3.069 | R17: 3.553
A18: 13 | B18: CD6 | C18: 3.738 | D18: 3.945 | E18: =AVERAGE(C18:D19) -> 3.743666667 | G18: 3.949 | I18: =AVERAGE(G18:H19) -> 4.0365 | K18: 17 | L18: AR4 | M18: 3.855 | O18: 3.881 | P18: =AVERAGE(M18:M21,N18) -> 4.284 | Q18: =_xlfn.STDEV.S(M18:M21,N18) -> 0.466388965 | R18: 3.943 | T18: 4.1245 | U18: =AVERAGE(R18:R21,S18) -> 4.26825 | V18: =_xlfn.STDEV.S(R18:R21,S18) -> 0.2671221631
A19: 13 | B19: CD6 | C19: 3.548 | G19: 4.124 | K19: 17 | L19: AR4 | M19: 3.907 | R19: 4.306
A20: 16 | B20: AC4 | C20: 3.75 | D20: 4.248 | E20: =AVERAGE(C20:D21) -> 4.045 | G20: 3.991 | I20: =AVERAGE(G20:H21) -> 3.869 | K20: 30 | L20: AR4 | M20: 4.659 | O20: 4.687 | R20: 4.231 | T20: 4.412
A21: 16 | B21: AC4 | C21: 4.137 | G21: 3.747 | K21: 30 | L21: AR4 | M21: 4.715 | R21: 4.593
A22: 17 | B22: AR4 | C22: 3.855 | E22: =AVERAGE(C22:D23) -> 3.881 | G22: 3.943 | I22: =AVERAGE(G22:H23) -> 4.1245 | K22: 7 | L22: AR6 | M22: 2.887 | O22: 2.9915 | P22: =AVERAGE(M22:M25,N22) -> 2.991 | Q22: =_xlfn.STDEV.S(M22:M25,N22) -> 0.1397163794 | R22: 3.395 | T22: 3.474 | U22: =AVERAGE(R22:R25,S22) -> 3.33375 | V22: =_xlfn.STDEV.S(R22:R25,S22) -> 0.1807454472
A23: 17 | B23: AR4 | C23: 3.907 | G23: 4.306 | K23: 7 | L23: AR6 | M23: 3.096 | R23: 3.553
A24: 18 | B24: AD4 | C24: 3.459 | E24: =AVERAGE(C24:D25) -> 3.4775 | G24: 3.783 | I24: =AVERAGE(G24:H25) -> 3.836 | K24: 38 | L24: AR6 | M24: 2.855 | O24: 2.9905 | R24: 3.252 | T24: 3.1935
A25: 18 | B25: AD4 | C25: 3.496 | G25: 3.889 | K25: 38 | L25: AR6 | M25: 3.126 | R25: 3.135
A26: 21 | B26: LC6 | C26: 3.142 | D26: 3.238 | E26: =AVERAGE(C26:D27) -> 3.245 | G26: 3.594 | I26: =AVERAGE(G26:H27) -> 3.546 | K26: 11 | L26: CC6 | M26: 3.342 | O26: 3.329 | P26: =AVERAGE(M26:M29,N26) -> 3.842 | Q26: =_xlfn.STDEV.S(M26:M29,N26) -> 0.6156470851 | R26: 3.645 | S26: 3.622 | T26: 3.827333333 | U26: =AVERAGE(R26:R29,S26) -> 3.8532 | V26: =_xlfn.STDEV.S(R26:R29,S26) -> 0.2415071428
A27: 21 | B27: LC6 | C27: 3.355 | G27: 3.498 | K27: 11 | L27: CC6 | M27: 3.316 | R27: 4.215
A28: 22 | B28: LR6 | C28: 3.338 | D28: 3.492 | E28: =AVERAGE(C28:D29) -> 3.460666667 | G28: 3.358 | I28: =AVERAGE(G28:H29) -> 3.4165 | K28: 27 | L28: CC6 | M28: 4.15 | O28: 4.355 | R28: 3.856 | T28: 3.892
A29: 22 | B29: LR6 | C29: 3.552 | G29: 3.475 | K29: 27 | L29: CC6 | M29: 4.56 | R29: 3.928
A30: 23 | B30: LD6 | C30: 3.162 | E30: =AVERAGE(C30:D31) -> 3.143 | G30: 3.261 | I30: =AVERAGE(G30:H31) -> 3.3895 | K30: 13 | L30: CD6 | M30: 3.738 | N30: 3.945 | O30: 3.743666667 | P30: =AVERAGE(M30:M33,N30) -> 3.8546 | Q30: =_xlfn.STDEV.S(M30:M33,N30) -> 0.2177046164 | R30: 3.949 | T30: 4.0365 | U30: =AVERAGE(R30:R33,S30) -> 3.98425 | V30: =_xlfn.STDEV.S(R30:R33,S30) -> 0.1209748596
A31: 23 | B31: LD6 | C31: 3.124 | G31: 3.518 | K31: 13 | L31: CD6 | M31: 3.548 | R31: 4.124
A32: 26 | B32: CR6 | C32: 4.532 | E32: =AVERAGE(C32:D33) -> 4.4955 | G32: 4.086 | I32: =AVERAGE(G32:H33) -> 4.105 | K32: 28 | L32: CD6 | M32: 3.925 | O32: 4.021 | R32: 3.838 | T32: 3.932
A33: 26 | B33: CR6 | C33: 4.459 | G33: 4.124 | K33: 28 | L33: CD6 | M33: 4.117 | R33: 4.026
A34: 27 | B34: CC6 | C34: 4.15 | E34: =AVERAGE(C34:D35) -> 4.355 | G34: 3.856 | I34: =AVERAGE(G34:H35) -> 3.892 | K34: 12 | L34: CR6 | M34: 3.375 | O34: 3.382 | P34: =AVERAGE(M34:M37,N34) -> 3.93875 | Q34: =_xlfn.STDEV.S(M34:M37,N34) -> 0.643595305 | R34: 3.875 | T34: 3.7605 | U34: =AVERAGE(R34:R37,S34) -> 3.93275 | V34: =_xlfn.STDEV.S(R34:R37,S34) -> 0.2203200324
A35: 27 | B35: CC6 | C35: 4.56 | G35: 3.928 | K35: 12 | L35: CR6 | M35: 3.389 | R35: 3.646
A36: 28 | B36: CD6 | C36: 3.925 | E36: =AVERAGE(C36:D37) -> 4.021 | G36: 3.838 | I36: =AVERAGE(G36:H37) -> 3.932 | K36: 26 | L36: CR6 | M36: 4.532 | O36: 4.4955 | R36: 4.086 | T36: 4.105
A37: 28 | B37: CD6 | C37: 4.117 | G37: 4.026 | K37: 26 | L37: CR6 | M37: 4.459 | R37: 4.124
A38: 30 | B38: AR4 | C38: 4.659 | E38: =AVERAGE(C38:D39) -> 4.687 | G38: 4.231 | I38: =AVERAGE(G38:H39) -> 4.412 | K38: 1 | L38: LC4 | M38: 3.126 | O38: 3.1075 | P38: =AVERAGE(M38:M41,N38) -> 3.55075 | Q38: =_xlfn.STDEV.S(M38:M41,N38) -> 0.5456765678 | R38: 3.831 | S38: 3.264 | T38: 3.437666667 | U38: =AVERAGE(R38:R41,S38) -> 3.779 | V38: =_xlfn.STDEV.S(R38:R41,S38) -> 0.527543837
A39: 30 | B39: AR4 | C39: 4.715 | G39: 4.593 | K39: 1 | L39: LC4 | M39: 3.089 | R39: 3.218
A40: 31 | B40: AC4 | C40: 4.082 | E40: =AVERAGE(C40:D41) -> 4.196 | G40: 4.076 | I40: =AVERAGE(G40:H41) -> 4.0485 | K40: 43 | L40: LC4 | M40: 4.225 | O40: 3.994 | R40: 4.235 | T40: 4.291
A41: 31 | B41: AC4 | C41: 4.31 | G41: 4.021 | K41: 43 | L41: LC4 | M41: 3.763 | R41: 4.347
A42: 32 | B42: AD4 | C42: 3.914 | E42: =AVERAGE(C42:D43) -> 3.922 | G42: 4.115 | I42: =AVERAGE(G42:H43) -> 4.192 | K42: 21 | L42: LC6 | M42: 3.142 | N42: 3.238 | O42: 3.245 | P42: =AVERAGE(M42:M45,N42) -> 3.5804 | Q42: =_xlfn.STDEV.S(M42:M45,N42) -> 0.4694201743 | R42: 3.594 | T42: 3.546 | U42: =AVERAGE(R42:R45,S42) -> 3.69425 | V42: =_xlfn.STDEV.S(R42:R45,S42) -> 0.2378688364
A43: 33 | B43: AD4 | C43: 3.93 | G43: 4.269 | K43: 21 | L43: LC6 | M43: 3.355 | R43: 3.498
A44: 34 | B44: LR6 | C44: 3.953 | E44: =AVERAGE(C44:D45) -> 3.6335 | G44: 3.735 | I44: =AVERAGE(G44:H45) -> 3.5845 | K44: 35 | L44: LC6 | M44: 4.17 | O44: 4.0835 | R44: 4.039 | T44: 3.8425
A45: 34 | B45: LR6 | C45: 3.314 | G45: 3.434 | K45: 35 | L45: LC6 | M45: 3.997 | R45: 3.646
A46: 35 | B46: LC6 | C46: 4.17 | E46: =AVERAGE(C46:D47) -> 4.0835 | G46: 4.039 | I46: =AVERAGE(G46:H47) -> 3.8425 | K46: 3 | L46: LD4 | M46: 3.232 | O46: 3.2015 | P46: =AVERAGE(M46:M49,N46) -> 3.55475 | Q46: =_xlfn.STDEV.S(M46:M49,N46) -> 0.4117809895 | R46: 3.183 | T46: 3.289 | U46: =AVERAGE(R46:R49,S46) -> 3.55425 | V46: =_xlfn.STDEV.S(R46:R49,S46) -> 0.3356400602
A47: 35 | B47: LC6 | C47: 3.997 | G47: 3.646 | K47: 3 | L47: LD4 | M47: 3.171 | R47: 3.395
A48: 36 | B48: LD6 | C48: 3.331 | E48: =AVERAGE(C48:D49) -> 3.4615 | G48: 3.961 | I48: =AVERAGE(G48:H49) -> 3.932 | K48: 44 | L48: LD4 | M48: 3.97 | O48: 3.908 | R48: 3.689 | T48: 3.8195
A49: 36 | B49: LD6 | C49: 3.592 | G49: 3.903 | K49: 44 | L49: LD4 | M49: 3.846 | R49: 3.95
A50: 38 | B50: AR6 | C50: 2.855 | E50: =AVERAGE(C50:D51) -> 2.9905 | G50: 3.252 | I50: =AVERAGE(G50:H51) -> 3.1935 | K50: 23 | L50: LD6 | M50: 3.162 | O50: 3.143 | P50: =AVERAGE(M50:M53,N50) -> 3.30225 | Q50: =_xlfn.STDEV.S(M50:M53,N50) -> 0.2130921162 | R50: 3.261 | T50: 3.3895 | U50: =AVERAGE(R50:R53,S50) -> 3.66075 | V50: =_xlfn.STDEV.S(R50:R53,S50) -> 0.3311659956
A51: 38 | B51: AR6 | C51: 3.126 | G51: 3.135 | K51: 23 | L51: LD6 | M51: 3.124 | R51: 3.518
A52: 39 | B52: AC6 | C52: 3.082 | E52: =AVERAGE(C52:D53) -> 2.998 | G52: 3.041 | I52: =AVERAGE(G52:H53) -> 3.077 | K52: 36 | L52: LD6 | M52: 3.331 | O52: 3.4615 | R52: 3.961 | T52: 3.932
A53: 39 | B53: AC6 | C53: 2.914 | G53: 3.113 | K53: 36 | L53: LD6 | M53: 3.592 | R53: 3.903
A54: 40 | B54: AD6 | C54: 3.043 | E54: =AVERAGE(C54:D55) -> 3.056 | G54: 3.321 | I54: =AVERAGE(G54:H55) -> 3.437 | K54: 2 | L54: LR4 | M54: 3.302 | O54: 3.283 | P54: =AVERAGE(M54:M57,N54) -> 3.75575 | Q54: =_xlfn.STDEV.S(M54:M57,N54) -> 0.5757883726 | R54: 3.394 | T54: 3.4235 | U54: =AVERAGE(R54:R57,S54) -> 3.65625 | V54: =_xlfn.STDEV.S(R54:R57,S54) -> 0.3026982821
A55: 40 | B55: AD6 | C55: 3.069 | G55: 3.553 | K55: 2 | L55: LR4 | M55: 3.264 | R55: 3.453
A56: 42 | B56: LR4 | C56: 4.005 | E56: =AVERAGE(C56:D57) -> 4.2285 | G56: 4.057 | I56: =AVERAGE(G56:H57) -> 3.889 | K56: 42 | L56: LR4 | M56: 4.005 | O56: 4.2285 | R56: 4.057 | T56: 3.889
A57: 42 | B57: LR4 | C57: 4.452 | G57: 3.721 | K57: 42 | L57: LR4 | M57: 4.452 | R57: 3.721
A58: 43 | B58: LC4 | C58: 4.225 | E58: =AVERAGE(C58:D59) -> 3.994 | G58: 4.235 | I58: =AVERAGE(G58:H59) -> 4.291 | K58: 22 | L58: LR6 | M58: 3.338 | N58: 3.492 | O58: 3.460666667 | P58: =AVERAGE(M58:M61,N58) -> 3.5298 | Q58: =_xlfn.STDEV.S(M58:M61,N58) -> 0.2570879227 | R58: 3.358 | T58: 3.4165 | U58: =AVERAGE(R58:R61,S58) -> 3.5005 | V58: =_xlfn.STDEV.S(R58:R61,S58) -> 0.163675492
A59: 43 | B59: LC4 | C59: 3.763 | G59: 4.347 | K59: 22 | L59: LR6 | M59: 3.552 | R59: 3.475
A60: 44 | B60: LD4 | C60: 3.97 | E60: =AVERAGE(C60:D61) -> 3.908 | G60: 3.689 | I60: =AVERAGE(G60:H61) -> 3.8195 | K60: 34 | L60: LR6 | M60: 3.953 | O60: 3.6335 | R60: 3.735 | T60: 3.5845
A61: 44 | B61: LD4 | C61: 3.846 | G61: 3.95 | K61: 34 | L61: LR6 | M61: 3.314 | R61: 3.434

Sheet SAOS
A1: File Name | B1: Sample | C1: ID | D1: Acid | E1: Salt | F1: Replicate | G1: 7 or 28 days | H1: Crossover modulus Pa | I1: Crossover Temp | J1: Tan Delta Max | K1: Temperature
A2: Day 7 #1-1-0003o | B2: 1 | C2: LC4 | D2: L | E2: C | F2: 1 | G2: 7 | H2: 3458.21 | I2: 59.9044 | J2: 1.69253 | K2: 79.557
A3: Day 7 #1-2-0004o | B3: 1 | C3: LC4 | D3: L | E3: C | F3: 1 | G3: 7 | H3: 3021.13 | I3: 60.5777 | J3: 1.76168 | K3: 80.913
A4: Day 7 #2-1 0001o | B4: 2 | C4: LR4 | D4: L | E4: R | F4: 1 | G4: 7 | H4: 2562.4 | I4: 56.512 | J4: 1.54966 | K4: 71.355
A5: Day 7 #2-2-0002o | B5: 2 | C5: LR4 | D5: L | E5: R | F5: 1 | G5: 7 | H5: 3343.9 | I5: 53.7116 | J5: 1.87126 | K5: 74.47
A6: Day 7 #3-1-0007o | B6: 3 | C6: LD4 | D6: L | E6: D | F6: 1 | G6: 7 | H6: 2479.29 | I6: 56.7783 | J6: 1.46495 | K6: 74.196
A7: Day 7 #3-2-0008o | B7: 3 | C7: LD4 | D7: L | E7: D | F7: 1 | G7: 7 | H7: 3507.31 | I7: 60.005 | J7: 1.3271 | K7: 74.07
A8: Day 7 #6-1-0013o | B8: 6 | C8: AC6 | D8: A | E8: C | F8: 1 | G8: 7 | H8: 4593.43 | I8: 65.9591 | J8: 1.59929 | K8: 83.64
A9: Day 7 #6-2-0014o | B9: 6 | C9: AC6 | D9: A | E9: C | F9: 1 | G9: 7 | H9: 4192.71 | I9: 74.5542 | J9: 1.06511 | K9: 90.115
A10: Day 7 #7-1-0015o | B10: 7 | C10: AR6 | D10: A | E10: R | F10: 1 | G10: 7 | H10: 4450.94 | I10: 64.2617 | J10: 1.75182 | K10: 83.293
A11: Day 7 #7-2-0016o | B11: 7 | C11: AR6 | D11: A | E11: R | F11: 1 | G11: 7 | H11: 6002.06 | I11: 63.0891 | J11: 1.74893 | K11: 81.012
A12: Day 7 #11-1-0053o | B12: 11 | C12: CC6 | D12: C | E12: C | F12: 1 | G12: 7 | H12: 4642.52 | I12: 64.8907 | J12: 1.8363 | K12: 84.462
A13: Day 7 #11-2-0054o | B13: 11 | C13: CC6 | D13: C | E13: C | F13: 1 | G13: 7 | H13: 3835.6 | I13: 63.0001 | J13: 1.93984 | K13: 85.943
A14: Day 7 #12-1-0024o | B14: 12 | C14: CR6 | D14: C | E14: R | F14: 1 | G14: 7 | H14: 3963.61 | I14: 59.1369 | J14: 1.89777 | K14: 78.162
A15: Day 7 #12-2-0025o | B15: 12 | C15: CR6 | D15: C | E15: R | F15: 1 | G15: 7 | H15: 4228 | I15: 59.368 | J15: 1.90597 | K15: 90.124
A16: Day 7 #13-1-0026o | B16: 13 | C16: CD6 | D16: C | E16: D | F16: 1 | G16: 7 | H16: 3743.86 | I16: 60.9601 | J16: 1.67423 | K16: 90.129
A17: Day 7 #13-2-0027o | B17: 13 | C17: CD6 | D17: C | E17: D | F17: 1 | G17: 7 | H17: 4007.88 | I17: 61.7807 | J17: 1.54232 | K17: 80.458
A18: Day 7 #16-1-0032o | B18: 16 | C18: AC4 | D18: A | E18: C | F18: 1 | G18: 7 | H18: 2619.42 | I18: 63.134 | J18: 2.02494 | K18: 83.437
A19: Day 7 #16-2-0033o | B19: 16 | C19: AC4 | D19: A | E19: C | F19: 1 | G19: 7 | H19: 3140.44 | I19: 63.0144 | J19: 2.02693 | K19: 81.539
A20: Day 7 #17-1-0034o | B20: 17 | C20: AR4 | D20: A | E20: R | F20: 1 | G20: 7 | H20: 3093.58 | I20: 60.7638 | J20: 1.55199 | K20: 74.079
A21: Day 7 #17-2-0035o | B21: 17 | C21: AR4 | D21: A | E21: R | F21: 1 | G21: 7 | H21: 2851.58 | I21: 59.4957 | J21: 2.08193 | K21: 90.12
A22: Day 7 #18-1-0036o | B22: 18 | C22: AD4 | D22: A | E22: D | F22: 1 | G22: 7 | H22: 2731.4 | I22: 59.7626 | J22: 2.11188 | K22: 89.971
A23: Day 7 #18-2-0037o | B23: 18 | C23: AD4 | D23: A | E23: D | F23: 1 | G23: 7 | H23: 2538.18 | I23: 60.0465 | J23: 2.18612 | K23: 90.097
A24: Day 7 #21-1-0042o | B24: 21 | C24: LC6 | D24: L | E24: C | F24: 1 | G24: 7 | H24: 4091.4 | I24: 65.2515 | J24: 1.95736 | K24: 84.123
A25: Day 7 #21-2-0043o | B25: 21 | C25: LC6 | D25: L | E25: C | F25: 1 | G25: 7 | H25: 2739.08 | I25: 66.0653 | J25: 1.68973 | K25: 90.043
A26: Day 7 #22-1-0044o | B26: 22 | C26: LR6 | D26: L | E26: R | F26: 1 | G26: 7 | H26: 4231.74 | I26: 63.3245 | J26: 1.96148 | K26: 84.421
A27: Day 7 #22-2-0045o | B27: 22 | C27: LR6 | D27: L | E27: R | F27: 1 | G27: 7 | H27: 4900.97 | I27: 62.6676 | J27: 1.97562 | K27: 83.279
A28: Day 7 #23-1-0047o | B28: 23 | C28: LD6 | D28: L | E28: D | F28: 1 | G28: 7 | H28: 4261.65 | I28: 69.3451 | J28: 1.30189 | K28: 82.598
A29: Day 7 #23-2-0048o | B29: 23 | C29: LD6 | D29: L | E29: D | F29: 1 | G29: 7 | H29: 4242.27 | I29: 76.0557 | J29: 1.04885 | K29: 86.833
A30: Rep 2 Day #7 26-1-0003o | B30: 26 | C30: CR6 | D30: C | E30: R | F30: 2 | G30: 7 | H30: 2569.99 | I30: 59.4672 | J30: 2.17624 | K30: 90.129
A31: Rep 2 Day #7 26-2-0004o | B31: 26 | C31: CR6 | D31: C | E31: R | F31: 2 | G31: 7 | H31: 2746.4 | I31: 57.8334 | J31: 2.32394 | K31: 80.503
A32: Rep 2 Day #7 27-3-0016o | B32: 27 | C32: CC6 | D32: C | E32: C | F32: 2 | G32: 7 | H32: 3185.77 | I32: 64.1195 | J32: 2.00466 | K32: 85.423
A33: Rep 2 Day #7 27-4-0017o | B33: 27 | C33: CC6 | D33: C | E33: C | F33: 2 | G33: 7 | H33: 2942.51 | I33: 64.574 | J33: 1.82933 | K33: 86.214
A34: Rep 2 Day #7 28-2-0006o | B34: 28 | C34: CD6 | D34: C | E34: D | F34: 2 | G34: 7 | H34: 2696.67 | I34: 63.5464 | J34: 1.58535 | K34: 90.02
A35: Rep 2 Day #7 28-3-0008o | B35: 28 | C35: CD6 | D35: C | E35: D | F35: 2 | G35: 7 | H35: 2508.68 | I35: 62.363 | J35: 1.51464 | K35: 90.133
A36: Rep 2 Day #7 30-1-0007o | B36: 30 | C36: AR4 | D36: A | E36: R | F36: 2 | G36: 7 | H36: 3174.92 | I36: 61.7565 | J36: 2.01261 | K36: 82.72
A37: Rep 2 Day #7 30-2-0009o | B37: 30 | C37: AR4 | D37: A | E37: R | F37: 2 | G37: 7 | H37: 2995.69 | I37: 61.9164 | J37: 2.18713 | K37: 84.295
A38: Rep 2 Day #7 31-1-0010o | B38: 31 | C38: AC4 | D38: A | E38: C | F38: 2 | G38: 7 | H38: 2869.63 | I38: 65.5228 | J38: 2.16372 | K38: 89.224
A39: Rep 2 Day #7 31-2-0011o | B39: 31 | C39: AC4 | D39: A | E39: C | F39: 2 | G39: 7 | H39: 3561.26 | I39: 65.766 | J39: 2.08461 | K39: 88.645
A40: Rep 2 Day #7 32-1-0012o | B40: 32 | C40: AD4 | D40: A | E40: D | F40: 2 | G40: 7 | H40: 3085.23 | I40: 61.5857 | J40: 1.85303 | K40: 82.44
A41: Rep 2 Day #7 32-2-0015o | B41: 33 | C41: AD4 | D41: A | E41: D | F41: 2 | G41: 7 | H41: 2840.6 | I41: 62.782 | J41: 1.72753 | K41: 86.769
A42: Rep 2 Day #7 34-1-0018o | B42: 34 | C42: LR6 | D42: L | E42: R | F42: 2 | G42: 7 | H42: 1525.74 | I42: 72.2112 | J42: 1.11256 | K42: 80.228
A43: Rep 2 Day #7 34-2-0019o | B43: 34 | C43: LR6 | D43: L | E43: R | F43: 2 | G43: 7 | H43: 2021.85 | I43: 66.5143 | J43: 1.43299 | K43: 80.165
A44: Rep 2 Day #7 35-1-0020o | B44: 35 | C44: LC6 | D44: L | E44: C | F44: 2 | G44: 7 | H44: 3733.29 | I44: 66.5975 | J44: 1.80288 | K44: 88.491
A45: Rep 2 Day #7 35-2-0021o | B45: 35 | C45: LC6 | D45: L | E45: C | F45: 2 | G45: 7 | H45: 3543.38 | I45: 67.7933 | J45: 1.85332 | K45: 89.088
A46: Rep 2 Day #7 36-1-0022o | B46: 36 | C46: LD6 | D46: L | E46: D | F46: 2 | G46: 7 | H46: 2736.4 | I46: 71.3863 | J46: 2.08599 | K46: 89.419
A47: Rep 2 Day #7 36-2-0023o | B47: 36 | C47: LD6 | D47: L | E47: D | F47: 2 | G47: 7 | H47: 2880.53 | I47: 70.2231 | J47: 1.53556 | K47: 90.12
A48: Rep 2 Day #7 42-1-0027o | B48: 42 | C48: LR4 | D48: L | E48: R | F48: 2 | G48: 7 | H48: 963.486 | I48: 68.2515 | J48: 1.69185 | K48: 82.81
A49: Rep 2 Day #7 42-2-0028o | B49: 42 | C49: LR4 | D49: L | E49: R | F49: 2 | G49: 7 | H49: 3058.65 | I49: 62.3165 | J49: 2.03059 | K49: 89.536
A50: Rep 2 Day #7 43-1-0029o | B50: 43 | C50: LC4 | D50: L | E50: C | F50: 2 | G50: 7 | H50: 2451.66 | I50: 63.503 | J50: 1.70844 | K50: 90.138
A51: Rep 2 Day #7 43-2-0030o | B51: 43 | C51: LC4 | D51: L | E51: C | F51: 2 | G51: 7 | H51: 2128.99 | I51: 61.8991 | J51: 1.68882 | K51: 90.106
A52: Day 28 #1-1-0004o | B52: 1 | C52: LC4 | D52: L | E52: C | F52: 1 | G52: 28 | H52: 2846.97 | I52: 59.4215 | J52: 1.91923 | K52: 90.142
A53: Day 28 #1-2-0005o | B53: 1 | C53: LC4 | D53: L | E53: C | F53: 1 | G53: 28 | H53: 3044.97 | I53: 58.714 | J53: 1.74152 | K53: 90.133
A54: Day 28 #2-1-0002o | B54: 2 | C54: LR4 | D54: L | E54: R | F54: 1 | G54: 28 | H54: 2965.86 | I54: 55.7525 | J54: 1.85099 | K54: 90.142
A55: Day 28 #2-2-0003o | B55: 2 | C55: LR4 | D55: L | E55: R | F55: 1 | G55: 28 | H55: 2807.97 | I55: 54.62 | J55: 1.75205 | K55: 74.933
A56: Day 28 #3-1-0006o | B56: 3 | C56: LD4 | D56: L | E56: D | F56: 1 | G56: 28 | H56: 2500.36 | I56: 56.5666 | J56: 1.85885 | K56: 90.129
A57: Day 28 #3-2-0007o | B57: 3 | C57: LD4 | D57: L | E57: D | F57: 1 | G57: 28 | H57: 2182 | I57: 53.3078 | J57: 1.93576 | K57: 90.124
A58: Day 28 #4-2-0009o | B58: 6 | C58: AC6 | D58: A | E58: C | F58: 1 | G58: 28 | H58: 1995.8 | I58: 54.5529 | J58: 2.3515 | K58: 85.369
A59: Day 28 #6-1-0010o | B59: 6 | C59: AC6 | D59: A | E59: C | F59: 1 | G59: 28 | H59: 5395.14 | I59: 63.7167 | J59: 1.876 | K59: 86.503
A60: Day 28 #6-2-0012o | B60: 7 | C60: AR6 | D60: A | E60: R | F60: 1 | G60: 28 | H60: 4744.8 | I60: 65.1695 | J60: 1.67463 | K60: 82.896
A61: Day 28 #7-1-0013o | B61: 7 | C61: AR6 | D61: A | E61: R | F61: 1 | G61: 28 | H61: 2448.58 | I61: 64.2777 | J61: 1.59241 | K61: 84.042
A62: Day 28 #11-1-0020o | B62: 11 | C62: CC6 | D62: C | E62: C | F62: 1 | G62: 28 | H62: 3934.71 | I62: 64.0947 | J62: 1.83656 | K62: 82.936
A63: Day 28 #11-2-0021o | B63: 11 | C63: CC6 | D63: C | E63: C | F63: 1 | G63: 28 | H63: 4287.67 | I63: 63.8113 | J63: 1.71858 | K63: 81.354
A64: Day 28 #12-1-0022o | B64: 12 | C64: CR6 | D64: C | E64: R | F64: 1 | G64: 28 | H64: 4411.2 | I64: 59.4509 | J64: 1.86495 | K64: 78.612
A65: Day 28 #12-2-0023o | B65: 12 | C65: CR6 | D65: C | E65: R | F65: 1 | G65: 28 | H65: 4535.37 | I65: 59.7561 | J65: 1.69632 | K65: 77.982
A66: Day 28 #13-1-0024o | B66: 13 | C66: CD6 | D66: C | E66: D | F66: 1 | G66: 28 | H66: 4379.99 | I66: 62.4273 | J66: 1.4997 | K66: 78.454
A67: Day 28 #13-2-0025o | B67: 13 | C67: CD6 | D67: C | E67: D | F67: 1 | G67: 28 | H67: 3479.2 | I67: 59.4811 | J67: 1.4301 | K67: 74.888
A68: Day 28 #16-1-0028o | B68: 16 | C68: AC4 | D68: A | E68: C | F68: 1 | G68: 28 | H68: 2571.33 | I68: 62.1312 | J68: 1.80483 | K68: 76.299
A69: Day 28 #16-3-0030o | B69: 16 | C69: AC4 | D69: A | E69: C | F69: 1 | G69: 28 | H69: 2318.68 | I69: 62.5034 | J69: 2.04394 | K69: 81.62
A70: Day 28 #17-1-0031o | B70: 17 | C70: AR4 | D70: A | E70: R | F70: 1 | G70: 28 | H70: 2817.62 | I70: 59.0182 | J70: 2.30347 | K70: 80.183
A71: Day 28 #17-2-0032o | B71: 17 | C71: AR4 | D71: A | E71: R | F71: 1 | G71: 28 | H71: 2723.15 | I71: 58.9417 | J71: 2.37968 | K71: 83.004
A72: Day 28 #18-1-0033o | B72: 18 | C72: AD4 | D72: A | E72: D | F72: 1 | G72: 28 | H72: 2593.11 | I72: 58.7922 | J72: 2.07983 | K72: 77.392
A73: Day 28 #18-2-0034o | B73: 18 | C73: AD4 | D73: A | E73: D | F73: 1 | G73: 28 | H73: 2860.43 | I73: 57.4044 | J73: 1.85909 | K73: 75.31
A74: Day 28 #21-1-0038o | B74: 21 | C74: LC6 | D74: L | E74: C | F74: 1 | G74: 28 | H74: 3072.1 | I74: 63.4141 | J74: 1.76384 | K74: 88.609
A75: Day 28 #21-2-0039o | B75: 21 | C75: LC6 | D75: L | E75: C | F75: 1 | G75: 28 | H75: 2699.44 | I75: 61.786 | J75: 1.78797 | K75: 89.88
A76: Day 28 #22-1-0040o | B76: 22 | C76: LR6 | D76: L | E76: R | F76: 1 | G76: 28 | H76: 2466.95 | I76: 59.8612 | J76: 1.88838 | K76: 90.079
A77: Day 28 #22-2-0041o | B77: 22 | C77: LR6 | D77: L | E77: R | F77: 1 | G77: 28 | H77: 2461.24 | I77: 61.4725 | J77: 1.70258 | K77: 90.075
A78: Day 28 #23-1-0042o | B78: 23 | C78: LD6 | D78: L | E78: D | F78: 1 | G78: 28 | H78: 2222.28 | I78: 71.0497 | J78: 1.09114 | K78: 83.013
A79: Day 28 #23-2-0045o | B79: 23 | C79: LD6 | D79: L | E79: D | F79: 1 | G79: 28 | H79: 2832.79 | I79: 65.7366 | J79: 1.39823 | K79: 84.286
A80: Rep 2 Day 28 #26-2-0036o | B80: 26 | C80: CR6 | D80: C | E80: R | F80: 2 | G80: 28 | H80: 2181.08 | I80: 57.1664 | J80: 2.0542 | K80: 80.48
A81: Rep 2 Day 28 #26-3-0037o | B81: 26 | C81: CR6 | D81: C | E81: R | F81: 2 | G81: 28 | H81: 2205.09 | I81: 57.3734 | J81: 2.05172 | K81: 80.25
A82: Rep 2 Day 28 #27-1-0038o | B82: 27 | C82: CC6 | D82: C | E82: C | F82: 2 | G82: 28 | H82: 1885.64 | I82: 61.961 | J82: 2.04151 | K82: 87.42
A83: Rep 2 Day 28 #27-2-0039o | B83: 27 | C83: CC6 | D83: C | E83: C | F83: 2 | G83: 28 | H83: 2153.04 | I83: 61.7782 | J83: 1.986 | K83: 86.114
A84: Rep 2 Day 28 #28-1-0040o | B84: 28 | C84: CD6 | D84: C | E84: D | F84: 2 | G84: 28 | H84: 3047.92 | I84: 58.2037 | J84: 1.44898 | K84: 87.808
A85: Rep 2 Day 28 #30-1-0042o | B85: 30 | C85: AR4 | D85: A | E85: R | F85: 2 | G85: 28 | H85: 2590.22 | I85: 59.3132 | J85: 2.52825 | K85: 83.708
A86: Rep 2 Day 28 #30-2-0043o | B86: 30 | C86: AR4 | D86: A | E86: R | F86: 2 | G86: 28 | H86: 2862.43 | I86: 59.3449 | J86: 2.48751 | K86: 84.056
A87: Rep 2 Day 28 #31-1-0044o | B87: 31 | C87: AC4 | D87: A | E87: C | F87: 2 | G87: 28 | H87: 2926.2 | I87: 64.3502 | J87: 2.37361 | K87: 87.962
A88: Rep 2 Day 28 #31-2-0045o | B88: 31 | C88: AC4 | D88: A | E88: C | F88: 2 | G88: 28 | H88: 2913.13 | I88: 63.9358 | J88: 2.28366 | K88: 86.923
A89: Rep 2 Day 28 #32-1-0046o | B89: 32 | C89: AD4 | D89: A | E89: D | F89: 2 | G89: 28 | H89: 2217.03 | I89: 59.3962 | J89: 2.22718 | K89: 82.756
A90: Rep 2 Day 28 #32-2-0047o | B90: 32 | C90: AD4 | D90: A | E90: D | F90: 2 | G90: 28 | H90: 2407.16 | I90: 59.4555 | J90: 2.0706 | K90: 81.733
A91: Rep 2 Day 28 #36-2-0004o | B91: 36 | C91: LD6 | D91: L | E91: D | F91: 2 | G91: 28 | H91: 1420.79 | I91: 62.2798 | J91: 1.47841 | K91: 88.889
A92: Rep 2 Day 28 #36-3-0007o | B92: 36 | C92: LD6 | D92: L | E92: D | F92: 2 | G92: 28 | H92: 1255.97 | I92: 65.6707 | J92: 1.49251 | K92: 87.677
A93: Rep 2 Day 28 #42-1-0008o | B93: 42 | C93: LR4 | D93: L | E93: R | F93: 2 | G93: 28 | H93: 2308.2 | I93: 62.9076 | J93: 2.03751 | K93: 90.133
A94: Rep 2 Day 28 #42-2-0009o | B94: 42 | C94: LR4 | D94: L | E94: R | F94: 2 | G94: 28 | H94: 2616.85 | I94: 62.4271 | J94: 2.04952 | K94: 89.192
A95: Rep 2 Day 28 #43-1-0010o | B95: 43 | C95: LC4 | D95: L | E95: C | F95: 2 | G95: 28 | H95: 2721.74 | I95: 66.5225 | J95: 2.17668 | K95: 90.106
A96: Rep 2 Day 28 #43-2-0011o | B96: 43 | C96: LC4 | D96: L | E96: C | F96: 2 | G96: 28 | H96: 2814.5 | I96: 66.8213 | J96: 2.18939 | K96: 89.998

Sheet Formatted figures
A1: Summary (Means) - Treatment:
B3: Moisture | C3: Protein | D3: Fat | E3: Ash | F3: Sodium | G3: Potassium | H3: Calcium | J3: Treatment | K3: Moisture | L3: Standard deviation (n-1) | M3: Protein Mean | N3: Standard deviation (n-1) | O3: Fat | P3: Standard deviation (n-1) | Q3: Sodium | R3: Standard deviation (n-1) | S3: Potassium | T3: Standard deviation (n-1) | U3: Calcium | V3: Standard deviation (n-1)
A4: AC4 | B4: 0.5029128794 | C4: 0.2212475 | D4: 0.209375 | E4: 0.02888145173 | F4: 0.007164362363 | G4: 0.0006373839915 | H4: 0.001502006434 | J4: AC4 | K4: 0.5029128794 | L4: 0.02507509261 | M4: 0.2212475 | N4: 0.005000049166 | O4: 0.209375 | P4: 0.02239559108 | Q4: 0.007164362363 | R4: 0.001467744598 | S4: 0.0006373839915 | T4: 0.0004003099106 | U4: 0.001502006434 | V4: 1.295731606e-05
A5: AC6 | B5: 0.5095765104 | C5: 0.2252825 | D5: 0.18 | E5: 0.03277482061 | F5: 0.007603462016 | G5: 0.001018500976 | H5: 0.00206302217 | J5: AC6 | K5: 0.5095765104 | L5: 0.00865377424 | M5: 0.2252825 | N5: 0.006041414707 | O5: 0.18 | P5: 0.02886751346 | Q5: 0.007603462016 | R5: 0.0005295037894 | S5: 0.001018500976 | T5: 0.0001456802752 | U5: 0.00206302217 | V5: 1.791034683e-05
A6: AD4 | B6: 0.5457323614 | C6: 0.214495 | D6: 0.1725 | E6: 0.0223028123 | F6: 0.004293920186 | G6: 0.001796018037 | H6: 0.001467547649 | J6: AD4 | K6: 0.5457323614 | L6: 0.004165718089 | M6: 0.214495 | N6: 0.00883100787 | O6: 0.1725 | P6: 0.008660254038 | Q6: 0.004293920186 | R6: 0.000630011986 | S6: 0.001796018037 | T6: 0.0002225374351 | U6: 0.001467547649 | V6: 2.26709105e-05
A7: AD6 | B7: 0.5276278805 | C7: 0.217755 | D7: 0.181875 | E7: 0.02504111591 | F7: 0.003993402672 | G7: 0.001827803215 | H7: 0.002016713092 | J7: AD6 | K7: 0.5276278805 | L7: 0.007631964938 | M7: 0.217755 | N7: 0.004718181147 | O7: 0.181875 | P7: 0.02095381827 | Q7: 0.003993402672 | R7: 0.0001249266234 | S7: 0.001827803215 | T7: 0.0003220914234 | U7: 0.002016713092 | V7: 3.015740497e-05
A8: AR4 | B8: 0.5008394005 | C8: 0.2185425 | D8: 0.21125 | E8: 0.02194933056 | F8: 0.005041560213 | G8: 0.000795895989 | H8: 0.001529251276 | J8: AR4 | K8: 0.5008394005 | L8: 0.007377016892 | M8: 0.2185425 | N8: 0.004477688206 | O8: 0.21125 | P8: 0.01010362971 | Q8: 0.005041560213 | R8: 7.135783452e-05 | S8: 0.000795895989 | T8: 5.106196225e-05 | U8: 0.001529251276 | V8: 7.204391358e-06
A9: AR6 | B9: 0.5080416142 | C9: 0.2273 | D9: 0.18875 | E9: 0.02581049788 | F9: 0.004949915767 | G9: 0.0009501531966 | H9: 0.002109377253 | J9: AR6 | K9: 0.5080416142 | L9: 0.00573606865 | M9: 0.2273 | N9: 0.004860665249 | O9: 0.18875 | P9: 0.0158771324 | Q9: 0.004949915767 | R9: 0.0001268699753 | S9: 0.0009501531966 | T9: 0.0001164668897 | U9: 0.002109377253 | V9: 1.75957994e-05
A10: CC6 | B10: 0.5002217317 | C10: 0.21829 | D10: 0.2025 | E10: 0.02913127912 | F10: 0.007497113783 | G10: 0.001096335972 | H10: 0.001493813997 | J10: CC6 | K10: 0.5002217317 | L10: 0.009798078107 | M10: 0.21829 | N10: 0.0122122152 | O10: 0.2025 | P10: 0.006123724357 | Q10: 0.007497113783 | R10: 0.0001590110854 | S10: 0.001096335972 | T10: 2.157296013e-05 | U10: 0.001493813997 | V10: 6.774939439e-05
A11: CD6 | B11: 0.5624535027 | C11: 0.2152933333 | D11: 0.14875 | E11: 0.02326031139 | F11: 0.004448482274 | G11: 0.00197139565 | H11: 0.001441984296 | J11: CD6 | K11: 0.5624535027 | L11: 0.02117468938 | M11: 0.2152933333 | N11: 0.02361970858 | O11: 0.14875 | P11: 0.003227486122 | Q11: 0.004448482274 | R11: 0.0002198588082 | S11: 0.00197139565 | T11: 0.0001521751905 | U11: 0.001441984296 | V11: 7.809496262e-05
A12: CR6 | B12: 0.5004265241 | C12: 0.220685 | D12: 0.2025 | E12: 0.02233607013 | F12: 0.004907874602 | G12: 0.001017533717 | H12: 0.001497358785 | J12: CR6 | K12: 0.5004265241 | L12: 0.02063623644 | M12: 0.220685 | N12: 0.0120196797 | O12: 0.2025 | P12: 0.002041241452 | Q12: 0.004907874602 | R12: 5.897567416e-05 | S12: 0.001017533717 | T12: 2.528672306e-05 | U12: 0.001497358785 | V12: 9.274251534e-05
A13: LC4 | B13: 0.5084119896 | C13: 0.2246225 | D13: 0.183125 | E13: 0.02913274846 | F13: 0.008119937383 | G13: 0.001021611583 | H13: 0.001483242639 | J13: LC4 | K13: 0.5084119896 | L13: 0.0007582648943 | M13: 0.2246225 | N13: 0.01789879209 | O13: 0.183125 | P13: 0.02816432436 | Q13: 0.008119937383 | R13: 0.0002203795536 | S13: 0.001021611583 | T13: 0.0001850909359 | U13: 0.001483242639 | V13: 0.0001960641203
A14: LC6 | B14: 0.5049879894 | C14: 0.2214175 | D14: 0.20375 | E14: 0.03214573331 | F14: 0.007650814144 | G14: 0.0009578324362 | H14: 0.001841382362 | J14: LC6 | K14: 0.5049879894 | L14: 0.009153110756 | M14: 0.2214175 | N14: 0.01274039344 | O14: 0.20375 | P14: 0.0158771324 | Q14: 0.007650814144 | R14: 0.0003617112004 | S14: 0.0009578324362 | T14: 4.043326109e-05 | U14: 0.001841382362 | V14: 5.07410401e-05
A15: LD4 | B15: 0.5519530864 | C15: 0.2201325 | D15: 0.148125 | E15: 0.02253508869 | F15: 0.005296376919 | G15: 0.002011693704 | H15: 0.001612757399 | J15: LD4 | K15: 0.5519530864 | L15: 0.007353511343 | M15: 0.2201325 | N15: 0.009743320361 | O15: 0.148125 | P15: 0.01951228246 | Q15: 0.005296376919 | R15: 0.001258251521 | S15: 0.002011693704 | T15: 7.323256226e-05 | U15: 0.001612757399 | V15: 0.0002222773807
A16: LD6 | B16: 0.5267711104 | C16: 0.225365 | D16: 0.179375 | E16: 0.02423033224 | F16: 0.003879365139 | G16: 0.002070721579 | H16: 0.001868400032 | J16: LD6 | K16: 0.5267711104 | L16: 0.009722225572 | M16: 0.225365 | N16: 0.008471680274 | O16: 0.179375 | P16: 0.00125 | Q16: 0.003879365139 | R16: 0.0005687633453 | S16: 0.002070721579 | T16: 0.0007268893138 | U16: 0.001868400032 | V16: 1.948823889e-05
A17: LR4 | B17: 0.5079785787 | C17: 0.2303225 | D17: 0.185625 | E17: 0.02244645161 | F17: 0.005323553761 | G17: 0.0009803496186 | H17: 0.001537911455 | J17: LR4 | K17: 0.5079785787 | L17: 0.01121111796 | M17: 0.2303225 | N17: 0.02243563293 | O17: 0.185625 | P17: 0.02095381827 | Q17: 0.005323553761 | R17: 0.0002522895737 | S17: 0.0009803496186 | T17: 0.0001524008267 | U17: 0.001537911455 | V17: 0.0001883821814
A18: LR6 | B18: 0.5103814659 | C18: 0.2226775 | D18: 0.199375 | E18: 0.0249013884 | F18: 0.004980680624 | G18: 0.0009188161808 | H18: 0.001837570095 | J18: LR6 | K18: 0.5103814659 | L18: 0.00978503965 | M18: 0.2226775 | N18: 0.01367834389 | O18: 0.199375 | P18: 0.00125 | Q18: 0.004980680624 | R18: 0.0001512041724 | S18: 0.0009188161808 | T18: 1.932460206e-05 | U18: 0.001837570095 | V18: 4.966992336e-05
A21: Statistic | B21: Moisture Rep 1 | C21: Standard deviation (n-1) | D21: Moisture Rep 2 | E21: Standard deviation (n-1) | F21: Protein Rep 1 | G21: Standard deviation (n-1) | H21: Protein Rep 2 | I21: Standard deviation (n-1) | J21: Fat Rep 1 | K21: Standard deviation (n-1) | L21: Fat Rep 2 | M21: Standard deviation (n-1) | N21: Ash Rep 1 | O21: Standard deviation (n-1) | P21: Ash Rep 2 | Q21: Standard deviation (n-1) | R21: Sodium Rep 1 | S21: Standard deviation (n-1) | T21: Sodium Rep 2 | U21: Standard deviation (n-1) | V21: Potassium Rep 1 | W21: Standard deviation (n-1) | X21: Potassium Rep 2 | Y21: Standard deviation (n-1) | Z21: Calcium Rep 1 | AA21: Standard deviation (n-1) | AB21: Calcium Rep 2 | AC21: Standard deviation (n-1)
A22: AC4 | B22: 0.524627083 | C22: 0.0004274064196 | D22: 0.4811986758 | E22: 0.0002675416326 | F22: 0.22533 | G22: 0.002870853532 | H22: 0.217165 | I22: 0.0003040559159 | J22: 0.19 | K22: 0 | L22: 0.22875 | M22: 0.001767766953 | N22: 0.02845535311 | O22: 0.0001073255343 | P22: 0.02930755035 | Q22: 6.16363094e-05 | R22: 0.007816449803 | S22: 4.547230297e-05 | T22: 0.006512274922 | U22: 0.002181715555 | V22: 0.0004479017288 | W22: 0.0005806013277 | X22: 0.0008268662541 | Y22: 5.662203285e-06 | Z22: 0.001493655336 | AA22: 5.989136668e-06 | AB22: 0.001510357531 | AC22: 1.374201763e-05
A23: AC6 | B23: 0.5170681179 | C23: 0.0001384204327 | D23: 0.5020849028 | E23: 0.000384098477 | F23: 0.22741 | G23: 0.008584276324 | H23: 0.223155 | I23: 0.004207285348 | J23: 0.155 | K23: 0 | L23: 0.205 | M23: 0 | N23: 0.03208788684 | O23: 0.0003218175258 | P23: 0.03346175438 | Q23: 0.000303984168 | R23: 0.007151953428 | S23: 0.0001578406092 | T23: 0.008054970605 | U23: 2.773282137e-05 | V23: 0.0008924133254 | W23: 8.688707878e-06 | X23: 0.001144588627 | Y23: 5.929761099e-07 | Z23: 0.002048806115 | AA23: 1.231702144e-05 | AB23: 0.002077238225 | AC23: 1.499222617e-06
A24: AD4 | B24: 0.5493160587 | C24: 0.0001129310924 | D24: 0.542148664 | E24: 0.0008217793729 | F24: 0.221715 | G24: 0.004546696603 | H24: 0.207275 | I24: 0.002184959954 | J24: 0.165 | K24: 0 | L24: 0.18 | M24: 0 | N24: 0.02239936088 | O24: 0.0001057886411 | P24: 0.02220626373 | Q24: 0.0001027631593 | R24: 0.003921711294 | S24: 0.0007502133406 | T24: 0.004666129079 | U24: 0.00027160157 | V24: 0.001966718924 | W24: 0.0001386669268 | X24: 0.001625317149 | Y24: 0.0001130709573 | Z24: 0.001486395356 | AA24: 3.685556936e-07 | AB24: 0.001448699942 | AC24: 1.099229188e-05
A25: AD6 | B25: 0.5342137806 | C25: 0.001113633739 | D25: 0.5210419804 | E25: 6.455159427e-05 | F25: 0.217695 | G25: 0.00516895057 | H25: 0.217815 | I25: 0.006328605692 | J25: 0.16375 | K25: 0.001767766953 | L25: 0.2 | M25: 0 | N25: 0.025530778 | O25: 0.0001813555526 | P25: 0.02455145383 | Q25: 0.0002794161945 | R25: 0.004004645227 | S25: 0.000206149648 | T25: 0.003982160116 | U25: 6.177965767e-05 | V25: 0.002071437849 | W25: 0.0002598604418 | X25: 0.00158416858 | Y25: 7.918247653e-05 | Z25: 0.001994634965 | AA25: 1.105247479e-05 | AB25: 0.002038791219 | AC25: 2.56217734e-05
A26: AR4 | B26: 0.5072223041 | C26: 0.000332606298 | D26: 0.4944564969 | E26: 0.000429737893 | F26: 0.219445 | G26: 0.007502402948 | H26: 0.21764 | I26: 0.0007778174593 | J26: 0.2025 | K26: 0 | L26: 0.22 | M26: 0 | N26: 0.02238892917 | O26: 0.0001030760083 | P26: 0.02150973194 | Q26: 2.415039552e-05 | R26: 0.005090067106 | S26: 3.710214744e-05 | T26: 0.004993053319 | U26: 6.698938286e-05 | V26: 0.000833198159 | W26: 4.073652404e-06 | X26: 0.0007585938191 | Y26: 4.732409305e-05 | Z26: 0.001532421497 | AA26: 4.197867296e-06 | AB26: 0.001526081055 | AC26: 9.893759093e-06
A27: AR6 | B27: 0.5030938179 | C27: 0.0006794552211 | D27: 0.5129894106 | E27: 0.000568363655 | F27: 0.230735 | G27: 0.003882016229 | H27: 0.223865 | I27: 0.002934493142 | J27: 0.175 | K27: 0 | L27: 0.2025 | M27: 0 | N27: 0.02574914775 | O27: 6.293681219e-05 | P27: 0.02587184801 | Q27: 4.788411808e-05 | R27: 0.004849670284 | S27: 1.61797734e-05 | T27: 0.005050161251 | U27: 8.848479504e-05 | V27: 0.0008494972928 | W27: 1.151395561e-05 | X27: 0.0010508091 | Y27: 5.881680651e-06 | Z27: 0.002095900226 | AA27: 1.239200769e-05 | AB27: 0.002122854281 | AC27: 6.982371218e-06
A28: CC6 | B28: 0.491736465 | C28: 4.503780992e-06 | D28: 0.5087069983 | E28: 8.935438428e-05 | F28: 0.228645 | G28: 0.004094148263 | H28: 0.207935 | I28: 0.001322289681 | J28: 0.1975 | K28: 0 | L28: 0.2075 | M28: 0.003535533906 | N28: 0.02975811727 | O28: 0.00022361159 | P28: 0.02850444096 | Q28: 0.0001908349175 | R28: 0.007439424611 | S28: 0.0001618208369 | T28: 0.007554802955 | U28: 0.000190671 | V28: 0.001081997108 | W28: 1.202490505e-05 | X28: 0.001110674837 | Y28: 2.07163548e-05 | Z28: 0.001551967341 | AA28: 1.524898197e-05 | AB28: 0.001435660652 | AC28: 3.188091941e-06
A29: CD6 | B29: 0.5441242018 | C29: 0.001110270745 | D29: 0.5807828036 | E29: 0.0001289210757 | F29: 0.2424 | H29: 0.20174 | I29: 0.003691097398 | J29: 0.15125 | K29: 0.001767766953 | L29: 0.14625 | M29: 0.001767766953 | N29: 0.02319163262 | O29: 3.457438628e-05 | P29: 0.02332899015 | Q29: 0.0001132479608 | R29: 0.004273219598 | S29: 0.0001217310971 | T29: 0.00462374495 | U29: 8.559908939e-05 | V29: 0.001957893973 | W29: 0.0002158921325 | X29: 0.001984897327 | Y29: 0.0001487725505 | Z29: 0.001509089551 | AA29: 4.911936232e-06 | AB29: 0.001374879041 | AC29: 1.612083931e-05
A30: CR6 | B30: 0.482742893 | C30: 0.005166395123 | D30: 0.5181101551 | E30: 0.000167029068 | F30: 0.231015 | G30: 0.00232638131 | H30: 0.210355 | I30: 0.001081873375 | J30: 0.20125 | K30: 0.001767766953 | L30: 0.20375 | M30: 0.001767766953 | N30: 0.02318554398 | O30: 0.0002851517202 | P30: 0.02148659628 | Q30: 5.196561721e-05 | R30: 0.004925585387 | S30: 9.402647243e-05 | T30: 0.004890163816 | U30: 1.840448943e-05 | V30: 0.001001280845 | W30: 2.117256074e-05 | X30: 0.00103378659 | Y30: 2.033111641e-05 | Z30: 0.001577009586 | AA30: 4.400062881e-06 | AB30: 0.001417707985 | AC30: 2.017825607e-05
A31: LC4 | B31: 0.5081518099 | C31: 0.0004301531029 | D31: 0.5086721694 | E31: 0.001126539494 | F31: 0.2399 | G31: 0.001032375901 | H31: 0.209345 | I31: 0.005140666299 | J31: 0.15875 | K31: 0.001767766953 | L31: 0.2075 | M31: 0 | N31: 0.02763587378 | O31: 2.872839695e-05 | P31: 0.03062962315 | Q31: 0.0005042691027 | R31: 0.007932153032 | S31: 6.809416869e-05 | T31: 0.008307721734 | U31: 3.574528855e-06 | V31: 0.0008716961467 | W31: 4.258824704e-05 | X31: 0.00117152702 | Y31: 0.0001051838985 | Z31: 0.001319932193 | AA31: 2.033552389e-05 | AB31: 0.001646553084 | AC31: 9.071205889e-05
A32: LC6 | B32: 0.5128568252 | C32: 0.001379131402 | D32: 0.4971191536 | E32: 0.001327402561 | F32: 0.231705 | G32: 0.007544829355 | H32: 0.21113 | I32: 0.002588010819 | J32: 0.19 | K32: 0 | L32: 0.2175 | M32: 0 | N32: 0.0324472286 | O32: 0.0001180641108 | P32: 0.03184423802 | Q32: 0.0002080304016 | R32: 0.007340510709 | S32: 7.848662413e-05 | T32: 0.00796111758 | U32: 3.452447757e-05 | V32: 0.0009900377002 | W32: 1.686860042e-05 | X32: 0.0009256271722 | Y32: 2.170898458e-05 | Z32: 0.001874484031 | AA32: 6.202384538e-06 | AB32: 0.001808280692 | AC32: 5.746832063e-05
A33: LD4 | B33: 0.5583135381 | C33: 0.0006219953191 | D33: 0.5455926347 | E33: 0.0001188481315 | F33: 0.228195 | G33: 0.002694076836 | H33: 0.21207 | I33: 0.004186072145 | J33: 0.13125 | K33: 0.001767766953 | L33: 0.165 | M33: 0 | N33: 0.02176032256 | O33: 0.0002551770019 | P33: 0.02330985482 | Q33: 0.0001750322218 | R33: 0.005811354729 | S33: 0.001918792625 | T33: 0.004781399108 | U33: 8.376727491e-05 | V33: 0.002012096665 | W33: 2.816674798e-05 | X33: 0.002011290743 | Y33: 0.0001236729935 | Z33: 0.001516103943 | AA33: 0.0003329298441 | AB33: 0.001709410854 | AC33: 3.443666339e-06
A34: LD6 | B34: 0.5183767886 | C34: 0.000870582164 | D34: 0.5351654322 | E34: 0.0009739314855 | F34: 0.232635 | G34: 0.0007707463915 | H34: 0.218095 | I34: 0.001817264428 | J34: 0.17875 | K34: 0.001767766953 | L34: 0.18 | M34: 0 | N34: 0.02417032879 | O34: 9.438904589e-05 | P34: 0.0242903357 | Q34: 4.239906465e-05 | R34: 0.003457369985 | S34: 0.000505256622 | T34: 0.004301360294 | U34: 5.358483414e-05 | V34: 0.00171701881 | W34: 0.000121682774 | X34: 0.002424424347 | Y34: 0.001034347588 | Z34: 0.001883171709 | AA34: 8.867857081e-06 | AB34: 0.001853628355 | AC34: 1.370860002e-05
A35: LR4 | B35: 0.4982717103 | C35: 0.0004043720139 | D35: 0.517685447 | E35: 0.0001039542312 | F35: 0.24956 | G35: 0.001781909089 | H35: 0.211085 | I35: 0.005154808435 | J35: 0.1675 | K35: 0 | L35: 0.20375 | M35: 0.001767766953 | N35: 0.02158847627 | O35: 0.0001403195344 | P35: 0.02330442694 | Q35: 0.0001859993728 | R35: 0.005508792454 | S35: 3.399038671e-05 | T35: 0.005138315068 | U35: 0.0002292187762 | V35: 0.0008484250703 | W35: 8.470903569e-07 | X35: 0.001112274167 | Y35: 7.808489821e-06 | Z35: 0.001374852548 | AA35: 6.063907981e-06 | AB35: 0.001700970361 | AC35: 8.598820265e-06
A36: LR6 | B36: 0.5019079829 | C36: 9.268323546e-05 | D36: 0.5188549488 | E36: 0.0001809966654 | F36: 0.234205 | G36: 0.003882016229 | H36: 0.21115 | I36: 0.003832518754 | J36: 0.19875 | K36: 0.001767766953 | L36: 0.2 | M36: 0 | N36: 0.02569317354 | O36: 0.0005131989613 | P36: 0.02410960326 | Q36: 5.750909561e-05 | R36: 0.004851775575 | S36: 2.20800061e-05 | T36: 0.005109585674 | U36: 4.04293397e-05 | V36: 0.0009021448199 | W36: 1.670576035e-06 | X36: 0.0009354875416 | Y36: 2.406827346e-06 | Z36: 0.001877494538 | AA36: 2.202201576e-05 | AB36: 0.001797645653 | AC36: 2.324844518e-05
A39: Statistic | C39: Day 15 melt area (in2) | D39: Standard deviation (n-1) | E39: Day 30 melt area (in2) | F39: Standard deviation (n-1)
A40: Schreiber melt Day 15 | AC4 | B40: AC4
A41: Schreiber melt Day 15 | AC6 | B41: AC6
A42: Schreiber melt Day 15 | AD4 | B42: AD4
A43: Schreiber melt Day 15 | AD6 | B43: AD6
A44: Schreiber melt Day 15 | AR4 | B44: AR4
A45: Schreiber melt Day 15 | AR6 | B45: AR6
A46: Schreiber melt Day 15 | CC6 | B46: CC6
A47: Schreiber melt Day 15 | CD6 | B47: CD6
A48: Schreiber melt Day 15 | CR6 | B48: CR6
A49: Schreiber melt Day 15 | LC4 | B49: LC4
A50: Schreiber melt Day 15 | LC6 | B50: LC6
A51: Schreiber melt Day 15 | LD4 | B51: LD4
A52: Schreiber melt Day 15 | LD6 | B52: LD6
A53: Schreiber melt Day 15 | LR4 | B53: LR4
A54: Schreiber melt Day 15 | LR6 | B54: LR6
A55: Scheriber Melt Day 30 | AC4 | B55: AC4
A56: Scheriber Melt Day 30 | AC6 | B56: AC6
A57: Scheriber Melt Day 30 | AD4 | B57: AD4
A58: Scheriber Melt Day 30 | AD6 | B58: AD6
A59: Scheriber Melt Day 30 | AR4 | B59: AR4
A60: Scheriber Melt Day 30 | AR6 | B60: AR6
A61: Scheriber Melt Day 30 | CC6 | B61: CC6
A62: Scheriber Melt Day 30 | CD6 | B62: CD6
A63: Scheriber Melt Day 30 | CR6 | B63: CR6
A64: Scheriber Melt Day 30 | LC4 | B64: LC4
A65: Scheriber Melt Day 30 | LC6 | B65: LC6
A66: Scheriber Melt Day 30 | LD4 | B66: LD4
A67: Scheriber Melt Day 30 | LD6 | B67: LD6
A68: Scheriber Melt Day 30 | LR4 | B68: LR4
A69: Scheriber Melt Day 30 | LR6 | B69: LR6 | C69: -0.1284 | D69: 1.948956849

Sheet Schreiber data reformated
A1: sample ID | B1: Treatment | C1: Acid | D1: Salting | E1: pH | F1: Replicate | G1: Day | H1: Schreiber melt Day 15 | I1: schreiber melt 3rd observation Day 15 | J1: Scheriber Melt Day 30 | K1: Scheriber Melt 3rd observation Day 30
A2: 1 | B2: LC4 | C2: L | D2: C | E2: 4 | F2: 1 | H2: 3.126 | J2: 3.831 | K2: 3.264
A3: 1 | B3: LC4 | C3: L | D3: C | E3: 4 | F3: 1 | H3: 3.089 | J3: 3.218
A4: 2 | B4: LR4 | C4: L | D4: R | E4: 4 | F4: 1 | H4: 3.302 | J4: 3.394
A5: 2 | B5: LR4 | C5: L | D5: R | E5: 4 | F5: 1 | H5: 3.264 | J5: 3.453
A6: 3 | B6: LD4 | C6: L | D6: D | E6: 4 | F6: 1 | H6: 3.232 | J6: 3.183
A7: 3 | B7: LD4 | C7: L | D7: D | E7: 4 | F7: 1 | H7: 3.171 | J7: 3.395
A8: 6 | B8: AC6 | C8: A | D8: C | E8: 6 | F8: 1 | H8: 2.869 | I8: 2.796 | J8: 2.662 | K8: 2.962
A9: 6 | B9: AC6 | C9: A | D9: C | E9: 6 | F9: 1 | H9: 2.621 | J9: 3.333
A10: 7 | B10: AR6 | C10: A | D10: R | E10: 6 | F10: 1 | H10: 2.887 | J10: 3.395
A11: 7 | B11: AR6 | C11: A | D11: R | E11: 6 | F11: 1 | H11: 3.096 | J11: 3.553
A12: 8 | B12: AD6 | C12: A | D12: D | E12: 6 | F12: 1 | H12: 2.871 | J12: 3.561 | K12: 3.842
A13: 8 | B13: AD6 | C13: A | D13: D | E13: 6 | F13: 1 | H13: 2.85 | J13: 4.237
A14: 11 | B14: CC6 | C14: C | D14: C | E14: 6 | F14: 1 | H14: 3.342 | J14: 3.645 | K14: 3.622
A15: 11 | B15: CC6 | C15: C | D15: C | E15: 6 | F15: 1 | H15: 3.316 | J15: 4.215
A16: 12 | B16: CR6 | C16: C | D16: R | E16: 6 | F16: 1 | H16: 3.375 | J16: 3.875
A17: 12 | B17: CR6 | C17: C | D17: R | E17: 6 | F17: 1 | H17: 3.389 | J17: 3.646
A18: 13 | B18: CD6 | C18: C | D18: D | E18: 6 | F18: 1 | H18: 3.738 | I18: 3.945 | J18: 3.949
A19: 13 | B19: CD6 | C19: C | D19: D | E19: 6 | F19: 1 | H19: 3.548 | J19: 4.124
A20: 16 | B20: AC4 | C20: A | D20: C | E20: 4 | F20: 1 | H20: 3.75 | I20: 4.248 | J20: 3.991
A21: 16 | B21: AC4 | C21: A | D21: C | E21: 4 | F21: 1 | H21: 4.137 | J21: 3.747
A22: 17 | B22: AR4 | C22: A | D22: R | E22: 4 | F22: 1 | H22: 3.855 | J22: 3.943
A23: 17 | B23: AR4 | C23: A | D23: R | E23: 4 | F23: 1 | H23: 3.907 | J23: 4.306
A24: 18 | B24: AD4 | C24: A | D24: D | E24: 4 | F24: 1 | H24: 3.459 | J24: 3.783
A25: 18 | B25: AD4 | C25: A | D25: D | E25: 4 | F25: 1 | H25: 3.496 | J25: 3.889
A26: 21 | B26: LC6 | C26: L | D26: C | E26: 6 | F26: 1 | H26: 3.142 | I26: 3.238 | J26: 3.594
A27: 21 | B27: LC6 | C27: L | D27: C | E27: 6 | F27: 1 | H27: 3.355 | J27: 3.498
A28: 22 | B28: LR6 | C28: L | D28: R | E28: 6 | F28: 1 | H28: 3.338 | I28: 3.492 | J28: 3.358
A29: 22 | B29: LR6 | C29: L | D29: R | E29: 6 | F29: 1 | H29: 3.552 | J29: 3.475
A30: 23 | B30: LD6 | C30: L | D30: D | E30: 6 | F30: 1 | H30: 3.162 | J30: 3.261
A31: 23 | B31: LD6 | C31: L | D31: D | E31: 6 | F31: 1 | H31: 3.124 | J31: 3.518
A32: 26 | B32: CR6 | C32: C | D32: R | E32: 6 | F32: 2 | H32: 4.532 | J32: 4.086
A33: 26 | B33: CR6 | C33: C | D33: R | E33: 6 | F33: 2 | H33: 4.459 | J33: 4.124
A34: 27 | B34: CC6 | C34: C | D34: C | E34: 6 | F34: 2 | H34: 4.15 | J34: 3.856
A35: 27 | B35: CC6 | C35: C | D35: C | E35: 6 | F35: 2 | H35: 4.56 | J35: 3.928
A36: 28 | B36: CD6 | C36: C | D36: D | E36: 6 | F36: 2 | H36: 3.925 | J36: 3.838
A37: 28 | B37: CD6 | C37: C | D37: D | E37: 6 | F37: 2 | H37: 4.117 | J37: 4.026
A38: 30 | B38: AR4 | C38: A | D38: R | E38: 4 | F38: 2 | H38: 4.659 | J38: 4.231
A39: 30 | B39: AR4 | C39: A | D39: R | E39: 4 | F39: 2 | H39: 4.715 | J39: 4.593
A40: 31 | B40: AC4 | C40: A | D40: C | E40: 4 | F40: 2 | H40: 4.082 | J40: 4.076
A41: 31 | B41: AC4 | C41: A | D41: C | E41: 4 | F41: 2 | H41: 4.31 | J41: 4.021
A42: 32 | B42: AD4 | C42: A | D42: D | E42: 4 | F42: 2 | H42: 3.914 | J42: 4.115
A43: 32 | B43: AD4 | C43: A | D43: D | E43: 4 | F43: 2 | H43: 3.93 | J43: 4.269
A44: 34 | B44: LR6 | C44: L | D44: R | E44: 6 | F44: 2 | H44: 3.953 | J44: 3.735
A45: 34 | B45: LR6 | C45: L | D45: R | E45: 6 | F45: 2 | H45: 3.314 | J45: 3.434
A46: 35 | B46: LC6 | C46: L | D46: C | E46: 6 | F46: 2 | H46: 4.17 | J46: 4.039
A47: 35 | B47: LC6 | C47: L | D47: C | E47: 6 | F47: 2 | H47: 3.997 | J47: 3.646
A48: 36 | B48: LD6 | C48: L | D48: D | E48: 6 | F48: 2 | H48: 3.331 | J48: 3.961
A49: 36 | B49: LD6 | C49: L | D49: D | E49: 6 | F49: 2 | H49: 3.592 | J49: 3.903
A50: 38 | B50: AR6 | C50: A | D50: R | E50: 6 | F50: 2 | H50: 2.855 | J50: 3.252
A51: 38 | B51: AR6 | C51: A | D51: R | E51: 6 | F51: 2 | H51: 3.126 | J51: 3.135
A52: 39 | B52: AC6 | C52: A | D52: C | E52: 6 | F52: 2 | H52: 3.082 | J52: 3.041
A53: 39 | B53: AC6 | C53: A | D53: C | E53: 6 | F53: 2 | H53: 2.914 | J53: 3.113
A54: 40 | B54: AD6 | C54: A | D54: D | E54: 6 | F54: 2 | H54: 3.043 | J54: 3.321
A55: 40 | B55: AD6 | C55: A | D55: D | E55: 6 | F55: 2 | H55: 3.069 | J55: 3.553
A56: 42 | B56: LR4 | C56: L | D56: R | E56: 4 | F56: 2 | H56: 4.005 | J56: 4.057
A57: 42 | B57: LR4 | C57: L | D57: R | E57: 4 | F57: 2 | H57: 4.452 | J57: 3.721
A58: 43 | B58: LC4 | C58: L | D58: C | E58: 4 | F58: 2 | H58: 4.225 | J58: 4.235
A59: 43 | B59: LC4 | C59: L | D59: C | E59: 4 | F59: 2 | H59: 3.763 | J59: 4.347
A60: 44 | B60: LD4 | C60: L | D60: D | E60: 4 | F60: 2 | H60: 3.97 | J60: 3.689
A61: 44 | B61: LD4 | C61: L | D61: D | E61: 4 | F61: 2 | H61: 3.846 | J61: 3.95
A62: 1 | B62: LC4 | C62: L | D62: C | E62: 4 | F62: 1 | J62: 3.264
A63: 6 | B63: AC6 | C63: A | D63: C | E63: 6 | F63: 1 | H63: 2.796 | J63: 2.962
A64: 8 | B64: AD6 | C64: A | D64: D | E64: 6 | F64: 1 | J64: 3.842
A65: 11 | B65: CC6 | C65: C | D65: C | E65: 6 | F65: 1 | J65: 3.622
A66: 13 | B66: CD6 | C66: C | D66: D | E66: 6 | F66: 1 | H66: 3.945
A67: 16 | B67: AC4 | C67: A | D67: C | E67: 4 | F67: 1 | H67: 4.248
A68: 21 | B68: LC6 | C68: L | D68: C | E68: 6 | F68: 1 | H68: 3.238
A69: 22 | B69: LR6 | C69: L | D69: R | E69: 6 | F69: 1 | H69: 3.492
A70: sample ID | B70: Treatment | C70: Acid | D70: Salting | E70: pH | F70: Replicate | H70: Scheriber Melt Day 30 | I70: schreiber melt 3rd observation Day 15 | J70: Scheriber Melt Day 30 | K70: Scheriber Melt 3rd observation Day 30
A71: 1 | B71: LC4 | C71: L | D71: C | E71: 4 | F71: 1 | H71: 3.831 | J71: 3.831 | K71: 3.264
A72: 1 | B72: LC4 | C72: L | D72: C | E72: 4 | F72: 1 | H72: 3.218 | J72: 3.218
A73: 2 | B73: LR4 | C73: L | D73: R | E73: 4 | F73: 1 | H73: 3.394 | J73: 3.394
A74: 2 | B74: LR4 | C74: L | D74: R | E74: 4 | F74: 1 | H74: 3.453 | J74: 3.453
A75: 3 | B75: LD4 | C75: L | D75: D | E75: 4 | F75: 1 | H75: 3.183 | J75: 3.183
A76: 3 | B76: LD4 | C76: L | D76: D | E76: 4 | F76: 1 | H76: 3.395 | J76: 3.395
A77: 6 | B77: AC6 | C77: A | D77: C | E77: 6 | F77: 1 | H77: 2.662 | I77: 2.796 | J77: 2.662 | K77: 2.962
A78: 6 | B78: AC6 | C78: A | D78: C | E78: 6 | F78: 1 | H78: 3.333 | J78: 3.333
A79: 7 | B79: AR6 | C79: A | D79: R | E79: 6 | F79: 1 | H79: 3.395 | J79: 3.395
A80: 7 | B80: AR6 | C80: A | D80: R | E80: 6 | F80: 1 | H80: 3.553 | J80: 3.553
A81: 8 | B81: AD6 | C81: A | D81: D | E81: 6 | F81: 1 | H81: 3.561 | J81: 3.561 | K81: 3.842
A82: 8 | B82: AD6 | C82: A | D82: D | E82: 6 | F82: 1 | H82: 4.237 | J82: 4.237
A83: 11 | B83: CC6 | C83: C | D83: C | E83: 6 | F83: 1 | H83: 3.645 | J83: 3.645 | K83: 3.622
A84: 11 | B84: CC6 | C84: C | D84: C | E84: 6 | F84: 1 | H84: 4.215 | J84: 4.215
A85: 12 | B85: CR6 | C85: C | D85: R | E85: 6 | F85: 1 | H85: 3.875 | J85: 3.875
A86: 12 | B86: CR6 | C86: C | D86: R | E86: 6 | F86: 1 | H86: 3.646 | J86: 3.646
A87: 13 | B87: CD6 | C87: C | D87: D | E87: 6 | F87: 1 | H87: 3.949 | I87: 3.945 | J87: 3.949
A88: 13 | B88: CD6 | C88: C | D88: D | E88: 6 | F88: 1 | H88: 4.124 | J88: 4.124
A89: 16 | B89: AC4 | C89: A | D89: C | E89: 4 | F89: 1 | H89: 3.991 | I89: 4.248 | J89: 3.991
A90: 16 | B90: AC4 | C90: A | D90: C | E90: 4 | F90: 1 | H90: 3.747 | J90: 3.747
A91: 17 | B91: AR4 | C91: A | D91: R | E91: 4 | F91: 1 | H91: 3.943 | J91: 3.943
A92: 17 | B92: AR4 | C92: A | D92: R | E92: 4 | F92: 1 | H92: 4.306 | J92: 4.306
A93: 18 | B93: AD4 | C93: A | D93: D | E93: 4 | F93: 1 | H93: 3.783 | J93: 3.783
A94: 18 | B94: AD4 | C94: A | D94: D | E94: 4 | F94: 1 | H94: 3.889 | J94: 3.889
A95: 21 | B95: LC6 | C95: L | D95: C | E95: 6 | F95: 1 | H95: 3.594 | I95: 3.238 | J95: 3.594
A96: 21 | B96: LC6 | C96: L | D96: C | E96: 6 | F96: 1 | H96: 3.498 | J96: 3.498
A97: 22 | B97: LR6 | C97: L | D97: R | E97: 6 | F97: 1 | H97: 3.358 | I97: 3.492 | J97: 3.358
A98: 22 | B98: LR6 | C98: L | D98: R | E98: 6 | F98: 1 | H98: 3.475 | J98: 3.475
A99: 23 | B99: LD6 | C99: L | D99: D | E99: 6 | F99: 1 | H99: 3.261 | J99: 3.261
A100: 23 | B100: LD6 | C100: L | D100: D | E100: 6 | F100: 1 | H100: 3.518 | J100: 3.518
A101: 26 | B101: CR6 | C101: C | D101: R | E101: 6 | F101: 2 | H101: 4.086 | J101: 4.086
A102: 26 | B102: CR6 | C102: C | D102: R | E102: 6 | F102: 2 | H102: 4.124 | J102: 4.124
A103: 27 | B103: CC6 | C103: C | D103: C | E103: 6 | F103: 2 | H103: 3.856 | J103: 3.856
A104: 27 | B104: CC6 | C104: C | D104: C | E104: 6 | F104: 2 | H104: 3.928 | J104: 3.928
A105: 28 | B105: CD6 | C105: C | D105: D | E105: 6 | F105: 2 | H105: 3.838 | J105: 3.838
A106: 28 | B106: CD6 | C106: C | D106: D | E106: 6 | F106: 2 | H106: 4.026 | J106: 4.026
A107: 30 | B107: AR4 | C107: A | D107: R | E107: 4 | F107: 2 | H107: 4.231 | J107: 4.231
A108: 30 | B108: AR4 | C108: A | D108: R | E108: 4 | F108: 2 | H108: 4.593 | J108: 4.593
A109: 31 | B109: AC4 | C109: A | D109: C | E109: 4 | F109: 2 | H109: 4.076 | J109: 4.076
A110: 31 | B110: AC4 | C110: A | D110: C | E110: 4 | F110: 2 | H110: 4.021 | J110: 4.021
A111: 32 | B111: AD4 | C111: A | D111: D | E111: 4 | F111: 2 | H111: 4.115 | J111: 4.115
A112: 32 | B112: AD4 | C112: A | D112: D | E112: 4 | F112: 2 | H112: 4.269 | J112: 4.269
A113: 34 | B113: LR6 | C113: L | D113: R | E113: 6 | F113: 2 | H113: 3.735 | J113: 3.735
A114: 34 | B114: LR6 | C114: L | D114: R | E114: 6 | F114: 2 | H114: 3.434 | J114: 3.434
A115: 35 | B115: LC6 | C115: L | D115: C | E115: 6 | F115: 2 | H115: 4.039 | J115: 4.039
A116: 35 | B116: LC6 | C116: L | D116: C | E116: 6 | F116: 2 | H116: 3.646 | J116: 3.646
A117: 36 | B117: LD6 | C117: L | D117: D | E117: 6 | F117: 2 | H117: 3.961 | J117: 3.961
A118: 36 | B118: LD6 | C118: L | D118: D | E118: 6 | F118: 2 | H118: 3.903 | J118: 3.903
A119: 38 | B119: AR6 | C119: A | D119: R | E119: 6 | F119: 2 | H119: 3.252 | J119: 3.252
A120: 38 | B120: AR6 | C120: A | D120: R | E120: 6 | F120: 2 | H120: 3.135 | J120: 3.135
A121: 39 | B121: AC6 | C121: A | D121: C | E121: 6 | F121: 2 | H121: 3.041 | J121: 3.041
A122: 39 | B122: AC6 | C122: A | D122: C | E122: 6 | F122: 2 | H122: 3.113 | J122: 3.113
A123: 40 | B123: AD6 | C123: A | D123: D | E123: 6 | F123: 2 | H123: 3.321 | J123: 3.321
A124: 40 | B124: AD6 | C124: A | D124: D | E124: 6 | F124: 2 | H124: 3.553 | J124: 3.553
A125: 42 | B125: LR4 | C125: L | D125: R | E125: 4 | F125: 2 | H125: 4.057 | J125: 4.057
A126: 42 | B126: LR4 | C126: L | D126: R | E126: 4 | F126: 2 | H126: 3.721 | J126: 3.721
A127: 43 | B127: LC4 | C127: L | D127: C | E127: 4 | F127: 2 | H127: 4.235 | J127: 4.235
A128: 43 | B128: LC4 | C128: L | D128: C | E128: 4 | F128: 2 | H128: 4.347 | J128: 4.347
A129: 44 | B129: LD4 | C129: L | D129: D | E129: 4 | F129: 2 | H129: 3.689 | J129: 3.689
A130: 44 | B130: LD4 | C130: L | D130: D | E130: 4 | F130: 2 | H130: 3.95 | J130: 3.95
A131: 1 | B131: LC4 | C131: L | D131: C | E131: 4 | F131: 1 | H131: 3.264 | J131: 3.264
A132: 6 | B132: AC6 | C132: A | D132: C | E132: 6 | F132: 1 | H132: 2.962 | J132: 2.962
A133: 8 | B133: AD6 | C133: A | D133: D | E133: 6 | F133: 1 | H133: 3.842 | J133: 3.842
A134: 11 | B134: CC6 | C134: C | D134: C | E134: 6 | F134: 1 | H134: 3.622 | J134: 3.622
A135: 13 | B135: CD6 | C135: C | D135: D | E135: 6 | F135: 1
A136: 16 | B136: AC4 | C136: A | D136: C | E136: 4 | F136: 1
A137: 21 | B137: LC6 | C137: L | D137: C | E137: 6 | F137: 1
A138: 22 | B138: LR6 | C138: L | D138: R | E138: 6 | F138: 1

Sheet R format
A1: sample ID | B1: Treatment | C1: Acid | D1: Salting | E1: pH | F1: Replicate | G1: Moisture | H1: Protein | I1: Fat | J1: Fat (solids basis 30-45%) | K1: Ash | L1: Sodium | M1: Total composition | N1: Potassium | O1: Calcium | P1: Intact Casein Day 7 | Q1: Intact Casein Day 28 | R1: Schreiber melt Day 15 | S1: schreiber melt 3rd observation Day 15 | T1: Scheriber Melt Day 30 | U1: Scheriber Melt 3rd observation Day 30 | W1: 7 day SAOS Tan Delta 1 Temperature | X1: 7 day Tan Delta Max | Y1: 7 day Tan delta max Temperature | Z1: 28 day SAOS Tan Delta 1 Temperature | AA1: 28 day Tan Delta Max | AB1: 28 day Tan delta max Temperature | AC1: 7 day SAOS Tan Delta 1 Pa | AD1: 28 day SAOS Tan Delta 1 Pa
A2: 1 | B2: LC4 | C2: L | D2: C | E2: 4 | F2: 1 | G2: 0.5078476457 | H2: 0.24063 | I2: 0.1575 | J2: 0.3227621921 | K2: 0.02761555973 | L2: 0.00798030288 | M2: =G2+H2+I2+K2 -> 0.9335932054 | N2: 0.0008415817084 | O2: 0.001305552806 | P2: 0.964516961 | Q2: 0.9883635604 | R2: 3.126 | T2: 3.831 | U2: 3.264 | W2: 59.9044 | X2: 1.69253 | Y2: 79.557 | Z2: 59.4215 | AA2: 1.91923 | AB2: 90.142 | AC2: 3458.21 | AD2: 2846.97
A3: 1 | B3: LC4 | C3: L | D3: C | E3: 4 | F3: 1 | G3: 0.5084559741 | H3: 0.23917 | I3: 0.16 | K3: 0.02765618782 | L3: 0.007884003183 | M3: =G3+H3+I3+K3 -> 0.9352821619 | N3: 0.000901810585 | O3: 0.00133431158 | P3: 1.029640156 | Q3: 0.9827391226 | R3: 3.089 | T3: 3.218 | W3: 60.5777 | X3: 1.76168 | Y3: 80.913 | Z3: 58.714 | AA3: 1.74152 | AB3: 90.133 | AC3: 3021.13 | AD3: 3044.97
A4: 2 | B4: LR4 | C4: L | D4: R | E4: 4 | F4: 1 | G4: 0.4985576445 | H4: 0.2483 | I4: 0.1675 | J4: 0.3338460347 | K4: 0.02148925537 | L4: 0.005484757621 | M4: 0.9358468999 | N4: 0.000847826087 | O4: 0.001370564718 | P4: 0.9425658357 | Q4: 0.96926073 | R4: 3.302 | T4: 3.394 | W4: 56.512 | X4: 1.54966 | Y4: 71.355 | Z4: 55.7525 | AA4: 1.85099 | AB4: 90.142 | AC4: 2562.4 | AD4: 2965.86
A5: 2 | B5: LR4 | C5: L | D5: R | E5: 4 | F5: 1 | G5: 0.4979857761 | H5: 0.25082 | I5: 0.1675 | K5: 0.02168769716 | L5: 0.005532827287 | M5: 0.9379934733 | N5: 0.0008490240536 | O5: 0.001379140379 | P5: 1.005769797 | Q5: 0.9819540177 | R5: 3.264 | T5: 3.453 | W5: 53.7116 | X5: 1.87126 | Y5: 74.47 | Z5: 54.62 | AA5: 1.75205 | AB5: 74.933 | AC5: 3343.9 | AD5: 2807.97
A6: 3 | B6: LD4 | C6: L | D6: D | E6: 4 | F6: 1 | G6: 0.557873721 | H6: 0.2301 | I6: 0.13 | J6: 0.2971564929 | K6: 0.02157988517 | L6: 0.004454563453 | M6: 0.9395536062 | N6: 0.001992179766 | O6: 0.001280686993 | P6: 1.011386713 | Q6: 0.954128987 | R6: 3.232 | T6: 3.183 | W6: 56.7783 | X6: 1.46495 | Y6: 74.196 | Z6: 56.5666 | AA6: 1.85885 | AB6: 90.129 | AC6: 2479.29 | AD6: 2500.36
A7: 3 | B7: LD4 | C7: L | D7: D | E7: 4 | F7: 1 | G7: 0.5587533552 | H7: 0.22629 | I7: 0.1325 | K7: 0.02194075995 | L7: 0.007168146006 | M7: 0.9394841152 | N7: 0.002032013563 | O7: 0.001751520894 | P7: 1.005930349 | Q7: 0.970242789 | R7: 3.171 | T7: 3.395 | W7: 60.005 | X7: 1.3271 | Y7: 74.07 | Z7: 53.3078 | AA7: 1.93576 | AB7: 90.124 | AC7: 3507.31 | AD7: 2182
A8: 6 | B8: AC6 | C8: A | D8: C | E8: 6 | F8: 1 | G8: 0.5171659959 | H8: 0.22134 | I8: 0.155 | J8: 0.3209562378 | K8: 0.03186032748 | L8: 0.007040343263 | M8: 0.9253663234 | N8: 0.0008862694812 | O8: 0.002040096666 | P8: 1.000327572 | Q8: 0.9939462451 | R8: 2.869 | S8: 2.796 | T8: 2.662 | U8: 2.962 | W8: 65.9591 | X8: 1.59929 | Y8: 83.64 | Z8: 54.5529 | AA8: 2.3515 | AB8: 85.369 | AC8: 4593.43 | AD8: 1995.8
A9: 6 | B9: AC6 | C9: A | D9: C | E9: 6 | F9: 1 | G9: 0.5169702399 | H9: 0.23348 | I9: 0.155 | K9: 0.03231544619 | L9: 0.007263563593 | M9: 0.9377656861 | N9: 0.0008985571697 | O9: 0.002057515565 | P9: 1.015147215 | Q9: 1.012903466 | R9: 2.621 | T9: 3.333 | W9: 74.5542 | X9: 1.06511 | Y9: 90.115 | Z9: 63.7167 | AA9: 1.876 | AB9: 86.503 | AC9: 4192.71 | AD9: 5395.14
A10: 7 | B10: AR6 | C10: A | D10: R | E10: 6 | F10: 1 | G10: 0.5026133705 | H10: 0.22799 | I10: 0.175 | J10: 0.3521791564 | K10: 0.02579365079 | L10: 0.004861111111 | M10: 0.9313970213 | N10: 0.0008576388889 | O10: 0.002104662698 | P10: 1.019515582 | Q10: 1.018979062 | R10: 2.887 | T10: 3.395 | W10: 64.2617 | X10: 1.75182 | Y10: 83.293 | Z10: 65.1695 | AA10: 1.67463 | AB10: 82.896 | AC10: 4450.94 | AD10: 4744.8
A11: 7 | B11: AR6 | C11: A | D11: R | E11: 6 | F11: 1 | G11: 0.5035742653 | H11: 0.23348 | I11: 0.175 | K11: 0.0257046447 | L11: 0.004838229456 | M11: 0.93775891 | N11: 0.0008413556967 | O11: 0.002087137753 | P11: 1.03013691 | Q11: 0.9835658334 | R11: 3.096 | T11: 3.553 | W11: 63.0891 | X11: 1.74893 | Y11: 81.012 | Z11: 64.2777 | AA11: 1.59241 | AB11: 84.042 | AC11: 6002.06 | AD11: 2448.58
A12: 8 | B12: AD6 | C12: A | D12: D | E12: 6 | F12: 1 | G12: 0.5334263226 | H12: 0.21404 | I12: 0.165 | J12: 0.3515561285 | K12: 0.02540254025 | L12: 0.004150415042 | M12: 0.9378688629 | N12: 0.001887688769 | O12: 0.002002450245 | P12: 1.020894079 | Q12: 0.9584568136 | R12: 2.871 | T12: 3.561 | U12: 3.842
A13: 8 | B13: AD6 | C13: A | D13: D | E13: 6 | F13: 1 | G13: 0.5350012385 | H13: 0.22135 | I13: 0.1625 | K13: 0.02565901574 | L13: 0.003858875413 | M13: 0.9445102543 | N13: 0.00225518693 | O13: 0.001986819685 | P13: 1.020065298 | Q13: 0.96372919 | R13: 2.85 | T13: 4.237
A14: 11 | B14: CC6 | C14: C | D14: C | E14: 6 | F14: 1 | G14: 0.4917332804 | H14: 0.22575 | I14: 0.1975 | J14: 0.3885779451 | K14: 0.0296 | L14: 0.007325 | M14: 0.9445832804 | N14: 0.0010905 | O14: 0.00156275 | P14: 1.042248104 | Q14: 1.007679935 | R14: 3.342 | T14: 3.645 | U14: 3.622 | W14: 64.8907 | X14: 1.8363 | Y14: 84.462 | Z14: 64.0947 | AA14: 1.83656 | AB14: 82.936 | AC14: 4642.52 | AD14: 3934.71
A15: 11 | B15: CC6 | C15: C | D15: C | E15: 6 | F15: 1 | G15: 0.4917396497 | H15: 0.23154 | I15: 0.1975 | K15: 0.02991623454 | L15: 0.007553849222 | M15: 0.9506958842 | N15: 0.001073494216 | O15: 0.001541184683 | P15: 1.03507748 | Q15: 0.999727097 | R15: 3.316 | T15: 4.215 | W15: 63.0001 | X15: 1.93984 | Y15: 85.943 | Z15: 63.8113 | AA15: 1.71858 | AB15: 81.354 | AC15: 3835.6 | AD15: 4287.67
A16: 12 | B16: CR6 | C16: C | D16: R | E16: 6 | F16: 1 | G16: 0.4863960861 | H16: 0.23266 | I16: 0.2 | J16: 0.3890715029 | K16: 0.02338717669 | L16: 0.004992072143 | M16: 0.9424432628 | N16: 0.001016252106 | O16: 0.0015801209 | P16: 0.9626799019 | Q16: 0.9667141806 | R16: 3.375 | T16: 3.875 | W16: 59.1369 | X16: 1.89777 | Y16: 78.162 | Z16: 59.4509 | AA16: 1.86495 | AB16: 78.612 | AC16: 3963.61 | AD16: 4411.2
A17: 12 | B17: CR6 | C17: C | D17: R | E17: 6 | F17: 1 | G17: 0.4790897 | H17: 0.22937 | I17: 0.2025 | K17: 0.02298391126 | L17: 0.004859098631 | M17: 0.9339436113 | N17: 0.0009863095833 | O17: 0.001573898271 | P17: 0.9578254954 | Q17: 0.99252215 | R17: 3.389 | T17: 3.646 | W17: 59.368 | X17: 1.90597 | Y17: 90.124 | Z17: 59.7561 | AA17: 1.69632 | AB17: 77.982 | AC17: 4228 | AD17: 4535.37
A18: 13 | B18: CD6 | C18: C | D18: D | E18: 6 | F18: 1 | G18: 0.5449092818 | I18: 0.15 | J18: 0.3317789639 | K18: 0.0232160804 | L18: 0.004359296482 | N18: 0.002110552764 | O18: 0.001512562814 | P18: 0.9825025836 | Q18: 0.8646347727 | R18: 3.738 | S18: 3.945 | T18: 3.949 | W18: 60.9601 | X18: 1.67423 | Y18: 90.129 | Z18: 62.4273 | AA18: 1.4997 | AB18: 78.454 | AC18: 3743.86 | AD18: 4379.99
A19: 13 | B19: CD6 | C19: C | D19: D | E19: 6 | F19: 1 | G19: 0.5433391218 | H19: 0.2424 | I19: 0.1525 | K19: 0.02316718484 | L19: 0.004187142714 | M19: 0.9614063066 | N19: 0.001805235182 | O19: 0.001505616287 | P19: 1.03897457 | Q19: 0.8801264462 | R19: 3.548 | T19: 4.124 | W19: 61.7807 | X19: 1.54232 | Y19: 80.458 | Z19: 59.4811 | AA19: 1.4301 | AB19: 74.888 | AC19: 4007.88 | AD19: 3479.2
A20: 16 | B20: AC4 | C20: A | D20: C | E20: 4 | F20: 1 | G20: 0.524929305 | H20: 0.2233 | I20: 0.19 | J20: 0.399686211 | K20: 0.02837946249 | L20: 0.007784296029 | M20: 0.9666087675 | N20: 3.735459286e-05 | O20: 0.001489420377 | P20: 0.889136362 | Q20: 0.8635202369 | R20: 3.75 | S20: 4.248 | T20: 3.991 | W20: 63.134 | X20: 2.02494 | Y20: 83.437 | Z20: 62.1312 | AA20: 1.80483 | AB20: 76.299 | AC20: 2619.42 | AD20: 2571.33
A21: 16 | B21: AC4 | C21: A | D21: C | E21: 4 | F21: 1 | G21: 0.524324861 | H21: 0.22736 | I21: 0.19 | K21: 0.02853124372 | L21: 0.007848603576 | M21: 0.9702161047 | N21: 0.0008584488648 | O21: 0.001497890295 | P21: 0.92448597 | Q21: 0.8862364472 | R21: 4.137 | T21: 3.747 | W21: 63.0144 | X21: 2.02693 | Y21: 81.539 | Z21: 62.5034 | AA21: 2.04394 | AB21: 81.62 | AC21: 3140.44 | AD21: 2318.68
A22: 17 | B22: AR4 | C22: A | D22: R | E22: 4 | F22: 1 | G22: 0.506987116 | H22: 0.21414 | I22: 0.2025 | J22: 0.4109358067 | K22: 0.02246181491 | L22: 0.005116302286 | M22: 0.9460889309 | N22: 0.0008360786663 | O22: 0.001535389837 | P22: 0.9464211808 | Q22: 0.9541713742 | R22: 3.855 | T22: 3.943 | W22: 60.7638 | X22: 1.55199 | Y22: 74.079 | Z22: 59.0182 | AA22: 2.30347 | AB22: 80.183 | AC22: 3093.58 | AD22: 2817.62
A23: 17 | B23: AR4 | C23: A | D23: R | E23: 4 | F23: 1 | G23: 0.5074574923 | H23: 0.22475 | I23: 0.2025 | K23: 0.02231604343 | L23: 0.005063831926 | M23: 0.9570235357 | N23: 0.0008303176518 | O23: 0.001529453156 | P23: 0.9498089422 | Q23: 0.9148724758 | R23: 3.907 | T23: 4.306 | W23: 59.4957 | X23: 2.08193 | Y23: 90.12 | Z23: 58.9417 | AA23: 2.37968 | AB23: 83.004 | AC23: 2851.58 | AD23: 2723.15
A24: 18 | B24: AD4 | C24: A | D24: D | E24: 4 | F24: 1 | G24: 0.5493959131 | H24: 0.2185 | I24: 0.165 | J24: 0.3661102269 | K24: 0.02247416474 | L24: 0.004452192234 | M24: 0.9553700778 | N24: 0.0018686666 | O24: 0.001486655965 | P24: 0.9444782327 | Q24: 0.918795838 | R24: 3.459 | T24: 3.783 | W24: 59.7626 | X24: 2.11188 | Y24: 89.971 | Z24: 58.7922 | AA24: 2.07983 | AB24: 77.392 | AC24: 2731.4 | AD24: 2593.11
A25: 18 | B25: AD4 | C25: A | D25: D | E25: 4 | F25: 1 | G25: 0.5492362044 | H25: 0.22493 | I25: 0.165 | K25: 0.02232455701 | L25: 0.003391230353 | M25: 0.9614907614 | N25: 0.002064771248 | O25: 0.001486134748 | P25: 0.9330955438 | Q25: 0.9046429642 | R25: 3.496 | T25: 3.889 | W25: 60.0465 | X25: 2.18612 | Y25: 90.097 | Z25: 57.4044 | AA25: 1.85909 | AB25: 75.31 | AC25: 2538.18 | AD25: 2860.43
A26: 21 | B26: LC6 | C26: L | D26: C | E26: 6 | F26: 1 | G26: 0.5138320184 | H26: 0.22637 | I26: 0.19 | J26: 0.3900290712 | K26: 0.03253071253 | L26: 0.007285012285 | M26: 0.9627327309 | N26: 0.001001965602 | O26: 0.001878869779 | P26: 0.9516739668 | Q26: 0.8638770797 | R26: 3.142 | S26: 3.238 | T26: 3.594 | W26: 65.2515 | X26: 1.95736 | Y26: 84.123 | Z26: 63.4141 | AA26: 1.76384 | AB26: 88.609 | AC26: 4091.4 | AD26: 3072.1
A27: 21 | B27: LC6 | C27: L | D27: C | E27: 6 | F27: 1 | G27: 0.511881632 | H27: 0.23704 | I27: 0.19 | K27: 0.03236374466 | L27: 0.007396009133 | M27: 0.9712853767 | N27: 0.0009781097985 | O27: 0.001870098283 | P27: 0.9028008447 | Q27: 1.005729396 | R27: 3.355 | T27: 3.498 | W27: 66.0653 | X27: 1.68973 | Y27: 90.043 | Z27: 61.786 | AA27: 1.78797 | AB27: 89.88 | AC27: 2739.08 | AD27: 2699.44
A28: 22 | B28: LR6 | C28: L | D28: R | E28: 6 | F28: 1 | G28: 0.5019735199 | H28: 0.23695 | I28: 0.2 | J28: 0.3990226568 | K28: 0.02605606001 | L28: 0.004836162653 | M28: 0.9649795799 | N28: 0.0009033260955 | O28: 0.001861922621 | P28: 0.9394258899 | Q28: 0.9138550985 | R28: 3.338 | S28: 3.492 | T28: 3.358 | W28: 63.3245 | X28: 1.96148 | Y28: 84.421 | Z28: 59.8612 | AA28: 1.88838 | AB28: 90.079 | AC28: 4231.74 | AD28: 2466.95
A29: 22 | B29: LR6 | C29: L | D29: R | E29: 6 | F29: 1 | G29: 0.501842446 | H29: 0.23146 | I29: 0.1975 | K29: 0.02533028708 | L29: 0.004867388497 | M29: 0.956132733 | N29: 0.0009009635443 | O29: 0.001893066455 | P29: 0.9243230485 | Q29: 0.8800144193 | R29: 3.552 | T29: 3.475 | W29: 62.6676 | X29: 1.97562 | Y29: 83.279 | Z29: 61.4725 | AA29: 1.70258 | AB29: 90.075 | AC29: 4900.97 | AD29: 2461.24
A30: 23 | B30: LD6 | C30: L | D30: D | E30: 6 | F30: 1 | G30: 0.5189923831 | H30: 0.23318 | I30: 0.18 | J30: 0.3711407502 | K30: 0.02410358566 | L30: 0.003100099602 | M30: 0.9562759688 | N30: 0.001630976096 | O30: 0.001889442231 | P30: 0.9168539491 | Q30: 0.9377128323 | R30: 3.162 | T30: 3.261 | W30: 69.3451 | X30: 1.30189 | Y30: 82.598 | Z30: 71.0497 | AA30: 1.09114 | AB30: 83.013 | AC30: 4261.65 | AD30: 2222.28
A31: 23 | B31: LD6 | C31: L | D31: D | E31: 6 | F31: 1 | G31: 0.517761194 | H31: 0.23209 | I31: 0.1775 | K31: 0.02423707193 | L31: 0.003814640369 | M31: 0.951588266 | N31: 0.001803061525 | O31: 0.001876901187 | P31: 0.9901362931 | Q31: 0.9294448561 | R31: 3.124 | T31: 3.518 | W31: 76.0557 | X31: 1.04885 | Y31: 86.833 | Z31: 65.7366 | AA31: 1.39823 | AB31: 84.286 | AC31: 4242.27 | AD31: 2832.79
A32: 26 | B32: CR6 | C32: C | D32: R | E32: 6 | F32: 2 | G32: 0.5179920477 | H32: 0.20959 | I32: 0.2025 | J32: 0.4228144713 | K32: 0.02152334152 | L32: 0.004877149877 | M32: 0.9516053892 | N32: 0.001019410319 | O32: 0.001403439803 | P32: 0.830358358 | Q32: 0.8857998428 | R32: 4.532 | T32: 4.086 | W32: 59.4672 | X32: 2.17624 | Y32: 90.129 | Z32: 57.1664 | AA32: 2.0542 | AB32: 80.48 | AC32: 2569.99 | AD32: 2181.08
A33: 26 | B33: CR6 | C33: C | D33: R | E33: 6 | F33: 2 | G33: 0.5182282625 | H33: 0.21112 | I33: 0.205 | K33: 0.02144985104 | L33: 0.004903177756 | M33: 0.9557981135 | N33: 0.00104816286 | O33: 0.001431976167 | P33: 0.8348645635 | Q33: 0.8952776725 | R33: 4.459 | T33: 4.124 | W33: 57.8334 | X33: 2.32394 | Y33: 80.503 | Z33: 57.3734 | AA33: 2.05172 | AB33: 80.25 | AC33: 2746.4 | AD33: 2205.09
A34: 27 | B34: CC6 | C34: C | D34: C | E34: 6 | F34: 2 | G34: 0.5086438152 | H34: 0.20887 | I34: 0.205 | J34: 0.4223548866 | K34: 0.0283695003 | L34: 0.007689627713 | M34: 0.9508833155 | N34: 0.001125323512 | O34: 0.001433406331 | P34: 0.8603889827 | Q34: 0.8759653773 | R34: 4.15 | T34: 3.856 | W34: 64.1195 | X34: 2.00466 | Y34: 85.423 | Z34: 61.961 | AA34: 2.04151 | AB34: 87.42 | AC34: 3185.77 | AD34: 1885.64
A35: 27 | B35: CC6 | C35: C | D35: C | E35: 6 | F35: 2 | G35: 0.5087701814 | H35: 0.207 | I35: 0.21 | K35: 0.02863938163 | L35: 0.007419978198 | M35: 0.954409563 | N35: 0.001096026162 | O35: 0.001437914974 | P35: 0.8056734751 | Q35: 0.8993502418 | R35: 4.56 | T35: 3.928 | W35: 64.574 | X35: 1.82933 | Y35: 86.214 | Z35: 61.7782 | AA35: 1.986 | AB35: 86.114 | AC35: 2942.51 | AD35: 2153.04
A36: 28 | B36: CD6 | C36: C | D36: D | E36: 6 | F36: 2 | G36: 0.5806916427 | H36: 0.20435 | I36: 0.145 | J36: 0.3488645057 | K36: 0.02340906856 | L36: 0.004684272647 | M36: 0.9534507112 | N36: 0.002090095407 | O36: 0.001363479886 | P36: 0.8537317506 | Q36: 0.8507360099 | R36: 3.925 | T36: 3.838 | W36: 63.5464 | X36: 1.58535 | Y36: 90.02 | Z36: 58.2037 | AA36: 1.44898 | AB36: 87.808 | AC36: 2696.67 | AD36: 3047.92
A37: 28 | B37: CD6 | C37: C | D37: D | E37: 6 | F37: 2 | G37: 0.5808739646 | H37: 0.19913 | I37: 0.1475 | K37: 0.02324891175 | L37: 0.004563217254 | M37: 0.9507528763 | N37: 0.001879699248 | O37: 0.001386278195 | P37: 0.9011979095 | Q37: 0.7883599857 | R37: 4.117 | T37: 4.026 | W37: 62.363 | X37: 1.51464 | Y37: 90.133 | AC37: 2508.68
A38: 30 | B38: AR4 | C38: A | D38: R | E38: 4 | F38: 2 | G38: 0.4947603675 | H38: 0.21709 | I38: 0.22 | J38: 0.4351752098 | K38: 0.02152680885 | L38: 0.004945684672 | M38: 0.9533771764 | N38: 0.0007920570062 | O38: 0.001519085111 | P38: 0.9203256239 | Q38: 0.9473188436 | R38: 4.659 | T38: 4.231 | W38: 61.7565 | X38: 2.01261 | Y38: 82.72 | Z38: 59.3132 | AA38: 2.52825 | AB38: 83.708 | AC38: 3174.92 | AD38: 2590.22
A39: 30 | B39: AR4 | C39: A | D39: R | E39: 4 | F39: 2 | G39: 0.4941526264 | H39: 0.21819 | I39: 0.22 | K39: 0.02149265503 | L39: 0.005040421966 | M39: 0.9538352814 | N39: 0.000725130632 | O39: 0.001533076999 | P39: 0.8944827111 | Q39: 0.9740148983 | R39: 4.715 | T39: 4.593 | W39: 61.9164 | X39: 2.18713 | Y39: 84.295 | Z39: 59.3449 | AA39: 2.48751 | AB39: 84.056 | AC39: 2995.69 | AD39: 2862.43
A40: 31 | B40: AC4 | C40: A | D40: C | E40: 4 | F40: 2 | G40: 0.4813878563 | H40: 0.21695 | I40: 0.2275 | J40: 0.4409202315 | K40: 0.0293511338 | L40: 0.004969569059 | M40: 0.9551889901 | N40: 0.0008228624718 | O40: 0.001520074605 | P40: 0.9896783264 | Q40: 0.9615038745 | R40: 4.082 | T40: 4.076 | W40: 65.5228 | X40: 2.16372 | Y40: 89.224 | Z40: 64.3502 | AA40: 2.37361 | AB40: 87.962 | AC40: 2869.63 | AD40: 2926.2
A41: 31 | B41: AC4 | C41: A | D41: C | E41: 4 | F41: 2 | G41: 0.4810094953 | H41: 0.21738 | I41: 0.23 | K41: 0.02926396689 | L41: 0.008054980786 | M41: 0.9576534621 | N41: 0.0008308700365 | O41: 0.001500640457 | P41: 0.9816616943 | Q41: 0.9099276213 | R41: 4.31 | T41: 4.021 | W41: 65.766 | X41: 2.08461 | Y41: 88.645 | Z41: 63.9358 | AA41: 2.28366 | AB41: 86.923 | AC41: 3561.26 | AD41: 2913.13
A42: 32 | B42: AD4 | C42: A | D42: D | E42: 4 | F42: 2 | G42: 0.5427297498 | H42: 0.20882 | I42: 0.18 | J42: 0.3931407115 | K42: 0.0221335992 | L42: 0.004474077767 | M42: 0.953683349 | N42: 0.001545363908 | O42: 0.001440927218 | P42: 0.8543453975 | Q42: 0.835074218 | R42: 3.914 | T42: 4.115 | W42: 61.5857 | X42: 1.85303 | Y42: 82.44 | Z42: 59.3962 | AA42: 2.22718 | AB42: 82.756 | AC42: 3085.23 | AD42: 2217.03
A43: 32 | B43: AD4 | C43: A | D43: D | E43: 4 | F43: 2 | G43: 0.5415675783 | H43: 0.20573 | I43: 0.18 | K43: 0.02227892826 | L43: 0.004858180391 | M43: 0.9495765065 | N43: 0.00170527039 | O43: 0.001456472667 | P43: 0.8854515041 | Q43: 0.8980756451 | R43: 3.93 | T43: 4.269 | W43: 62.782 | X43: 1.72753 | Y43: 86.769 | Z43: 59.4555 | AA43: 2.0706 | AB43: 81.733 | AC43: 2840.6 | AD43: 2407.16
A44: 34 | B44: LR6 | C44: L | D44: R | E44: 6 | F44: 2 | G44: 0.5189829328 | H44: 0.21386 | I44: 0.2 | J44: 0.4156750641 | K44: 0.02406893819 | L44: 0.005138173534 | M44: 0.956911871 | N44: 0.0009337856577 | O44: 0.001814084786 | P44: 0.9032376477 | Q44: 0.8123118323 | R44: 3.953 | T44: 3.735 | W44: 72.2112 | X44: 1.11256 | Y44: 80.228 | AC44: 1525.74
A45: 34 | B45: LR6 | C45: L | D45: R | E45: 6 | F45: 2 | G45: 0.5187269648 | H45: 0.20844 | I45: 0.2 | K45: 0.02415026834 | L45: 0.005080997814 | M45: 0.9513172332 | N45: 0.0009371894256 | O45: 0.00178120652 | P45: 0.8979178951 | Q45: 0.9100934856 | R45: 3.314 | T45: 3.434 | W45: 66.5143 | X45: 1.43299 | Y45: 80.165 | AC45: 2021.85
A46: 35 | B46: LC6 | C46: L | D46: C | E46: 6 | F46: 2 | G46: 0.4980577689 | H46: 0.21296 | I46: 0.2175 | J46: 0.4325080216 | K46: 0.03199133773 | L46: 0.007985530072 | M46: 0.9605091067 | N46: 0.000910276602 | O46: 0.001767644453 | P46: 0.9141690304 | Q46: 0.8626351717 | R46: 4.17 | T46: 4.039 | W46: 66.5975 | X46: 1.80288 | Y46: 88.491 | AC46: 3733.29
A47: 35 | B47: LC6 | C47: L | D47: C | E47: 6 | F47: 2 | G47: 0.4961805382 | H47: 0.2093 | I47: 0.2175 | K47: 0.03169713831 | L47: 0.007936705087 | M47: 0.9546776765 | N47: 0.0009409777424 | O47: 0.001848916932 | P47: 0.9199045889 | Q47: 0.9004747252 | R47: 3.997 | T47: 3.646 | W47: 67.7933 | X47: 1.85332 | Y47: 89.088 | AC47: 3543.38
A48: 36 | B48: LD6 | C48: L | D48: D | E48: 6 | F48: 2 | G48: 0.5358541058 | H48: 0.21938 | I48: 0.18 | J48: 0.3872345399 | K48: 0.02432031636 | L48: 0.004263470094 | M48: 0.9595544221 | N48: 0.001693030153 | O48: 0.001863321799 | P48: 0.9579344161 | Q48: 0.9559979293 | R48: 3.331 | T48: 3.961 | W48: 71.3863 | X48: 2.08599 | Y48: 89.419 | Z48: 62.2798 | AA48: 1.47841 | AB48: 88.889 | AC48: 2736.4 | AD48: 1420.79
A49: 36 | B49: LD6 | C49: L | D49: D | E49: 6 | F49: 2 | G49: 0.5344767586 | H49: 0.21681 | I49: 0.18 | K49: 0.02426035503 | L49: 0.004339250493 | M49: 0.9555471137 | N49: 0.00315581854 | O49: 0.001843934911 | P49: 0.9737475698 | Q49: 0.971642533 | R49: 3.592 | T49: 3.903 | W49: 70.2231 | X49: 1.53556 | Y49: 90.12 | Z49: 65.6707 | AA49: 1.49251 | AB49: 87.677 | AC49: 2880.53 | AD49: 1255.97
A50: 38 | B50: AR6 | C50: A | D50: R | E50: 6 | F50: 2 | G50: 0.5133913043 | H50: 0.22594 | I50: 0.2025 | J50: 0.415802047 | K50: 0.0259057072 | L50: 0.004987593052 | M50: 0.9677370115 | N50: 0.001046650124 | O50: 0.002127791563 | P50: 0.9624286817 | Q50: 0.9620871671 | R50: 2.855 | T50: 3.252
A51: 38 | B51: AR6 | C51: A | D51: R | E51: 6 | F51: 2 | G51: 0.5125875168 | H51: 0.22179 | I51: 0.2025 | K51: 0.02583798883 | L51: 0.005112729449 | M51: 0.9627155056 | N51: 0.001054968077 | O51: 0.002117916999 | P51: 0.9809787831 | Q51: 0.9683967812 | R51: 3.126 | T51: 3.135
A52: 39 | B52: AC6 | C52: A | D52: C | E52: 6 | F52: 2 | G52: 0.5018133042 | H52: 0.22018 | I52: 0.205 | J52: 0.411716779 | K52: 0.03367670365 | L52: 0.008035360539 | M52: 0.9606700078 | N52: 0.001145007924 | O52: 0.002078298336 | P52: 0.8990353782 | Q52: 0.9397406214 | R52: 3.082 | T52: 3.041
A53: 39 | B53: AC6 | C53: A | D53: C | E53: 6 | F53: 2 | G53: 0.5023565015 | H53: 0.22613 | I53: 0.205 | K53: 0.03324680511 | L53: 0.008074580671 | M53: 0.9667333066 | N53: 0.001144169329 | O53: 0.002076178115 | P53: 0.8960713817 | Q53: 0.9005493684 | R53: 2.914 | T53: 3.113
A54: 40 | B54: AD6 | C54: A | D54: D | E54: 6 | F54: 2 | G54: 0.5210876253 | H54: 0.22229 | I54: 0.2 | J54: 0.4175731313 | K54: 0.02474903091 | L54: 0.003938475301 | M54: 0.9681266562 | N54: 0.001528178114 | O54: 0.002020673889 | P54: 0.8901297917 | Q54: 0.9412898327 | R54: 3.043 | T54: 3.321
A55: 40 | B55: AD6 | C55: A | D55: D | E55: 6 | F55: 2 | G55: 0.5209963355 | H55: 0.21334 | I55: 0.2 | K55: 0.02435387674 | L55: 0.00402584493 | M55: 0.9586902123 | N55: 0.001640159046 | O55: 0.002056908549 | P55: 0.883906858 | Q55: 0.9276535656 | R55: 3.069 | T55: 3.553
A56: 42 | B56: LR4 | C56: L | D56: R | E56: 4 | F56: 2 | G56: 0.5177589538 | H56: 0.20744 | I56: 0.2025 | J56: 0.4224421568 | K56: 0.02343594836 | L56: 0.005300397219 | M56: 0.9511349021 | N56: 0.001106752731 | O56: 0.001707050645 | P56: 0.878950577 | Q56: 0.8507830652 | R56: 4.005 | T56: 4.057 | W56: 68.2515 | X56: 1.69185 | Y56: 82.81 | Z56: 62.9076 | AA56: 2.03751 | AB56: 90.133 | AC56: 963.486 | AD56: 2308.2
A57: 42 | B57: LR4 | C57: L | D57: R | E57: 4 | F57: 2 | G57: 0.5176119403 | H57: 0.21473 | I57: 0.205 | K57: 0.02317290553 | L57: 0.004976232917 | M57: 0.9605148458 | N57: 0.001117795603 | O57: 0.001694890077 | P57: 0.8621636896 | Q57: 0.8735132517 | R57: 4.452 | T57: 3.721 | W57: 62.3165 | X57: 2.03059 | Y57: 89.536 | Z57: 62.4271 | AA57: 2.04952 | AB57: 89.192 | AC57: 3058.65 | AD57: 2616.85
A58: 43 | B58: LC4 | C58: L | D58: C | E58: 4 | F58: 2 | G58: 0.5078755857 | H58: 0.20571 | I58: 0.2075 | J58: 0.422324947 | K58: 0.03098619525 | L58: 0.00830519416 | M58: 0.9520717809 | N58: 0.001245903267 | O58: 0.001710696196 | P58: 0.8849688411 | Q58: 0.9015885526 | R58: 4.225 | T58: 4.235 | W58: 63.503 | X58: 1.70844 | Y58: 90.138 | Z58: 66.5225 | AA58: 2.17668 | AB58: 90.106 | AC58: 2451.66 | AD58: 2721.74
A59: 43 | B59: LC4 | C59: L | D59: C | E59: 4 | F59: 2 | G59: 0.5094687531 | H59: 0.21298 | I59: 0.2075 | K59: 0.03027305105 | L59: 0.008310249307 | M59: 0.9602218042 | N59: 0.001097150772 | O59: 0.001582409972 | P59: 0.9170846973 | Q59: 0.8981717086 | R59: 3.763 | T59: 4.347 | W59: 61.8991 | X59: 1.68882 | Y59: 90.106 | Z59: 66.8213 | AA59: 2.18939 | AB59: 89.998 | AC59: 2128.99 | AD59: 2814.5
A60: 44 | B60: LD4 | C60: L | D60: D | E60: 4 | F60: 2 | G60: 0.5455085963 | H60: 0.20911 | I60: 0.165 | J60: 0.3631103116 | K60: 0.02343362129 | L60: 0.004840631516 | M60: 0.9430522176 | N60: 0.001923840731 | O60: 0.001711845894 | P60: 0.9090092587 | Q60: 0.9315588678 | R60: 3.97 | T60: 3.689
A61: 44 | B61: LD4 | C61: L | D61: D | E61: 4 | F61: 2 | G61: 0.545676673 | H61: 0.21503 | I61: 0.165 | K61: 0.02318608835 | L61: 0.0047221667 | M61: 0.9488927613 | N61: 0.002098740756 | O61: 0.001706975815 | P61: 0.9436044098 | Q61: 0.9184733439 | R61: 3.846 | T61: 3.95
A62: 1 | B62: LC4 | C62: L | D62: C | E62: 4 | F62: 1 | T62: 3.264 | W62: 59.9044 | X62: 1.69253 | Y62: 79.557 | Z62: 59.4215 | AA62: 1.91923 | AB62: 90.142 | AC62: 3458.21 | AD62: 2846.97
A63: 6 | B63: AC6 | C63: A | D63: C | E63: 6 | F63: 1 | R63: 2.796 | T63: 2.962 | W63: 65.9591 | X63: 1.59929 | Y63: 83.64 | Z63: 54.5529 | AA63: 2.3515 | AB63: 85.369 | AC63: 4593.43 | AD63: 1995.8
A64: 8 | B64: AD6 | C64: A | D64: D | E64: 6 | F64: 1 | T64: 3.842
A65: 11 | B65: CC6 | C65: C | D65: C | E65: 6 | F65: 1 | T65: 3.622 | W65: 64.8907 | X65: 1.8363 | Y65: 84.462 | Z65: 64.0947 | AA65: 1.83656 | AB65: 82.936 | AC65: 4642.52 | AD65: 3934.71
A66: 13 | B66: CD6 | C66: C | D66: D | E66: 6 | F66: 1 | R66: 3.945 | W66: 60.9601 | X66: 1.67423 | Y66: 90.129 | Z66: 62.4273 | AA66: 1.4997 | AB66: 78.454 | AC66: 3743.86 | AD66: 4379.99
A67: 16 | B67: AC4 | C67: A | D67: C | E67: 4 | F67: 1 | R67: 4.248 | W67: 63.134 | X67: 2.02494 | Y67: 83.437 | Z67: 62.1312 | AA67: 1.80483 | AB67: 76.299 | AC67: 2619.42 | AD67: 2571.33
A68: 21 | B68: LC6 | C68: L | D68: C | E68: 6 | F68: 1 | R68: 3.238 | W68: 65.2515 | X68: 1.95736 | Y68: 84.123 | Z68: 63.4141 | AA68: 1.76384 | AB68: 88.609 | AC68: 4091.4 | AD68: 3072.1
A69: 22 | B69: LR6 | C69: L | D69: R | E69: 6 | F69: 1 | R69: 3.492 | W69: 63.3245 | X69: 1.96148 | Y69: 84.421 | Z69: 59.8612 | AA69: 1.88838 | AB69: 90.079 | AC69: 4231.74 | AD69: 2466.95

Sheet XLSTAT_20200623_100903_1_HID1 (hidden)
B2: Category | C2: LS mean | D2: Standard error | E2: Lower bound (95%) | F2: Upper bound (95%)
B3: AC4 | C3: 0.4203032212 | D3: 0.0278944778 | E3: 0.3608475492 | F3: 0.4797588933
B4: AC6 | C4: 0.3663365084 | D4: 0.0278944778 | E4: 0.3068808364 | F4: 0.4257921804
B5: AD4 | C5: 0.3796254692 | D5: 0.0278944778 | E5: 0.3201697972 | F5: 0.4390811412
B6: AD6 | C6: 0.3845646299 | D6: 0.0278944778 | E6: 0.3251089579 | F6: 0.4440203019
B7: AR4 | C7: 0.4230555083 | D7: 0.0278944778 | E7: 0.3635998363 | F7: 0.4825111803
B8: AR6 | C8: 0.3839906017 | D8: 0.0278944778 | E8: 0.3245349297 | F8: 0.4434462737
B9: CC6 | C9: 0.4054664158 | D9: 0.0278944778 | E9: 0.3460107438 | F9: 0.4649220878
B10: CD6 | C10: 0.3403217348 | D10: 0.0278944778 | E10: 0.2808660628 | F10: 0.3997774068
B11: CR6 | C11: 0.4059429871 | D11: 0.0278944778 | E11: 0.3464873151 | F11: 0.4653986591
B12: LC4 | C12: 0.3725435695 | D12: 0.0278944778 | E12: 0.3130878975 | F12: 0.4319992415
B13: LC6 | C13: 0.4112685464 | D13: 0.0278944778 | E13: 0.3518128744 | F13: 0.4707242184
B14: LD4 | C14: 0.3301334022 | D14: 0.0278944778 | E14: 0.2706777302 | F14: 0.3895890743
B15: LD6 | C15: 0.3791876451 | D15: 0.0278944778 | E15: 0.319731973 | F15: 0.4386433171
B16: LR4 | C16: 0.3781440957 | D16: 0.0278944778 | E16: 0.3186884237 | F16: 0.4375997677
B17: LR6 | C17: 0.4073488605 | D17: 0.0278944778 | E17: 0.3478931885 | F17: 0.4668045325

Sheet XLSTAT_20200701_114906_1_HID (hidden)
B2: Category | C2: LS mean | D2: Standard error | E2: Lower bound (95%) | F2: Upper bound (95%)
B3: AC4 | C3: 0.5029128794 | D3: 0.006179511123 | E3: 0.4904667051 | F3: 0.5153590537
B4: AC6 | C4: 0.5095765104 | D4: 0.006179511123 | E4: 0.4971303361 | F4: 0.5220226847
B5: AD4 | C5: 0.5457323614 | D5: 0.006179511123 | E5: 0.5332861871 | F5: 0.5581785357
B6: AD6 | C6: 0.5276278805 | D6: 0.006179511123 | E6: 0.5151817062 | F6: 0.5400740548
B7: AR4 | C7: 0.5008394005 | D7: 0.006179511123 | E7: 0.4883932262 | F7: 0.5132855748
B8: AR6 | C8: 0.5080416142 | D8: 0.006179511123 | E8: 0.4955954399 | F8: 0.5204877885
B9: CC6 | C9: 0.5002217317 | D9: 0.006179511123 | E9: 0.4877755574 | F9: 0.512667906
B10: CD6 | C10: 0.5624535027 | D10: 0.006179511123 | E10: 0.5500073284 | F10: 0.574899677
B11: CR6 | C11: 0.5004265241 | D11: 0.006179511123 | E11: 0.4879803498 | F11: 0.5128726984
B12: LC4 | C12: 0.5084119896 | D12: 0.006179511123 | E12: 0.4959658153 | F12: 0.5208581639
B13: LC6 | C13: 0.5049879894 | D13: 0.006179511123 | E13: 0.4925418151 | F13: 0.5174341637
B14: LD4 | C14: 0.5519530864 | D14: 0.006179511123 | E14: 0.5395069121 | F14: 0.5643992607
B15: LD6 | C15: 0.5267711104 | D15: 0.006179511123 | E15: 0.5143249361 | F15: 0.5392172847
B16: LR4 | C16: 0.5079785787 | D16: 0.006179511123 | E16: 0.4955324044 | F16: 0.520424753
B17: LR6 | C17: 0.5103814659 | D17: 0.006179511123 | E17: 0.4979352916 | F17: 0.5228276402

Sheet XLSTAT_20200701_114906_1_HID1 (hidden)
B2: Category | C2: LS mean | D2: Standard error | E2: Lower bound (95%) | F2: Upper bound (95%)
B3: AC4 | C3: 0.2212475 | D3: 0.006138739167 | E3: 0.2088756841 | F3: 0.2336193159
B4: AC6 | C4: 0.2252825 | D4: 0.006138739167 | E4: 0.2129106841 | F4: 0.2376543159
B5: AD4 | C5: 0.214495 | D5: 0.006138739167 | E5: 0.2021231841 | F5: 0.2268668159
B6: AD6 | C6: 0.217755 | D6: 0.006138739167 | E6: 0.2053831841 | F6: 0.2301268159
B7: AR4 | C7: 0.2185425 | D7: 0.006138739167 | E7: 0.2061706841 | F7: 0.2309143159
B8: AR6 | C8: 0.2273 | D8: 0.006138739167 | E8: 0.2149281841 | F8: 0.2396718159
B9: CC6 | C9: 0.21829 | D9: 0.006138739167 | E9: 0.2059181841 | F9: 0.2306618159
B10: CD6 | C10: 0.2152933333 | D10: 0.007088405421 | E10: 0.2010075909 | F10: 0.2295790758
